Workbook

Sheet PI vs gap
A1: Measurement | B1: Hall
A2: Type | B2: Gap dependence
A4: PS type | B4: HXR
A5: PS serial no | B5: 16327
A7: Measurement date | B7: ='DF raw data'!B2 -> 2. okt 2017
C11: Nominal gap [mm] | D11: Encoder [counts] | E11: Encoder [mm] | F11: PI [T^2mm^3] | H11: Encoder offset
C12: 10 | D12: =' 10 mm'!B3 -> 17908792 | E12: =(D12-$H$12)*-0.00025+10 -> 10.0055 | F12: =' 10 mm'!Q3 -> 711.9093173 | H12: 17908814
C13: 12 | D13: =' 12 mm'!B3 -> 17900794 | E13: =(D13-$H$12)*-0.00025+10 -> 12.005 | F13: =' 12 mm'!Q3 -> 545.3177768
C14: 15 | D14: =' 15 mm'!B3 -> 17888754 | E14: 15.015 | F14: =' 15 mm'!Q3 -> 371.5249487
C15: 20 | D15: =' 20 mm'!B3 -> 17868737 | E15: 20.01925 | F15: =' 20 mm'!Q3 -> 203.2757035
C16: 30 | D16: =' 30 mm'!B3 -> 17828736 | E16: 30.0195 | F16: =' 30 mm'!Q3 -> 68.28720253
C17: 100 | D17: =' 100 mm'!B3 -> 17548763 | E17: 100.01275 | F17: =' 100 mm'!Q3 -> 0.3885586458
A41: Measuring series at 10 mm gap:
A42: Reference magnet
A43: Tref | B43: 20.67 | C43: degC
A44: Hall ref field | B44: 0.50561 | C44: T
A45: NMR ref field | B45: 0.5066125 | C45: T
A47: Measuring series at larger gaps:
A48: Reference magnet
A49: Tref | B49: 20.675 | C49: degC
A50: Hall ref field | B50: 0.505575 | C50: T
A51: NMR ref field | B51: 0.5066135 | C51: T
A53: Offset from Faro | B53: 0.421

Sheet 10 mm
A1: dz | B1: ='DF raw data'!B7 -> 0.50015 | C1: mm | F1: T_coeff | G1: -0.0008 | H1: /degC | L1: Hallref | M1: ='PI vs gap'!B44 -> 0.50561 | N1: T | P1: IBy total | Q1: =L1203*1000 -> -10.1671945 | R1: muTm | X1: DF ref | Y1: 18
A2: Tref | B2: ='DF raw data'!B8 -> 21.38 | C2: degC | F2: Tcorr | G2: 20 | H2: degC | L2: NMRref | M2: ='PI vs gap'!B45 -> 0.5066125 | N2: T | P2: JBy total | Q2: =M1203 -> -3.711630613 | R2: muTm^2
A3: Encoder | B3: ='DF raw data'!B9 -> 17908792 | P3: PI total | Q3: =N1203 -> 711.9093173 | R3: T^2mm^3
A5: z [mm] | B5: Bx | C5: By | D5: Bz | F5: Bx_corr | G5: By_corr | H5: Bz_corr | J5: Ix | K5: Jx | L5: Iy | M5: Jy | N5: PI
A6: -0.068 | B6: ='DF raw data'!A11 -> 3.5208739e-06 | C6: ='DF raw data'!B11 -> 2.9208256e-06 | D6: ='DF raw data'!C11 -> 1.6843113e-06 | F6: =(1-$G$1*($B$2-$G$2))*B6 -> 3.524760945e-06 | G6: =(1-$G$1*($B$2-$G$2))*C6*$M$2/$M$1 -> 2.929847862e-06 | H6: =(1-$G$1*($B$2-$G$2))*D6 -> 1.68617078e-06 | J6: =F6*$B$1 -> 1.762909187e-06 | K6: =J6*$B$1 -> 8.817190296e-07 | L6: =G6*$B$1 -> 1.465363408e-06 | M6: =L6*$B$1 -> 7.329015087e-07 | N6: =(J6^2+L6)^2*$B$1 -> 1.073971608e-12
A7: =A6+$B$1 -> 0.43215 | B7: ='DF raw data'!A12 -> 3.8767121e-06 | C7: ='DF raw data'!B12 -> -7.7621553e-06 | D7: ='DF raw data'!C12 -> -4.783753e-06 | F7: =(1-$G$1*($B$2-$G$2))*B7 -> 3.88099199e-06 | G7: =(1-$G$1*($B$2-$G$2))*C7*$M$2/$M$1 -> -7.786132151e-06 | H7: =(1-$G$1*($B$2-$G$2))*D7 -> -4.789034263e-06 | J7: =F7*$B$1+J6 -> 3.70398733e-06 | K7: =J7*$B$1+K6 -> 2.734268293e-06 | L7: =G7*$B$1+L6 -> -2.428870587e-06 | M7: =L7*$B$1+M6 -> -4.818981155e-07 | N7: =(J7^2+L7^2)*$B$1+N6 -> 1.088638168e-11
A8: =A7+$B$1 -> 0.9323 | B8: ='DF raw data'!A13 -> 3.9706301e-06 | C8: ='DF raw data'!B13 -> -1.0117412e-05 | D8: ='DF raw data'!C13 -> -4.5693741e-06 | F8: 3.975013676e-06 | G8: -1.01486641e-05 | H8: -4.574418689e-06 | J8: =F8*$B$1+J7 -> 5.69209042e-06 | K8: =J8*$B$1+K7 -> 5.581167317e-06 | L8: =G8*$B$1+L7 -> -7.504724938e-06 | M8: =L8*$B$1+M7 -> -4.235386293e-06 | N8: =(J8^2+L8^2)*$B$1+N7 -> 5.526008468e-11
A9: 1.43245 | B9: ='DF raw data'!A14 -> 3.4290367e-06 | C9: ='DF raw data'!B14 -> 5.4646152e-06 | D9: ='DF raw data'!C14 -> 1.5742248e-07 | F9: 3.432822357e-06 | G9: 5.481495082e-06 | H9: 1.575962744e-07 | J9: 7.409016522e-06 | K9: 9.28678693e-06 | L9: -4.763155173e-06 | M9: -6.617678353e-06 | N9: 9.406230837e-11
A10: 1.9326 | B10: ='DF raw data'!A15 -> 3.6063809e-06 | C10: ='DF raw data'!B15 -> 9.8826763e-07 | D10: ='DF raw data'!C15 -> 2.7307394e-06 | F10: 3.610362345e-06 | G10: 9.913203318e-07 | H10: 2.733754136e-06 | J10: 9.214739248e-06 | K10: 1.389553877e-05 | L10: -4.267346309e-06 | M10: -8.75199161e-06 | N10: 1.456386086e-10
A11: 2.43275 | B11: ='DF raw data'!A16 -> 3.9405368e-06 | C11: ='DF raw data'!B16 -> -8.3984669e-06 | D11: ='DF raw data'!C16 -> 8.6941856e-07 | F11: =(1-$G$1*($B$2-$G$2))*B11 -> 3.944887153e-06 | G11: -8.424409281e-06 | H11: =(1-$G$1*($B$2-$G$2))*D11 -> 8.703783981e-07 | J11: 1.118777456e-05 | K11: 1.949110421e-05 | L11: -8.480814611e-06 | M11: -1.299367104e-05 | N11: 2.442134302e-10
A12: 2.9329 | B12: ='DF raw data'!A17 -> 3.5510545e-06 | C12: ='DF raw data'!B17 -> 1.9239922e-06 | D12: ='DF raw data'!C17 -> -1.5247934e-06 | F12: 3.554974864e-06 | G12: 1.929935301e-06 | H12: -1.526476772e-06 | J12: 1.296579524e-05 | K12: 2.59759467e-05 | L12: -7.51555747e-06 | M12: -1.675257711e-05 | N12: 3.565448446e-10
A13: 3.43305 | B13: ='DF raw data'!A18 -> 3.4674101e-06 | C13: ='DF raw data'!B18 -> 4.9549235e-06 | D13: ='DF raw data'!C18 -> 3.0532535e-06 | F13: 3.471238121e-06 | G13: 4.970228974e-06 | H13: 3.056624292e-06 | J13: 1.470193498e-05 | K13: 3.332911948e-05 | L13: -5.029697449e-06 | M13: -1.926818029e-05 | N13: 4.773034356e-10
A14: 3.9332 | B14: ='DF raw data'!A19 -> 3.1542238e-06 | C14: ='DF raw data'!B19 -> 1.289811e-05 | D14: ='DF raw data'!C19 -> 2.7702467e-07 | F14: 3.157706063e-06 | G14: 1.293795152e-05 | H14: 2.773305052e-07 | J14: 1.628126167e-05 | K14: 4.14721925e-05 | L14: 1.441219003e-06 | M14: -1.85473546e-05 | N14: 6.10921806e-10
A15: 4.43335 | B15: ='DF raw data'!A20 -> 3.4812344e-06 | C15: ='DF raw data'!B20 -> 2.5054667e-06 | D15: ='DF raw data'!C20 -> -7.8642042e-06 | F15: 3.485077683e-06 | G15: 2.513205942e-06 | H15: -7.872886281e-06 | J15: 1.802432327e-05 | K15: 5.048705779e-05 | L15: 2.698198956e-06 | M15: -1.719785039e-05 | N15: 7.77049883e-10
A16: 4.9335 | B16: ='DF raw data'!A21 -> 3.6030485e-06 | C16: ='DF raw data'!B21 -> -9.7297948e-07 | D16: ='DF raw data'!C21 -> -8.9346577e-06 | F16: 3.607026266e-06 | G16: -9.759849576e-07 | H16: -8.944521562e-06 | J16: 1.982837746e-05 | K16: 6.040422077e-05 | L16: 2.210060079e-06 | M16: -1.609248884e-05 | N16: 9.761340495e-10
A17: 5.43365 | B17: ='DF raw data'!A22 -> 3.8745875e-06 | C17: ='DF raw data'!B22 -> -6.9929465e-06 | D17: ='DF raw data'!C22 -> -1.3355894e-06 | F17: 3.878865045e-06 | G17: -7.014547309e-06 | H17: -1.337063891e-06 | J17: 2.176839181e-05 | K17: 7.129168194e-05 | L17: -1.298265758e-06 | M17: -1.674181646e-05 | N17: 1.21397957e-09
A18: 5.9338 | B18: ='DF raw data'!A23 -> 3.5717474e-06 | C18: ='DF raw data'!B23 -> 1.2133585e-06 | D18: ='DF raw data'!C23 -> -2.233661e-06 | F18: 3.575690609e-06 | G18: 1.217106495e-06 | H18: -2.236126962e-06 | J18: 2.355677347e-05 | K18: 8.307360219e-05 | L18: -6.895299445e-07 | M18: -1.708668487e-05 | N18: 1.491761393e-09
A19: 6.43395 | B19: ='DF raw data'!A24 -> 3.491901e-06 | C19: ='DF raw data'!B24 -> 2.8471748e-06 | D19: ='DF raw data'!C24 -> -5.5655692e-06 | F19: 3.495756059e-06 | G19: 2.855969559e-06 | H19: -5.571713588e-06 | J19: 2.530517586e-05 | K19: 9.57299859e-05 | L19: 7.388832305e-07 | M19: -1.671713242e-05 | N19: 1.812306465e-09
A20: 6.9341 | B20: ='DF raw data'!A25 -> 3.3718331e-06 | C20: ='DF raw data'!B25 -> 5.8363439e-06 | D20: ='DF raw data'!C25 -> -6.7904184e-06 | F20: 3.375555604e-06 | G20: 5.854372031e-06 | H20: -6.797915022e-06 | J20: 2.699346e-05 | K20: 0.0001092307649 | L20: 3.666947402e-06 | M20: -1.488310867e-05 | N20: 2.183464472e-09
A21: 7.43425 | B21: ='DF raw data'!A26 -> 3.1144389e-06 | C21: ='DF raw data'!B26 -> 1.310639e-05 | D21: ='DF raw data'!C26 -> -4.4336775e-06 | F21: 3.117877241e-06 | G21: 1.314687488e-05 | H21: -4.43857228e-06 | J21: 2.85528663e-05 | K21: 0.000123511481 | L21: 1.024235688e-05 | M21: -9.760393884e-06 | N21: 2.643688522e-09
A22: 7.9344 | B22: ='DF raw data'!A27 -> 3.9702372e-06 | C22: ='DF raw data'!B27 -> -4.4037915e-06 | D22: ='DF raw data'!C27 -> 2.0375735e-06 | F22: 3.974620342e-06 | G22: -4.417394559e-06 | H22: 2.039822981e-06 | J22: 3.054077266e-05 | K22: 0.0001387864484 | L22: 8.032996987e-06 | M22: -5.742690441e-06 | N22: 3.14247203e-09
A23: 8.43455 | B23: ='DF raw data'!A28 -> 4.245574e-06 | C23: ='DF raw data'!B28 -> -7.5785574e-06 | D23: ='DF raw data'!C28 -> 5.8944424e-06 | F23: 4.250261114e-06 | G23: -7.601967128e-06 | H23: 5.900949864e-06 | J23: 3.266654076e-05 | K23: 0.0001551246188 | L23: 4.230873128e-06 | M23: -3.626619246e-06 | N23: 3.685136366e-09
A24: 8.9347 | B24: ='DF raw data'!A29 -> 3.5378268e-06 | C24: ='DF raw data'!B29 -> -2.865376e-06 | D24: ='DF raw data'!C29 -> -3.8850121e-06 | F24: 3.541732561e-06 | G24: -2.874226982e-06 | H24: -3.889301153e-06 | J24: 3.44379383e-05 | K24: 0.0001723487536 | L24: 2.793328503e-06 | M24: -2.229535995e-06 | N24: 4.282202572e-09
A25: 9.43485 | B25: ='DF raw data'!A30 -> 5.4331122e-06 | C25: ='DF raw data'!B30 -> -7.7443855e-07 | D25: ='DF raw data'!C30 -> 1.590814e-07 | F25: 5.439110356e-06 | G25: -7.768307461e-07 | H25: 1.592570259e-07 | J25: 3.715830934e-05 | K25: 0.0001909334821 | L25: 2.404796605e-06 | M25: -1.026776973e-06 | N25: 4.97567205e-09
A26: 9.935 | B26: ='DF raw data'!A31 -> 1.0473095e-05 | C26: ='DF raw data'!B31 -> 9.39031e-06 | D26: ='DF raw data'!C31 -> 9.4208226e-06 | F26: 1.04846573e-05 | G26: 9.419316127e-06 | H26: 9.431223188e-06 | J26: 4.240221069e-05 | K26: 0.0002121409477 | L26: 7.115867566e-06 | M26: 2.53222419e-06 | N26: 5.900240859e-09
A27: 10.43515 | B27: ='DF raw data'!A32 -> 1.1185455e-05 | C27: ='DF raw data'!B32 -> 1.0389683e-06 | D27: ='DF raw data'!C32 -> 6.0496532e-06 | F27: 1.119780374e-05 | G27: 1.042177613e-06 | H27: 6.056332017e-06 | J27: 4.800279223e-05 | K27: 0.0002361495443 | L27: 7.6371127e-06 | M27: 6.351926107e-06 | N27: 7.081892024e-09
A28: 10.9353 | B28: ='DF raw data'!A33 -> 3.5470382e-06 | C28: ='DF raw data'!B33 -> -1.0722768e-05 | D28: ='DF raw data'!C33 -> -1.7217391e-06 | F28: 3.55095413e-06 | G28: -1.075589001e-05 | H28: -1.7236399e-06 | J28: 4.977880194e-05 | K28: 0.0002610464121 | L28: 2.257554309e-06 | M28: 7.481041894e-06 | N28: 8.323777315e-09
A29: 11.43545 | B29: ='DF raw data'!A34 -> -5.6290792e-06 | C29: ='DF raw data'!B34 -> -1.0174517e-05 | D29: ='DF raw data'!C34 -> 6.6297054e-07 | F29: -5.635293703e-06 | G29: -1.02059455e-05 | H29: 6.637024595e-07 | J29: 4.69603098e-05 | K29: 0.000284533611 | L29: -2.846949331e-06 | M29: 6.057140186e-06 | N29: 9.43079723e-09
A30: 11.9356 | B30: ='DF raw data'!A35 -> -7.5893095e-06 | C30: ='DF raw data'!B35 -> -1.6690685e-06 | D30: ='DF raw data'!C35 -> -3.1852544e-06 | F30: -7.597688098e-06 | G30: -1.674224157e-06 | H30: -3.188770921e-06 | J30: 4.316032609e-05 | K30: 0.0003061202481 | L30: -3.684312543e-06 | M30: 4.214431268e-06 | N30: 1.036927264e-08
A31: 12.43575 | B31: ='DF raw data'!A36 -> -4.6095429e-06 | C31: ='DF raw data'!B36 -> 1.2666747e-05 | D31: ='DF raw data'!C36 -> -8.9795794e-06 | F31: -4.614631835e-06 | G31: 1.270587385e-05 | H31: -8.989492856e-06 | J31: 4.085231798e-05 | K31: 0.0003265525349 | L31: 2.670530264e-06 | M31: 5.550096979e-06 | N31: 1.120754586e-08
A32: 12.9359 | B32: ='DF raw data'!A37 -> 1.2128819e-06 | C32: ='DF raw data'!B37 -> 4.9820101e-06 | D32: ='DF raw data'!C37 -> -9.2351547e-06 | F32: 1.214220922e-06 | G32: 4.997399243e-06 | H32: -9.245350311e-06 | J32: 4.145961057e-05 | K32: 0.0003472885592 | L32: 5.169979495e-06 | M32: 8.135862224e-06 | N32: 1.20806217e-08
A33: 13.43605 | B33: ='DF raw data'!A38 -> 6.8930622e-06 | C33: ='DF raw data'!B38 -> 3.7367333e-06 | D33: ='DF raw data'!C38 -> -7.8091689e-06 | F33: 6.900672141e-06 | G33: 3.748275854e-06 | H33: -7.817790222e-06 | J33: 4.491098175e-05 | K33: 0.0003697507867 | L33: 7.044679664e-06 | M33: 1.165925876e-05 | N33: 1.311424359e-08
A34: 13.9362 | B34: ='DF raw data'!A39 -> 8.6215387e-06 | C34: ='DF raw data'!B39 -> -1.2397679e-05 | D34: ='DF raw data'!C39 -> -7.5491407e-06 | F34: 8.631056879e-06 | G34: -1.243597472e-05 | H34: -7.557474951e-06 | J34: 4.922780484e-05 | K34: 0.0003943720733 | L34: 8.248269091e-07 | M34: 1.207179594e-05 | N34: 1.432663575e-08
A35: 14.43635 | B35: ='DF raw data'!A40 -> 3.3066842e-06 | C35: ='DF raw data'!B40 -> -1.3675111e-05 | D35: ='DF raw data'!C40 -> -6.0522725e-06 | F35: 3.310334779e-06 | G35: -1.371735263e-05 | H35: -6.058954209e-06 | J35: 5.088346878e-05 | K35: 0.0004198214402 | L35: -6.035907009e-06 | M35: 9.052937046e-06 | N35: 1.563980937e-08
A36: 14.9365 | B36: ='DF raw data'!A41 -> -4.1001822e-06 | C36: ='DF raw data'!B41 -> -2.1121798e-06 | D36: ='DF raw data'!C41 -> -7.0867827e-06 | F36: -4.104708801e-06 | G36: -2.118704202e-06 | H36: -7.094606508e-06 | J36: 4.883049868e-05 | K36: 0.0004442440141 | L36: -7.095576916e-06 | M36: 5.504084251e-06 | N36: 1.685755699e-08
A37: 15.43665 | B37: ='DF raw data'!A42 -> -7.1326704e-06 | C37: ='DF raw data'!B42 -> -2.6827149e-06 | D37: ='DF raw data'!C42 -> -5.7990401e-06 | F37: -7.140544868e-06 | G37: -2.691001652e-06 | H37: -5.80544224e-06 | J37: 4.525915516e-05 | K37: 0.0004668803806 | L37: -8.441481392e-06 | M37: 1.282077333e-06 | N37: 1.791769981e-08
A38: 15.9368 | B38: ='DF raw data'!A43 -> -8.6728451e-06 | C38: ='DF raw data'!B43 -> -1.0775606e-05 | D38: ='DF raw data'!C43 -> 2.8477368e-06 | F38: -8.682419921e-06 | G38: -1.080889123e-05 | H38: 2.850880701e-06 | J38: 4.091664284e-05 | K38: 0.0004873448395 | L38: -1.384754834e-05 | M38: -5.643773969e-06 | N38: 1.885094282e-08
A39: 16.43695 | B39: ='DF raw data'!A44 -> -7.7604545e-06 | C39: ='DF raw data'!B44 -> -6.829765e-06 | D39: ='DF raw data'!C44 -> 2.6295018e-06 | F39: -7.769022042e-06 | G39: -6.850861751e-06 | H39: 2.63240477e-06 | J39: 3.703096646e-05 | K39: 0.0005058658774 | L39: -1.727400684e-05 | M39: -1.428336849e-05 | N39: 1.968603517e-08
A40: 16.9371 | B40: ='DF raw data'!A45 -> -3.3572489e-06 | C40: ='DF raw data'!B45 -> -7.7329314e-06 | D40: ='DF raw data'!C45 -> 1.157663e-06 | F40: -3.360955303e-06 | G40: -7.75681798e-06 | H40: 1.15894106e-06 | J40: 3.534998467e-05 | K40: 0.0005235461722 | L40: -2.115357936e-05 | M40: -2.486333121e-05 | N40: 2.05348374e-08
A41: 17.43725 | B41: ='DF raw data'!A46 -> 1.9381129e-07 | C41: ='DF raw data'!B46 -> -9.8605437e-07 | D41: ='DF raw data'!C46 -> 3.7136049e-06 | F41: 1.940252577e-07 | G41: -9.891002352e-07 | H41: 3.71770472e-06 | J41: 3.54470264e-05 | K41: 0.0005412750024 | L41: -2.164827784e-05 | M41: -3.569071737e-05 | N41: 2.139766598e-08
A42: 17.9374 | B42: ='DF raw data'!A47 -> 1.9608067e-06 | C42: ='DF raw data'!B47 -> 3.1022862e-06 | D42: ='DF raw data'!C47 -> 5.7876896e-06 | F42: 1.962971431e-06 | G42: 3.111868984e-06 | H42: 5.794079209e-06 | J42: 3.642880656e-05 | K42: 0.00055949487 | L42: -2.009187657e-05 | M42: -4.573966943e-05 | N42: 2.226329632e-08
A43: 18.43755 | B43: ='DF raw data'!A48 -> 2.3054979e-06 | C43: ='DF raw data'!B48 -> -4.7276097e-07 | D43: ='DF raw data'!C48 -> 5.7457655e-06 | F43: 2.30804317e-06 | G43: -4.742213014e-07 | H43: 5.752108825e-06 | J43: 3.758317435e-05 | K43: 0.0005782920947 | L43: -2.032905835e-05 | M43: -5.590724797e-05 | N43: 2.317645299e-08
A44: 18.9377 | B44: ='DF raw data'!A49 -> 1.9989399e-07 | C44: ='DF raw data'!B49 -> -4.6995791e-07 | D44: ='DF raw data'!C49 -> -1.0144578e-06 | F44: 2.00114673e-07 | G44: -4.714095829e-07 | H44: -1.015577761e-06 | J44: 3.768326171e-05 | K44: 0.000597139378 | L44: -2.056483385e-05 | M44: -6.619274962e-05 | N44: 2.409819973e-08
A45: 19.43785 | B45: ='DF raw data'!A50 -> -1.5355965e-06 | C45: ='DF raw data'!B50 -> 1.1334477e-05 | D45: ='DF raw data'!C50 -> -7.3819538e-06 | F45: -1.537291799e-06 | G45: 1.136948855e-05 | H45: -7.390103477e-06 | J45: 3.691438521e-05 | K45: 0.0006156021078 | L45: -1.487838416e-05 | M45: -7.363417346e-05 | N45: 2.489045641e-08
A46: 19.938 | B46: ='DF raw data'!A51 -> 3.310555e-06 | C46: ='DF raw data'!B51 -> 1.3502935e-05 | D46: ='DF raw data'!C51 -> -2.2749302e-06 | F46: 3.314209853e-06 | G46: 1.354464479e-05 | H46: -2.277441723e-06 | J46: 3.857198727e-05 | K46: 0.0006348938872 | L46: -8.104030066e-06 | M46: -7.768740409e-05 | N46: 2.566742619e-08
A47: 20.43815 | B47: ='DF raw data'!A52 -> 8.6034506e-06 | C47: ='DF raw data'!B52 -> 1.4687593e-07 | D47: ='DF raw data'!C52 -> 2.6063497e-06 | F47: 8.612948809e-06 | G47: 1.473296213e-07 | H47: 2.60922711e-06 | J47: 4.287975362e-05 | K47: 0.000656340196 | L47: -8.030343156e-06 | M47: -8.170378022e-05 | N47: 2.66192915e-08
A48: 20.9383 | B48: ='DF raw data'!A53 -> 7.2386265e-06 | C48: ='DF raw data'!B53 -> -2.9502355e-06 | D48: ='DF raw data'!C53 -> 5.7698327e-07 | F48: 7.246617944e-06 | G48: -2.959348608e-06 | H48: 5.776202595e-07 | J48: 4.650414958e-05 | K48: 0.0006795992464 | L48: -9.510461362e-06 | M48: -8.646043747e-05 | N48: 2.774617186e-08
A49: 21.43845 | B49: ='DF raw data'!A54 -> 5.2363994e-06 | C49: ='DF raw data'!B54 -> 4.4012013e-06 | D49: ='DF raw data'!C54 -> -5.882699e-06 | F49: 5.242180385e-06 | G49: 4.414796358e-06 | H49: -5.8891935e-06 | J49: 4.91260261e-05 | K49: 0.0007041696284 | L49: -7.302400964e-06 | M49: -9.011273332e-05 | N49: 2.897988762e-08
A50: 21.9386 | B50: ='DF raw data'!A55 -> 1.5333442e-06 | C50: ='DF raw data'!B55 -> 8.5335732e-06 | D50: ='DF raw data'!C55 -> -7.5764256e-06 | F50: 1.535037012e-06 | G50: 8.559932917e-06 | H50: -7.584789974e-06 | J50: 4.989377486e-05 | K50: 0.0007291239999 | L50: -3.021150516e-06 | M50: -9.162376175e-05 | N50: 3.022952046e-08
A51: 22.43875 | B51: ='DF raw data'!A56 -> -3.3102608e-06 | C51: ='DF raw data'!B56 -> 1.9780289e-06 | D51: ='DF raw data'!C56 -> -1.0691002e-06 | F51: -3.313915328e-06 | G51: 1.984138917e-06 | H51: -1.070280487e-06 | J51: 4.823632011e-05 | K51: 0.0007532493954 | L51: -2.028783436e-06 | M51: -9.263845778e-05 | N51: 3.139529936e-08
A52: 22.9389 | B52: ='DF raw data'!A57 -> -5.3959866e-06 | C52: ='DF raw data'!B57 -> -1.6465203e-06 | D52: ='DF raw data'!C57 -> 5.1292154e-06 | F52: -5.401943769e-06 | G52: -1.651606306e-06 | H52: 5.134878054e-06 | J52: 4.553453794e-05 | K52: 0.0007760234945 | L52: -2.85483433e-06 | M52: -9.406630317e-05 | N52: 3.24363837e-08
A53: 23.43905 | B53: ='DF raw data'!A58 -> -4.3562231e-06 | C53: ='DF raw data'!B58 -> 7.876044e-06 | D53: ='DF raw data'!C58 -> 6.0034654e-06 | F53: -4.36103237e-06 | G53: 7.900372647e-06 | H53: 6.010093226e-06 | J53: 4.33533676e-05 | K53: 0.0007977066813 | L53: 1.096537049e-06 | M53: -9.351787017e-05 | N53: 3.337702424e-08
A54: 23.9392 | B54: ='DF raw data'!A59 -> -3.0220456e-06 | C54: ='DF raw data'!B59 -> -4.5589677e-06 | D54: ='DF raw data'!C59 -> 7.5452554e-06 | F54: -3.025381938e-06 | G54: -4.573050089e-06 | H54: 7.553585362e-06 | J54: 4.184022282e-05 | K54: 0.0008186330688 | L54: -1.190673953e-06 | M54: -9.411338574e-05 | N54: 3.425329802e-08
A55: 24.43935 | B55: ='DF raw data'!A60 -> -3.4210009e-06 | C55: ='DF raw data'!B60 -> -6.5731838e-06 | D55: ='DF raw data'!C60 -> 5.0818926e-06 | F55: -3.424777685e-06 | G55: -6.593487987e-06 | H55: 5.087503009e-06 | J55: 4.012732026e-05 | K55: 0.000838702748 | L55: -4.488406969e-06 | M55: -9.635826249e-05 | N55: 3.506871639e-08
A56: 24.9395 | B56: ='DF raw data'!A61 -> -2.6459077e-06 | C56: ='DF raw data'!B61 -> 1.2142112e-05 | D56: ='DF raw data'!C61 -> -1.8586289e-06 | F56: -2.648828782e-06 | G56: 1.217961829e-05 | H56: -1.860680826e-06 | J56: 3.880250855e-05 | K56: 0.0008581098227 | L56: 1.603229116e-06 | M56: -9.555640745e-05 | N56: 3.582304513e-08
A57: 25.43965 | B57: ='DF raw data'!A62 -> 1.0107703e-06 | C57: ='DF raw data'!B62 -> 1.4834147e-06 | D57: ='DF raw data'!C62 -> -6.7044311e-06 | F57: 1.01188619e-06 | G57: 1.487996883e-06 | H57: -6.711832792e-06 | J57: 3.930860342e-05 | K57: 0.0008777700207 | L57: 2.347450757e-06 | M57: -9.438232995e-05 | N57: 3.659861614e-08
A58: 25.9398 | B58: ='DF raw data'!A63 -> 3.9556126e-06 | C58: ='DF raw data'!B63 -> -1.5336012e-05 | D58: ='DF raw data'!C63 -> -8.6390937e-06 | F58: 3.959979596e-06 | G58: -1.538338406e-05 | H58: -8.648631259e-06 | J58: 4.128918722e-05 | K58: 0.0008984208077 | L58: -5.34654878e-06 | M58: -9.705640632e-05 | N58: 3.746556743e-08
A59: 26.43995 | B59: ='DF raw data'!A64 -> 5.49586e-06 | C59: ='DF raw data'!B64 -> 2.6655999e-07 | D59: ='DF raw data'!C64 -> -8.6661894e-06 | F59: 5.501927429e-06 | G59: 2.673833785e-07 | H59: -8.675756873e-06 | J59: 4.404097622e-05 | K59: 0.0009204479019 | L59: -5.212816983e-06 | M59: -9.966359674e-05 | N59: 3.844925297e-08
A60: 26.9401 | B60: ='DF raw data'!A65 -> 7.0722108e-06 | C60: ='DF raw data'!B65 -> 2.1456142e-06 | D60: ='DF raw data'!C65 -> -8.8783563e-06 | F60: 7.080018521e-06 | G60: 2.152241879e-06 | H60: -8.888158005e-06 | J60: 4.758204749e-05 | K60: 0.000944246063 | L60: -4.136373208e-06 | M60: -0.0001017324038 | N60: 3.959017556e-08
A61: 27.44025 | B61: ='DF raw data'!A66 -> 9.1720813e-06 | C61: ='DF raw data'!B66 -> -5.2900159e-06 | D61: ='DF raw data'!C66 -> -9.3502895e-06 | F61: 9.182207278e-06 | G61: -5.306356455e-06 | H61: -9.36061222e-06 | J61: 5.217452846e-05 | K61: 0.0009703411534 | L61: -6.790347388e-06 | M61: -0.000105128596 | N61: 4.097473592e-08
A62: 27.9404 | B62: ='DF raw data'!A67 -> 8.1488197e-06 | C62: ='DF raw data'!B67 -> -8.0719728e-06 | D62: ='DF raw data'!C67 -> -5.338341e-06 | F62: 8.157815997e-06 | G62: -8.09690666e-06 | H62: -5.344234528e-06 | J62: 5.625466013e-05 | K62: 0.0009984769216 | L62: -1.084001525e-05 | M62: -0.0001105502297 | N62: 4.261627459e-08
A63: 28.44055 | B63: ='DF raw data'!A68 -> 4.7313169e-06 | C63: ='DF raw data'!B68 -> -1.4466335e-05 | D63: ='DF raw data'!C68 -> 1.1979281e-06 | F63: 4.736540274e-06 | G63: -1.451102068e-05 | H63: 1.199250613e-06 | J63: 5.862364075e-05 | K63: 0.001027797536 | L63: -1.809770225e-05 | M63: -0.0001196017955 | N63: 4.449896827e-08
A64: 28.9407 | B64: ='DF raw data'!A69 -> 1.5731291e-06 | C64: ='DF raw data'!B69 -> -1.0367454e-05 | D64: ='DF raw data'!C69 -> 1.6001272e-07 | F64: 1.574865835e-06 | G64: -1.039947847e-05 | H64: 1.60189374e-07 | J64: 5.941130989e-05 | K64: 0.001057512102 | L64: -2.32990014e-05 | M64: -0.000131254791 | N64: 4.653585276e-08
A65: 29.44085 | B65: ='DF raw data'!A70 -> 3.292598e-06 | C65: ='DF raw data'!B70 -> 2.1625599e-06 | D65: ='DF raw data'!C70 -> -1.1247467e-06 | F65: 3.296233028e-06 | G65: 2.169239923e-06 | H65: -1.12598842e-06 | J65: 6.105992084e-05 | K65: 0.001088051222 | L65: -2.221405605e-05 | M65: -0.0001423651511 | N65: 4.864737514e-08
A66: 29.941 | B66: ='DF raw data'!A71 -> 4.2409029e-06 | C66: ='DF raw data'!B71 -> 7.4464097e-06 | D66: ='DF raw data'!C71 -> -2.2464521e-06 | F66: 4.245584857e-06 | G66: 7.469411231e-06 | H66: -2.248932183e-06 | J66: 6.318335011e-05 | K66: 0.001119652374 | L66: -1.847823003e-05 | M66: -0.0001516070379 | N66: 5.081481553e-08
A67: 30.44115 | B67: ='DF raw data'!A72 -> 2.8035809e-06 | C67: ='DF raw data'!B72 -> 5.1273292e-07 | D67: ='DF raw data'!C72 -> -6.096001e-06 | F67: 2.806676053e-06 | G67: 5.143167225e-07 | H67: -6.102730985e-06 | J67: 6.458710914e-05 | K67: 0.001151955617 | L67: -1.822099452e-05 | M67: -0.0001607202683 | N67: 5.306724071e-08
A68: 30.9413 | B68: ='DF raw data'!A73 -> -2.1309679e-08 | C68: ='DF raw data'!B73 -> 2.458635e-06 | D68: ='DF raw data'!C73 -> -3.8286103e-07 | F68: -2.133320489e-08 | G68: 2.466229582e-06 | H68: -3.832837086e-07 | J68: 6.457643933e-05 | K68: 0.001184253523 | L68: -1.698750979e-05 | M68: -0.0001692165713 | N68: 5.529725552e-08
A69: 31.44145 | B69: ='DF raw data'!A74 -> -8.6048954e-07 | C69: ='DF raw data'!B74 -> 8.1040707e-06 | D69: ='DF raw data'!C74 -> 6.4580236e-06 | F69: -8.614395205e-07 | G69: 8.129103708e-06 | H69: 6.465153258e-06 | J69: 6.414559036e-05 | K69: 0.00121633594 | L69: -1.292173857e-05 | M69: -0.0001756793789 | N69: 5.743871181e-08
A70: 31.9416 | B70: ='DF raw data'!A75 -> 1.1637546e-06 | C70: ='DF raw data'!B75 -> 5.4142021e-07 | D70: ='DF raw data'!C75 -> 4.7917129e-06 | F70: 1.165039385e-06 | G70: 5.430926259e-07 | H70: 4.797002951e-06 | J70: 6.472828481e-05 | K70: 0.001248709792 | L70: -1.26501108e-05 | M70: -0.0001820063318 | N70: 5.961425235e-08
A71: 32.44175 | B71: ='DF raw data'!A76 -> 1.071772e-06 | C71: ='DF raw data'!B76 -> 4.2556312e-06 | D71: ='DF raw data'!C76 -> 2.4912733e-08 | F71: 1.072955236e-06 | G71: =(1-$G$1*($B$2-$G$2))*C71*$M$2/$M$1 -> 4.2687766e-06 | H71: 2.494023666e-08 | J71: 6.526492337e-05 | K71: 0.001281352043 | L71: -1.051508218e-05 | M71: -0.0001872654501 | N71: 6.179994645e-08
A72: =A71+$B$1 -> 32.9419 | B72: ='DF raw data'!A77 -> 5.4030693e-07 | C72: ='DF raw data'!B77 -> 3.3213744e-06 | D72: ='DF raw data'!C77 -> -1.7896238e-06 | F72: 5.409034289e-07 | G72: 3.331633934e-06 | H72: -1.791599545e-06 | J72: =F72*$B$1+J71 -> 6.553545622e-05 | K72: =J72*$B$1+K71 -> 0.001314129601 | L72: =G72*$B$1+L71 -> -8.848765468e-06 | M72: =L72*$B$1+M71 -> -0.0001916911602 | N72: =(J72^2+L72^2)*$B$1+N71 -> 6.398720077e-08
A73: 33.44205 | B73: ='DF raw data'!A78 -> 3.1259931e-06 | C73: ='DF raw data'!B78 -> 1.9700235e-06 | D73: ='DF raw data'!C78 -> -4.8927922e-07 | F73: 3.129444196e-06 | G73: 1.976108789e-06 | H73: -4.898193843e-07 | J73: 6.710064773e-05 | K73: 0.00134768999 | L73: -7.860414657e-06 | M73: -0.0001956225466 | N73: 6.627002693e-08
A74: 33.9422 | B74: ='DF raw data'!A79 -> 4.1271651e-06 | C74: ='DF raw data'!B79 -> -8.1780325e-07 | D74: ='DF raw data'!C79 -> 3.4730181e-06 | F74: 4.13172149e-06 | G74: -8.203293972e-07 | H74: 3.476852312e-06 | J74: 6.916712824e-05 | K74: 0.00138228393 | L74: -8.270702405e-06 | M74: -0.0001997591384 | N74: 6.869700288e-08
A75: 34.44235 | B75: ='DF raw data'!A80 -> -2.037885e-06 | C75: ='DF raw data'!B80 -> 4.033609e-06 | D75: ='DF raw data'!C80 -> 6.1434985e-06 | F75: =(1-$G$1*($B$2-$G$2))*B75 -> -2.040134825e-06 | G75: 4.046068586e-06 | H75: =(1-$G$1*($B$2-$G$2))*D75 -> 6.150280922e-06 | J75: 6.81467548e-05 | K75: 0.001416367529 | L75: -6.247061201e-06 | M75: -0.000202883606 | N75: 7.103920831e-08
A76: 34.9425 | B76: ='DF raw data'!A81 -> -1.0333379e-05 | C76: ='DF raw data'!B81 -> 4.7365029e-06 | D76: ='DF raw data'!C81 -> 4.1597814e-06 | F76: -1.034478705e-05 | G76: 4.751133685e-06 | H76: 4.164373799e-06 | J76: 6.297280956e-05 | K76: 0.00144786338 | L76: -3.870781689e-06 | M76: -0.0002048195775 | N76: 7.303008424e-08
A77: 35.44265 | B77: ='DF raw data'!A82 -> -1.3748553e-05 | C77: ='DF raw data'!B82 -> 5.9980575e-06 | D77: ='DF raw data'!C82 -> 3.4485272e-06 | F77: -1.37637314e-05 | G77: 6.016585155e-06 | H77: 3.452334374e-06 | J77: 5.60888793e-05 | K77: 0.001475916233 | L77: -8.615866237e-07 | M77: -0.0002052505001 | N77: 7.46039086e-08
A78: 35.9428 | B78: ='DF raw data'!A83 -> -1.2113514e-05 | C78: ='DF raw data'!B83 -> 3.8997823e-06 | D78: ='DF raw data'!C83 -> 2.8054053e-06 | F78: -1.212688732e-05 | G78: 3.911828503e-06 | H78: 2.808502467e-06 | J78: 5.002361661e-05 | K78: 0.001500935545 | L78: 1.094914402e-06 | M78: -0.0002047028786 | N78: 7.585606467e-08
A79: 36.44295 | B79: ='DF raw data'!A84 -> -1.0322101e-05 | C79: ='DF raw data'!B84 -> 9.9921999e-06 | D79: ='DF raw data'!C84 -> -3.8399608e-07 | F79: -1.03334966e-05 | G79: 1.002306523e-05 | H79: -3.844200117e-07 | J79: 4.485531828e-05 | K79: 0.001523369932 | L79: 6.107950477e-06 | M79: -0.0002016479872 | N79: 7.688102538e-08
A80: 36.9431 | B80: ='DF raw data'!A85 -> -8.4601834e-06 | C80: ='DF raw data'!B85 -> 1.0166989e-05 | D80: ='DF raw data'!C85 -> -1.4258404e-06 | F80: -8.469523442e-06 | G80: 1.019839424e-05 | H80: -1.427414528e-06 | J80: 4.061928613e-05 | K80: 0.001543685668 | L80: 1.120867736e-05 | M80: -0.0001960419672 | N80: 7.776907214e-08
A81: 37.44325 | B81: ='DF raw data'!A86 -> -1.0636684e-05 | C81: ='DF raw data'!B86 -> 5.5013079e-06 | D81: ='DF raw data'!C86 -> -2.6257333e-06 | F81: -1.06484269e-05 | G81: 5.518301124e-06 | H81: -2.62863211e-06 | J81: 3.529347542e-05 | K81: 0.0015613377 | L81: 1.396865567e-05 | M81: -0.0001890555441 | N81: 7.848966463e-08
A82: 37.9434 | B82: ='DF raw data'!A87 -> -1.1989634e-05 | C82: ='DF raw data'!B87 -> -5.1617917e-06 | D82: ='DF raw data'!C87 -> 5.6379923e-07 | F82: -1.200287056e-05 | G82: -5.177736178e-06 | H82: 5.644216643e-07 | J82: 2.929023971e-05 | K82: 0.001575987213 | L82: 1.137901092e-05 | M82: -0.0001833643318 | N82: 7.898351276e-08
A83: 38.44355 | B83: ='DF raw data'!A88 -> -1.1665228e-05 | C83: ='DF raw data'!B88 -> -3.5830819e-06 | D83: ='DF raw data'!C88 -> -5.5829296e-06 | F83: -1.167810641e-05 | G83: -3.594149834e-06 | H83: -5.589093154e-06 | J83: 2.344943479e-05 | K83: 0.001587715448 | L83: 9.581396877e-06 | M83: -0.0001785721961 | N83: 7.930444859e-08
A84: 38.9437 | B84: ='DF raw data'!A89 -> -1.124184e-05 | C84: ='DF raw data'!B89 -> 1.7233176e-06 | D84: ='DF raw data'!C89 -> -4.7746289e-06 | F84: -1.125425099e-05 | G84: 1.728640829e-06 | H84: -4.77990009e-06 | J84: 1.782062115e-05 | K84: 0.001596628432 | L84: 1.044597659e-05 | M84: -0.0001733476409 | N84: 7.951785907e-08
A85: 39.44385 | B85: ='DF raw data'!A90 -> -6.9383586e-06 | C85: ='DF raw data'!B90 -> -7.4461968e-06 | D85: ='DF raw data'!C90 -> 6.1770406e-06 | F85: -6.946018548e-06 | G85: -7.469197674e-06 | H85: 6.183860053e-06 | J85: 1.434656998e-05 | K85: 0.001603803869 | L85: 6.710257371e-06 | M85: -0.0001699915057 | N85: 7.964332251e-08
A86: 39.944 | B86: ='DF raw data'!A91 -> -3.7727643e-06 | C86: ='DF raw data'!B91 -> -5.9802333e-06 | D86: ='DF raw data'!C91 -> 7.9375313e-06 | F86: -3.776929432e-06 | G86: -5.998705897e-06 | H86: 7.946294335e-06 | J86: 1.245753872e-05 | K86: 0.001610034506 | L86: 3.710004617e-06 | M86: -0.0001681359469 | N86: 7.972782506e-08
A87: 40.44415 | B87: ='DF raw data'!A92 -> -4.5670949e-06 | C87: ='DF raw data'!B92 -> 4.3974651e-06 | D87: ='DF raw data'!C92 -> -2.0531008e-06 | F87: -4.572136973e-06 | G87: 4.411048617e-06 | H87: -2.055367423e-06 | J87: 1.017078442e-05 | K87: 0.001615121424 | L87: 5.916190582e-06 | M87: -0.0001651769642 | N87: 7.979706891e-08
A88: 40.9443 | B88: ='DF raw data'!A93 -> -6.0840448e-06 | C88: ='DF raw data'!B93 -> 5.7448124e-06 | D88: ='DF raw data'!C93 -> -5.7681464e-06 | F88: -6.090761585e-06 | G88: 5.762557795e-06 | H88: -5.774514434e-06 | J88: 7.124490008e-06 | K88: 0.001618684738 | L88: 8.798333864e-06 | M88: -0.0001607764775 | N88: 7.986117265e-08
A89: 41.44445 | B89: ='DF raw data'!A94 -> -4.9990977e-06 | C89: ='DF raw data'!B94 -> -3.25325e-06 | D89: ='DF raw data'!C94 -> -4.8612274e-06 | F89: -5.004616704e-06 | G89: -3.263299102e-06 | H89: -4.866594195e-06 | J89: 4.621430964e-06 | K89: 0.001620996147 | L89: 7.166194818e-06 | M89: -0.0001571923051 | N89: 7.989753955e-08
A90: 41.9446 | B90: ='DF raw data'!A95 -> 6.377029e-07 | C90: ='DF raw data'!B95 -> 3.0454464e-06 | D90: ='DF raw data'!C95 -> 8.579662e-07 | F90: 6.38406924e-07 | G90: 3.054853609e-06 | H90: 8.589133947e-07 | J90: 4.940730187e-06 | K90: 0.001623467253 | L90: 8.69407985e-06 | M90: -0.0001528439611 | N90: 7.994755346e-08
A91: 42.44475 | B91: ='DF raw data'!A96 -> 3.4489146e-06 | C91: ='DF raw data'!B96 -> 7.5807711e-06 | D91: ='DF raw data'!C96 -> 5.6291028e-06 | F91: 3.452722202e-06 | G91: 7.604187666e-06 | H91: 5.635317329e-06 | J91: 6.667609196e-06 | K91: 0.001626802058 | L91: 1.249731431e-05 | M91: -0.0001465934294 | N91: 8.00479035e-08
A92: 42.9449 | B92: ='DF raw data'!A97 -> 2.3973496e-06 | C92: ='DF raw data'!B97 -> -7.8101875e-06 | D92: ='DF raw data'!C97 -> 3.3840913e-06 | F92: 2.399996274e-06 | G92: -7.83431272e-06 | H92: 3.387827337e-06 | J92: 7.867967332e-06 | K92: 0.001630737221 | L92: 8.578982804e-06 | M92: -0.0001423026511 | N92: 8.011567575e-08
A93: 43.44505 | B93: ='DF raw data'!A98 -> 2.1438989e-06 | C93: ='DF raw data'!B98 -> -6.6073408e-06 | D93: ='DF raw data'!C98 -> -2.6328637e-06 | F93: 2.146265764e-06 | G93: -6.627750496e-06 | H93: -2.635770382e-06 | J93: 8.941422155e-06 | K93: 0.001635209274 | L93: 5.264113394e-06 | M93: -0.0001396698048 | N93: 8.016952186e-08
A94: 43.9452 | B94: ='DF raw data'!A99 -> 2.8351003e-06 | C94: ='DF raw data'!B99 -> -2.8418929e-06 | D94: ='DF raw data'!C99 -> -3.2850805e-06 | F94: 2.838230251e-06 | G94: -2.850671344e-06 | H94: -3.288707229e-06 | J94: 1.036096301e-05 | K94: 0.001640391309 | L94: 3.838350121e-06 | M94: -0.000137750054 | N94: 8.023058142e-08
A95: 44.44535 | B95: ='DF raw data'!A100 -> 4.6570149e-06 | C95: ='DF raw data'!B100 -> -5.9739632e-06 | D95: ='DF raw data'!C100 -> 1.9894503e-06 | F95: 4.662156244e-06 | G95: -5.992416429e-06 | H95: 1.991646653e-06 | J95: 1.269274046e-05 | K95: 0.001646739584 | L95: 8.412430446e-07 | M95: -0.0001373293063 | N95: 8.031151236e-08
A96: 44.9455 | B96: ='DF raw data'!A101 -> 6.6227894e-06 | C96: ='DF raw data'!B101 -> 3.0018161e-06 | D96: ='DF raw data'!C101 -> 2.5404586e-06 | F96: 6.630100959e-06 | G96: 3.011088537e-06 | H96: 2.543263266e-06 | J96: 1.600878545e-05 | K96: 0.001654746378 | L96: 2.347238976e-06 | M96: -0.0001361553347 | N96: 8.0442447e-08
A97: 45.44565 | B97: ='DF raw data'!A102 -> 6.1919218e-06 | C97: ='DF raw data'!B102 -> 7.5370173e-07 | D97: ='DF raw data'!C102 -> 6.8392529e-07 | F97: 6.198757682e-06 | G97: 7.560298713e-07 | H97: 6.846803435e-07 | J97: 1.910909411e-05 | K97: 0.001664303791 | L97: 2.725367317e-06 | M97: -0.0001347922422 | N97: 8.062879544e-08
A98: 45.9458 | B98: ='DF raw data'!A103 -> 3.3188205e-06 | C98: ='DF raw data'!B103 -> -2.7435583e-06 | D98: ='DF raw data'!C103 -> 1.1449446e-06 | F98: 3.322484478e-06 | G98: -2.752032994e-06 | H98: 1.146208619e-06 | J98: 2.077083472e-05 | K98: 0.001674692324 | L98: 1.348938015e-06 | M98: -0.0001341175709 | N98: 8.084548404e-08
A99: 46.44595 | B99: ='DF raw data'!A104 -> 1.4685299e-06 | C99: ='DF raw data'!B104 -> -4.3293403e-06 | D99: ='DF raw data'!C104 -> -3.7838474e-06 | F99: 1.470151157e-06 | G99: -4.342713383e-06 | H99: -3.788024768e-06 | J99: 2.150613082e-05 | K99: 0.001685448615 | L99: -8.230700838e-07 | M99: -0.0001345292294 | N99: 8.107714907e-08
A100: 46.9461 | B100: ='DF raw data'!A105 -> 2.6291762e-06 | C100: ='DF raw data'!B105 -> -5.3407166e-06 | D100: ='DF raw data'!C105 -> -5.6030258e-06 | F100: 2.632078811e-06 | G100: -5.357213766e-06 | H100: -5.60921154e-06 | J100: 2.282256504e-05 | K100: 0.001696863321 | L100: -3.502480549e-06 | M100: -0.000136280995 | N100: 8.134379746e-08
A101: 47.44625 | B101: ='DF raw data'!A106 -> 5.995078e-06 | C101: ='DF raw data'!B106 -> -3.5624e-06 | D101: ='DF raw data'!C106 -> 5.5102282e-06 | F101: 6.001696566e-06 | G101: -3.573404049e-06 | H101: 5.516311492e-06 | J101: 2.582431358e-05 | K101: 0.001709779352 | L101: -5.289718584e-06 | M101: -0.0001389266478 | N101: 8.169133984e-08
A102: 47.9464 | B102: ='DF raw data'!A107 -> 5.7170055e-06 | C102: ='DF raw data'!B107 -> 9.4783883e-07 | D102: ='DF raw data'!C107 -> 4.3278269e-06 | F102: 5.723317074e-06 | G102: 9.507666496e-07 | H102: 4.332604821e-06 | J102: 2.868683061e-05 | K102: 0.00172412707 | L102: -4.814192644e-06 | M102: -0.0001413344662 | N102: 8.211452211e-08
A103: 48.44655 | B103: ='DF raw data'!A108 -> 1.5687926e-06 | C103: ='DF raw data'!B108 -> 1.2915477e-06 | D103: ='DF raw data'!C108 -> -2.2378665e-06 | F103: 1.570524547e-06 | G103: 1.295537217e-06 | H103: -2.240337105e-06 | J103: 2.947232846e-05 | K103: 0.001738867655 | L103: -4.166229705e-06 | M103: -0.000143418206 | N103: 8.255764281e-08
A104: 48.9467 | B104: ='DF raw data'!A109 -> 2.1222747e-06 | C104: ='DF raw data'!B109 -> 1.1565298e-07 | D104: ='DF raw data'!C109 -> -6.8109948e-06 | F104: 2.124617691e-06 | G104: 1.160102254e-07 | H104: -6.818514138e-06 | J104: 3.0534956e-05 | K104: 0.001754139713 | L104: -4.108207191e-06 | M104: -0.0001454729259 | N104: 8.303241565e-08
A105: 49.44685 | B105: ='DF raw data'!A110 -> 6.6755256e-06 | C105: ='DF raw data'!B110 -> 1.0797566e-05 | D105: ='DF raw data'!C110 -> -5.4133142e-07 | F105: 6.68289538e-06 | G105: 1.083091906e-05 | H105: -5.419290499e-07 | J105: 3.387740613e-05 | K105: 0.001771083498 | L105: 1.308876977e-06 | M105: -0.000144818291 | N105: 8.360728396e-08
A106: 49.947 | B106: ='DF raw data'!A111 -> 5.8065871e-06 | C106: ='DF raw data'!B111 -> 7.436669e-06 | D106: ='DF raw data'!C111 -> 5.5975543e-06 | F106: 5.812997572e-06 | G106: 7.459640443e-06 | H106: 5.603734e-06 | J106: 3.678477686e-05 | K106: 0.001789481404 | L106: 5.039816144e-06 | M106: -0.000142297627 | N106: 8.429675052e-08
A107: 50.44715 | B107: ='DF raw data'!A112 -> 2.6238356e-06 | C107: ='DF raw data'!B112 -> 8.9920295e-06 | D107: ='DF raw data'!C112 -> 5.6705612e-06 | F107: 2.626732315e-06 | G107: 9.019805362e-06 | H107: 5.6768215e-06 | J107: 3.809853703e-05 | K107: 0.001808536387 | L107: 9.551071796e-06 | M107: -0.0001375206584 | N107: 8.506834268e-08
A108: 50.9473 | B108: ='DF raw data'!A113 -> 2.7869626e-06 | C108: ='DF raw data'!B113 -> -6.1508872e-06 | D108: ='DF raw data'!C113 -> 4.3245091e-06 | F108: 2.790039407e-06 | G108: -6.169886937e-06 | H108: 4.329283358e-06 | J108: 3.949397524e-05 | K108: 0.001828289299 | L108: 6.465202845e-06 | M108: -0.0001342870872 | N108: 8.586936938e-08
A109: 51.44745 | B109: ='DF raw data'!A114 -> -2.0828068e-06 | C109: ='DF raw data'!B114 -> -3.3498511e-06 | D109: ='DF raw data'!C114 -> 7.6775614e-06 | F109: -2.085106219e-06 | G109: -3.360198597e-06 | H109: 7.686037428e-06 | J109: 3.845110936e-05 | K109: 0.001847520622 | L109: 4.784599516e-06 | M109: -0.0001318940698 | N109: 8.662028468e-08
A110: 51.9476 | B110: ='DF raw data'!A115 -> -5.1482111e-06 | C110: ='DF raw data'!B115 -> 1.7926993e-06 | D110: ='DF raw data'!C115 -> 6.8477675e-06 | F110: -5.153894725e-06 | G110: 1.798236845e-06 | H110: 6.855327435e-06 | J110: 3.587338892e-05 | K110: 0.001865462697 | L110: 5.683987674e-06 | M110: -0.0001290512233 | N110: 8.728008644e-08
A111: 52.44775 | B111: ='DF raw data'!A116 -> -2.0693899e-06 | C111: ='DF raw data'!B116 -> -5.7651487e-06 | D111: ='DF raw data'!C116 -> 3.1417728e-06 | F111: -2.071674506e-06 | G111: -5.782956913e-06 | H111: 3.145241317e-06 | J111: 3.483724091e-05 | K111: 0.001882886543 | L111: 2.791641774e-06 | M111: -0.0001276549837 | N111: 8.789098296e-08
A112: 52.9479 | B112: ='DF raw data'!A117 -> -1.0349088e-06 | C112: ='DF raw data'!B117 -> -1.897406e-08 | D112: ='DF raw data'!C117 -> -2.0291484e-06 | F112: -1.036051339e-06 | G112: -1.903266978e-08 | H112: -2.03138858e-06 | J112: 3.431905983e-05 | K112: 0.001900051221 | L112: 2.782122585e-06 | M112: -0.0001262635051 | N112: 8.848392983e-08
A113: 53.44805 | B113: ='DF raw data'!A118 -> -2.4717503e-06 | C113: ='DF raw data'!B118 -> 3.8758972e-06 | D113: ='DF raw data'!C118 -> 7.6166162e-07 | F113: -2.474479112e-06 | G113: 3.887869623e-06 | H113: 7.625024944e-07 | J113: 3.308144911e-05 | K113: 0.001916596908 | L113: 4.726640577e-06 | M113: -0.0001238994758 | N113: 8.904245904e-08
A114: 53.9482 | B114: ='DF raw data'!A119 -> -4.9992868e-06 | C114: ='DF raw data'!B119 -> -3.6267122e-06 | D114: ='DF raw data'!C119 -> 4.2712636e-06 | F114: -5.004806013e-06 | G114: -3.637914905e-06 | H114: 4.275979075e-06 | J114: 3.057829538e-05 | K114: 0.001931890642 | L114: 2.907137437e-06 | M114: -0.000122445471 | N114: 8.951434236e-08
A115: 54.44835 | B115: ='DF raw data'!A120 -> -7.4062173e-06 | C115: ='DF raw data'!B120 -> -3.5756095e-06 | D115: ='DF raw data'!C120 -> 2.7709318e-06 | F115: -7.414393764e-06 | G115: -3.586654352e-06 | H115: 2.773990909e-06 | J115: 2.686998634e-05 | K115: 0.001945329666 | L115: 1.113272263e-06 | M115: -0.0001218886679 | N115: 8.987606862e-08
A116: 54.9485 | B116: ='DF raw data'!A121 -> -7.2467428e-06 | C116: ='DF raw data'!B121 -> -1.663064e-06 | D116: ='DF raw data'!C121 -> 3.5560658e-06 | F116: -7.254743204e-06 | G116: -1.668201109e-06 | H116: 3.559991697e-06 | J116: 2.324152652e-05 | K116: 0.001956953915 | L116: 2.78921478e-07 | M116: -0.0001217491653 | N116: 9.014627283e-08
A117: 55.44865 | B117: ='DF raw data'!A122 -> -8.8300494e-06 | C117: ='DF raw data'!B122 -> -6.2433372e-07 | D117: ='DF raw data'!C122 -> 4.9551018e-06 | F117: -8.839797775e-06 | G117: -6.262622509e-07 | H117: 4.960572232e-06 | J117: 1.882030167e-05 | K117: 0.001966366889 | L117: -3.430358681e-08 | M117: -0.0001217663223 | N117: 9.032342843e-08
A118: 55.9488 | B118: ='DF raw data'!A123 -> -8.2074021e-06 | C118: ='DF raw data'!B123 -> -4.028594e-06 | D118: ='DF raw data'!C123 -> 4.1902676e-06 | F118: -8.216463072e-06 | G118: -4.041038095e-06 | H118: 4.194893655e-06 | J118: 1.471083766e-05 | K118: 0.001973724515 | L118: -2.05542879e-06 | M118: -0.000122794345 | N118: 9.043377829e-08
A119: 56.44895 | B119: ='DF raw data'!A124 -> -8.0602172e-07 | C119: ='DF raw data'!B124 -> 5.9398826e-06 | D119: ='DF raw data'!C124 -> 5.1971001e-06 | F119: -8.06911568e-07 | G119: 5.958230556e-06 | H119: 5.202837699e-06 | J119: 1.430726084e-05 | K119: 0.001980880291 | L119: 9.245802223e-07 | M119: -0.0001223319162 | N119: 9.05365854e-08
A120: 56.9491 | B120: ='DF raw data'!A125 -> 7.7652749e-06 | C120: ='DF raw data'!B125 -> -3.5990927e-06 | D120: ='DF raw data'!C125 -> 8.4981148e-06 | F120: 7.773847763e-06 | G120: -3.61021009e-06 | H120: 8.507496719e-06 | J120: 1.81953508e-05 | K120: 0.001989980696 | L120: -8.810663543e-07 | M120: -0.0001227725815 | N120: 9.070255871e-08
A121: 57.44925 | B121: ='DF raw data'!A126 -> 1.0792568e-05 | C121: ='DF raw data'!B126 -> -9.8402816e-06 | D121: ='DF raw data'!C126 -> 7.7080476e-06 | F121: 1.0804483e-05 | G121: -9.870677664e-06 | H121: 7.716557285e-06 | J121: 2.359921297e-05 | K121: 0.002001783842 | L121: -5.817885788e-06 | M121: -0.0001256823971 | N121: 9.099803265e-08
A122: 57.9494 | B122: ='DF raw data'!A127 -> 8.8088364e-06 | C122: ='DF raw data'!B127 -> 9.6286103e-06 | D122: ='DF raw data'!C127 -> -1.0176592e-06 | F122: 8.818561355e-06 | G122: 9.658352523e-06 | H122: -1.018782696e-06 | J122: 2.800981643e-05 | K122: 0.002015792952 | L122: -9.872607733e-07 | M122: -0.0001261761756 | N122: 9.139091273e-08
A123: 58.44955 | B123: ='DF raw data'!A128 -> 6.2125564e-06 | C123: ='DF raw data'!B128 -> -7.48409e-06 | D123: ='DF raw data'!C128 -> -5.1772804e-06 | F123: 6.219415062e-06 | G123: -7.507207923e-06 | H123: -5.182996118e-06 | J123: 3.112045688e-05 | K123: 0.002031357848 | L123: -4.741990816e-06 | M123: -0.0001285478823 | N123: 9.188654603e-08
A124: 58.9497 | B124: ='DF raw data'!A129 -> 5.4030188e-06 | C124: ='DF raw data'!B129 -> 3.3147023e-06 | D124: ='DF raw data'!C129 -> -4.6926434e-06 | F124: 5.408983733e-06 | G124: 3.324941225e-06 | H124: -4.697824078e-06 | J124: 3.382576009e-05 | K124: 0.002048275802 | L124: -3.079021463e-06 | M124: -0.0001300878549 | N124: 9.246355029e-08
A125: 59.44985 | B125: ='DF raw data'!A130 -> 6.6557641e-06 | C125: ='DF raw data'!B130 -> 1.0930593e-05 | D125: ='DF raw data'!C130 -> -4.0666928e-06 | F125: 6.663112064e-06 | G125: 1.096435697e-05 | H125: -4.071182429e-06 | J125: 3.715831559e-05 | K125: 0.002066860534 | L125: 2.404801677e-06 | M125: -0.0001288850933 | N125: 9.315702002e-08
A126: 59.95 | B126: ='DF raw data'!A131 -> 3.6848739e-06 | C126: ='DF raw data'!B131 -> 5.9832473e-06 | D126: ='DF raw data'!C131 -> 1.7612169e-07 | F126: 3.688942001e-06 | G126: 6.001729207e-06 | H126: 1.763161283e-07 | J126: 3.900333993e-05 | K126: 0.002086368054 | L126: 5.40656654e-06 | M126: -0.000126180999 | N126: 9.393249833e-08
A127: 60.45015 | B127: ='DF raw data'!A132 -> 4.9992536e-07 | C127: ='DF raw data'!B132 -> 3.0546541e-06 | D127: ='DF raw data'!C132 -> 6.5216591e-06 | F127: 5.004772776e-07 | G127: 3.064089751e-06 | H127: 6.528859012e-06 | J127: 3.925365364e-05 | K127: 0.002106000769 | L127: 6.939071029e-06 | M127: -0.0001227104227 | N127: 9.47272367e-08
A128: 60.9503 | B128: ='DF raw data'!A133 -> 2.3510308e-06 | C128: ='DF raw data'!B133 -> -2.6146665e-06 | D128: ='DF raw data'!C133 -> 2.526416e-06 | F128: 2.353626338e-06 | G128: -2.622743054e-06 | H128: 2.529205163e-06 | J128: 4.043081985e-05 | K128: 0.002126222244 | L128: 5.62730609e-06 | M128: -0.0001198959255 | N128: 9.556064553e-08
A129: 61.45045 | B129: ='DF raw data'!A134 -> 6.9443286e-06 | C129: ='DF raw data'!B134 -> -2.462961e-06 | D129: ='DF raw data'!C134 -> 5.8376172e-06 | F129: 6.951995139e-06 | G129: -2.470568945e-06 | H129: 5.844061929e-06 | J129: 4.390786022e-05 | K129: 0.00214818276 | L129: 4.391651032e-06 | M129: -0.0001176994413 | N129: 9.6534531e-08
A130: 61.9506 | B130: ='DF raw data'!A135 -> 9.8958499e-06 | C130: ='DF raw data'!B135 -> -8.6803993e-06 | D130: ='DF raw data'!C135 -> 6.3478219e-06 | F130: 9.906774918e-06 | G130: -8.707212554e-06 | H130: 6.354829895e-06 | J130: 4.88627337e-05 | K130: 0.002172621456 | L130: 3.673867355e-08 | M130: -0.0001176810664 | N130: 9.772867319e-08
A131: 62.45075 | B131: ='DF raw data'!A136 -> 5.8727983e-06 | C131: ='DF raw data'!B136 -> -2.4893782e-06 | D131: ='DF raw data'!C136 -> -2.1203307e-06 | F131: 5.879281869e-06 | G131: -2.497067746e-06 | H131: -2.122671545e-06 | J131: 5.180325652e-05 | K131: 0.002198530855 | L131: -1.21216976e-06 | M131: -0.0001182873331 | N131: 9.907159931e-08
A132: 62.9509 | B132: ='DF raw data'!A137 -> 2.0311652e-06 | C132: ='DF raw data'!B137 -> -9.3081525e-07 | D132: ='DF raw data'!C137 -> -4.2301544e-06 | F132: 2.033407606e-06 | G132: -9.336904848e-07 | H132: -4.23482449e-06 | J132: 5.282026534e-05 | K132: 0.002224948911 | L132: -1.679155056e-06 | M132: -0.0001191271625 | N132: 1.004684182e-07
A133: 63.45105 | B133: ='DF raw data'!A138 -> 4.9406462e-06 | C133: ='DF raw data'!B138 -> -3.893032e-06 | D133: ='DF raw data'!C138 -> -4.9074151e-06 | F133: 4.946100673e-06 | G133: -3.905057352e-06 | H133: -4.912832886e-06 | J133: 5.529405759e-05 | K133: 0.002252604234 | L133: -3.63226949e-06 | M133: -0.0001209438421 | N133: 1.020041919e-07
A134: 63.9512 | B134: ='DF raw data'!A139 -> 1.0063401e-05 | C134: ='DF raw data'!B139 -> 1.9305296e-06 | D134: ='DF raw data'!C139 -> -4.639267e-06 | F134: 1.007451099e-05 | G134: 1.936492895e-06 | H134: -4.644388751e-06 | J134: 6.033282426e-05 | K134: 0.002282779696 | L134: -2.663732569e-06 | M134: -0.000122276108 | N134: 1.038283116e-07
A135: 64.45135 | B135: ='DF raw data'!A140 -> 1.2683182e-05 | C135: ='DF raw data'!B140 -> 1.6538013e-06 | D135: ='DF raw data'!C140 -> -4.1860912e-06 | F135: 1.269718423e-05 | G135: =(1-$G$1*($B$2-$G$2))*C135*$M$2/$M$1 -> 1.658909797e-06 | H135: -4.190712645e-06 | J135: 6.668332096e-05 | K135: 0.002316131359 | L135: -1.834028834e-06 | M135: -0.0001231933975 | N135: 1.060539935e-07
A136: =A135+$B$1 -> 64.9515 | B136: ='DF raw data'!A141 -> 8.471814e-06 | C136: ='DF raw data'!B141 -> 9.8223463e-06 | D136: ='DF raw data'!C141 -> -2.5125921e-06 | F136: 8.481166883e-06 | G136: 9.852686963e-06 | H136: -2.515366002e-06 | J136: =F136*$B$1+J135 -> 7.092517658e-05 | K136: =J136*$B$1+K135 -> 0.002351604586 | L136: =G136*$B$1+L135 -> 3.093792551e-06 | M136: =L136*$B$1+M135 -> -0.0001216460371 | N136: =(J136^2+L136^2)*$B$1+N135 -> 1.085747257e-07
A137: 65.45165 | B137: ='DF raw data'!A142 -> 1.9682864e-06 | C137: ='DF raw data'!B142 -> 8.9666783e-06 | D137: ='DF raw data'!C142 -> -4.6665096e-07 | F137: 1.970459388e-06 | G137: 8.994375853e-06 | H137: -4.671661427e-07 | J137: 7.191070184e-05 | K137: 0.002387570723 | L137: 7.592329634e-06 | M137: -0.0001178487335 | N137: 1.111899062e-07
A138: 65.9518 | B138: ='DF raw data'!A143 -> 1.8187654e-06 | C138: ='DF raw data'!B143 -> 1.8364353e-05 | D138: ='DF raw data'!C143 -> 1.6291305e-06 | F138: 1.820773317e-06 | G138: 1.842107943e-05 | H138: 1.63092906e-06 | J138: 7.282136161e-05 | K138: 0.002423992327 | L138: 1.680563251e-05 | M138: -0.0001094433964 | N138: 1.13983434e-07
A139: 66.45195 | B139: ='DF raw data'!A144 -> 9.222882e-06 | C139: ='DF raw data'!B144 -> 2.1306823e-05 | D139: ='DF raw data'!C144 -> 7.0012466e-06 | F139: =(1-$G$1*($B$2-$G$2))*B139 -> 9.233064062e-06 | G139: 2.137263855e-05 | H139: =(1-$G$1*($B$2-$G$2))*D139 -> 7.008975976e-06 | J139: 7.74392786e-05 | K139: 0.002462723582 | L139: 2.749515768e-05 | M139: -9.569169325e-05 | N139: 1.173608597e-07
A140: 66.9521 | B140: ='DF raw data'!A145 -> 1.5420179e-05 | C140: ='DF raw data'!B145 -> 1.9606848e-06 | D140: ='DF raw data'!C145 -> 8.3280029e-06 | F140: 1.543720288e-05 | G140: 1.966741243e-06 | H140: 8.337197015e-06 | J140: 8.516019562e-05 | K140: 0.002505316454 | L140: 2.847882331e-05 | M140: -8.144800977e-05 | N140: 1.213937204e-07
A141: 67.45225 | B141: ='DF raw data'!A146 -> 1.1007893e-05 | C141: ='DF raw data'!B146 -> 6.4809301e-06 | D141: ='DF raw data'!C146 -> 4.7153153e-06 | F141: 1.102004571e-05 | G141: 6.50094932e-06 | H141: 4.720521008e-06 | J141: 9.067187149e-05 | K141: 0.002550665991 | L141: 3.173027312e-05 | M141: -6.557811367e-05 | N141: 1.260092039e-07
A142: 67.9524 | B142: ='DF raw data'!A147 -> 2.8776792e-06 | C142: ='DF raw data'!B147 -> -1.1860632e-06 | D142: ='DF raw data'!C147 -> 1.9026046e-06 | F142: 2.880856158e-06 | G142: -1.189726881e-06 | H142: 1.904705075e-06 | J142: 9.211273169e-05 | K142: 0.002596736173 | L142: 3.113523122e-05 | M142: -5.000582777e-05 | N142: 1.30737701e-07
A143: 68.45255 | B143: ='DF raw data'!A148 -> -1.8726771e-06 | C143: ='DF raw data'!B148 -> 1.2840753e-06 | D143: ='DF raw data'!C148 -> 7.2279346e-07 | F143: -1.874744536e-06 | G143: 1.288041735e-06 | H143: 7.23591424e-07 | J143: 9.117507821e-05 | K143: 0.002642337389 | L143: 3.177944529e-05 | M143: -3.411133821e-05 | N143: 1.354005134e-07
A144: 68.9527 | B144: ='DF raw data'!A149 -> 3.6054496e-06 | C144: ='DF raw data'!B149 -> 7.231858e-06 | D144: ='DF raw data'!C149 -> 4.7208305e-06 | F144: 3.609430016e-06 | G144: 7.254196793e-06 | H144: 4.726042297e-06 | J144: 9.298033464e-05 | K144: 0.002688841503 | L144: 3.540763182e-05 | M144: -1.640221116e-05 | N144: 1.403515198e-07
A145: 69.45285 | B145: ='DF raw data'!A150 -> 9.6018866e-06 | C145: ='DF raw data'!B150 -> 2.5561877e-07 | D145: ='DF raw data'!C150 -> 9.8342571e-06 | F145: 9.612487083e-06 | G145: 2.564083617e-07 | H145: 9.84511412e-06 | J145: 9.778802005e-05 | K145: 0.002737750181 | L145: 3.553587446e-05 | M145: 1.371056452e-06 | N145: 1.457657912e-07
A146: 69.953 | B146: ='DF raw data'!A151 -> 5.1577754e-06 | C146: ='DF raw data'!B151 -> -2.8937959e-06 | D146: ='DF raw data'!C151 -> 7.4980053e-06 | F146: 5.163469584e-06 | G146: -2.902734669e-06 | H146: 7.506283098e-06 | J146: 0.0001003705294 | K146: 0.002787950502 | L146: 3.408407171e-05 | M146: 1.841820492e-05 | N146: 1.513854601e-07
A147: 70.45315 | B147: ='DF raw data'!A152 -> -4.2708984e-07 | C147: ='DF raw data'!B152 -> 9.6300782e-06 | D147: ='DF raw data'!C152 -> 1.106257e-05 | F147: -4.275613472e-07 | G147: 9.659824957e-06 | H147: 1.107478308e-05 | J147: 0.0001001566846 | K147: 0.002838043868 | L147: 3.891543317e-05 | M147: 3.788175882e-05 | N147: 1.571600782e-07
A148: 70.9533 | B148: ='DF raw data'!A153 -> -1.4733143e-06 | C148: ='DF raw data'!B153 -> 3.3861016e-07 | D148: ='DF raw data'!C153 -> 1.4337638e-05 | F148: -1.474940839e-06 | G148: 3.396561073e-07 | H148: 1.435346675e-05 | J148: 9.94189929e-05 | K148: 0.002887768277 | L148: 3.908531217e-05 | M148: 5.74302777e-05 | N148: 1.628676889e-07
A149: 71.45345 | B149: ='DF raw data'!A154 -> 1.7689106e-06 | C149: ='DF raw data'!B154 -> 5.999791e-06 | D149: ='DF raw data'!C154 -> 6.7430083e-06 | F149: 1.770863477e-06 | G149: 6.018324009e-06 | H149: 6.750452581e-06 | J149: 0.0001003046903 | K149: 0.002937935668 | L149: 4.209537692e-05 | M149: 7.848428047e-05 | N149: 1.687859896e-07
A150: 71.9536 | B150: ='DF raw data'!A155 -> 1.1028193e-05 | C150: ='DF raw data'!B155 -> 6.7249675e-06 | D150: ='DF raw data'!C155 -> -4.1070307e-06 | F150: 1.104036813e-05 | G150: 6.745740538e-06 | H150: -4.111564862e-06 | J150: 0.0001058265304 | K150: 0.002990864807 | L150: 4.546925905e-05 | M150: 0.0001012257304 | N150: 1.754213337e-07
A151: 72.45375 | B151: ='DF raw data'!A156 -> 1.7228822e-05 | C151: ='DF raw data'!B156 -> -3.7826887e-06 | D151: ='DF raw data'!C156 -> -5.3664262e-06 | F151: 1.724784262e-05 | G151: -3.794373208e-06 | H151: -5.372350735e-06 | J151: 0.0001144530389 | K151: 0.003048108494 | L151: 4.357150329e-05 | M151: 0.0001230180178 | N151: 1.829225704e-07
A152: 72.9539 | B152: ='DF raw data'!A157 -> 1.3316758e-05 | C152: ='DF raw data'!B157 -> 3.2028909e-06 | D152: ='DF raw data'!C157 -> -8.7889219e-07 | F152: 1.33314597e-05 | G152: 3.212784446e-06 | H152: -8.79862487e-07 | J152: 0.0001211207684 | K152: 0.003108687047 | L152: 4.517837743e-05 | M152: 0.0001456139832 | N152: 1.912807402e-07
A153: 73.45405 | B153: ='DF raw data'!A158 -> 9.297315e-06 | C153: ='DF raw data'!B158 -> 1.6936972e-06 | D153: ='DF raw data'!C158 -> -4.7906069e-06 | F153: 9.307579236e-06 | G153: 1.698928933e-06 | H153: -4.79589573e-06 | J153: 0.0001257759542 | K153: 0.00317159389 | L153: 4.602809674e-05 | M153: 0.0001686349358 | N153: 2.002525191e-07
A154: 73.9542 | B154: ='DF raw data'!A159 -> 9.840116e-06 | C154: ='DF raw data'!B159 -> 4.1813128e-06 | D154: ='DF raw data'!C159 -> 1.1619267e-06 | F154: 9.850979488e-06 | G154: 4.194228635e-06 | H154: 1.163209467e-06 | J154: 0.0001307029216 | K154: 0.003236964956 | L154: 4.812584019e-05 | M154: 0.0001927050748 | N154: 2.099551041e-07
A155: 74.45435 | B155: ='DF raw data'!A160 -> 7.1519116e-06 | C155: ='DF raw data'!B160 -> 4.7892063e-06 | D155: ='DF raw data'!C160 -> 8.361676e-06 | F155: 7.15980731e-06 | G155: 4.803999883e-06 | H155: 8.37090729e-06 | J155: 0.0001342838992 | K155: 0.003304127048 | L155: 5.052856073e-05 | M155: 0.0002179769344 | N155: 2.202508425e-07
A156: 74.9545 | B156: ='DF raw data'!A161 -> 6.8502573e-07 | C156: ='DF raw data'!B161 -> -5.6944336e-06 | D156: ='DF raw data'!C161 -> -1.9991435e-07 | F156: 6.857819984e-07 | G156: -5.712023378e-06 | H156: -2.001350554e-07 | J156: 0.0001346268931 | K156: 0.003371460689 | L156: 4.767169224e-05 | M156: 0.0002418199313 | N156: 2.304523973e-07
A157: 75.45465 | B157: ='DF raw data'!A162 -> -2.9344576e-06 | C157: ='DF raw data'!B162 -> 1.006305e-05 | D157: ='DF raw data'!C162 -> -8.2838233e-06 | F157: -2.937697241e-06 | G157: 1.009413418e-05 | H157: -8.292968641e-06 | J157: 0.0001331576038 | K157: 0.003438059465 | L157: 5.272027345e-05 | M157: 0.0002681879761 | N157: 2.407106612e-07
A158: 75.9548 | B158: ='DF raw data'!A163 -> 4.7971991e-08 | C158: ='DF raw data'!B163 -> 1.4521652e-05 | D158: ='DF raw data'!C163 -> -7.5150601e-06 | F158: 4.802495208e-08 | G158: 1.456650855e-05 | H158: -7.523356726e-06 | J158: 0.0001331816235 | K158: 0.003504670254 | L158: 6.00057127e-05 | M158: 0.0002981998333 | N158: 2.513828771e-07
A159: 76.45495 | B159: ='DF raw data'!A164 -> 3.3883059e-06 | C159: ='DF raw data'!B164 -> 6.061302e-06 | D159: ='DF raw data'!C164 -> 1.0847142e-06 | F159: 3.39204659e-06 | G159: 6.080025013e-06 | H159: 1.085911724e-06 | J159: 0.0001348781556 | K159: 0.003572129563 | L159: 6.304663721e-05 | M159: 0.0003297326089 | N159: 2.624696998e-07
A160: 76.9551 | B160: ='DF raw data'!A165 -> 3.6111248e-06 | C160: ='DF raw data'!B165 -> 7.93662e-06 | D160: ='DF raw data'!C165 -> 4.8202637e-06 | F160: 3.615111482e-06 | G160: 7.961135763e-06 | H160: 4.825585271e-06 | J160: 0.0001366862536 | K160: 0.003640493193 | L160: 6.702839926e-05 | M160: 0.0003632568628 | N160: 2.740611453e-07
A161: 77.45525 | B161: ='DF raw data'!A166 -> -1.2944496e-07 | C161: ='DF raw data'!B166 -> 4.7062149e-06 | D161: ='DF raw data'!C166 -> 4.5618362e-06 | F161: -1.295878672e-07 | G161: 4.720752127e-06 | H161: 4.566872467e-06 | J161: 0.0001366214402 | K161: 0.003708824406 | L161: 6.938948344e-05 | M161: 0.0003979620129 | N161: 2.858048265e-07
A162: 77.9554 | B162: ='DF raw data'!A167 -> -4.5740944e-06 | C162: ='DF raw data'!B167 -> 5.4542088e-06 | D162: ='DF raw data'!C167 -> 7.3655538e-06 | F162: -4.5791442e-06 | G162: 5.471056537e-06 | H162: 7.373685371e-06 | J162: 0.0001343311812 | K162: 0.003776010146 | L162: 7.212583237e-05 | M162: 0.000434035748 | N162: 2.974318145e-07
A163: 78.45555 | B163: ='DF raw data'!A168 -> -1.7348414e-06 | C163: ='DF raw data'!B168 -> -2.3646153e-07 | D163: ='DF raw data'!C168 -> 2.7855128e-06 | F163: -1.736756665e-06 | G163: -2.371919461e-07 | H163: 2.788588006e-06 | J163: 0.0001334625424 | K163: 0.003842761437 | L163: 7.200720081e-05 | M163: 0.0004700501495 | N163: 3.089339077e-07
A164: 78.9557 | B164: ='DF raw data'!A169 -> 5.5156797e-06 | C164: ='DF raw data'!B169 -> -7.9992533e-06 | D164: ='DF raw data'!C169 -> -5.9543672e-06 | F164: 5.52176901e-06 | G164: -8.023962533e-06 | H164: -5.960940821e-06 | J164: 0.0001362242552 | K164: 0.003910893998 | L164: 6.799401595e-05 | M164: 0.0005040573565 | N164: 3.205275017e-07
A165: 79.45585 | B165: ='DF raw data'!A170 -> 1.0444472e-05 | C165: ='DF raw data'!B170 -> 1.7844266e-06 | D165: ='DF raw data'!C170 -> -8.5792288e-07 | F165: 1.04560027e-05 | G165: 1.789938591e-06 | H165: -8.588700269e-07 | J165: 0.0001414538249 | K165: 0.003981642129 | L165: 6.888925374e-05 | M165: 0.0005385123168 | N165: 3.329086719e-07
A166: 79.956 | B166: ='DF raw data'!A171 -> 4.7947924e-06 | C166: ='DF raw data'!B171 -> 1.0956344e-05 | D166: ='DF raw data'!C171 -> 2.7407802e-06 | F166: 4.800085851e-06 | G166: 1.099018752e-05 | H166: 2.743806021e-06 | J166: 0.0001438545879 | K166: 0.004053591001 | L166: 7.438599603e-05 | M166: 0.0005757164727 | N166: 3.460263154e-07
A167: 80.45615 | B167: ='DF raw data'!A172 -> -1.6200995e-06 | C167: ='DF raw data'!B172 -> -1.8936062e-07 | D167: ='DF raw data'!C172 -> 6.3458865e-06 | F167: -1.62188809e-06 | G167: -1.899455441e-07 | H167: 6.352892359e-06 | J167: 0.0001430434005 | K167: 0.004125134158 | L167: 7.429099476e-05 | M167: 0.0006128731137 | N167: 3.590204957e-07
A168: 80.9563 | B168: ='DF raw data'!A173 -> 3.1474825e-05 | C168: ='DF raw data'!B173 -> 3.2913687e-07 | D168: ='DF raw data'!C173 -> 9.9173776e-06 | F168: 3.150957321e-05 | G168: 3.301535549e-07 | H168: 9.928326385e-06 | J168: 0.0001588029136 | K168: 0.004204559435 | L168: 7.445612106e-05 | M168: 0.0006501123427 | N168: 3.744061497e-07
A169: 81.45645 | B169: ='DF raw data'!A174 -> 0.00012733391 | C169: ='DF raw data'!B174 -> 7.3426036e-06 | D169: ='DF raw data'!C174 -> 4.5185152e-06 | F169: 0.0001274744866 | G169: 7.36528448e-06 | H169: 4.523503641e-06 | J169: 0.0002225592781 | K169: 0.004315872458 | L169: 7.813986809e-05 | M169: 0.0006891939977 | N169: 4.02233731e-07
A170: 81.9566 | B170: ='DF raw data'!A175 -> 0.00023847661 | C170: ='DF raw data'!B175 -> 9.0051053e-06 | D170: ='DF raw data'!C175 -> 9.5887372e-06 | F170: 0.0002387398882 | G170: 9.032921552e-06 | H170: 9.599323166e-06 | J170: 0.0003419650331 | K170: 0.004486906269 | L170: 8.265768381e-05 | M170: 0.0007305352383 | N170: 4.641384852e-07
A171: 82.45675 | B171: ='DF raw data'!A176 -> 0.00030709695 | C171: ='DF raw data'!B176 -> 4.6645855e-06 | D171: ='DF raw data'!C176 -> 1.2797973e-05 | F171: 0.000307435985 | G171: 4.678994136e-06 | H171: 1.281210196e-05 | J171: 0.000495729141 | K171: 0.004734845199 | L171: 8.499788273e-05 | M171: 0.0007730469293 | N171: 5.906624417e-07
A172: 82.9569 | B172: ='DF raw data'!A177 -> 0.00030396399 | C172: ='DF raw data'!B177 -> 5.7610905e-06 | D172: ='DF raw data'!C177 -> 1.7382844e-06 | F172: 0.0003042995662 | G172: 5.778886177e-06 | H172: 1.740203466e-06 | J172: 0.0006479245691 | K172: 0.005058904672 | L172: 8.788819265e-05 | M172: 0.0008170042089 | N172: 8.044918621e-07
A173: 83.45705 | B173: ='DF raw data'!A178 -> 0.00024757028 | C173: ='DF raw data'!B178 -> 4.2121337e-06 | D173: ='DF raw data'!C178 -> -1.097667e-05 | F173: 0.0002478435976 | G173: 4.225144739e-06 | H173: -1.098878824e-05 | J173: 0.0007718835444 | K173: 0.005444962227 | L173: 9.000139879e-05 | M173: 0.0008620184085 | N173: 1.106534677e-06
A174: 83.9572 | B174: ='DF raw data'!A179 -> 0.00018254638 | C174: ='DF raw data'!B179 -> -3.1417042e-06 | D174: ='DF raw data'!C179 -> -1.6030594e-05 | F174: 0.0001827479112 | G174: -3.151408744e-06 | H174: -1.604829178e-05 | J174: 0.0008632849122 | K174: 0.005876734176 | L174: 8.842522171e-05 | M174: 0.0009062442831 | N174: 1.483187568e-06
A175: 84.45735 | B175: ='DF raw data'!A180 -> 0.00012700078 | C175: ='DF raw data'!B180 -> -2.7809091e-07 | D175: ='DF raw data'!C180 -> -9.9691097e-06 | F175: 0.0001271409889 | G175: -2.789499168e-07 | H175: -9.980115597e-06 | J175: 0.0009268744778 | K175: 0.006340310446 | L175: 8.82857049e-05 | M175: 0.0009504003784 | N175: 1.916762934e-06
A176: 84.9575 | B176: ='DF raw data'!A181 -> 8.685892e-05 | C176: ='DF raw data'!B181 -> -8.3461435e-07 | D176: ='DF raw data'!C181 -> -2.8933575e-06 | F176: 8.695481225e-05 | G176: -8.371924257e-07 | H176: -2.896551767e-06 | J176: 0.0009703649272 | K176: 0.006825638464 | L176: 8.786698311e-05 | M176: 0.00099434705 | N176: 2.391569682e-06
A177: 85.45765 | B177: ='DF raw data'!A182 -> 5.9988924e-05 | C177: ='DF raw data'!B182 -> -4.628082e-06 | D177: ='DF raw data'!C182 -> 1.2167583e-06 | F177: 6.005515177e-05 | G177: -4.642377879e-06 | H177: 1.218101601e-06 | J177: 0.001000401511 | K177: 0.00732598928 | L177: 8.554509782e-05 | M177: 0.001037132431 | N177: 2.895781474e-06
A178: 85.9578 | B178: ='DF raw data'!A183 -> 4.1686486e-05 | C178: ='DF raw data'!B183 -> 4.4449644e-06 | D178: ='DF raw data'!C183 -> 4.2620086e-06 | F178: 4.173250788e-05 | G178: 4.458694639e-06 | H178: 4.266713857e-06 | J178: 0.001021274025 | K178: 0.007836779484 | L178: 8.777511394e-05 | M178: 0.001081033154 | N178: 3.421291633e-06
A179: 86.45795 | B179: ='DF raw data'!A184 -> 2.716842e-05 | C179: ='DF raw data'!B184 -> 7.255876e-06 | D179: ='DF raw data'!C184 -> 2.1684825e-06 | F179: 2.719841394e-05 | G179: 7.278288984e-06 | H179: 2.170876505e-06 | J179: 0.001034877312 | K179: 0.008354373371 | L179: 9.141535018e-05 | M179: 0.001126754541 | N179: 3.96111744e-06
A180: 86.9581 | B180: ='DF raw data'!A185 -> 1.5332867e-05 | C180: ='DF raw data'!B185 -> 5.2896921e-06 | D180: ='DF raw data'!C185 -> -1.8606371e-06 | F180: 1.534979449e-05 | G180: 5.306031655e-06 | H180: -1.862691243e-06 | J180: 0.001042554512 | K180: 0.00887580701 | L180: 9.406916191e-05 | M180: 0.001173803233 | N180: 4.509166264e-06
A181: 87.45825 | B181: ='DF raw data'!A186 -> 9.4234074e-06 | C181: ='DF raw data'!B186 -> 1.0949139e-05 | D181: ='DF raw data'!C186 -> -5.2491669e-06 | F181: 9.433810842e-06 | G181: 1.098296026e-05 | H181: -5.25496198e-06 | J181: 0.001047272832 | K181: 0.009399600517 | L181: 9.956228948e-05 | M181: 0.001223599312 | N181: 5.062678785e-06
A182: 87.9584 | B182: ='DF raw data'!A187 -> 7.5880616e-06 | C182: ='DF raw data'!B187 -> 1.313563e-06 | D182: ='DF raw data'!C187 -> -6.1798637e-06 | F182: 7.59643882e-06 | G182: 1.317620521e-06 | H182: -6.18668627e-06 | J182: 0.001051072191 | K182: 0.009925294274 | L182: 0.0001002212974 | M182: 0.001273724994 | N182: 5.620244534e-06
A183: 88.45855 | B183: ='DF raw data'!A188 -> 4.5536963e-06 | C183: ='DF raw data'!B188 -> 1.2512517e-06 | D183: ='DF raw data'!C188 -> -6.2716281e-06 | F183: 4.558723581e-06 | G183: 1.255116745e-06 | H183: -6.278551977e-06 | J183: 0.001053352237 | K183: 0.01045212839 | L183: 0.000100849044 | M183: 0.001324164643 | N183: 6.180273224e-06
A184: 88.9587 | B184: ='DF raw data'!A189 -> 2.6558644e-06 | C184: ='DF raw data'!B189 -> 1.4347129e-05 | D184: ='DF raw data'!C189 -> -3.8283615e-06 | F184: 2.658796474e-06 | G184: 1.439144646e-05 | H184: -3.832588011e-06 | J184: 0.001054682034 | K184: 0.01097962761 | L184: 0.000108046926 | M184: 0.001378204313 | N184: 6.742455994e-06
A185: 89.45885 | B185: ='DF raw data'!A190 -> 4.7360463e-06 | C185: ='DF raw data'!B190 -> 1.0718844e-05 | D185: ='DF raw data'!C190 -> 3.2100504e-06 | F185: 4.741274895e-06 | G185: 1.075195389e-05 | H185: 3.213594296e-06 | J185: 0.001057053382 | K185: 0.01150831286 | L185: 0.0001134245157 | M185: 0.001434933585 | N185: 7.307739014e-06
A186: 89.959 | B186: ='DF raw data'!A191 -> 7.6652886e-06 | C186: ='DF raw data'!B191 -> 5.6813005e-06 | D186: ='DF raw data'!C191 -> 4.7889916e-06 | F186: 7.673751079e-06 | G186: 5.69884971e-06 | H186: 4.794278647e-06 | J186: 0.001060891409 | K186: 0.0120389177 | L186: 0.0001162747954 | M186: 0.001493088423 | N186: 7.877415071e-06
A187: 90.45915 | B187: ='DF raw data'!A192 -> 8.8175093e-06 | C187: ='DF raw data'!B192 -> 1.5171709e-05 | D187: ='DF raw data'!C192 -> 2.1443991e-06 | F187: 8.82724383e-06 | G187: 1.521857354e-05 | H187: 2.146766517e-06 | J187: 0.001065306355 | K187: 0.01257173067 | L187: 0.0001238863649 | M187: 0.001555050189 | N187: 8.452700335e-06
A188: 90.9593 | B188: ='DF raw data'!A193 -> 7.9832189e-06 | C188: ='DF raw data'!B193 -> 8.4222957e-06 | D188: ='DF raw data'!C193 -> -2.2889001e-06 | F188: 7.992032374e-06 | G188: 8.448311687e-06 | H188: -2.291427046e-06 | J188: 0.00106930357 | K188: 0.01310654285 | L188: 0.000128111788 | M188: 0.0016191253 | N188: 9.032785686e-06
A189: 91.45945 | B189: ='DF raw data'!A194 -> 5.6857625e-06 | C189: ='DF raw data'!B194 -> -8.9970235e-06 | D189: ='DF raw data'!C194 -> -1.3083046e-06 | F189: 5.692039582e-06 | G189: -9.024814788e-06 | H189: -1.309748968e-06 | J189: 0.001072150443 | K189: 0.0136427789 | L189: 0.0001235980269 | M189: 0.001680942853 | N189: 9.615351926e-06
A190: 91.9596 | B190: ='DF raw data'!A195 -> 2.6499272e-06 | C190: ='DF raw data'!B195 -> -3.0617814e-06 | D190: ='DF raw data'!C195 -> -3.6657732e-06 | F190: 2.65285272e-06 | G190: -3.071239067e-06 | H190: -3.669820214e-06 | J190: 0.001073477268 | K190: 0.01417967855 | L190: 0.0001220619467 | M190: 0.001741992135 | N190: 1.01991533e-05
A191: 92.45975 | B191: ='DF raw data'!A196 -> -1.6029428e-06 | C191: ='DF raw data'!B196 -> 3.9059196e-06 | D191: ='DF raw data'!C196 -> -9.3323906e-06 | F191: -1.604712449e-06 | G191: 3.917984761e-06 | H191: -9.342693559e-06 | J191: 0.001072674671 | K191: 0.01471617679 | L191: 0.0001240215268 | M191: 0.001804021502 | N191: 1.078233434e-05
A192: 92.9599 | B192: ='DF raw data'!A197 -> -4.409163e-06 | C192: ='DF raw data'!B197 -> 3.5800892e-06 | D192: ='DF raw data'!C197 -> -9.9419558e-06 | F192: -4.414030716e-06 | G192: 3.59114789e-06 | H192: -9.952931719e-06 | J192: 0.001070466993 | K192: 0.01525157086 | L192: 0.0001258176394 | M192: 0.001866949194 | N192: 1.136337343e-05
A193: 93.46005 | B193: ='DF raw data'!A198 -> -6.6129633e-06 | C193: ='DF raw data'!B198 -> 3.6724211e-06 | D193: ='DF raw data'!C198 -> -3.9841689e-06 | F193: -6.620264011e-06 | G193: 3.683764997e-06 | H193: -3.988567422e-06 | J193: 0.001067155868 | K193: 0.01578530887 | L193: 0.0001276600745 | M193: 0.001930798381 | N193: 1.194110607e-05
A194: 93.9602 | B194: ='DF raw data'!A199 -> -8.296387e-06 | C194: ='DF raw data'!B199 -> -2.504856e-06 | D194: ='DF raw data'!C199 -> 5.7611015e-07 | F194: -8.305546211e-06 | G194: -2.512593356e-06 | H194: 5.767461756e-07 | J194: 0.001063001849 | K194: 0.01631696924 | L194: 0.0001264034009 | M194: 0.001994019042 | N194: 1.251425334e-05
A195: 94.46035 | B195: ='DF raw data'!A200 -> -9.9673834e-06 | C195: ='DF raw data'!B200 -> 8.9841569e-06 | D195: ='DF raw data'!C200 -> -2.3919276e-06 | F195: -9.978387391e-06 | G195: 9.011908444e-06 | H195: -2.394568288e-06 | J195: 0.001058011159 | K195: 0.01684613352 | L195: 0.0001309107069 | M195: 0.002059494032 | N195: 1.308268643e-05
A196: 94.9605 | B196: ='DF raw data'!A201 -> -9.7686043e-06 | C196: ='DF raw data'!B201 -> 2.744702e-06 | D196: ='DF raw data'!C201 -> -6.7970832e-06 | F196: -9.779388839e-06 | G196: 2.753180227e-06 | H196: -6.80458718e-06 | J196: 0.001053119998 | K196: 0.01737285149 | L196: 0.00013228771 | M196: 0.00212565773 | N196: 1.36461363e-05
A197: 95.46065 | B197: ='DF raw data'!A202 -> -5.7431516e-06 | C197: ='DF raw data'!B202 -> -1.068661e-05 | D197: ='DF raw data'!C202 -> -2.9281378e-07 | F197: -5.749492039e-06 | G197: -1.071962032e-05 | H197: -2.931370464e-07 | J197: 0.001050244389 | K197: 0.01789813122 | L197: 0.0001269262919 | M197: 0.002189139915 | N197: 1.420586595e-05
A198: 95.9608 | B198: ='DF raw data'!A203 -> -5.1223087e-06 | C198: ='DF raw data'!B203 -> 1.0491092e-06 | D198: ='DF raw data'!C203 -> 1.237994e-05 | F198: -5.127963729e-06 | G198: 1.052349838e-06 | H198: 1.239360745e-05 | J198: 0.001047679638 | K198: 0.01842212819 | L198: 0.0001274526247 | M198: 0.002252885345 | N198: 1.476297143e-05
A199: 96.46095 | B199: ='DF raw data'!A204 -> -6.6106204e-06 | C199: ='DF raw data'!B204 -> 2.2771726e-06 | D199: ='DF raw data'!C204 -> 8.1675389e-06 | F199: -6.617918525e-06 | G199: =(1-$G$1*($B$2-$G$2))*C199*$M$2/$M$1 -> 2.284206655e-06 | H199: 8.176555863e-06 | J199: 0.001044369686 | K199: 0.01894446969 | L199: 0.0001285950706 | M199: 0.00231720217 | N199: 1.531675988e-05
A200: =A199+$B$1 -> 96.9611 | B200: ='DF raw data'!A205 -> -7.1745217e-06 | C200: ='DF raw data'!B205 -> 3.1950183e-06 | D200: ='DF raw data'!C205 -> -3.3162944e-06 | F200: -7.182442372e-06 | G200: 3.204887528e-06 | H200: -3.319955589e-06 | J200: =F200*$B$1+J199 -> 0.001040777388 | K200: =J200*$B$1+K199 -> 0.0194650145 | L200: =G200*$B$1+L199 -> 0.0001301979951 | M200: =L200*$B$1+M199 -> 0.002382320697 | N200: =(J200^2+L200^2)*$B$1+N199 -> 1.586700945e-05
A201: 97.46125 | B201: ='DF raw data'!A206 -> -7.0079168e-06 | C201: ='DF raw data'!B206 -> 7.2431994e-06 | D201: ='DF raw data'!C206 -> -1.6358828e-06 | F201: -7.01565354e-06 | G201: 7.265573226e-06 | H201: -1.637688815e-06 | J201: 0.001037268508 | K201: 0.01998380434 | L201: 0.0001338318716 | M201: 0.002449256707 | N201: 1.641409199e-05
... 1002 more rows

Sheet 12 mm
A1: dz | B1: ='DF raw data'!E7 -> 0.50021 | C1: mm | F1: T_coeff | G1: -0.0008 | H1: /degC | L1: Hallref | M1: ='PI vs gap'!B50 -> 0.505575 | N1: T | P1: IBy total | Q1: =L1203*1000 -> -8.548819833 | R1: muTm | X1: DF ref | Y1: 19
A2: Tref | B2: ='DF raw data'!E8 -> 21.38 | C2: degC | F2: Tcorr | G2: 20 | H2: degC | L2: NMRref | M2: ='PI vs gap'!B51 -> 0.5066135 | N2: T | P2: JBy total | Q2: =M1203 -> -3.161935769 | R2: muTm^2
A3: Encoder | B3: ='DF raw data'!E9 -> 17900794 | P3: PI total | Q3: =N1203 -> 545.3177768 | R3: T^2mm^3
A5: z [mm] | B5: Bx | C5: By | D5: Bz | F5: Bx_corr | G5: By_corr | H5: Bz_corr | J5: Ix | K5: Jx | L5: Iy | M5: Jy | N5: PI
A6: -0.068 | B6: ='DF raw data'!D11 -> 5.2201648e-07 | C6: ='DF raw data'!E11 -> -6.6748835e-06 | D6: ='DF raw data'!F11 -> -2.8705042e-06 | F6: =(1-$G$1*($B$2-$G$2))*B6 -> 5.225927862e-07 | G6: =(1-$G$1*($B$2-$G$2))*C6*$M$2/$M$1 -> -6.695978565e-06 | H6: =(1-$G$1*($B$2-$G$2))*D6 -> -2.873673237e-06 | J6: =F6*$B$1 -> 2.614061376e-07 | K6: =J6*$B$1 -> 1.307579641e-07 | L6: =G6*$B$1 -> -3.349395438e-06 | M6: =L6*$B$1 -> -1.675401092e-06 | N6: =(J6^2+L6)^2*$B$1 -> 5.611580546e-12
A7: =A6+$B$1 -> 0.43221 | B7: ='DF raw data'!D12 -> 1.6363192e-07 | C7: ='DF raw data'!E12 -> 1.7749264e-06 | D7: ='DF raw data'!F12 -> -1.0615659e-05 | F7: =(1-$G$1*($B$2-$G$2))*B7 -> 1.638125696e-07 | G7: =(1-$G$1*($B$2-$G$2))*C7*$M$2/$M$1 -> 1.780535814e-06 | H7: -1.062737869e-05 | J7: =F7*$B$1+J6 -> 3.43346823e-07 | K7: =J7*$B$1+K6 -> 3.025034784e-07 | L7: =G7*$B$1+L6 -> -2.458753618e-06 | M7: =L7*$B$1+M6 -> -2.905294239e-06 | N7: =(J7^2+L7^2)*$B$1+N6 -> 8.694553049e-12
A8: =A7+$B$1 -> 0.93242 | B8: ='DF raw data'!D13 -> 6.4396153e-07 | C8: ='DF raw data'!E13 -> -1.0545473e-05 | D8: ='DF raw data'!F13 -> -5.9789099e-06 | F8: 6.446724635e-07 | G8: -1.057880054e-05 | H8: -5.985510617e-06 | J8: =F8*$B$1+J7 -> 6.65818436e-07 | K8: =J8*$B$1+K7 -> 6.355525183e-07 | L8: =G8*$B$1+L7 -> -7.750375436e-06 | M8: =L8*$B$1+M7 -> -6.782109536e-06 | N8: =(J8^2+L8^2)*$B$1+N7 -> 3.896307729e-11
A9: 1.43263 | B9: ='DF raw data'!D14 -> 4.4218467e-07 | C9: ='DF raw data'!E14 -> -4.1000058e-06 | D9: ='DF raw data'!F14 -> -6.8639275e-07 | F9: 4.426728419e-07 | G9: -4.112963313e-06 | H9: -6.871505276e-07 | J9: 8.872478183e-07 | K9: 1.079362749e-06 | L9: -9.807720815e-06 | M9: -1.168802957e-05 | N9: 8.747274093e-11
A10: 1.93284 | B10: ='DF raw data'!D15 -> 8.9679091e-08 | C10: ='DF raw data'!E15 -> 6.6411476e-06 | D10: ='DF raw data'!F15 -> 6.3182297e-06 | F10: 8.977809672e-08 | G10: 6.662136047e-06 | H10: 6.325205026e-06 | J10: 9.3215572e-07 | K10: 1.545636362e-06 | L10: -6.475253742e-06 | M10: -1.492701624e-05 | N10: 1.088806411e-10
A11: 2.43305 | B11: ='DF raw data'!D16 -> 2.3492176e-07 | C11: ='DF raw data'!E16 -> 1.5981352e-06 | D11: ='DF raw data'!F16 -> 6.8029402e-07 | F11: 2.351811136e-07 | G11: 1.60318589e-06 | H11: 6.810450646e-07 | J11: 1.049795665e-06 | K11: 2.070754652e-06 | L11: -5.673324128e-06 | M11: -1.77648697e-05 | N11: 1.255319706e-10
A12: 2.93326 | B12: ='DF raw data'!D17 -> 3.4679687e-07 | C12: ='DF raw data'!E17 -> -2.8788816e-06 | D12: ='DF raw data'!F17 -> -7.4385689e-06 | F12: 3.471797337e-07 | G12: -2.887979915e-06 | H12: -7.44678108e-06 | J12: 1.223458439e-06 | K12: 2.682740798e-06 | L12: -7.117920562e-06 | M12: -2.132532475e-05 | N12: 1.516237463e-10
A13: 3.43347 | B13: ='DF raw data'!D18 -> 6.3869373e-07 | C13: ='DF raw data'!E18 -> -1.1221948e-05 | D13: ='DF raw data'!F18 -> -1.007638e-05 | F13: 6.393988479e-07 | G13: -1.125741345e-05 | H13: -1.008750432e-05 | J13: 1.543292137e-06 | K13: 3.454710958e-06 | L13: -1.274899134e-05 | M13: -2.770249771e-05 | N13: 2.341176447e-10
A14: 3.93368 | B14: ='DF raw data'!D19 -> 5.826252e-07 | C14: ='DF raw data'!E19 -> -7.9959464e-06 | D14: ='DF raw data'!F19 -> -9.1148178e-07 | F14: 5.832684182e-07 | G14: -8.021216505e-06 | H14: -9.124880559e-07 | J14: 1.835048833e-06 | K14: 4.372620734e-06 | L14: -1.676128405e-05 | M14: -3.60866596e-05 | N14: 3.76331373e-10
A15: 4.43389 | B15: ='DF raw data'!D20 -> 7.5283896e-07 | C15: ='DF raw data'!E20 -> -1.2450146e-05 | D15: ='DF raw data'!F20 -> -7.1088363e-07 | F15: 7.536700942e-07 | G15: -1.2489493e-05 | H15: -7.116684455e-07 | J15: 2.21204215e-06 | K15: 5.479106338e-06 | L15: -2.300865334e-05 | M15: -4.759581809e-05 | N15: 6.435892037e-10
A16: 4.9341 | B16: ='DF raw data'!D21 -> -1.6183621e-07 | C16: ='DF raw data'!E21 -> 1.1449596e-05 | D16: ='DF raw data'!F21 -> -6.7045412e-06 | F16: -1.620148772e-07 | G16: 1.14857809e-05 | H16: -6.711943013e-06 | J16: 2.131000689e-06 | K16: 6.545054193e-06 | L16: -1.726335088e-05 | M16: -5.623111883e-05 | N16: 7.94934966e-10
A17: 5.43431 | B17: ='DF raw data'!D22 -> -2.4613547e-07 | C17: ='DF raw data'!E22 -> 1.4052894e-05 | D17: ='DF raw data'!F22 -> -3.4318152e-06 | F17: -2.464072036e-07 | G17: 1.409730627e-05 | H17: -3.435603924e-06 | J17: 2.007745341e-06 | K17: 7.54934849e-06 | L17: -1.021173731e-05 | M17: -6.133913195e-05 | N17: 8.491130214e-10
A18: 5.93452 | B18: ='DF raw data'!D23 -> 3.7549324e-07 | C18: ='DF raw data'!E23 -> -2.275923e-06 | D18: ='DF raw data'!F23 -> 1.2032754e-06 | F18: 3.759077845e-07 | G18: -2.283115746e-06 | H18: 1.204603816e-06 | J18: 2.195778174e-06 | K18: 8.647698691e-06 | L18: -1.135377464e-05 | M18: -6.701840357e-05 | N18: 9.160059248e-10
A19: 6.43473 | B19: ='DF raw data'!D24 -> 6.190632e-07 | C19: ='DF raw data'!E24 -> -9.8283017e-06 | D19: ='DF raw data'!F24 -> -4.6717114e-06 | F19: 6.197466458e-07 | G19: -9.859362716e-06 | H19: -4.676868969e-06 | J19: 2.505781644e-06 | K19: 9.901115727e-06 | L19: -1.628552646e-05 | M19: -7.516458676e-05 | N19: 1.051811596e-09
A20: 6.93494 | B20: ='DF raw data'!D25 -> 4.7836073e-07 | C20: ='DF raw data'!E25 -> -5.8679161e-06 | D20: ='DF raw data'!F25 -> -4.7170406e-06 | F20: 4.788888402e-07 | G20: -5.886460854e-06 | H20: -4.722248213e-06 | J20: 2.745326631e-06 | K20: 1.127435556e-05 | L20: -1.922999305e-05 | M20: -8.478362158e-05 | N20: 1.240555561e-09
A21: 7.43515 | B21: ='DF raw data'!D26 -> 5.5078561e-07 | C21: ='DF raw data'!E26 -> -7.3210722e-06 | D21: ='DF raw data'!F26 -> -2.0232044e-06 | F21: 5.513936773e-07 | G21: -7.344209457e-06 | H21: -2.025438018e-06 | J21: 3.021139262e-06 | K21: 1.278555963e-05 | L21: -2.290364006e-05 | M21: -9.624025138e-05 | N21: 1.507519644e-09
A22: 7.93536 | B22: ='DF raw data'!D27 -> -2.0776206e-07 | C22: ='DF raw data'!E27 -> -2.8954253e-06 | D22: ='DF raw data'!F27 -> -7.4345089e-06 | F22: -2.079914293e-07 | G22: -2.904575899e-06 | H22: -7.442716598e-06 | J22: 2.917099869e-06 | K22: 1.424472216e-05 | L22: -2.435653797e-05 | M22: -0.0001084236352 | N22: 1.808521218e-09
A23: 8.43557 | B23: ='DF raw data'!D28 -> -5.9123414e-07 | C23: ='DF raw data'!E28 -> -1.1357877e-06 | D23: ='DF raw data'!F28 -> -6.1143446e-06 | F23: =(1-$G$1*($B$2-$G$2))*B23 -> -5.918868625e-07 | G23: -1.139377203e-06 | H23: -6.121094836e-06 | J23: 2.621032142e-06 | K23: 1.555578864e-05 | L23: -2.492646584e-05 | M23: -0.0001208921027 | N23: 2.122752394e-09
A24: 8.93578 | B24: ='DF raw data'!D29 -> 8.3460617e-07 | C24: ='DF raw data'!E29 -> 6.053001e-06 | D24: ='DF raw data'!F29 -> -1.1234595e-06 | F24: 8.355275752e-07 | G24: 6.07213069e-06 | H24: -1.124699799e-06 | J24: 3.03897139e-06 | K24: 1.707591252e-05 | L24: -2.188912535e-05 | M24: -0.0001318412621 | N24: 2.36703953e-09
A25: 9.43599 | B25: ='DF raw data'!D30 -> 1.6937367e-06 | C25: ='DF raw data'!E30 -> -2.7514577e-06 | D25: ='DF raw data'!F30 -> -7.1447795e-07 | F25: 1.695606585e-06 | G25: -2.760153309e-06 | H25: -7.152667337e-07 | J25: 3.88713076e-06 | K25: 1.90202942e-05 | L25: -2.326978164e-05 | M25: -0.0001434810396 | N25: 2.645452676e-09
A26: 9.9362 | B26: ='DF raw data'!D31 -> 7.1872927e-07 | C26: ='DF raw data'!E31 -> -3.6845138e-06 | D26: ='DF raw data'!F31 -> -4.5424758e-06 | F26: 7.195227471e-07 | G26: -3.696158207e-06 | H26: -4.547490693e-06 | J26: 4.247043234e-06 | K26: 2.11447077e-05 | L26: -2.511863693e-05 | M26: -0.000156045633 | N26: 2.970080611e-09
A27: 10.43641 | B27: ='DF raw data'!D32 -> 2.5824368e-06 | C27: ='DF raw data'!E32 -> -1.259318e-05 | D27: ='DF raw data'!F32 -> -3.7254438e-06 | F27: 2.58528781e-06 | G27: -1.263297904e-05 | H27: -3.72955669e-06 | J27: 5.540230049e-06 | K27: 2.391598617e-05 | L27: -3.143777938e-05 | M27: -0.0001717711246 | N27: 3.479808668e-09
A28: 10.93662 | B28: ='DF raw data'!D33 -> 4.167402e-06 | C28: ='DF raw data'!E33 -> 4.2777519e-06 | D28: ='DF raw data'!F33 -> 4.3413665e-06 | F28: 4.172002812e-06 | G28: 4.291271155e-06 | H28: 4.346159369e-06 | J28: 7.627107576e-06 | K28: 2.773114165e-05 | L28: -2.929124263e-05 | M28: -0.0001864228971 | N28: 3.938075892e-09
A29: 11.43683 | B29: ='DF raw data'!D34 -> -1.3784781e-06 | C29: ='DF raw data'!E34 -> 7.6448146e-07 | D29: ='DF raw data'!F34 -> 7.9177624e-07 | F29: -1.37999994e-06 | G29: 7.668975001e-07 | H29: 7.92650361e-07 | J29: 6.936817806e-06 | K29: 3.120100729e-05 | L29: -2.890763284e-05 | M29: -0.0002008827841 | N29: 4.380146822e-09
A30: 11.93704 | B30: ='DF raw data'!D35 -> -8.8127608e-06 | C30: ='DF raw data'!E35 -> 3.2610371e-06 | D30: ='DF raw data'!F35 -> -3.2589094e-06 | F30: -8.822490088e-06 | G30: 3.271343166e-06 | H30: -3.262507236e-06 | J30: 2.523720039e-06 | K30: 3.246339729e-05 | L30: -2.727127427e-05 | M30: -0.0002145241482 | N30: 4.755350123e-09
A31: 12.43725 | B31: ='DF raw data'!D36 -> -9.4407487e-06 | C31: ='DF raw data'!E36 -> -3.2520763e-06 | D31: ='DF raw data'!F36 -> -7.9887041e-06 | F31: -9.451171287e-06 | G31: -3.262354047e-06 | H31: -7.997523629e-06 | J31: -2.20385035e-06 | K31: 3.13610093e-05 | L31: -2.890313639e-05 | M31: -0.000228981786 | N31: 5.1756507e-09
A32: 12.93746 | B32: ='DF raw data'!D37 -> -6.8987911e-06 | C32: ='DF raw data'!E37 -> -1.0069938e-05 | D32: ='DF raw data'!F37 -> -4.3973787e-06 | F32: -6.906407365e-06 | G32: -1.010176268e-05 | H32: -4.402233406e-06 | J32: -5.658504379e-06 | K32: 2.853056883e-05 | L32: -3.39561391e-05 | M32: -0.0002459669864 | N32: 5.768418585e-09
A33: 13.43767 | B33: ='DF raw data'!D38 -> -6.5564282e-06 | C33: ='DF raw data'!E38 -> -7.1877785e-06 | D33: ='DF raw data'!F38 -> -8.9404284e-06 | F33: -6.563666497e-06 | G33: -7.2104945e-06 | H33: -8.950298633e-06 | J33: -8.941715997e-06 | K33: 2.405783307e-05 | L33: -3.756290055e-05 | M33: -0.0002647563249 | N33: 6.514194571e-09
A34: 13.93788 | B34: ='DF raw data'!D39 -> -4.8876291e-06 | C34: ='DF raw data'!E39 -> 2.5943011e-06 | D34: ='DF raw data'!F39 -> -8.5225411e-06 | F34: -4.893025043e-06 | G34: 2.602500037e-06 | H34: -8.531949985e-06 | J34: -1.138925605e-05 | K34: 1.83608133e-05 | L34: -3.626110401e-05 | M34: -0.0002828944917 | N34: 7.236789342e-09
A35: 14.43809 | B35: ='DF raw data'!D40 -> 8.4307538e-07 | C35: ='DF raw data'!E40 -> -1.242797e-06 | D35: ='DF raw data'!F40 -> 4.0539226e-06 | F35: 8.440061352e-07 | G35: -1.246724692e-06 | H35: 4.058398131e-06 | J35: -1.096707574e-05 | K35: 1.287497234e-05 | L35: -3.688472816e-05 | M35: -0.0003013446016 | N35: 7.977480262e-09
A36: 14.9383 | B36: ='DF raw data'!D41 -> 1.55577e-06 | C36: ='DF raw data'!E41 -> 1.3203703e-07 | D36: ='DF raw data'!F41 -> 5.2771857e-06 | F36: 1.55748757e-06 | G36: 1.324543151e-07 | H36: 5.283011713e-06 | J36: -1.018800489e-05 | K36: 7.778830415e-06 | L36: -3.681847319e-05 | M36: -0.00031976157 | N36: 8.707484441e-09
A37: 15.43851 | B37: ='DF raw data'!D42 -> -8.5508947e-07 | C37: ='DF raw data'!E42 -> 5.5403734e-06 | D37: ='DF raw data'!F42 -> -2.1718813e-06 | F37: -8.560334888e-07 | G37: 5.557883e-06 | H37: -2.174279057e-06 | J37: -1.06162014e-05 | K37: 2.468500313e-06 | L37: -3.403836454e-05 | M37: -0.0003367879004 | N37: 9.343408413e-09
A38: 15.93872 | B38: ='DF raw data'!D43 -> 2.2072447e-06 | C38: ='DF raw data'!E43 -> -6.1477131e-06 | D38: ='DF raw data'!F43 -> -9.6025697e-06 | F38: 2.209681498e-06 | G38: -6.167142115e-06 | H38: -9.613170937e-06 | J38: -9.510896616e-06 | K38: -2.288945284e-06 | L38: -3.712323069e-05 | M38: -0.0003553573116 | N38: 1.007801252e-08
A39: 16.43893 | B39: ='DF raw data'!D44 -> 1.7158993e-06 | C39: ='DF raw data'!E44 -> -5.3286039e-06 | D39: ='DF raw data'!F44 -> -8.441807e-06 | F39: 1.717793653e-06 | G39: -5.345444231e-06 | H39: -8.451126755e-06 | J39: -8.651639053e-06 | K39: -6.616581654e-06 | L39: -3.979707535e-05 | M39: -0.0003752642067 | N39: 1.090768987e-08
A40: 16.93914 | B40: ='DF raw data'!D45 -> -2.4315129e-06 | C40: ='DF raw data'!E45 -> -2.4077488e-06 | D40: ='DF raw data'!F45 -> -5.1777979e-06 | F40: -2.43419729e-06 | G40: -2.415358164e-06 | H40: -5.183514189e-06 | J40: -9.86924888e-06 | K40: -1.155327864e-05 | L40: -4.100526166e-05 | M40: -0.0003957754486 | N40: 1.179748021e-08
A41: 17.43935 | B41: ='DF raw data'!D46 -> -4.4824601e-06 | C41: ='DF raw data'!E46 -> -1.7482351e-05 | D41: ='DF raw data'!F46 -> -2.5159031e-06 | F41: -4.487408736e-06 | G41: -1.75376016e-05 | H41: -2.518680657e-06 | J41: -1.21138956e-05 | K41: -1.761277036e-05 | L41: -4.977774536e-05 | M41: -0.0004206747746 | N41: 1.311031657e-08
A42: 17.93956 | B42: ='DF raw data'!D47 -> -6.2979861e-06 | C42: ='DF raw data'!E47 -> -1.1844921e-05 | D42: ='DF raw data'!F47 -> -1.9798106e-06 | F42: -6.304939077e-06 | G42: -1.188235527e-05 | H42: -1.981996311e-06 | J42: -1.526768918e-05 | K42: -2.524982116e-05 | L42: -5.572141829e-05 | M42: -0.0004485471852 | N42: 1.478000694e-08
A43: 18.43977 | B43: ='DF raw data'!D48 -> -8.4764224e-06 | C43: ='DF raw data'!E48 -> 6.4613255e-07 | D43: ='DF raw data'!F48 -> -2.6018904e-06 | F43: -8.48578037e-06 | G43: 6.481745644e-07 | H43: -2.604762887e-06 | J43: -1.951236138e-05 | K43: -3.501009945e-05 | L43: -5.539719489e-05 | M43: -0.0004762574161 | N43: 1.650552207e-08
A44: 18.93998 | B44: ='DF raw data'!D49 -> -7.0691358e-06 | C44: ='DF raw data'!E49 -> -1.1798199e-06 | D44: ='DF raw data'!F49 -> -1.3503966e-06 | F44: -7.076940126e-06 | G44: -1.183548561e-06 | H44: -1.351887438e-06 | J44: -2.30523176e-05 | K44: -4.654109923e-05 | L44: -5.598921771e-05 | M44: -0.0005042637827 | N44: 1.83393929e-08
A45: 19.44019 | B45: ='DF raw data'!D50 -> -3.7277248e-06 | C45: ='DF raw data'!E50 -> -9.6584481e-06 | D45: ='DF raw data'!F50 -> -1.776142e-06 | F45: -3.731840208e-06 | G45: -9.688972317e-06 | H45: -1.778102861e-06 | J45: -2.491902139e-05 | K45: -5.900584292e-05 | L45: -6.083573855e-05 | M45: -0.0005346944275 | N45: 2.050127286e-08
A46: 19.9404 | B46: ='DF raw data'!D51 -> -3.948463e-06 | C46: ='DF raw data'!E51 -> -8.7845019e-06 | D46: ='DF raw data'!F51 -> 2.2694796e-06 | F46: -3.952822103e-06 | G46: -8.812264128e-06 | H46: 2.271985105e-06 | J46: -2.689626253e-05 | K46: -7.24596224e-05 | L46: -6.524372119e-05 | M46: -0.0005673299892 | N46: 2.299239474e-08
A47: 20.44061 | B47: ='DF raw data'!D52 -> -4.5442766e-06 | C47: ='DF raw data'!E52 -> -1.2181133e-06 | D47: ='DF raw data'!F52 -> 3.9860961e-06 | F47: -4.549293481e-06 | G47: -1.221962982e-06 | H47: 3.99049675e-06 | J47: -2.917186463e-05 | K47: -8.705168081e-05 | L47: -6.58549593e-05 | M47: -0.0006002712984 | N47: 2.558742087e-08
A48: 20.94082 | B48: ='DF raw data'!D53 -> -1.6106248e-06 | C48: ='DF raw data'!E53 -> -2.7283747e-06 | D48: ='DF raw data'!F53 -> -3.4324119e-06 | F48: -1.61240293e-06 | G48: -2.736997359e-06 | H48: -3.436201283e-06 | J48: -2.99784047e-05 | K48: -0.0001020471786 | L48: -6.722403275e-05 | M48: -0.0006338974319 | N48: 2.829744627e-08
A49: 21.44103 | B49: ='DF raw data'!D54 -> 2.6364389e-06 | C49: ='DF raw data'!E54 -> 2.5752217e-06 | D49: ='DF raw data'!F54 -> -4.9477176e-06 | F49: 2.639349529e-06 | G49: 2.583360339e-06 | H49: -4.95317988e-06 | J49: -2.865817567e-05 | K49: -0.0001163822847 | L49: -6.593181007e-05 | M49: -0.0006668771826 | N49: 3.088267891e-08
A50: 21.94124 | B50: ='DF raw data'!D55 -> 4.2537094e-06 | C50: ='DF raw data'!E55 -> 6.6991888e-06 | D50: ='DF raw data'!F55 -> -6.0026005e-06 | F50: 4.258405495e-06 | G50: 6.720360679e-06 | H50: -6.009227371e-06 | J50: -2.652807865e-05 | K50: -0.0001296518949 | L50: -6.257021846e-05 | M50: -0.0006981754315 | N50: 3.319303445e-08
A51: 22.44145 | B51: ='DF raw data'!D56 -> 2.5114816e-06 | C51: ='DF raw data'!E56 -> 1.7755922e-06 | D51: ='DF raw data'!F56 -> -7.0781762e-06 | F51: 2.514254276e-06 | G51: 1.781203719e-06 | H51: -7.085990507e-06 | J51: -2.527042352e-05 | K51: -0.0001422924134 | L51: -6.167924254e-05 | M51: -0.0007290280055 | N51: 3.54154291e-08
A52: 22.94166 | B52: ='DF raw data'!D57 -> -1.6201127e-06 | C52: ='DF raw data'!E57 -> 1.428359e-05 | D52: ='DF raw data'!F57 -> 1.306973e-07 | F52: -1.621901304e-06 | G52: 1.432873135e-05 | H52: 1.308415898e-07 | J52: -2.608171478e-05 | K52: -0.000155338748 | L52: -5.451186783e-05 | M52: -0.0007562953869 | N52: 3.724209577e-08
A53: 23.44187 | B53: ='DF raw data'!D58 -> -2.751917e-06 | C53: ='DF raw data'!E58 -> 7.671606e-06 | D53: ='DF raw data'!F58 -> -4.1153917e-06 | F53: -2.754955116e-06 | G53: 7.695851072e-06 | H53: -4.119935092e-06 | J53: -2.745977087e-05 | K53: -0.0001690744 | L53: -5.066232617e-05 | M53: -0.000781637189 | N53: 3.890314827e-08
A54: 23.94208 | B54: ='DF raw data'!D59 -> -4.3183246e-07 | C54: ='DF raw data'!E59 -> 4.802655e-06 | D54: ='DF raw data'!F59 -> -4.7438016e-06 | F54: -4.32309203e-07 | G54: 4.817833141e-06 | H54: -4.749038757e-06 | J54: -2.767601626e-05 | K54: -0.0001829182201 | L54: -4.825239785e-05 | M54: -0.000805773521 | N54: 4.045092595e-08
A55: 24.44229 | B55: ='DF raw data'!D60 -> 3.8013488e-06 | C55: ='DF raw data'!E60 -> 7.3298988e-06 | D55: ='DF raw data'!F60 -> 2.0202926e-06 | F55: 3.805545489e-06 | G55: 7.353063952e-06 | H55: 2.022523003e-06 | J55: -2.577244435e-05 | K55: -0.0001958098545 | L55: -4.457432174e-05 | M55: -0.0008280700424 | N55: 4.177702721e-08
A56: 24.9425 | B56: ='DF raw data'!D61 -> 2.275857e-06 | C56: ='DF raw data'!E61 -> 1.4496539e-05 | D56: ='DF raw data'!F61 -> 2.3240493e-06 | F56: 2.278369546e-06 | G56: 1.454235335e-05 | H56: 2.32661505e-06 | J56: -2.463278112e-05 | K56: -0.0002081314179 | L56: -3.730009117e-05 | M56: -0.000846727921 | N56: 4.277648215e-08
A57: 25.44271 | B57: ='DF raw data'!D62 -> -2.3654327e-06 | C57: ='DF raw data'!E62 -> 9.2956816e-06 | D57: ='DF raw data'!F62 -> 9.4454654e-06 | F57: -2.368044138e-06 | G57: 9.325059343e-06 | H57: 9.455893194e-06 | J57: -2.581730048e-05 | K57: -0.0002210454898 | L57: -3.263560323e-05 | M57: -0.0008630525761 | N57: 4.364265359e-08
A58: 25.94292 | B58: ='DF raw data'!D63 -> -5.5394385e-06 | C58: ='DF raw data'!E63 -> 1.1455334e-05 | D58: ='DF raw data'!F63 -> 7.3569308e-06 | F58: -5.54555404e-06 | G58: 1.149153703e-05 | H58: 7.365052852e-06 | J58: -2.859124206e-05 | K58: -0.000235347115 | L58: -2.688742149e-05 | M58: -0.0008765019332 | N58: 4.441317336e-08
A59: 26.44313 | B59: ='DF raw data'!D64 -> -3.862694e-06 | C59: ='DF raw data'!E64 -> 6.0436855e-07 | D59: ='DF raw data'!F64 -> 1.9103529e-06 | F59: -3.866958414e-06 | G59: 6.062785749e-07 | H59: 1.91246193e-06 | J59: -3.052553333e-05 | K59: -0.000250616292 | L59: -2.658415489e-05 | M59: -0.0008897995934 | N59: 4.523278018e-08
A60: 26.94334 | B60: ='DF raw data'!D65 -> 4.7121574e-07 | C60: ='DF raw data'!E65 -> 1.8473768e-06 | D60: ='DF raw data'!F65 -> 4.0834047e-06 | F60: 4.717359622e-07 | G60: 1.853215184e-06 | H60: 4.087912779e-06 | J60: -3.028956629e-05 | K60: -0.000265767436 | L60: -2.565715812e-05 | M60: -0.0009026335604 | N60: 4.602098489e-08
A61: 27.44355 | B61: ='DF raw data'!D66 -> 9.0081738e-07 | C61: ='DF raw data'!E66 -> 1.80548e-06 | D61: ='DF raw data'!F66 -> 2.7406124e-06 | F61: 9.018118824e-07 | G61: 1.811185975e-06 | H61: 2.743638036e-06 | J61: -2.983847097e-05 | K61: -0.0002806929375 | L61: -2.475118479e-05 | M61: -0.0009150143506 | N61: 4.677277825e-08
A62: 27.94376 | B62: ='DF raw data'!D67 -> 4.2316532e-07 | C62: ='DF raw data'!E67 -> 3.84745e-06 | D62: ='DF raw data'!F67 -> 1.741638e-06 | F62: 4.236324945e-07 | G62: 3.859609345e-06 | H62: 1.743560768e-06 | J62: -2.962656576e-05 | K62: -0.000295512442 | L62: -2.282056959e-05 | M62: -0.0009264294277 | N62: 4.747232784e-08
A63: 28.44397 | B63: ='DF raw data'!D68 -> 1.7797095e-06 | C63: ='DF raw data'!E68 -> -5.8463011e-06 | D63: ='DF raw data'!F68 -> -3.4208285e-06 | F63: 1.781674299e-06 | G63: -5.864777543e-06 | H63: -3.424605095e-06 | J63: -2.873535445e-05 | K63: -0.0003098861536 | L63: -2.575418997e-05 | M63: -0.0009393119311 | N63: 4.821713998e-08
A64: 28.94418 | B64: ='DF raw data'!D69 -> 2.1110566e-06 | C64: ='DF raw data'!E69 -> 6.5947152e-06 | D64: ='DF raw data'!F69 -> -7.7927043e-06 | F64: 2.113387206e-06 | G64: 6.615556904e-06 | H64: -7.801307446e-06 | J64: -2.767821704e-05 | K64: -0.0003237310746 | L64: -2.244502225e-05 | M64: -0.0009505391556 | N64: 4.885233801e-08
A65: 29.44439 | B65: ='DF raw data'!D70 -> 3.7356033e-06 | C65: ='DF raw data'!E70 -> 4.8014535e-06 | D65: ='DF raw data'!F70 -> -1.0501587e-05 | F65: 3.739727406e-06 | G65: 4.816627843e-06 | H65: -1.051318075e-05 | J65: -2.580756799e-05 | K65: -0.0003366402782 | L65: -2.003569684e-05 | M65: -0.0009605612115 | N65: 4.938629203e-08
A66: 29.9446 | B66: ='DF raw data'!D71 -> 4.0656842e-06 | C66: ='DF raw data'!E71 -> 3.8211647e-06 | D66: ='DF raw data'!F71 -> -1.0327342e-05 | F66: 4.070172715e-06 | G66: 3.833240973e-06 | H66: -1.033874339e-05 | J66: -2.37716269e-05 | K66: -0.0003485310836 | L66: -1.811827137e-05 | M66: -0.0009696241521 | N66: 4.983316064e-08
A67: 30.44481 | B67: ='DF raw data'!D72 -> 1.1550874e-07 | C67: ='DF raw data'!E72 -> -1.0725432e-06 | D67: ='DF raw data'!F72 -> -2.3845867e-06 | F67: 1.156362616e-07 | G67: -1.075932828e-06 | H67: -2.387219284e-06 | J67: -2.371378449e-05 | K67: -0.0003603929558 | L67: -1.865646373e-05 | M67: -0.0009789563018 | N67: 5.028855543e-08
A68: 30.94502 | B68: ='DF raw data'!D73 -> -6.1192886e-06 | C68: ='DF raw data'!E73 -> -8.6349301e-06 | D68: ='DF raw data'!F73 -> 5.9125805e-06 | F68: -6.126044295e-06 | G68: -8.662219627e-06 | H68: 5.919107989e-06 | J68: -2.67780931e-05 | K68: -0.0003737876257 | L68: -2.298939261e-05 | M68: -0.0009904558259 | N68: 5.091160623e-08
A69: 31.44523 | B69: ='DF raw data'!D74 -> -5.614861e-06 | C69: ='DF raw data'!E74 -> 3.3133404e-06 | D69: ='DF raw data'!F74 -> 4.1163503e-06 | F69: -5.621059807e-06 | G69: 3.323811764e-06 | H69: 4.120894751e-06 | J69: -2.958980343e-05 | K69: -0.0003885887413 | L69: -2.132678873e-05 | M69: -0.001001123699 | N69: 5.15770798e-08
A70: 31.94544 | B70: ='DF raw data'!D75 -> -1.265468e-06 | C70: ='DF raw data'!E75 -> -3.0400604e-06 | D70: ='DF raw data'!F75 -> -2.3640315e-08 | F70: -1.266865077e-06 | G70: -3.049668099e-06 | H70: -2.366641391e-08 | J70: -3.022350201e-05 | K70: -0.0004037068393 | L70: -2.285226321e-05 | M70: -0.001012554629 | N70: 5.22952243e-08
A71: 32.44565 | B71: ='DF raw data'!D76 -> -1.0466654e-06 | C71: ='DF raw data'!E76 -> -2.3454393e-06 | D71: ='DF raw data'!F76 -> 8.8022279e-07 | F71: -1.047820919e-06 | G71: =(1-$G$1*($B$2-$G$2))*C71*$M$2/$M$1 -> -2.352851743e-06 | H71: 8.81194556e-07 | J71: -3.074763251e-05 | K71: -0.0004190871125 | L71: -2.402918318e-05 | M71: -0.001024574267 | N71: 5.305695336e-08
A72: =A71+$B$1 -> 32.94586 | B72: ='DF raw data'!D77 -> -9.9026215e-07 | C72: ='DF raw data'!E77 -> 4.2184024e-07 | D72: ='DF raw data'!F77 -> -1.6247438e-06 | F72: -9.913553994e-07 | G72: 4.231734089e-07 | H72: -1.626537517e-06 | J72: =F72*$B$1+J71 -> -3.124351839e-05 | K72: =J72*$B$1+K71 -> -0.0004347154328 | L72: =G72*$B$1+L71 -> -2.381750761e-05 | M72: =L72*$B$1+M71 -> -0.001036488023 | N72: =(J72^2+L72^2)*$B$1+N71 -> 5.382899304e-08
A73: 33.44607 | B73: ='DF raw data'!D78 -> 2.8804018e-06 | C73: ='DF raw data'!E78 -> -7.7877994e-06 | D73: ='DF raw data'!F78 -> -5.3788472e-06 | F73: 2.883581764e-06 | G73: -7.812411685e-06 | H73: -5.384785447e-06 | J73: -2.980112196e-05 | K73: -0.0004496222521 | L73: -2.772535406e-05 | M73: -0.001050356522 | N73: 5.465774203e-08
A74: 33.94628 | B74: ='DF raw data'!D79 -> 3.9168326e-06 | C74: ='DF raw data'!E79 -> -5.8165479e-06 | D74: ='DF raw data'!F79 -> -4.1027461e-06 | F74: 3.921156783e-06 | G74: -5.834930312e-06 | H74: -4.107275532e-06 | J74: -2.783972013e-05 | K74: -0.0004635479585 | L74: -3.064404455e-05 | M74: -0.00106568498 | N74: 5.551515574e-08
A75: 34.44649 | B75: ='DF raw data'!D80 -> 1.5916449e-07 | C75: ='DF raw data'!E80 -> 1.5182221e-05 | D75: ='DF raw data'!F80 -> -3.4794e-06 | F75: 1.593402076e-07 | G75: 1.523020235e-05 | H75: -3.483241258e-06 | J75: -2.776001656e-05 | K75: -0.0004774337963 | L75: -2.302574503e-05 | M75: -0.001077202687 | N75: 5.616583063e-08
A76: 34.9467 | B76: ='DF raw data'!D81 -> -8.0738388e-08 | C76: ='DF raw data'!E81 -> -3.7276111e-06 | D76: ='DF raw data'!F81 -> -3.3560725e-06 | F76: -8.082752318e-08 | G76: -3.73939171e-06 | H76: -3.359777604e-06 | J76: -2.78004473e-05 | K76: -0.0004913398581 | L76: -2.489622615e-05 | M76: -0.001089656029 | N76: 5.686246657e-08
A77: 35.44691 | B77: ='DF raw data'!D82 -> 2.1514963e-06 | C77: ='DF raw data'!E82 -> -7.7403001e-06 | D77: ='DF raw data'!F82 -> 7.7334325e-06 | F77: 2.153871552e-06 | G77: -7.76476227e-06 | H77: 7.741970209e-06 | J77: -2.672305921e-05 | K77: -0.0005047069995 | L77: -2.878023789e-05 | M77: -0.001104052192 | N77: 5.763400247e-08
A78: 35.94712 | B78: ='DF raw data'!D83 -> 2.3587593e-06 | C78: ='DF raw data'!E83 -> 2.5756219e-06 | D78: ='DF raw data'!F83 -> 8.5506535e-06 | F78: 2.36136337e-06 | G78: 2.583761804e-06 | H78: 8.560093421e-06 | J78: -2.554188164e-05 | K78: -0.0005174833041 | L78: -2.74878144e-05 | M78: -0.001117801871 | N78: 5.833828197e-08
A79: 36.44733 | B79: ='DF raw data'!D84 -> 1.7199739e-06 | C79: ='DF raw data'!E84 -> -4.2279626e-06 | D79: ='DF raw data'!F84 -> 6.1269448e-06 | F79: 1.721872751e-06 | G79: -4.241324503e-06 | H79: 6.133708947e-06 | J79: -2.468058367e-05 | K79: -0.0005298287789 | L79: -2.960936733e-05 | M79: -0.001132612773 | N79: 5.908151692e-08
A80: 36.94754 | B80: ='DF raw data'!D85 -> 2.8695897e-06 | C80: ='DF raw data'!E85 -> 2.8193938e-06 | D80: ='DF raw data'!F85 -> 3.2253949e-06 | F80: 2.872757727e-06 | G80: 2.828304112e-06 | H80: 3.228955736e-06 | J80: -2.324360152e-05 | K80: -0.0005414554608 | L80: -2.819462133e-05 | M80: -0.001146716004 | N80: 5.974939816e-08
A81: 37.44775 | B81: ='DF raw data'!D86 -> 7.412159e-06 | C81: ='DF raw data'!E86 -> -4.4830758e-06 | D81: ='DF raw data'!F86 -> 4.0695085e-07 | F81: 7.420342024e-06 | G81: -4.497243954e-06 | H81: 4.074001237e-07 | J81: -1.953187224e-05 | K81: -0.0005512254986 | L81: -3.044418773e-05 | M81: -0.001161944491 | N81: 6.040384421e-08
A82: 37.94796 | B82: ='DF raw data'!D87 -> 1.0562678e-05 | C82: ='DF raw data'!E87 -> -1.2766866e-06 | D82: ='DF raw data'!F87 -> 2.7919953e-06 | F82: 1.05743392e-05 | G82: -1.280721395e-06 | H82: 2.795077663e-06 | J82: -1.424248203e-05 | K82: -0.0005583497306 | L82: -3.108481737e-05 | M82: -0.001177493428 | N82: 6.098864681e-08
A83: 38.44817 | B83: ='DF raw data'!D88 -> 7.243153e-06 | C83: ='DF raw data'!E88 -> -1.0850852e-06 | D83: ='DF raw data'!F88 -> 4.6119158e-06 | F83: 7.251149441e-06 | G83: -1.088514465e-06 | H83: 4.617007355e-06 | J83: -1.061538457e-05 | K83: -0.0005636596521 | L83: -3.16293032e-05 | M83: -0.001193314722 | N83: 6.154543016e-08
A84: 38.94838 | B84: ='DF raw data'!D89 -> 2.1693224e-06 | C84: ='DF raw data'!E89 -> -4.1903368e-06 | D84: ='DF raw data'!F89 -> 9.7922812e-06 | F84: 2.171717332e-06 | G84: -4.203579792e-06 | H84: 9.803091878e-06 | J84: -9.529069843e-06 | K84: -0.0005684261881 | L84: -3.373197584e-05 | M84: -0.001210187793 | N84: 6.216001286e-08
A85: 39.44859 | B85: ='DF raw data'!D90 -> -1.2171411e-06 | C85: ='DF raw data'!E90 -> 1.4011798e-05 | D85: ='DF raw data'!F90 -> 7.6310016e-06 | F85: -1.218484824e-06 | G85: 1.405608039e-05 | H85: 7.639426226e-06 | J85: -1.013856814e-05 | K85: -0.0005734976013 | L85: -2.670098387e-05 | M85: -0.001223543892 | N85: 6.256805072e-08
A86: 39.9488 | B86: ='DF raw data'!D91 -> -1.5494923e-06 | C86: ='DF raw data'!E91 -> 4.5420711e-06 | D86: ='DF raw data'!F91 -> 2.2043889e-06 | F86: -1.551202939e-06 | G86: 4.5564257e-06 | H86: 2.206822545e-06 | J86: -1.091449536e-05 | K86: -0.000578957141 | L86: -2.442181417e-05 | M86: -0.001235759928 | N86: 6.292597659e-08
A87: 40.44901 | B87: ='DF raw data'!D92 -> -5.9330051e-07 | C87: ='DF raw data'!E92 -> -4.9981045e-06 | D87: ='DF raw data'!F92 -> -4.184004e-06 | F87: =(1-$G$1*($B$2-$G$2))*B87 -> -5.939555138e-07 | G87: -5.013900332e-06 | H87: -4.18862314e-06 | J87: -1.121159785e-05 | K87: -0.0005845652944 | L87: -2.692981726e-05 | M87: -0.001249230492 | N87: 6.335161277e-08
A88: 40.94922 | B88: ='DF raw data'!D93 -> 2.5541084e-07 | C88: ='DF raw data'!E93 -> -2.6444484e-06 | D88: ='DF raw data'!F93 -> -4.4411072e-06 | F88: 2.556928136e-07 | G88: -2.652805821e-06 | H88: -4.446010182e-06 | J88: -1.108369774e-05 | K88: -0.0005901094708 | L88: -2.825677726e-05 | M88: -0.001263364815 | N88: 6.381245315e-08
A89: 41.44943 | B89: ='DF raw data'!D94 -> 1.2423072e-06 | C89: ='DF raw data'!E94 -> -2.4689666e-07 | D89: ='DF raw data'!F94 -> -3.6311474e-06 | F89: 1.243678707e-06 | G89: -2.476769435e-07 | H89: -3.635156187e-06 | J89: -1.046159722e-05 | K89: -0.0005953424664 | L89: -2.838066774e-05 | M89: -0.001277561108 | N89: 6.427009894e-08
A90: 41.94964 | B90: ='DF raw data'!D95 -> 3.7387319e-06 | C90: ='DF raw data'!E95 -> -9.9192903e-08 | D90: ='DF raw data'!F95 -> -5.2299083e-06 | F90: 3.74285946e-06 | G90: -9.950638873e-08 | H90: -5.235682119e-06 | J90: -8.589381487e-06 | K90: -0.0005996389609 | L90: -2.843044183e-05 | M90: -0.0012917823 | N90: 6.471131793e-08
A91: 42.44985 | B91: ='DF raw data'!D96 -> 3.0262556e-06 | C91: ='DF raw data'!E96 -> -2.5223358e-07 | D91: ='DF raw data'!F96 -> -2.8892616e-06 | F91: 3.029596586e-06 | G91: -2.530307301e-07 | H91: -2.892451345e-06 | J91: -7.073946979e-06 | K91: -0.0006031774199 | L91: -2.855701033e-05 | M91: -0.001306066802 | N91: 6.514427147e-08
A92: 42.95006 | B92: ='DF raw data'!D97 -> 1.2627963e-06 | C92: ='DF raw data'!E97 -> 3.0099041e-08 | D92: ='DF raw data'!F97 -> -1.3068136e-06 | F92: 1.264190427e-06 | G92: 3.019416494e-08 | H92: -1.308256322e-06 | J92: -6.441586285e-06 | K92: -0.0006063995658 | L92: -2.854190691e-05 | M92: -0.001320343749 | N92: 6.55725185e-08
A93: 43.45027 | B93: ='DF raw data'!D98 -> 1.5011567e-06 | C93: ='DF raw data'!E98 -> -2.7547937e-06 | D93: ='DF raw data'!F98 -> -2.4720437e-06 | F93: 1.502813977e-06 | G93: -2.763499852e-06 | H93: -2.474772836e-06 | J93: -5.689863706e-06 | K93: -0.0006092456925 | L93: -2.992423717e-05 | M93: -0.001335312152 | N93: 6.603663061e-08
A94: 43.95048 | B94: ='DF raw data'!D99 -> 2.779081e-07 | C94: ='DF raw data'!E99 -> -5.6446934e-06 | D94: ='DF raw data'!F99 -> 2.707405e-06 | F94: 2.782149105e-07 | G94: -5.662532689e-06 | H94: 2.710393975e-06 | J94: -5.550697826e-06 | K94: -0.000612022207 | L94: -3.275669265e-05 | M94: -0.001351697377 | N94: 6.658876799e-08
A95: 44.45069 | B95: ='DF raw data'!D100 -> -7.7038277e-07 | C95: ='DF raw data'!E100 -> -3.8371545e-06 | D95: ='DF raw data'!F100 -> -6.1536784e-06 | F95: -7.712332726e-07 | G95: -3.849281307e-06 | H95: -6.160472061e-06 | J95: -5.936476421e-06 | K95: -0.0006149916919 | L95: -3.468214165e-05 | M95: -0.001369045731 | N95: 6.720807434e-08
A96: 44.9509 | B96: ='DF raw data'!D101 -> 2.9018992e-07 | C96: ='DF raw data'!E101 -> 4.6738978e-06 | D96: ='DF raw data'!F101 -> -4.9596356e-06 | F96: 2.905102897e-07 | G96: 4.688669021e-06 | H96: -4.965111038e-06 | J96: -5.791160269e-06 | K96: -0.0006178884882 | L96: -3.233682252e-05 | M96: -0.001385220933 | N96: 6.774790479e-08
A97: 45.45111 | B97: ='DF raw data'!D102 -> 2.7369636e-06 | C97: ='DF raw data'!E102 -> 6.5338727e-06 | D97: ='DF raw data'!F102 -> -1.2670723e-06 | F97: 2.739985208e-06 | G97: 6.55452212e-06 | H97: -1.268471148e-06 | J97: -4.420592268e-06 | K97: -0.0006200997127 | L97: -2.905818501e-05 | M97: -0.001399756128 | N97: 6.818004609e-08
A98: 45.95132 | B98: ='DF raw data'!D103 -> 4.5636216e-06 | C98: ='DF raw data'!E103 -> 1.1309044e-07 | D98: ='DF raw data'!F103 -> 1.892847e-06 | F98: 4.568659838e-06 | G98: 1.13447847e-07 | H98: 1.894936703e-06 | J98: -2.13530293e-06 | K98: -0.0006211678125 | L98: -2.900143726e-05 | M98: -0.001414262937 | N98: 6.860304511e-08
A99: 46.45153 | B99: ='DF raw data'!D104 -> 2.5408474e-06 | C99: ='DF raw data'!E104 -> -3.7106654e-06 | D99: ='DF raw data'!F104 -> 3.5441838e-06 | F99: 2.543652496e-06 | G99: -3.722392455e-06 | H99: 3.548096579e-06 | J99: -8.629425156e-07 | K99: -0.000621599465 | L99: -3.086341519e-05 | M99: -0.001429701126 | N99: 6.907989284e-08
A100: 46.95174 | B100: ='DF raw data'!D105 -> -2.1513013e-06 | C100: ='DF raw data'!E105 -> -6.1726641e-06 | D100: ='DF raw data'!F105 -> -4.9465672e-07 | F100: -2.153676337e-06 | G100: -6.192171969e-06 | H100: -4.95202821e-07 | J100: -1.940232956e-06 | K100: -0.0006225699889 | L100: -3.396080153e-05 | M100: -0.001446688658 | N100: 6.96586861e-08
A101: 47.45195 | B101: ='DF raw data'!D106 -> -5.20716e-06 | C101: ='DF raw data'!E106 -> -7.2403491e-06 | D101: ='DF raw data'!F106 -> -5.3419144e-06 | F101: -5.212908705e-06 | G101: -7.263231243e-06 | H101: -5.347811873e-06 | J101: -4.547782019e-06 | K101: -0.000624844835 | L101: -3.759394243e-05 | M101: -0.001465493524 | N101: 7.037598065e-08
A102: 47.95216 | B102: ='DF raw data'!D107 -> -6.3697998e-06 | C102: ='DF raw data'!E107 -> 3.795451e-07 | D102: ='DF raw data'!F107 -> -3.4978955e-06 | F102: -6.376832059e-06 | G102: 3.807446009e-07 | H102: -3.501757177e-06 | J102: -7.737537183e-06 | K102: -0.0006287152285 | L102: -3.740349017e-05 | M102: -0.001484203124 | N102: 7.11057323e-08
A103: 48.45237 | B103: ='DF raw data'!D108 -> -3.3071308e-06 | C103: ='DF raw data'!E108 -> -4.0667837e-06 | D103: ='DF raw data'!F108 -> 5.2919559e-06 | F103: -3.310781872e-06 | G103: -4.079636219e-06 | H103: 5.297798219e-06 | J103: -9.393623384e-06 | K103: -0.0006334140128 | L103: -3.944416501e-05 | M103: -0.00150393349 | N103: 7.192811871e-08
A104: 48.95258 | B104: ='DF raw data'!D109 -> -1.6656558e-07 | C104: ='DF raw data'!E109 -> 5.0963281e-06 | D104: ='DF raw data'!F109 -> 1.7600025e-06 | F104: -1.667494684e-07 | G104: 5.112434355e-06 | H104: 1.761945543e-06 | J104: -9.477033135e-06 | K104: -0.0006381545196 | L104: -3.688687422e-05 | M104: -0.001522384673 | N104: 7.265365113e-08
A105: 49.45279 | B105: ='DF raw data'!D110 -> -2.7608519e-06 | C105: ='DF raw data'!E110 -> -4.3300352e-06 | D105: ='DF raw data'!F110 -> -5.1606849e-06 | F105: -2.76389988e-06 | G105: -4.34371969e-06 | H105: -5.166382296e-06 | J105: -1.085956349e-05 | K105: -0.0006435865818 | L105: -3.905964625e-05 | M105: -0.001541922699 | N105: 7.347578933e-08
A106: 49.953 | B106: ='DF raw data'!D111 -> -8.2173547e-06 | C106: ='DF raw data'!E111 -> -3.2165842e-06 | D106: ='DF raw data'!F111 -> 1.5477628e-06 | F106: -8.22642666e-06 | G106: -3.226749779e-06 | H106: 1.54947153e-06 | J106: -1.497450437e-05 | K106: -0.0006510769786 | L106: -4.067369875e-05 | M106: -0.00156226809 | N106: 7.441547661e-08
A107: 50.45321 | B107: ='DF raw data'!D112 -> -3.4866287e-06 | C107: ='DF raw data'!E112 -> -1.0849686e-05 | D107: ='DF raw data'!F112 -> 7.6421193e-06 | F107: -3.490477938e-06 | G107: -1.088397496e-05 | H107: 7.6505562e-06 | J107: -1.672047634e-05 | K107: -0.0006594407281 | L107: -4.611797187e-05 | M107: -0.00158533676 | N107: 7.561920279e-08
A108: 50.95342 | B108: ='DF raw data'!D113 -> 3.7081729e-06 | C108: ='DF raw data'!E113 -> -1.3498045e-06 | D108: ='DF raw data'!F113 -> 2.5072725e-06 | F108: 3.712266723e-06 | G108: -1.354070374e-06 | H108: 2.510040529e-06 | J108: -1.486356341e-05 | K108: -0.0006668756312 | L108: -4.679529141e-05 | M108: -0.001608744233 | N108: 7.682507145e-08
A109: 51.45363 | B109: ='DF raw data'!D114 -> 6.6640058e-07 | C109: ='DF raw data'!E114 -> 1.621308e-05 | D109: ='DF raw data'!F114 -> 4.2277597e-06 | F109: 6.671362862e-07 | G109: 1.626431924e-05 | H109: 4.232427147e-06 | J109: -1.452985516e-05 | K109: -0.00067414361 | L109: -3.865971628e-05 | M109: -0.00162808221 | N109: 7.767827482e-08
A110: 51.95384 | B110: ='DF raw data'!D115 -> -6.1043438e-06 | C110: ='DF raw data'!E115 -> 1.0577553e-06 | D110: ='DF raw data'!F115 -> 2.887223e-06 | F110: -6.111082996e-06 | G110: 1.061098192e-06 | H110: 2.890410494e-06 | J110: -1.758667999e-05 | K110: -0.0006829406432 | L110: -3.812894435e-05 | M110: -0.001647154689 | N110: 7.856019893e-08
A111: 52.45405 | B111: ='DF raw data'!D116 -> -7.9858773e-06 | C111: ='DF raw data'!E116 -> -4.8926977e-06 | D111: ='DF raw data'!F116 -> 8.6199934e-06 | F111: -7.994693709e-06 | G111: -4.908160408e-06 | H111: 8.629509873e-06 | J111: -2.158570573e-05 | K111: -0.0006937380291 | L111: -4.058405527e-05 | M111: -0.001667455239 | N111: 7.961714678e-08
A112: 52.95426 | B112: ='DF raw data'!D117 -> -2.2604988e-06 | C112: ='DF raw data'!E117 -> 4.5127172e-06 | D112: ='DF raw data'!F117 -> 1.3966556e-05 | F112: -2.262994391e-06 | G112: 4.526979031e-06 | H112: 1.398197508e-05 | J112: -2.271767815e-05 | K112: -0.0007051016389 | L112: -3.831961509e-05 | M112: -0.001686623094 | N112: 8.060980642e-08
A113: 53.45447 | B113: ='DF raw data'!D118 -> 5.004239e-06 | C113: ='DF raw data'!E118 -> 2.1957551e-06 | D113: ='DF raw data'!F118 -> 9.1188185e-06 | F113: 5.00976368e-06 | G113: 2.202694487e-06 | H113: 9.128885676e-06 | J113: -2.021174426e-05 | K113: -0.0007152117555 | L113: -3.721780528e-05 | M113: -0.001705239812 | N113: 8.150702291e-08
A114: 53.95468 | B114: ='DF raw data'!D119 -> 9.3960944e-06 | C114: ='DF raw data'!E119 -> -4.4350418e-06 | D114: ='DF raw data'!F119 -> 1.5073667e-06 | F114: 9.406467688e-06 | G114: -4.449058149e-06 | H114: 1.509030833e-06 | J114: -1.550653506e-05 | K114: -0.0007229682794 | L114: -3.944326866e-05 | M114: -0.00172496973 | N114: 8.240551215e-08
A115: 54.45489 | B115: ='DF raw data'!D120 -> 1.1489955e-05 | C115: ='DF raw data'!E120 -> -7.1038585e-08 | D115: ='DF raw data'!F120 -> -2.5858396e-06 | F115: 1.150263991e-05 | G115: -7.126309283e-08 | H115: -2.588694367e-06 | J115: -9.752799551e-06 | K115: -0.0007278467272 | L115: -3.947891517e-05 | M115: -0.001744717478 | N115: 8.323271035e-08
A116: 54.9551 | B116: ='DF raw data'!D121 -> 1.0874918e-05 | C116: ='DF raw data'!E121 -> -1.1244463e-06 | D116: ='DF raw data'!F121 -> 6.8215667e-07 | F116: 1.088692391e-05 | G116: -1.12799996e-06 | H116: 6.82909771e-07 | J116: -4.307051343e-06 | K116: -0.0007300011574 | L116: -4.004315203e-05 | M116: -0.001764747463 | N116: 8.404405333e-08
A117: 55.45531 | B117: ='DF raw data'!D122 -> 6.9128828e-06 | C117: ='DF raw data'!E122 -> -6.3852131e-06 | D117: ='DF raw data'!F122 -> 1.7474879e-06 | F117: 6.920514623e-06 | G117: -6.405392701e-06 | H117: 1.749417127e-06 | J117: -8.453407232e-07 | K117: -0.0007304240053 | L117: -4.324719351e-05 | M117: -0.001786380142 | N117: 8.497996342e-08
A118: 55.95552 | B118: ='DF raw data'!D123 -> 1.9836255e-06 | C118: ='DF raw data'!E123 -> 5.858331e-06 | D118: ='DF raw data'!F123 -> 6.3170219e-06 | F118: 1.985815423e-06 | G118: 5.876845462e-06 | H118: 6.323995892e-06 | J118: 1.479840094e-07 | K118: -0.0007303499822 | L118: -4.030753665e-05 | M118: -0.001806542374 | N118: 8.579266432e-08
A119: 56.45573 | B119: ='DF raw data'!D124 -> -9.0028772e-07 | C119: ='DF raw data'!E124 -> 1.1533255e-05 | D119: ='DF raw data'!F124 -> 1.5732898e-05 | F119: -9.012816376e-07 | G119: 1.156970429e-05 | H119: 1.575026712e-05 | J119: -3.028460786e-07 | K119: -0.0007305014688 | L119: -3.452025486e-05 | M119: -0.001823809751 | N119: 8.638878444e-08
A120: 56.95594 | B120: ='DF raw data'!D125 -> -1.6810809e-07 | C120: ='DF raw data'!E125 -> 9.3918825e-06 | D120: ='DF raw data'!F125 -> 1.3994496e-05 | F120: -1.682936813e-07 | G120: 9.421564272e-06 | H120: 1.400994592e-05 | J120: -3.870282609e-07 | K120: -0.0007306950642 | L120: -2.98074942e-05 | M120: -0.001838719758 | N120: 8.68332893e-08
A121: 57.45615 | B121: ='DF raw data'!D126 -> 1.9941028e-06 | C121: ='DF raw data'!E126 -> 7.0670853e-07 | D121: ='DF raw data'!F126 -> 6.2709651e-06 | F121: 1.996304289e-06 | G121: 7.089419866e-07 | H121: 6.277888245e-06 | J121: 6.115431077e-07 | K121: -0.0007303891642 | L121: -2.945287433e-05 | M121: -0.00185345238 | N121: 8.726739445e-08
A122: 57.95636 | B122: ='DF raw data'!D127 -> -9.0695249e-07 | C122: ='DF raw data'!E127 -> 6.7289429e-06 | D122: ='DF raw data'!F127 -> -2.1906533e-06 | F122: -9.079537655e-07 | G122: 6.750208813e-06 | H122: -2.193071781e-06 | J122: 1.573755546e-07 | K122: -0.0007303104434 | L122: -2.607635238e-05 | M122: -0.001866496032 | N122: 8.760753771e-08
A123: 58.45657 | B123: ='DF raw data'!D128 -> -3.1505376e-06 | C123: ='DF raw data'!E128 -> 2.0872778e-06 | D123: ='DF raw data'!F128 -> -6.7229785e-06 | F123: -3.154015794e-06 | G123: 2.093874359e-06 | H123: -6.730400668e-06 | J123: -1.420294685e-06 | K123: -0.000731020889 | L123: -2.502897548e-05 | M123: -0.001879015776 | N123: 8.792190311e-08
A124: 58.95678 | B124: ='DF raw data'!D129 -> 2.4077556e-06 | C124: ='DF raw data'!E129 -> -6.3066254e-06 | D124: ='DF raw data'!F129 -> -4.1814137e-06 | F124: 2.410413762e-06 | G124: -6.326556635e-06 | H124: -4.186029981e-06 | J124: -2.145816175e-07 | K124: -0.0007311282249 | L124: -2.819358238e-05 | M124: -0.001893118488 | N124: 8.831953211e-08
A125: 59.45699 | B125: ='DF raw data'!D130 -> 8.1909338e-06 | C125: ='DF raw data'!E130 -> 9.8124447e-06 | D125: ='DF raw data'!F130 -> -2.0062951e-06 | F125: 8.199976591e-06 | G125: 9.843455602e-06 | H125: -2.00851005e-06 | J125: 3.887128673e-06 | K125: -0.0007291838443 | L125: -2.326978745e-05 | M125: -0.001904758268 | N125: 8.859794538e-08
A126: 59.9572 | B126: ='DF raw data'!D131 -> 8.8374609e-06 | C126: ='DF raw data'!E131 -> 7.1488384e-06 | D126: ='DF raw data'!F131 -> -1.7461359e-06 | F126: 8.847217457e-06 | G126: 7.171431335e-06 | H126: -1.748063634e-06 | J126: 8.312595317e-06 | K126: -0.000725025801 | L126: -1.968256578e-05 | M126: -0.001914603685 | N126: 8.882629257e-08
A127: 60.45741 | B127: ='DF raw data'!D132 -> 4.5016886e-06 | C127: ='DF raw data'!E132 -> -1.7145956e-06 | D127: ='DF raw data'!F132 -> -2.5685374e-06 | F127: 4.506658464e-06 | G127: -1.720014347e-06 | H127: -2.571373065e-06 | J127: 1.056687095e-05 | K127: -0.0007197401464 | L127: -2.054293416e-05 | M127: -0.001924879466 | N127: 8.909324009e-08
A128: 60.95762 | B128: ='DF raw data'!D133 -> 5.4397532e-07 | C128: ='DF raw data'!E133 -> -2.1867943e-06 | D128: ='DF raw data'!F133 -> 2.737411e-06 | F128: 5.445758688e-07 | G128: -2.193705367e-06 | H128: 2.740433102e-06 | J128: 1.083927324e-05 | K128: -0.0007143182336 | L128: -2.164024752e-05 | M128: -0.001935704134 | N128: 8.938625818e-08
A129: 61.45783 | B129: ='DF raw data'!D134 -> 4.4631742e-07 | C129: ='DF raw data'!E134 -> 1.0204987e-05 | D129: ='DF raw data'!F134 -> 7.4716084e-08 | F129: 4.468101544e-07 | G129: 1.023723848e-05 | H129: 7.479857056e-08 | J129: 1.106277215e-05 | K129: -0.0007087845243 | L129: -1.651947846e-05 | M129: -0.001943967342 | N129: 8.958398024e-08
A130: 61.95804 | B130: ='DF raw data'!D135 -> 3.1153716e-06 | C130: ='DF raw data'!E135 -> -8.4411636e-07 | D130: ='DF raw data'!F135 -> -6.3812267e-06 | F130: 3.11881097e-06 | G130: -8.467840754e-07 | H130: -6.388271574e-06 | J130: 1.262283259e-05 | K130: -0.0007024704572 | L130: -1.694304832e-05 | M130: -0.001952442424 | N130: 8.980727538e-08
A131: 62.45825 | B131: ='DF raw data'!D136 -> 2.1613771e-06 | C131: ='DF raw data'!E136 -> 5.0883227e-06 | D131: ='DF raw data'!F136 -> -5.3930353e-06 | F131: 2.16376326e-06 | G131: 5.104403655e-06 | H131: -5.398989211e-06 | J131: 1.370516861e-05 | K131: -0.0006956149948 | L131: -1.438977457e-05 | M131: -0.001959640334 | N131: 9.000480694e-08
A132: 62.95846 | B132: ='DF raw data'!D137 -> -1.1399868e-06 | C132: ='DF raw data'!E137 -> 6.6773064e-06 | D132: ='DF raw data'!F137 -> -4.5033158e-07 | F132: -1.141245345e-06 | G132: 6.698409122e-06 | H132: -4.508287461e-07 | J132: 1.313430627e-05 | K132: -0.0006890450835 | L132: -1.103916334e-05 | M132: -0.001965162233 | N132: 9.015205532e-08
A133: 63.45867 | B133: ='DF raw data'!D138 -> -3.8762419e-06 | C133: ='DF raw data'!E138 -> -3.1057077e-06 | D133: ='DF raw data'!F138 -> 2.912325e-06 | F133: -3.880521271e-06 | G133: -3.115522868e-06 | H133: 2.915540207e-06 | J133: 1.119323073e-05 | K133: -0.0006834461176 | L133: -1.259757904e-05 | M133: -0.001971463668 | N133: 9.029410866e-08
A134: 63.95888 | B134: ='DF raw data'!D139 -> -5.1692523e-06 | C134: ='DF raw data'!E139 -> 2.2830156e-06 | D134: ='DF raw data'!F139 -> 1.8072526e-06 | F134: -5.174959155e-06 | G134: 2.290230762e-06 | H134: 1.809247807e-06 | J134: 8.604664408e-06 | K134: -0.0006791419784 | L134: -1.145198271e-05 | M134: -0.001977192065 | N134: 9.039674583e-08
A135: 64.45909 | B135: ='DF raw data'!D140 -> -2.3763175e-06 | C135: ='DF raw data'!E140 -> 3.9742054e-06 | D135: ='DF raw data'!F140 -> 4.0272926e-06 | F135: -2.378940955e-06 | G135: =(1-$G$1*($B$2-$G$2))*C135*$M$2/$M$1 -> 3.986765338e-06 | H135: 4.031738731e-06 | J135: 7.414694353e-06 | K135: -0.0006754330741 | L135: -9.45776282e-06 | M135: -0.001981922932 | N135: 9.046898965e-08
A136: =A135+$B$1 -> 64.9593 | B136: ='DF raw data'!D141 -> 1.1306358e-06 | C136: ='DF raw data'!E141 -> 5.2366931e-06 | D136: ='DF raw data'!F141 -> 8.4029233e-07 | F136: 1.131884022e-06 | G136: 5.253242959e-06 | H136: 8.412200127e-07 | J136: =F136*$B$1+J135 -> 7.98087406e-06 | K136: =J136*$B$1+K135 -> -0.0006714409611 | L136: =G136*$B$1+L135 -> -6.830038159e-06 | M136: =L136*$B$1+M135 -> -0.001985339386 | N136: =(J136^2+L136^2)*$B$1+N135 -> 9.052418471e-08
A137: 65.45951 | B137: ='DF raw data'!D142 -> -6.3762565e-07 | C137: ='DF raw data'!E142 -> 6.9544349e-06 | D137: ='DF raw data'!F142 -> -2.7037829e-06 | F137: -6.383295887e-07 | G137: 6.976413449e-06 | H137: -2.706767876e-06 | J137: 7.661575216e-06 | K137: -0.0006676085646 | L137: -3.340366388e-06 | M137: -0.00198701027 | N137: 9.055912827e-08
A138: 65.95972 | B138: ='DF raw data'!D143 -> -4.6614196e-06 | C138: ='DF raw data'!E143 -> 9.7089051e-06 | D138: ='DF raw data'!F143 -> -1.238157e-07 | F138: -4.666565807e-06 | G138: 9.739588779e-06 | H138: -1.239523925e-07 | J138: 5.327312334e-06 | K138: -0.0006649437897 | L138: 1.531473316e-06 | M138: -0.001986244212 | N138: 9.057449755e-08
A139: 66.45993 | B139: ='DF raw data'!D144 -> -5.9948698e-06 | C139: ='DF raw data'!E144 -> 8.6063965e-06 | D139: ='DF raw data'!F144 -> 5.8588694e-06 | F139: -6.001488136e-06 | G139: 8.63359585e-06 | H139: 5.865337592e-06 | J139: 2.325307953e-06 | K139: -0.0006637806474 | L139: 5.850084296e-06 | M139: -0.001983317941 | N139: 9.059432115e-08
A140: 66.96014 | B140: ='DF raw data'!D145 -> -5.1037687e-06 | C140: ='DF raw data'!E145 -> 1.2378249e-05 | D140: ='DF raw data'!F145 -> 1.2509546e-05 | F140: -5.109403261e-06 | G140: 1.241736878e-05 | H140: 1.252335654e-05 | J140: -2.304666518e-07 | K140: -0.0006638959291 | L140: 1.206137633e-05 | M140: -0.00197728472 | N140: 9.066711666e-08
A141: 67.46035 | B141: ='DF raw data'!D146 -> 3.0935479e-07 | C141: ='DF raw data'!E146 -> -2.0738073e-08 | D141: ='DF raw data'!F146 -> 8.7758008e-06 | F141: 3.096963177e-07 | G141: -2.080361287e-08 | H141: 8.785489284e-06 | J141: -7.555345668e-08 | K141: -0.0006639337217 | L141: 1.205097016e-05 | M141: -0.001971256705 | N141: 9.073976296e-08
A142: 67.96056 | B142: ='DF raw data'!D147 -> 3.7097736e-06 | C142: ='DF raw data'!E147 -> -2.0732372e-05 | D142: ='DF raw data'!F147 -> -4.0431123e-06 | F142: 3.71386919e-06 | G142: -2.079789385e-05 | H142: -4.047575896e-06 | J142: 1.782161051e-06 | K142: -0.0006630422669 | L142: 1.647655673e-06 | M142: -0.001970432531 | N142: 9.074270963e-08
A143: 68.46077 | B143: ='DF raw data'!D148 -> 1.3602505e-06 | C143: ='DF raw data'!E148 -> -5.6992649e-06 | D143: ='DF raw data'!F148 -> -8.838274e-06 | F143: 1.361752217e-06 | G143: -5.717276655e-06 | H143: -8.848031454e-06 | J143: 2.463323127e-06 | K143: -0.000661810088 | L143: -1.212183282e-06 | M143: -0.001971038877 | N143: 9.074647989e-08
A144: 68.96098 | B144: ='DF raw data'!D149 -> -8.4208006e-07 | C144: ='DF raw data'!E149 -> 4.4074432e-06 | D144: ='DF raw data'!F149 -> -1.651694e-06 | F144: -8.430097164e-07 | G144: 4.421372327e-06 | H144: -1.65351747e-06 | J144: 2.041641237e-06 | K144: -0.0006607888387 | L144: 9.994313698e-07 | M144: -0.001970538951 | N144: 9.074906455e-08
A145: 69.46119 | B145: ='DF raw data'!D150 -> -2.5176894e-06 | C145: ='DF raw data'!E150 -> -3.1569432e-06 | D145: ='DF raw data'!F150 -> 1.3320598e-06 | F145: -2.520468929e-06 | G145: -3.166920291e-06 | H145: 1.333530394e-06 | J145: 7.808774739e-07 | K145: -0.000660398236 | L145: -5.846938292e-07 | M145: -0.001970831421 | N145: 9.074954057e-08
A146: 69.9614 | B146: ='DF raw data'!D151 -> -4.8422417e-06 | C146: ='DF raw data'!E151 -> -6.3712032e-06 | D146: ='DF raw data'!F151 -> 2.454158e-06 | F146: -4.847587535e-06 | G146: -6.391338525e-06 | H146: 2.45686739e-06 | J146: -1.643934287e-06 | K146: -0.0006612205483 | L146: -3.781705273e-06 | M146: -0.001972723068 | N146: 9.075804605e-08
A147: 70.46161 | B147: ='DF raw data'!D152 -> -4.6126852e-06 | C147: ='DF raw data'!E152 -> -3.258481e-06 | D147: ='DF raw data'!F152 -> 4.3051032e-06 | F147: -4.617777604e-06 | G147: -3.268778988e-06 | H147: 4.309856034e-06 | J147: -3.953792822e-06 | K147: -0.000663198275 | L147: -5.41678121e-06 | M147: -0.001975432596 | N147: 9.078054249e-08
A148: 70.96182 | B148: ='DF raw data'!D153 -> 1.2446501e-06 | C148: ='DF raw data'!E153 -> -2.7035583e-06 | D148: ='DF raw data'!F153 -> 9.7585803e-07 | F148: 1.246024194e-06 | G148: -2.71210253e-06 | H148: 9.769353773e-07 | J148: -3.330519061e-06 | K148: -0.000664864234 | L148: -6.773402017e-06 | M148: -0.001978820719 | N148: 9.080904012e-08
A149: 71.46203 | B149: ='DF raw data'!D154 -> 7.3936781e-06 | C149: ='DF raw data'!E154 -> -6.2009512e-06 | D149: ='DF raw data'!F154 -> 4.6756677e-06 | F149: 7.401840721e-06 | G149: -6.220548466e-06 | H149: 4.680829637e-06 | J149: 3.719556863e-07 | K149: -0.000664678178 | L149: -9.884982565e-06 | M149: -0.001983765287 | N149: 9.085798629e-08
A150: 71.96224 | B150: ='DF raw data'!D155 -> 5.972247e-06 | C150: ='DF raw data'!E155 -> -1.8394837e-06 | D150: ='DF raw data'!F155 -> 5.4025795e-06 | F150: 5.978840361e-06 | G150: -1.845297139e-06 | H150: 5.408543948e-06 | J150: 3.362631423e-06 | K150: -0.0006629961562 | L150: -1.080801865e-05 | M150: -0.001989171566 | N150: 9.092207347e-08
A151: 72.46245 | B151: ='DF raw data'!D156 -> -2.4111548e-06 | C151: ='DF raw data'!E156 -> 4.7507519e-06 | D151: ='DF raw data'!F156 -> 3.0562144e-06 | F151: =(1-$G$1*($B$2-$G$2))*B151 -> -2.413816715e-06 | G151: 4.765766008e-06 | H151: 3.059588461e-06 | J151: 2.155216164e-06 | K151: -0.0006619180955 | L151: -8.424134832e-06 | M151: -0.001993385402 | N151: 9.095989485e-08
A152: 72.96266 | B152: ='DF raw data'!D157 -> -8.5583206e-06 | C152: ='DF raw data'!E157 -> -3.6654344e-06 | D152: ='DF raw data'!F157 -> 4.3050304e-06 | F152: -8.567768986e-06 | G152: -3.677018509e-06 | H152: 4.309783154e-06 | J152: -2.13046756e-06 | K152: -0.0006629837767 | L152: -1.026341626e-05 | M152: -0.001998519265 | N152: 9.101485623e-08
A153: 73.46287 | B153: ='DF raw data'!D158 -> -1.0018125e-05 | C153: ='DF raw data'!E158 -> -6.9730941e-06 | D153: ='DF raw data'!F158 -> 8.4844278e-06 | F153: -1.002918501e-05 | G153: -6.995131619e-06 | H153: 8.493794608e-06 | J153: -7.147166194e-06 | K153: -0.0006665588607 | L153: -1.376245105e-05 | M153: -0.002005403381 | N153: 9.113515025e-08
A154: 73.96308 | B154: ='DF raw data'!D159 -> -9.3203316e-06 | C154: ='DF raw data'!E159 -> -1.3546116e-05 | D154: ='DF raw data'!F159 -> 3.9544893e-06 | F154: -9.330621246e-06 | G154: -1.358892666e-05 | H154: 3.958855056e-06 | J154: -1.181443625e-05 | K154: -0.0006724685598 | L154: -2.055976805e-05 | M154: -0.002015687583 | N154: 9.141641081e-08
A155: 74.46329 | B155: ='DF raw data'!D160 -> -8.3867681e-06 | C155: ='DF raw data'!E160 -> -7.497596e-06 | D155: ='DF raw data'!F160 -> 1.8979692e-06 | F155: -8.396027092e-06 | G155: -7.521291137e-06 | H155: 1.900064558e-06 | J155: -1.601421296e-05 | K155: -0.0006804790293 | L155: -2.432199309e-05 | M155: -0.002027853687 | N155: 9.184059608e-08
A156: 74.9635 | B156: ='DF raw data'!D161 -> -5.5624741e-06 | C156: ='DF raw data'!E161 -> 7.0542383e-06 | D156: ='DF raw data'!F161 -> 6.8061991e-06 | F156: -5.568615071e-06 | G156: 7.076532265e-06 | H156: 6.813713144e-06 | J156: -1.87996899e-05 | K156: -0.0006898828222 | L156: -2.078224089e-05 | M156: -0.002038249172 | N156: 9.223342594e-08
A157: 75.46371 | B157: ='DF raw data'!D162 -> -3.414262e-06 | C157: ='DF raw data'!E162 -> 9.905043e-06 | D157: ='DF raw data'!F162 -> 4.9496075e-06 | F157: -3.418031345e-06 | G157: 9.936346547e-06 | H157: 4.955071867e-06 | J157: -2.050942336e-05 | K157: -0.0007001418408 | L157: -1.581198098e-05 | M157: -0.002046158483 | N157: 9.256889437e-08
A158: 75.96392 | B158: ='DF raw data'!D163 -> -5.4357706e-06 | C158: ='DF raw data'!E163 -> 3.3901945e-06 | D158: ='DF raw data'!F163 -> 8.6778955e-06 | F158: -5.441771691e-06 | G158: 3.40090875e-06 | H158: 8.687475897e-06 | J158: -2.323145198e-05 | K158: -0.0007117624454 | L158: -1.411081242e-05 | M158: -0.002053216852 | N158: 9.293845721e-08
A159: 76.46413 | B159: ='DF raw data'!D164 -> -5.8853375e-06 | C159: ='DF raw data'!E164 -> -1.2544344e-05 | D159: ='DF raw data'!F164 -> 1.2915733e-05 | F159: -5.891834913e-06 | G159: -1.25839887e-05 | H159: 1.292999197e-05 | J159: -2.617860672e-05 | K159: -0.0007248572463 | L159: -2.040544941e-05 | M159: -0.002063423862 | N159: 9.348953948e-08
A160: 76.96434 | B160: ='DF raw data'!D165 -> -3.9631459e-06 | C160: ='DF raw data'!E165 -> -5.237207e-06 | D160: ='DF raw data'!F165 -> 5.3033355e-06 | F160: -3.967521213e-06 | G160: -5.253758483e-06 | H160: 5.309190382e-06 | J160: -2.816320051e-05 | K160: -0.0007389447608 | L160: -2.303343194e-05 | M160: -0.002074945415 | N160: 9.415166988e-08
A161: 77.46455 | B161: ='DF raw data'!D166 -> -2.2638458e-06 | C161: ='DF raw data'!E166 -> -3.3705599e-06 | D161: ='DF raw data'!F166 -> 6.8984436e-06 | F161: -2.266345086e-06 | G161: -3.381212098e-06 | H161: 6.906059482e-06 | J161: -2.929684898e-05 | K161: -0.0007535993377 | L161: -2.472474804e-05 | M161: -0.002087312981 | N161: 9.488678777e-08
A162: 77.96476 | B162: ='DF raw data'!D167 -> -2.7671383e-06 | C162: ='DF raw data'!E167 -> 6.3305583e-07 | D162: ='DF raw data'!F167 -> 5.5973132e-06 | F162: -2.770193221e-06 | G162: 6.350565172e-07 | H162: 5.603492634e-06 | J162: -3.068252733e-05 | K162: -0.0007689470446 | L162: -2.440708642e-05 | M162: -0.00209952165 | N162: 9.565567224e-08
A163: 78.46497 | B163: ='DF raw data'!D168 -> -6.5318164e-07 | C163: ='DF raw data'!E168 -> 3.0230042e-06 | D163: ='DF raw data'!F168 -> -1.3417527e-06 | F163: -6.539027525e-07 | G163: 3.032557995e-06 | H163: -1.343233995e-06 | J163: -3.100961603e-05 | K163: -0.0007844583647 | L163: -2.289017058e-05 | M163: -0.002110971542 | N163: 9.63987623e-08
A164: 78.96518 | B164: ='DF raw data'!D169 -> 5.2913338e-06 | C164: ='DF raw data'!E169 -> 2.1649341e-06 | D164: ='DF raw data'!F169 -> -1.3853503e-06 | F164: 5.297175433e-06 | G164: 2.171776081e-06 | H164: -1.386879727e-06 | J164: -2.835991591e-05 | K164: -0.0007986442782 | L164: -2.180382647e-05 | M164: -0.002121878034 | N164: 9.703887688e-08
A165: 79.46539 | B165: ='DF raw data'!D170 -> 5.7849493e-06 | C165: ='DF raw data'!E170 -> 8.9264886e-06 | D165: ='DF raw data'!F170 -> 3.2496536e-07 | F165: 5.791335884e-06 | G165: 8.954699558e-06 | H165: 3.253241218e-07 | J165: -2.546303178e-05 | K165: -0.0008113811413 | L165: -1.732459621e-05 | M165: -0.00213054397 | N165: 9.751332987e-08
A166: 79.9656 | B166: ='DF raw data'!D171 -> 2.1996341e-06 | C166: ='DF raw data'!E171 -> 3.5465712e-06 | D166: ='DF raw data'!F171 -> 5.8920768e-06 | F166: 2.202062496e-06 | G166: 3.557779658e-06 | H166: 5.898581653e-06 | J166: -2.43615381e-05 | K166: -0.0008235670263 | L166: -1.554495924e-05 | M166: -0.002138319714 | N166: 9.79310704e-08
A167: 80.46581 | B167: ='DF raw data'!D172 -> -8.3740889e-07 | C167: ='DF raw data'!E172 -> 2.3613377e-06 | D167: ='DF raw data'!F172 -> 1.2965384e-05 | F167: -8.383333894e-07 | G167: 2.368800388e-06 | H167: 1.297969778e-05 | J167: -2.478088085e-05 | K167: -0.0008359626707 | L167: -1.43600616e-05 | M167: -0.002145502761 | N167: 9.834139438e-08
A168: 80.96602 | B168: ='DF raw data'!D173 -> -8.90276e-07 | C168: ='DF raw data'!E173 -> -3.2865007e-06 | D168: ='DF raw data'!F173 -> 1.0106748e-05 | F168: -8.912588647e-07 | G168: -3.29688724e-06 | H168: 1.011790585e-05 | J168: -2.522669745e-05 | K168: -0.0008485813171 | L168: -1.600919757e-05 | M168: -0.002153510722 | N168: 9.878792217e-08
A169: 81.46623 | B169: ='DF raw data'!D174 -> 3.6081722e-06 | C169: ='DF raw data'!E174 -> -3.7572315e-06 | D169: ='DF raw data'!F174 -> 6.0368975e-06 | F169: 3.612155622e-06 | G169: -3.769105721e-06 | H169: 6.043562235e-06 | J169: -2.341986108e-05 | K169: -0.0008602961658 | L169: -1.789454194e-05 | M169: -0.00216246175 | N169: 9.922245686e-08
A170: 81.96644 | B170: ='DF raw data'!D175 -> 5.2070927e-06 | C170: ='DF raw data'!E175 -> -6.0461548e-07 | D170: ='DF raw data'!F175 -> 1.8686908e-06 | F170: 5.21284133e-06 | G170: -6.065262853e-07 | H170: 1.870753835e-06 | J170: -2.081234572e-05 | K170: -0.0008707067092 | L170: -1.819793245e-05 | M170: -0.002171564538 | N170: 9.960477661e-08
A171: 82.46665 | B171: ='DF raw data'!D176 -> 2.9860778e-06 | C171: ='DF raw data'!E176 -> -6.2201634e-06 | D171: ='DF raw data'!F176 -> 2.7204077e-08 | F171: 2.98937443e-06 | G171: -6.239821384e-06 | H171: 2.72341103e-08 | J171: -1.931703074e-05 | K171: -0.0008803692812 | L171: -2.131915351e-05 | M171: -0.002182228592 | N171: 1.000187774e-07
A172: 82.96686 | B172: ='DF raw data'!D177 -> 1.337695e-06 | C172: ='DF raw data'!E177 -> 9.3609269e-06 | D172: ='DF raw data'!F177 -> -5.2113983e-06 | F172: 1.339171815e-06 | G172: 9.390510841e-06 | H172: -5.217151684e-06 | J172: -1.86471636e-05 | K172: -0.0008896967789 | L172: -1.662192608e-05 | M172: -0.002190543046 | N172: 1.00330911e-07
A173: 83.46707 | B173: ='DF raw data'!D178 -> 2.0296241e-06 | C173: ='DF raw data'!E178 -> 6.642349e-06 | D173: ='DF raw data'!F178 -> -6.6254806e-06 | F173: 2.031864805e-06 | G173: 6.663341244e-06 | H173: -6.632795131e-06 | J173: -1.763080451e-05 | K173: -0.0008985158836 | L173: -1.328885616e-05 | M173: -0.002197190264 | N173: 1.005747329e-07
A174: 83.96728 | B174: ='DF raw data'!D179 -> 1.9180836e-06 | C174: ='DF raw data'!E179 -> 4.1847534e-06 | D174: ='DF raw data'!F179 -> 4.9197179e-06 | F174: 1.920201164e-06 | G174: 4.197978746e-06 | H174: 4.925149269e-06 | J174: -1.667030068e-05 | K174: -0.0009068545347 | L174: -1.118898521e-05 | M174: -0.002202787107 | N174: 1.007763637e-07
A175: 84.46749 | B175: ='DF raw data'!D180 -> -1.120429e-06 | C175: ='DF raw data'!E180 -> 1.1695636e-05 | D175: ='DF raw data'!F180 -> 7.8630028e-06 | F175: -1.121665954e-06 | G175: 1.173259847e-05 | H175: 7.871683555e-06 | J175: -1.723136921e-05 | K175: -0.0009154738379 | L175: -5.320222124e-06 | M175: -0.002205448335 | N175: 1.009390444e-07
A176: 84.9677 | B176: ='DF raw data'!D181 -> -3.0041599e-06 | C176: ='DF raw data'!E181 -> 3.9543247e-06 | D176: ='DF raw data'!F181 -> 2.524109e-06 | F176: -3.007476493e-06 | G176: 3.966821808e-06 | H176: 2.526895616e-06 | J176: -1.873573903e-05 | K176: -0.0009248456419 | L176: -3.335978188e-06 | M176: -0.002207117025 | N176: 1.011201988e-07
A177: 85.46791 | B177: ='DF raw data'!D182 -> -2.0302148e-06 | C177: ='DF raw data'!E182 -> 7.3724623e-06 | D177: ='DF raw data'!F182 -> 2.3868117e-06 | F177: -2.032456157e-06 | G177: 7.395761968e-06 | H177: 2.38944674e-06 | J177: -1.975239392e-05 | K177: -0.0009347259869 | L177: 3.634559061e-07 | M177: -0.00220693522 | N177: 1.013154253e-07
A178: 85.96812 | B178: ='DF raw data'!D183 -> -1.2080025e-06 | C178: ='DF raw data'!E183 -> 1.1953551e-05 | D178: ='DF raw data'!F183 -> 4.4171093e-06 | F178: -1.209336135e-06 | G178: 1.199132858e-05 | H178: 4.421985789e-06 | J178: -2.035731595e-05 | K178: -0.0009449089199 | L178: 6.361638374e-06 | M178: -0.002203753065 | N178: 1.015429662e-07
A179: 86.46833 | B179: ='DF raw data'!D184 -> -2.9655828e-06 | C179: ='DF raw data'!E184 -> 8.1759608e-06 | D179: ='DF raw data'!F184 -> 4.5685219e-06 | F179: -2.968856803e-06 | G179: 8.201799817e-06 | H179: 4.573565548e-06 | J179: -2.184236781e-05 | K179: -0.0009558346907 | L179: 1.046426066e-05 | M179: -0.002198518737 | N179: 1.018363843e-07
A180: 86.96854 | B180: ='DF raw data'!D185 -> -4.7794356e-06 | C180: ='DF raw data'!E185 -> 1.5770531e-06 | D180: ='DF raw data'!F185 -> 1.056854e-06 | F180: -4.784712097e-06 | G180: 1.582037163e-06 | H180: 1.058020767e-06 | J180: -2.423572865e-05 | K180: -0.0009679576445 | L180: 1.125561147e-05 | M180: -0.002192888568 | N180: 1.021935639e-07
A181: 87.46875 | B181: ='DF raw data'!D186 -> -6.7821138e-06 | C181: ='DF raw data'!E186 -> 7.7782142e-06 | D181: ='DF raw data'!F186 -> -5.5693891e-07 | F181: -6.789601254e-06 | G181: 7.802796192e-06 | H181: -5.575537706e-07 | J181: -2.763195509e-05 | K181: -0.0009817794248 | L181: 1.515864815e-05 | M181: -0.002185306061 | N181: 1.026904273e-07
A182: 87.96896 | B182: ='DF raw data'!D187 -> -6.0062202e-06 | C182: ='DF raw data'!E187 -> 2.6280597e-06 | D182: ='DF raw data'!F187 -> -2.7501744e-06 | F182: -6.012851067e-06 | G182: 2.636365327e-06 | H182: -2.753210593e-06 | J182: -3.063964332e-05 | K182: -0.0009971056808 | L182: 1.647738445e-05 | M182: -0.002177063908 | N182: 1.032958274e-07
A183: 88.46917 | B183: ='DF raw data'!D188 -> -2.5560046e-06 | C183: ='DF raw data'!E188 -> 4.1867552e-06 | D183: ='DF raw data'!F188 -> 1.3461752e-06 | F183: -2.558826429e-06 | G183: 4.199986873e-06 | H183: 1.347661377e-06 | J183: -3.191959389e-05 | K183: -0.001013072181 | L183: 1.857825989e-05 | M183: -0.002167770877 | N183: 1.0397812e-07
A184: 88.96938 | B184: ='DF raw data'!D189 -> -1.1224954e-06 | C184: ='DF raw data'!E189 -> 2.9358746e-06 | D184: ='DF raw data'!F189 -> 7.4670743e-06 | F184: -1.123734635e-06 | G184: 2.945153034e-06 | H184: 7.47531795e-06 | J184: -3.248169719e-05 | K184: -0.001029319851 | L184: 2.005145489e-05 | M184: -0.002157740938 | N184: 1.047069867e-07
A185: 89.46959 | B185: ='DF raw data'!D190 -> -2.8495022e-06 | C185: ='DF raw data'!E190 -> 4.4977733e-06 | D185: ='DF raw data'!F190 -> 8.4177364e-06 | F185: -2.85264805e-06 | G185: 4.511987903e-06 | H185: 8.427029581e-06 | J185: -3.390862028e-05 | K185: -0.001046281282 | L185: 2.230839636e-05 | M185: -0.002146582055 | N185: 1.055310622e-07
A186: 89.9698 | B186: ='DF raw data'!D191 -> -1.1971176e-06 | C186: ='DF raw data'!E191 -> -1.5487456e-06 | D186: ='DF raw data'!F191 -> 5.2273308e-06 | F186: -1.198439218e-06 | G186: -1.553640201e-06 | H186: 5.233101773e-06 | J186: -3.450809156e-05 | K186: -0.001063542574 | L186: 2.153124999e-05 | M186: -0.002135811909 | N186: 1.063586112e-07
A187: 90.47001 | B187: ='DF raw data'!D192 -> 2.5871807e-06 | C187: ='DF raw data'!E192 -> 7.7339164e-06 | D187: ='DF raw data'!F192 -> 4.6988343e-06 | F187: 2.590036947e-06 | G187: 7.758358395e-06 | H187: 4.704021813e-06 | J187: -3.321252917e-05 | K187: -0.001080155813 | L187: 2.541205844e-05 | M187: -0.002123100543 | N187: 1.072334009e-07
A188: 90.97022 | B188: ='DF raw data'!D193 -> 3.9098186e-06 | C188: ='DF raw data'!E193 -> 5.175717e-06 | D188: ='DF raw data'!F193 -> 8.1529788e-06 | F188: 3.91413504e-06 | G188: 5.192074152e-06 | H188: 8.161979689e-06 | J188: -3.125463969e-05 | K188: -0.001095789697 | L188: 2.800918586e-05 | M188: -0.002109090068 | N188: 1.081144542e-07
A189: 91.47043 | B189: ='DF raw data'!D194 -> 3.5643272e-06 | C189: ='DF raw data'!E194 -> -1.5723615e-06 | D189: ='DF raw data'!F194 -> 3.2177406e-06 | F189: 3.568262217e-06 | G189: -1.577330736e-06 | H189: 3.221292986e-06 | J189: -2.946975924e-05 | K189: -0.001110530765 | L189: 2.722018925e-05 | M189: -0.002095474257 | N189: 1.089194949e-07
A190: 91.97064 | B190: ='DF raw data'!D195 -> 2.6551963e-06 | C190: ='DF raw data'!E195 -> -8.6269229e-06 | D190: ='DF raw data'!F195 -> -2.8384172e-06 | F190: 2.658127637e-06 | G190: -8.654187121e-06 | H190: -2.841550813e-06 | J190: -2.814013722e-05 | K190: -0.001124606743 | L190: 2.289127831e-05 | M190: -0.002084023811 | N190: 1.095777102e-07
A191: 92.47085 | B191: ='DF raw data'!D196 -> 8.6103245e-07 | C191: ='DF raw data'!E196 -> -5.4590578e-07 | D191: ='DF raw data'!F196 -> -8.3674031e-06 | F191: 8.619830298e-07 | G191: -5.476310413e-07 | H191: -8.376640713e-06 | J191: -2.770896469e-05 | K191: -0.001138467044 | L191: 2.261734778e-05 | M191: -0.002072710388 | N191: 1.102176445e-07
A192: 92.97106 | B192: ='DF raw data'!D197 -> 2.2325112e-07 | C192: ='DF raw data'!E197 -> 7.4369073e-06 | D192: ='DF raw data'!F197 -> -2.4289118e-06 | F192: 2.234975892e-07 | G192: 7.460410638e-06 | H192: -2.431593319e-06 | J192: -2.759716896e-05 | K192: -0.001152271424 | L192: 2.634911979e-05 | M192: -0.002059530294 | N192: 1.109458901e-07
A193: 93.47127 | B193: ='DF raw data'!D198 -> -1.8916514e-06 | C193: ='DF raw data'!E198 -> 1.7861332e-06 | D193: ='DF raw data'!F198 -> 1.6708138e-06 | F193: -1.893739783e-06 | G193: 1.791778032e-06 | H193: 1.672658378e-06 | J193: -2.854443653e-05 | K193: -0.001166549637 | L193: 2.724538508e-05 | M193: -0.00204590188 | N193: 1.117247651e-07
A194: 93.97148 | B194: ='DF raw data'!D199 -> -6.1384535e-06 | C194: ='DF raw data'!E199 -> -1.7858088e-07 | D194: ='DF raw data'!F199 -> 1.3678721e-06 | F194: -6.145230353e-06 | G194: -1.791452607e-07 | H194: 1.369382231e-06 | J194: -3.161834221e-05 | K194: -0.001182365448 | L194: 2.715577483e-05 | M194: -0.00203231829 | N194: 1.125937077e-07
A195: 94.47169 | B195: ='DF raw data'!D200 -> -9.4369361e-06 | C195: ='DF raw data'!E200 -> 1.0305458e-05 | D195: ='DF raw data'!F200 -> 4.9134605e-06 | F195: -9.447354477e-06 | G195: 1.0338027e-05 | H195: 4.91888496e-06 | J195: -3.634400339e-05 | K195: -0.001200545081 | L195: 3.232695932e-05 | M195: -0.002016148022 | N195: 1.13777164e-07
A196: 94.9719 | B196: ='DF raw data'!D201 -> -9.7167549e-06 | C196: ='DF raw data'!E201 -> 1.4872136e-05 | D196: ='DF raw data'!F201 -> 7.0772721e-06 | F196: -9.727482197e-06 | G196: 1.491913737e-05 | H196: 7.085085408e-06 | J196: -4.120978726e-05 | K196: -0.001221158629 | L196: 3.978966102e-05 | M196: -0.001996244836 | N196: 1.154185849e-07
A197: 95.47211 | B197: ='DF raw data'!D202 -> -7.2323355e-06 | C197: ='DF raw data'!E202 -> 8.8699153e-06 | D197: ='DF raw data'!F202 -> 2.588996e-06 | F197: -7.240319998e-06 | G197: 8.897947466e-06 | H197: 2.591854252e-06 | J197: -4.483146773e-05 | K197: -0.001243583778 | L197: 4.424050332e-05 | M197: -0.001974115293 | N197: 1.174029593e-07
A198: 95.97232 | B198: ='DF raw data'!D203 -> -5.461804e-06 | C198: ='DF raw data'!E203 -> 4.8153306e-06 | D198: ='DF raw data'!F203 -> 3.876884e-06 | F198: -5.467833832e-06 | G198: 4.8305488e-06 | H198: 3.88116408e-06 | J198: -4.756653289e-05 | K198: -0.001267377033 | L198: 4.665679214e-05 | M198: -0.001950777099 | N198: 1.196236073e-07
A199: 96.47253 | B199: ='DF raw data'!D204 -> -3.3865697e-06 | C199: ='DF raw data'!E204 -> 5.0356184e-06 | D199: ='DF raw data'!F204 -> 6.7037681e-06 | F199: -3.390308473e-06 | G199: =(1-$G$1*($B$2-$G$2))*C199*$M$2/$M$1 -> 5.05153279e-06 | H199: 6.71116906e-06 | J199: -4.926239909e-05 | K199: -0.001292018578 | L199: 4.918361935e-05 | M199: -0.001926174961 | N199: 1.220475311e-07
A200: =A199+$B$1 -> 96.97274 | B200: ='DF raw data'!D205 -> -9.0629766e-07 | C200: ='DF raw data'!E205 -> -3.3107842e-06 | D200: ='DF raw data'!F205 -> 1.7650666e-06 | F200: -9.072982126e-07 | G200: -3.321247485e-06 | H200: 1.767015234e-06 | J200: =F200*$B$1+J199 -> -4.971623873e-05 | K200: =J200*$B$1+K199 -> -0.001316887137 | L200: =G200*$B$1+L199 -> 4.752229815e-05 | M200: =L200*$B$1+M199 -> -0.001902403832 | N200: =(J200^2+L200^2)*$B$1+N199 -> 1.24413561e-07
A201: 97.47295 | B201: ='DF raw data'!D206 -> 2.7158633e-06 | C201: ='DF raw data'!E206 -> 6.9133393e-06 | D201: ='DF raw data'!F206 -> 3.807283e-07 | F201: 2.718861613e-06 | G201: 6.935187972e-06 | H201: 3.81148624e-07 | J201: -4.835623696e-05 | K201: -0.001341075411 | L201: 5.099134853e-05 | M201: -0.00187689745 | N201: 1.268838197e-07
... 1002 more rows

Sheet 15 mm
A1: dz | B1: ='DF raw data'!H7 -> 0.50017 | C1: mm | F1: T_coeff | G1: -0.0008 | H1: /degC | L1: Hallref | M1: ='PI vs gap'!B50 -> 0.505575 | N1: T | P1: IBy total | Q1: =L1203*1000 -> -8.328611792 | R1: muTm | X1: DF ref | Y1: 20
A2: Tref | B2: ='DF raw data'!H8 -> 21.39 | C2: degC | F2: Tcorr | G2: 20 | H2: degC | L2: NMRref | M2: ='PI vs gap'!B51 -> 0.5066135 | N2: T | P2: JBy total | Q2: =M1203 -> -3.094930629 | R2: muTm^2
A3: Encoder | B3: ='DF raw data'!H9 -> 17888754 | P3: PI total | Q3: =N1203 -> 371.5249487 | R3: T^2mm^3
A5: z [mm] | B5: Bx | C5: By | D5: Bz | F5: Bx_corr | G5: By_corr | H5: Bz_corr | J5: Ix | K5: Jx | L5: Iy | M5: Jy | N5: PI
A6: -0.068 | B6: ='DF raw data'!G11 -> -2.047939e-06 | C6: ='DF raw data'!H11 -> -7.3879032e-06 | D6: ='DF raw data'!I11 -> 1.2063544e-05 | F6: =(1-$G$1*($B$2-$G$2))*B6 -> -2.050216308e-06 | G6: =(1-$G$1*($B$2-$G$2))*C6*$M$2/$M$1 -> -7.411310892e-06 | H6: =(1-$G$1*($B$2-$G$2))*D6 -> 1.207695866e-05 | J6: =F6*$B$1 -> -1.025456691e-06 | K6: =J6*$B$1 -> -5.129026731e-07 | L6: =G6*$B$1 -> -3.706915369e-06 | M6: =L6*$B$1 -> -1.85408786e-06 | N6: =(J6^2+L6)^2*$B$1 -> 6.872942884e-12
A7: =A6+$B$1 -> 0.43217 | B7: ='DF raw data'!G12 -> -1.8304023e-06 | C7: ='DF raw data'!H12 -> -1.4440999e-05 | D7: ='DF raw data'!I12 -> 5.2861346e-06 | F7: =(1-$G$1*($B$2-$G$2))*B7 -> -1.832437707e-06 | G7: =(1-$G$1*($B$2-$G$2))*C7*$M$2/$M$1 -> -1.448675359e-05 | H7: 5.292012782e-06 | J7: =F7*$B$1+J6 -> -1.941987059e-06 | K7: =J7*$B$1+K6 -> -1.48422634e-06 | L7: =G7*$B$1+L6 -> -1.095275491e-05 | M7: =L7*$B$1+M6 -> -7.332327283e-06 | N7: =(J7^2+L7^2)*$B$1+N6 -> 6.876105462e-11
A8: =A7+$B$1 -> 0.93234 | B8: ='DF raw data'!G13 -> -2.7821268e-06 | C8: ='DF raw data'!H13 -> 9.9290746e-06 | D8: ='DF raw data'!I13 -> -3.917748e-06 | F8: -2.785220525e-06 | G8: 9.960533691e-06 | H8: -3.922104536e-06 | J8: =F8*$B$1+J7 -> -3.335070809e-06 | K8: =J8*$B$1+K7 -> -3.152328707e-06 | L8: =G8*$B$1+L7 -> -5.970794774e-06 | M8: =L8*$B$1+M7 -> -1.031873971e-05 | N8: =(J8^2+L8^2)*$B$1+N7 -> 9.215554981e-11
A9: 1.43251 | B9: ='DF raw data'!G14 -> -2.3359069e-06 | C9: ='DF raw data'!H14 -> -2.5699824e-06 | D9: ='DF raw data'!I14 -> -5.3030758e-06 | F9: -2.338504428e-06 | G9: -2.578125083e-06 | H9: -5.30897282e-06 | J9: -4.504720569e-06 | K9: -5.405454794e-06 | L9: -7.260295597e-06 | M9: -1.395012175e-05 | N9: 1.286701603e-10
A10: 1.93268 | B10: ='DF raw data'!G15 -> -2.038131e-06 | C10: ='DF raw data'!H15 -> -1.0664875e-05 | D10: ='DF raw data'!I15 -> -5.3346243e-06 | F10: -2.040397402e-06 | G10: -1.069866539e-05 | H10: -5.340556402e-06 | J10: -5.525266137e-06 | K10: -8.169027158e-06 | L10: -1.261144706e-05 | M10: -2.025798923e-05 | N10: 2.234909699e-10
A11: 2.43285 | B11: ='DF raw data'!G16 -> -2.4371009e-06 | C11: ='DF raw data'!H16 -> 8.5856334e-07 | D11: ='DF raw data'!I16 -> -2.0712846e-06 | F11: -2.439810956e-06 | G11: 8.612835958e-07 | H11: -2.073587868e-06 | J11: -6.745586383e-06 | K11: -1.15429671e-05 | L11: -1.218065885e-05 | M11: -2.635038937e-05 | N11: 3.204596209e-10
A12: 2.93302 | B12: ='DF raw data'!G17 -> -2.3512591e-06 | C12: ='DF raw data'!H17 -> -1.0397067e-06 | D12: ='DF raw data'!I17 -> 5.8269376e-07 | F12: -2.3538737e-06 | G12: -1.043000887e-06 | H12: 5.833417155e-07 | J12: -7.922923392e-06 | K12: -1.550577569e-05 | L12: -1.27023366e-05 | M12: -3.270371707e-05 | N12: 4.325587567e-10
A13: 3.43319 | B13: ='DF raw data'!G18 -> -2.6885434e-06 | C13: ='DF raw data'!H18 -> 7.4804198e-06 | D13: ='DF raw data'!I18 -> -3.0629976e-06 | F13: -2.69153306e-06 | G13: 7.50412062e-06 | H13: -3.066403653e-06 | J13: -9.269147483e-06 | K13: -2.014192519e-05 | L13: -8.949000591e-06 | M13: -3.717973869e-05 | N13: 5.155878303e-10
A14: 3.93336 | B14: ='DF raw data'!G19 -> -2.3530636e-06 | C14: ='DF raw data'!H19 -> -1.4270441e-06 | D14: ='DF raw data'!I19 -> -1.2625765e-06 | F14: -2.355680207e-06 | G14: -1.431565519e-06 | H14: -1.263980485e-06 | J14: -1.044738805e-05 | K14: -2.536739527e-05 | L14: -9.665026716e-06 | M14: -4.20138951e-05 | N14: 6.169025949e-10
A15: 4.43353 | B15: ='DF raw data'!G20 -> -2.4766821e-06 | C15: ='DF raw data'!H20 -> 3.1910026e-06 | D15: ='DF raw data'!I20 -> 6.2129752e-06 | F15: -2.47943617e-06 | G15: 3.201112912e-06 | H15: 6.219884028e-06 | J15: -1.168752764e-05 | K15: -3.121314597e-05 | L15: -8.063926071e-06 | M15: -4.604722901e-05 | N15: 7.177494742e-10
A16: 4.9337 | B16: ='DF raw data'!G21 -> -2.2206993e-06 | C16: ='DF raw data'!H21 -> -3.6582146e-06 | D16: ='DF raw data'!I21 -> 6.6761918e-06 | F16: -2.223168718e-06 | G16: -3.669805218e-06 | H16: 6.683615725e-06 | J16: -1.279948994e-05 | K16: -3.761506685e-05 | L16: -9.899452547e-06 | M16: -5.099863819e-05 | N16: 8.487070363e-10
A17: 5.43387 | B17: ='DF raw data'!G22 -> -2.2889042e-06 | C17: ='DF raw data'!H22 -> -1.2367778e-06 | D17: ='DF raw data'!I22 -> 9.5594505e-06 | F17: -2.291449461e-06 | G17: -1.240696383e-06 | H17: 9.570080609e-06 | J17: -1.394560422e-05 | K17: -4.459023971e-05 | L17: -1.052001166e-05 | M17: -5.626043242e-05 | N17: 1.001334173e-09
A18: 5.93404 | B18: ='DF raw data'!G23 -> -2.5616507e-06 | C18: ='DF raw data'!H23 -> 6.3768443e-06 | D18: ='DF raw data'!I23 -> 1.0700175e-05 | F18: -2.564499256e-06 | G18: 6.397048572e-06 | H18: 1.071207359e-05 | J18: -1.522828981e-05 | K18: -5.220697343e-05 | L18: -7.320399873e-06 | M18: -5.992187682e-05 | N18: 1.144127239e-09
A19: 6.43421 | B19: ='DF raw data'!G24 -> -2.7151734e-06 | C19: ='DF raw data'!H24 -> 8.6684549e-06 | D19: ='DF raw data'!I24 -> 2.0261228e-07 | F19: -2.718192673e-06 | G19: 8.695919868e-06 | H19: 2.028375849e-07 | J19: -1.658784824e-05 | K19: -6.050371748e-05 | L19: -2.970961632e-06 | M19: -6.14078627e-05 | N19: 1.286167177e-09
A20: 6.93438 | B20: ='DF raw data'!G25 -> -2.5377565e-06 | C20: ='DF raw data'!H25 -> 2.957639e-06 | D20: ='DF raw data'!I25 -> -4.3952109e-06 | F20: -2.540578485e-06 | G20: 2.967009927e-06 | H20: -4.400098375e-06 | J20: -1.785856938e-05 | K20: -6.943603813e-05 | L20: -1.486952277e-06 | M20: -6.215159162e-05 | N20: 1.446791534e-09
A21: 7.43455 | B21: ='DF raw data'!G26 -> -1.8977631e-06 | C21: ='DF raw data'!H26 -> -1.2328712e-05 | D21: ='DF raw data'!I26 -> 8.2372198e-06 | F21: -1.899873413e-06 | G21: -1.236777406e-05 | H21: 8.246379588e-06 | J21: -1.880882906e-05 | K21: -7.884365016e-05 | L21: -7.672941827e-06 | M21: -6.598936694e-05 | N21: 1.653184728e-09
A22: 7.93472 | B22: ='DF raw data'!G27 -> 4.9400421e-07 | C22: ='DF raw data'!H27 -> -3.1084942e-06 | D22: ='DF raw data'!I27 -> 1.1932097e-05 | F22: 4.945535427e-07 | G22: -3.118343094e-06 | H22: 1.194536549e-05 | J22: -1.856146822e-05 | K22: -8.812753972e-05 | L22: -9.232643492e-06 | M22: -7.060725823e-05 | N22: 1.868142693e-09
A23: 8.43489 | B23: ='DF raw data'!G28 -> 5.1589263e-06 | C23: ='DF raw data'!H28 -> -5.9603658e-06 | D23: ='DF raw data'!I28 -> 6.9512521e-06 | F23: =(1-$G$1*($B$2-$G$2))*B23 -> 5.164663026e-06 | G23: -5.97925051e-06 | H23: 6.958981892e-06 | J23: -1.597825871e-05 | K23: -9.611938538e-05 | L23: -1.222328522e-05 | M23: -7.67209788e-05 | N23: 2.07056822e-09
A24: 8.93506 | B24: ='DF raw data'!G29 -> 4.0000846e-06 | C24: ='DF raw data'!H29 -> -1.9219256e-06 | D24: ='DF raw data'!I29 -> -3.7402583e-06 | F24: 4.004532694e-06 | G24: -1.928014993e-06 | H24: -3.744417467e-06 | J24: -1.397531159e-05 | K24: -0.000103109417 | L24: -1.318762048e-05 | M24: -8.331703093e-05 | N24: 2.255242322e-09
A25: 9.43523 | B25: ='DF raw data'!G30 -> 2.2536508e-06 | C25: ='DF raw data'!H30 -> -3.956558e-06 | D25: ='DF raw data'!I30 -> -5.1360198e-06 | F25: 2.25615686e-06 | G25: -3.969093883e-06 | H25: -5.141731054e-06 | J25: -1.284684962e-05 | K25: -0.0001095350258 | L25: -1.517284217e-05 | M25: -9.09060314e-05 | N25: 2.452937858e-09
A26: 9.9354 | B26: ='DF raw data'!G31 -> 6.3165078e-07 | C26: ='DF raw data'!H31 -> -7.216164e-07 | D26: ='DF raw data'!I31 -> -1.9190716e-06 | F26: 6.323531757e-07 | G26: -7.239027557e-07 | H26: -1.921205608e-06 | J26: -1.253056553e-05 | K26: -0.0001158024387 | L26: -1.553491661e-05 | M26: -9.867613064e-05 | N26: 2.652179931e-09
A27: 10.43557 | B27: ='DF raw data'!G32 -> -1.9590414e-06 | C27: ='DF raw data'!H32 -> -7.5160294e-08 | D27: ='DF raw data'!I32 -> -7.1579357e-06 | F27: -1.961219854e-06 | G27: -7.539843045e-08 | H27: -7.165895324e-06 | J27: -1.351150886e-05 | K27: -0.0001225604901 | L27: -1.557262864e-05 | M27: -0.0001064650923 | N27: 2.864786009e-09
A28: 10.93574 | B28: ='DF raw data'!G33 -> -4.3252408e-06 | C28: ='DF raw data'!H33 -> 4.5556958e-06 | D28: ='DF raw data'!I33 -> -4.8379238e-06 | F28: -4.330050468e-06 | G28: 4.57012998e-06 | H28: -4.843303571e-06 | J28: -1.567727021e-05 | K28: -0.0001304017903 | L28: -1.328678673e-05 | M28: -0.0001131107444 | N28: 3.076015554e-09
A29: 11.43591 | B29: ='DF raw data'!G34 -> -4.7093822e-06 | C29: ='DF raw data'!H34 -> -3.086479e-06 | D29: ='DF raw data'!I34 -> 8.865814e-07 | F29: -4.714619033e-06 | G29: -3.096258141e-06 | H29: 8.875672785e-07 | J29: -1.803538121e-05 | K29: -0.000139422547 | L29: -1.483544216e-05 | M29: -0.0001205309875 | N29: 3.348790926e-09
A30: 11.93608 | B30: ='DF raw data'!G35 -> -2.439371e-06 | C30: ='DF raw data'!H35 -> -8.192834e-07 | D30: ='DF raw data'!I35 -> 2.3195666e-06 | F30: -2.442083581e-06 | G30: -8.218792019e-07 | H30: 2.322145958e-06 | J30: -1.925683815e-05 | K30: -0.0001490542397 | L30: -1.524652148e-05 | M30: -0.0001281568402 | N30: 3.650534601e-09
A31: 12.43625 | B31: ='DF raw data'!G36 -> 6.4052745e-07 | C31: ='DF raw data'!H36 -> 1.6343078e-06 | D31: ='DF raw data'!I36 -> -6.802738e-06 | F31: 6.412397165e-07 | G31: 1.63948591e-06 | H31: -6.810302645e-06 | J31: -1.893610928e-05 | K31: -0.0001585255135 | L31: -1.442649982e-05 | M31: -0.0001353725426 | N31: 3.933981006e-09
A32: 12.93642 | B32: ='DF raw data'!G37 -> -2.0190389e-06 | C32: ='DF raw data'!H37 -> -9.1993115e-06 | D32: ='DF raw data'!I37 -> -6.0663237e-06 | F32: -2.021284071e-06 | G32: -9.228458424e-06 | H32: -6.073069452e-06 | J32: -1.994709494e-05 | K32: -0.000168502452 | L32: -1.904229787e-05 | M32: -0.0001448969287 | N32: 4.314358142e-09
A33: 13.43659 | B33: ='DF raw data'!G38 -> -5.9339695e-06 | C33: ='DF raw data'!H38 -> -9.7963984e-06 | D33: ='DF raw data'!I38 -> -4.4246349e-06 | F33: -5.940568074e-06 | G33: -9.827437122e-06 | H33: -4.429555094e-06 | J33: -2.291838887e-05 | K33: -0.0001799655425 | L33: -2.395768709e-05 | M33: -0.0001568798451 | N33: 4.86415667e-09
A34: 13.93676 | B34: ='DF raw data'!G39 -> -4.5188103e-06 | C34: ='DF raw data'!H39 -> 1.5557201e-06 | D34: ='DF raw data'!I39 -> -8.685086e-06 | F34: -4.523835217e-06 | G34: 1.560649214e-06 | H34: -8.694743816e-06 | J34: -2.518107553e-05 | K34: -0.0001925603611 | L34: -2.317709717e-05 | M34: -0.0001684723338 | N34: 5.449987984e-09
A35: 14.43693 | B35: ='DF raw data'!G40 -> 6.861186e-07 | C35: ='DF raw data'!H40 -> 2.1373294e-06 | D35: ='DF raw data'!I40 -> -3.9258098e-06 | F35: 6.868815639e-07 | G35: 2.144101274e-06 | H35: -3.9301753e-06 | J35: -2.483751798e-05 | K35: -0.0002049833424 | L35: -2.210468204e-05 | M35: -0.0001795284326 | N35: 6.002935556e-09
A36: 14.9371 | B36: ='DF raw data'!G41 -> 1.6124644e-06 | C36: ='DF raw data'!H41 -> 3.0649139e-06 | D36: ='DF raw data'!I41 -> -3.8032827e-06 | F36: 1.61425746e-06 | G36: 3.074624715e-06 | H36: -3.80751195e-06 | J36: -2.403011483e-05 | K36: -0.000217002485 | L36: -2.0566847e-05 | M36: -0.0001898153524 | N36: 6.503326438e-09
A37: 15.43727 | B37: ='DF raw data'!G42 -> 1.4812352e-06 | C37: ='DF raw data'!H42 -> 2.8363543e-06 | D37: ='DF raw data'!I42 -> -8.4829016e-06 | F37: 1.482882334e-06 | G37: 2.845340951e-06 | H37: -8.492334587e-06 | J37: -2.328842157e-05 | K37: -0.0002286506548 | L37: -1.914369281e-05 | M37: -0.0001993904533 | N37: 6.957896716e-09
A38: 15.93744 | B38: ='DF raw data'!G43 -> 1.5372221e-07 | C38: ='DF raw data'!H43 -> 1.4544855e-05 | D38: ='DF raw data'!I43 -> -6.9216126e-06 | F38: 1.538931491e-07 | G38: 1.459093864e-05 | H38: -6.929309433e-06 | J38: -2.321144883e-05 | K38: -0.0002402603251 | L38: -1.184574303e-05 | M38: -0.0002053153386 | N38: 7.297558654e-09
A39: 16.43761 | B39: ='DF raw data'!G44 -> -5.311264e-06 | C39: ='DF raw data'!H44 -> 1.5830024e-05 | D39: ='DF raw data'!I44 -> -4.4004641e-06 | F39: -5.317170126e-06 | G39: 1.588017955e-05 | H39: -4.405357416e-06 | J39: -2.587093781e-05 | K39: -0.0002532001921 | L39: -3.902953628e-06 | M39: -0.0002072674789 | N39: 7.639944261e-09
A40: 16.93778 | B40: ='DF raw data'!G45 -> -9.9697691e-06 | C40: ='DF raw data'!H45 -> 1.7016886e-06 | D40: ='DF raw data'!I45 -> -3.7015211e-06 | F40: -9.980855483e-06 | G40: 1.707080198e-06 | H40: -3.705637191e-06 | J40: -3.08630623e-05 | K40: -0.00026863697 | L40: -3.049123325e-06 | M40: -0.0002087925589 | N40: 8.121020655e-09
A41: 17.43795 | B41: ='DF raw data'!G46 -> -7.5873581e-06 | C41: ='DF raw data'!H46 -> -1.8489424e-06 | D41: ='DF raw data'!I46 -> -5.5304204e-06 | F41: -7.595795242e-06 | G41: -1.854800554e-06 | H41: -5.536570227e-06 | J41: -3.466225121e-05 | K41: -0.0002859739882 | L41: -3.976838918e-06 | M41: -0.0002107816544 | N41: 8.729871047e-09
A42: 17.93812 | B42: ='DF raw data'!G47 -> 6.2683409e-07 | C42: ='DF raw data'!H47 -> 5.3822773e-06 | D42: ='DF raw data'!I47 -> -3.9155507e-06 | F42: 6.275311295e-07 | G42: 5.399330405e-06 | H42: -3.919904792e-06 | J42: -3.434837896e-05 | K42: -0.0003031540169 | L42: -1.27625583e-06 | M42: -0.0002114199993 | N42: 9.320791875e-09
A43: 18.43829 | B43: ='DF raw data'!G48 -> 8.5462625e-06 | C43: ='DF raw data'!H48 -> -5.1407237e-06 | D43: ='DF raw data'!I48 -> -3.1041359e-06 | F43: 8.555765944e-06 | G43: -5.157011471e-06 | H43: -3.107587699e-06 | J43: -3.006904151e-05 | K43: -0.0003181936494 | L43: -3.855638257e-06 | M43: -0.0002133484739 | N43: 9.78045471e-09
A44: 18.93846 | B44: ='DF raw data'!G49 -> 1.1627485e-05 | C44: ='DF raw data'!H49 -> -1.4014006e-07 | D44: ='DF raw data'!I49 -> -1.3078527e-05 | F44: 1.164041476e-05 | G44: -1.405840771e-07 | H44: -1.309307032e-05 | J44: -2.424685526e-05 | K44: -0.000330321199 | L44: -3.925954195e-06 | M44: -0.0002153121184 | N44: 1.008221883e-08
A45: 19.43863 | B45: ='DF raw data'!G50 -> 8.2486904e-06 | C45: ='DF raw data'!H50 -> 1.0339497e-05 | D45: ='DF raw data'!I50 -> -1.4275903e-05 | F45: 8.257862944e-06 | G45: 1.037225647e-05 | H45: -1.42917778e-05 | J45: -2.011651995e-05 | K45: -0.0003403828787 | L45: 1.261937321e-06 | M45: -0.0002146809352 | N45: 1.028542132e-08
A46: 19.9388 | B46: ='DF raw data'!G51 -> 1.1231854e-06 | C46: ='DF raw data'!H51 -> -2.8182908e-06 | D46: ='DF raw data'!I51 -> -4.2523839e-06 | F46: 1.124434382e-06 | G46: -2.827220219e-06 | H46: -4.257112551e-06 | J46: -1.955411161e-05 | K46: -0.0003501632587 | L46: -1.521534156e-07 | M46: -0.0002147570378 | N46: 1.047667954e-08
A47: 20.43897 | B47: ='DF raw data'!G52 -> -4.7513063e-06 | C47: ='DF raw data'!H52 -> 1.6461839e-06 | D47: ='DF raw data'!I52 -> 4.3754176e-06 | F47: -4.756589753e-06 | G47: 1.651399638e-06 | H47: 4.380283064e-06 | J47: -2.19332151e-05 | K47: -0.0003611335949 | L47: 6.738271412e-07 | M47: -0.0002144200097 | N47: 1.071752139e-08
A48: 20.93914 | B48: ='DF raw data'!G53 -> -4.1530916e-06 | C48: ='DF raw data'!H53 -> -2.692974e-07 | D48: ='DF raw data'!I53 -> 2.0527427e-06 | F48: -4.157709838e-06 | G48: -2.701506368e-07 | H48: 2.05502535e-06 | J48: -2.401277683e-05 | K48: -0.0003731440655 | L48: 5.387058972e-07 | M48: -0.0002141505651 | N48: 1.100607129e-08
A49: 21.43931 | B49: ='DF raw data'!G54 -> -2.9898408e-06 | C49: ='DF raw data'!H54 -> -5.4047755e-06 | D49: ='DF raw data'!I54 -> 8.2216008e-07 | F49: -2.993165503e-06 | G49: -5.421899888e-06 | H49: 8.23074322e-07 | J49: -2.550986842e-05 | K49: -0.0003859033364 | L49: -2.17316577e-06 | M49: -0.0002152375175 | N49: 1.133392074e-08
A50: 21.93948 | B50: ='DF raw data'!G55 -> -4.2528159e-06 | C50: ='DF raw data'!H55 -> 3.5548587e-06 | D50: ='DF raw data'!I55 -> -1.3390468e-06 | F50: -4.257545031e-06 | G50: 3.566121847e-06 | H50: -1.34053582e-06 | J50: -2.763936472e-05 | K50: -0.0003997277175 | L50: -3.894986057e-07 | M50: -0.000215432333 | N50: 1.171609373e-08
A51: 22.43965 | B51: ='DF raw data'!G56 -> -3.3114527e-06 | C51: ='DF raw data'!H56 -> -7.1781556e-06 | D51: ='DF raw data'!I56 -> -4.301923e-07 | F51: -3.315135035e-06 | G51: -7.200898732e-06 | H51: -4.306706738e-07 | J51: -2.929749581e-05 | K51: -0.000414381446 | L51: -3.991172124e-06 | M51: -0.0002174285975 | N51: 1.215337871e-08
A52: 22.93982 | B52: ='DF raw data'!G57 -> -2.5305387e-06 | C52: ='DF raw data'!H57 -> 8.0759344e-07 | D52: ='DF raw data'!I57 -> -1.783423e-07 | F52: -2.533352659e-06 | G52: 8.101522037e-07 | H52: -1.785406166e-07 | J52: -3.056460281e-05 | K52: -0.0004296689433 | L52: -3.585958297e-06 | M52: -0.0002192221863 | N52: 1.262706673e-08
A53: 23.43999 | B53: ='DF raw data'!G58 -> -2.1558124e-06 | C53: ='DF raw data'!H58 -> 5.0170879e-06 | D53: ='DF raw data'!I58 -> 4.9091091e-06 | F53: -2.158209663e-06 | G53: 5.032983946e-06 | H53: 4.914568029e-06 | J53: -3.164407454e-05 | K53: -0.0004454963601 | L53: -1.068610716e-06 | M53: -0.0002197566733 | N53: 1.312848185e-08
A54: 23.94016 | B54: ='DF raw data'!G59 -> 2.5538191e-07 | C54: ='DF raw data'!H59 -> -6.197733e-06 | D54: ='DF raw data'!I59 -> 1.5106524e-05 | F54: 2.556658947e-07 | G54: -6.217369779e-06 | H54: 1.512332245e-05 | J54: -3.151619813e-05 | K54: -0.0004612598169 | L54: -4.178352559e-06 | M54: -0.0002218465599 | N54: 1.363401836e-08
A55: 24.44033 | B55: ='DF raw data'!G60 -> 6.2550987e-07 | C55: ='DF raw data'!H60 -> 3.676811e-06 | D55: ='DF raw data'!I60 -> 1.1494899e-05 | F55: 6.26205437e-07 | G55: 3.688460538e-06 | H55: 1.150768133e-05 | J55: -3.120298895e-05 | K55: -0.0004768666159 | L55: -2.333495252e-06 | M55: -0.0002230137042 | N55: 1.412372066e-08
A56: 24.9405 | B56: ='DF raw data'!G61 -> -3.2394439e-07 | C56: ='DF raw data'!H61 -> -1.1297685e-06 | D56: ='DF raw data'!I61 -> 3.6602928e-06 | F56: -3.243046162e-07 | G56: -1.133348037e-06 | H56: 3.664363046e-06 | J56: -3.136519639e-05 | K56: -0.0004925545462 | L56: -2.900361939e-06 | M56: -0.0002244643783 | N56: 1.461998315e-08
A57: 25.44067 | B57: ='DF raw data'!G62 -> 5.6782608e-07 | C57: ='DF raw data'!H62 -> -1.1795937e-05 | D57: ='DF raw data'!I62 -> 2.0194625e-06 | F57: 5.684575026e-07 | G57: -1.183331102e-05 | H57: 2.021708142e-06 | J57: -3.1080871e-05 | K57: -0.0005081002654 | L57: -8.819029113e-06 | M57: -0.0002288753921 | N57: 1.514205851e-08
A58: 25.94084 | B58: ='DF raw data'!G63 -> -1.2012357e-06 | C58: ='DF raw data'!H63 -> -3.0952847e-06 | D58: ='DF raw data'!I63 -> -3.7455843e-06 | F58: -1.202571474e-06 | G58: -3.105091741e-06 | H58: -3.74974939e-06 | J58: -3.168236118e-05 | K58: -0.000523946832 | L58: -1.037210285e-05 | M58: -0.0002340632067 | N58: 1.56979237e-08
A59: 26.44101 | B59: ='DF raw data'!G64 -> -8.5309921e-06 | C59: ='DF raw data'!H64 -> -6.6090581e-07 | D59: ='DF raw data'!I64 -> -9.8121172e-06 | F59: -8.540478563e-06 | G59: -6.629998114e-07 | H59: -9.823028274e-06 | J59: -3.595405234e-05 | K59: -0.0005419299704 | L59: -1.070371547e-05 | M59: -0.0002394168841 | N59: 1.640179464e-08
A60: 26.94118 | B60: ='DF raw data'!G65 -> -1.3469054e-05 | C60: ='DF raw data'!H65 -> 1.0463851e-05 | D60: ='DF raw data'!I65 -> -7.4185605e-06 | F60: -1.348403159e-05 | G60: 1.049700447e-05 | H60: -7.426809939e-06 | J60: -4.269836042e-05 | K60: -0.0005632864093 | L60: -5.453428741e-06 | M60: -0.0002421445256 | N60: 1.732855456e-08
A61: 27.44135 | B61: ='DF raw data'!G66 -> -9.9857907e-06 | C61: ='DF raw data'!H66 -> 9.7807033e-06 | D61: ='DF raw data'!I66 -> 7.2984272e-07 | F61: -9.996894899e-06 | G61: 9.811692294e-06 | H61: 7.306543051e-07 | J61: -4.769850734e-05 | K61: -0.0005871437717 | L61: -5.459146064e-07 | M61: -0.0002424175757 | N61: 1.84666642e-08
A62: 27.94152 | B62: ='DF raw data'!G67 -> -2.9563423e-06 | C62: ='DF raw data'!H67 -> 7.943011e-06 | D62: ='DF raw data'!I67 -> 4.3209789e-06 | F62: -2.959629753e-06 | G62: 7.968177485e-06 | H62: 4.325783829e-06 | J62: -4.917882536e-05 | K62: -0.0006117415448 | L62: 3.439528726e-06 | M62: -0.0002406972266 | N62: 1.968227098e-08
A63: 28.44169 | B63: ='DF raw data'!G68 -> 2.5595029e-06 | C63: ='DF raw data'!H68 -> 7.1979809e-07 | D63: ='DF raw data'!I68 -> 9.0144958e-06 | F63: 2.562349067e-06 | G63: 7.220786846e-07 | H63: 9.024519919e-06 | J63: -4.789721522e-05 | K63: -0.0006356982949 | L63: 3.800690822e-06 | M63: -0.0002387962351 | N63: 2.083695768e-08
A64: 28.94186 | B64: ='DF raw data'!G69 -> 2.4022404e-06 | C64: ='DF raw data'!H69 -> 4.8104089e-06 | D64: ='DF raw data'!I69 -> 1.1176183e-05 | F64: 2.404911691e-06 | G64: 4.825650108e-06 | H64: 1.118861092e-05 | J64: -4.669435054e-05 | K64: -0.0006590534083 | L64: 6.214336236e-06 | M64: -0.0002356880105 | N64: 2.194682508e-08
A65: 29.44203 | B65: ='DF raw data'!G70 -> 9.5704615e-07 | C65: ='DF raw data'!H70 -> -2.0867096e-06 | D65: ='DF raw data'!I70 -> 1.4463644e-06 | F65: 9.581103853e-07 | G65: -2.093321091e-06 | H65: 1.447972757e-06 | J65: -4.621513247e-05 | K65: -0.0006821688311 | L65: 5.167319826e-06 | M65: -0.0002331034721 | N65: 2.302846254e-08
A66: 29.9422 | B66: ='DF raw data'!G71 -> 3.2159312e-07 | C66: ='DF raw data'!H71 -> -4.3944651e-06 | D66: ='DF raw data'!I71 -> 1.162311e-06 | F66: 3.219507315e-07 | G66: -4.40838844e-06 | H66: 1.16360349e-06 | J66: -4.605410237e-05 | K66: -0.0007052037114 | L66: 2.962376181e-06 | M66: -0.0002316217804 | N66: 2.409370261e-08
A67: 30.44237 | B67: ='DF raw data'!G72 -> 5.8592866e-07 | C67: ='DF raw data'!H72 -> -9.4979205e-06 | D67: ='DF raw data'!I72 -> 3.7697087e-06 | F67: 5.865802127e-07 | G67: -9.528013531e-06 | H67: 3.773900616e-06 | J67: -4.576071255e-05 | K67: -0.000728091847 | L67: -1.803250347e-06 | M67: -0.0002325237122 | N67: 2.514270641e-08
A68: 30.94254 | B68: ='DF raw data'!G73 -> -3.447484e-06 | C68: ='DF raw data'!H73 -> 1.8014929e-06 | D68: ='DF raw data'!I73 -> 1.150721e-05 | F68: -3.451317602e-06 | G68: 1.807200716e-06 | H68: 1.152000602e-05 | J68: -4.748695807e-05 | K68: -0.0007518433989 | L68: -8.99342765e-07 | M68: -0.0002329735364 | N68: 2.62709999e-08
A69: 31.44271 | B69: ='DF raw data'!G74 -> -1.0320339e-05 | C69: ='DF raw data'!H74 -> 1.1024646e-05 | D69: ='DF raw data'!I74 -> 1.5331816e-05 | F69: -1.033181522e-05 | G69: 1.105957628e-05 | H69: 1.534886498e-05 | J69: -5.265462209e-05 | K69: -0.0007781796612 | L69: 4.632325502e-06 | M69: -0.0002306565862 | N69: 2.766845871e-08
A70: 31.94288 | B70: ='DF raw data'!G75 -> -1.2418012e-05 | C70: ='DF raw data'!H75 -> 3.9252523e-06 | D70: ='DF raw data'!I75 -> 4.1619119e-06 | F70: -1.243182083e-05 | G70: 3.937688995e-06 | H70: 4.166539946e-06 | J70: -5.887264591e-05 | K70: -0.0008076259925 | L70: 6.601839407e-06 | M70: -0.0002273545442 | N70: 2.94238417e-08
A71: 32.44305 | B71: ='DF raw data'!G76 -> -9.2263845e-06 | C71: ='DF raw data'!H76 -> 1.0869902e-06 | D71: ='DF raw data'!I76 -> 3.9306383e-06 | F71: -9.23664424e-06 | G71: =(1-$G$1*($B$2-$G$2))*C71*$M$2/$M$1 -> 1.090434199e-06 | H71: 3.93500917e-06 | J71: -6.349253826e-05 | K71: -0.0008393830554 | L71: 7.14724188e-06 | M71: -0.0002237797082 | N71: 3.146572844e-08
A72: =A71+$B$1 -> 32.94322 | B72: ='DF raw data'!G77 -> -4.1724456e-06 | C72: ='DF raw data'!H77 -> -6.5530151e-07 | D72: ='DF raw data'!I77 -> 6.563851e-06 | F72: -4.17708536e-06 | G72: -6.573777548e-07 | H72: 6.571150002e-06 | J72: =F72*$B$1+J71 -> -6.558179105e-05 | K72: =J72*$B$1+K71 -> -0.0008721850998 | L72: =G72*$B$1+L71 -> 6.818441248e-06 | M72: =L72*$B$1+M71 -> -0.0002203693284 | N72: =(J72^2+L72^2)*$B$1+N71 -> 3.364019874e-08
A73: 33.44339 | B73: ='DF raw data'!G78 -> 1.9902611e-06 | C73: ='DF raw data'!H78 -> -7.2488724e-06 | D73: ='DF raw data'!I78 -> 6.8412061e-07 | F73: 1.99247427e-06 | G73: -7.271839589e-06 | H73: 6.848813521e-07 | J73: -6.458521519e-05 | K73: -0.0009044886869 | L73: 3.181285241e-06 | M73: -0.000218778145 | N73: 3.573159487e-08
A74: 33.94356 | B74: ='DF raw data'!G79 -> 6.2750437e-06 | C74: ='DF raw data'!H79 -> -7.981389e-06 | D74: ='DF raw data'!I79 -> -9.2533965e-06 | F74: 6.282021549e-06 | G74: -8.006677081e-06 | H74: -9.263686277e-06 | J74: -6.144313647e-05 | K74: -0.0009352207004 | L74: -8.234144346e-07 | M74: -0.0002191899922 | N74: 3.76202053e-08
A75: 34.44373 | B75: ='DF raw data'!G80 -> 6.1566348e-06 | C75: ='DF raw data'!H80 -> -1.1275837e-05 | D75: ='DF raw data'!I80 -> -8.8774332e-06 | F75: 6.163480978e-06 | G75: -1.131156315e-05 | H75: -8.887304906e-06 | J75: -5.836034819e-05 | K75: -0.0009644107958 | L75: -6.481118974e-06 | M75: -0.0002224316535 | N75: 3.934475902e-08
A76: 34.9439 | B76: ='DF raw data'!G81 -> 2.5194561e-06 | C76: ='DF raw data'!H81 -> -8.507759e-06 | D76: ='DF raw data'!I81 -> -8.9381292e-06 | F76: 2.522257735e-06 | G76: -8.534714822e-06 | H76: -8.9480684e-06 | J76: -5.709879054e-05 | K76: -0.0009929698979 | L76: -1.074992729e-05 | M76: -0.0002278084446 | N76: 4.103324932e-08
A77: 35.44407 | B77: ='DF raw data'!G82 -> -2.2832435e-06 | C77: ='DF raw data'!H82 -> 1.414019e-06 | D77: ='DF raw data'!I82 -> -3.8016819e-06 | F77: -2.285782467e-06 | G77: 1.418499151e-06 | H77: -3.80590937e-06 | J77: -5.824207036e-05 | K77: -0.001022100834 | L77: -1.004043657e-05 | M77: -0.0002328303698 | N77: 4.278031768e-08
A78: 35.94424 | B78: ='DF raw data'!G83 -> -4.425096e-06 | C78: ='DF raw data'!H83 -> 1.9157055e-06 | D78: ='DF raw data'!I83 -> 5.4004209e-07 | F78: -4.430016707e-06 | G78: 1.921775185e-06 | H78: 5.406426168e-07 | J78: -6.045783181e-05 | K78: -0.001052340028 | L78: -9.079222272e-06 | M78: -0.0002373715244 | N78: 4.464974393e-08
A79: 36.44441 | B79: ='DF raw data'!G84 -> -2.1237108e-06 | C79: ='DF raw data'!H84 -> 8.0932875e-07 | D79: ='DF raw data'!I84 -> 7.6431525e-06 | F79: -2.126072366e-06 | G79: 8.118930118e-07 | H79: 7.651651686e-06 | J79: -6.152122943e-05 | K79: -0.001083111101 | L79: -8.673137744e-06 | M79: -0.0002417095677 | N79: 4.658044263e-08
A80: 36.94458 | B80: ='DF raw data'!G85 -> 5.4420832e-07 | C80: ='DF raw data'!H85 -> 7.0134242e-06 | D80: ='DF raw data'!I85 -> 1.1077143e-05 | F80: 5.448134797e-07 | G80: 7.0356454e-06 | H80: 1.108946078e-05 | J80: -6.124873007e-05 | K80: -0.001113745879 | L80: -5.154118985e-06 | M80: -0.0002442875034 | N80: 4.847007083e-08
A81: 37.44475 | B81: ='DF raw data'!G86 -> -1.8651814e-06 | C81: ='DF raw data'!H86 -> 9.1161028e-06 | D81: ='DF raw data'!I86 -> 5.0064177e-06 | F81: -1.867255482e-06 | G81: 9.144986087e-06 | H81: 5.011984836e-06 | J81: -6.218267525e-05 | K81: -0.001144847787 | L81: -5.800712936e-07 | M81: -0.0002445776376 | N81: 5.040423901e-08
A82: 37.94492 | B82: ='DF raw data'!G87 -> -4.5676757e-06 | C82: ='DF raw data'!H87 -> 4.7494327e-06 | D82: ='DF raw data'!I87 -> -1.06777e-06 | F82: -4.572754955e-06 | G82: 4.764480712e-06 | H82: -1.06895736e-06 | J82: -6.446983009e-05 | K82: -0.001177093662 | L82: 1.802979024e-06 | M82: -0.0002436758416 | N82: 5.248475101e-08
A83: 38.44509 | B83: ='DF raw data'!G88 -> -1.4641597e-06 | C83: ='DF raw data'!H88 -> -3.0702008e-06 | D83: ='DF raw data'!I88 -> -3.9280071e-06 | F83: -1.465787846e-06 | G83: -3.079928366e-06 | H83: -3.932375044e-06 | J83: -6.52029732e-05 | K83: -0.001209706233 | L83: 2.624912535e-07 | M83: -0.0002435445514 | N83: 5.461122207e-08
A84: 38.94526 | B84: ='DF raw data'!G89 -> 3.5212972e-06 | C84: ='DF raw data'!H89 -> -2.2406641e-07 | D84: ='DF raw data'!I89 -> -2.8887675e-06 | F84: 3.525212882e-06 | G84: -2.247763378e-07 | H84: -2.891979809e-06 | J84: -6.343976747e-05 | K84: -0.001241436902 | L84: 1.500648726e-07 | M84: -0.0002434694934 | N84: 5.662421957e-08
A85: 39.44543 | B85: ='DF raw data'!G90 -> 5.4425432e-06 | C85: ='DF raw data'!H90 -> 8.2241422e-06 | D85: ='DF raw data'!I90 -> -3.1150498e-06 | F85: 5.448595308e-06 | G85: 8.250199416e-06 | H85: -3.118513735e-06 | J85: -6.071454356e-05 | K85: -0.001271804495 | L85: 4.276567114e-06 | M85: -0.0002413304828 | N85: 5.847712175e-08
A86: 39.9456 | B86: ='DF raw data'!G91 -> 3.8715912e-06 | C86: ='DF raw data'!H91 -> 2.1600104e-06 | D86: ='DF raw data'!I91 -> -2.2011313e-06 | F86: 3.875896409e-06 | G86: 2.166854136e-06 | H86: -2.203578958e-06 | J86: -5.877593645e-05 | K86: -0.001301202455 | L86: 5.360362548e-06 | M86: -0.0002386493903 | N86: 6.021938602e-08
A87: 40.44577 | B87: ='DF raw data'!G92 -> 1.9935353e-06 | C87: ='DF raw data'!H92 -> -4.9688692e-06 | D87: ='DF raw data'!I92 -> -4.4839921e-06 | F87: =(1-$G$1*($B$2-$G$2))*B87 -> 1.995752111e-06 | G87: -4.984612471e-06 | H87: -4.488978299e-06 | J87: -5.777772112e-05 | K87: -0.001330101138 | L87: 2.867208928e-06 | M87: -0.0002372152984 | N87: 6.189319789e-08
A88: 40.94594 | B88: ='DF raw data'!G93 -> 5.7657178e-07 | C88: ='DF raw data'!H93 -> -1.5955626e-06 | D88: ='DF raw data'!I93 -> -8.7462477e-06 | F88: 5.772129278e-07 | G88: -1.60061795e-06 | H88: -8.755973527e-06 | J88: -5.748901653e-05 | K88: -0.001358855419 | L88: 2.066627848e-06 | M88: -0.0002361816332 | N88: 6.354838945e-08
A89: 41.44611 | B89: ='DF raw data'!G94 -> -7.9705626e-07 | C89: ='DF raw data'!H94 -> 2.7521605e-06 | D89: ='DF raw data'!I94 -> -9.8960381e-06 | F89: -7.979425866e-07 | G89: 2.760880393e-06 | H89: -9.907042494e-06 | J89: -5.788812347e-05 | K89: -0.001387809322 | L89: 3.447537394e-06 | M89: -0.0002344572784 | N89: 6.523042132e-08
A90: 41.94628 | B90: ='DF raw data'!G95 -> 4.6343064e-07 | C90: ='DF raw data'!H95 -> -1.0047641e-05 | D90: ='DF raw data'!I95 -> -4.5496795e-06 | F90: 4.639459749e-07 | G90: -1.007947575e-05 | H90: -4.554738744e-06 | J90: -5.765607161e-05 | K90: -0.001416647159 | L90: -1.593913994e-06 | M90: -0.0002352545064 | N90: 6.689436845e-08
A91: 42.44645 | B91: ='DF raw data'!G96 -> 1.0797334e-06 | C91: ='DF raw data'!H96 -> -4.7729986e-06 | D91: ='DF raw data'!I96 -> 1.5326282e-06 | F91: 1.080934064e-06 | G91: -4.788121278e-06 | H91: 1.534332483e-06 | J91: -5.711542082e-05 | K91: -0.001445214579 | L91: -3.988788614e-06 | M91: -0.0002372495788 | N91: 6.853396659e-08
A92: 42.94662 | B92: ='DF raw data'!G97 -> -2.0613559e-06 | C92: ='DF raw data'!H97 -> -4.2183415e-06 | D92: ='DF raw data'!I97 -> 3.7231672e-07 | F92: -2.063648128e-06 | G92: -4.231706813e-06 | H92: 3.727307362e-07 | J92: -5.81475957e-05 | K92: -0.001474298262 | L92: -6.10536141e-06 | M92: -0.0002403032974 | N92: 7.024375688e-08
A93: 43.44679 | B93: ='DF raw data'!G98 -> -1.2508868e-06 | C93: ='DF raw data'!H98 -> -3.3443935e-06 | D93: ='DF raw data'!I98 -> -4.4413405e-06 | F93: -1.252277786e-06 | G93: -3.354989813e-06 | H93: -4.446279271e-06 | J93: -5.877394748e-05 | K93: -0.001503695228 | L93: -7.783426665e-06 | M93: -0.0002441963339 | N93: 7.200183374e-08
A94: 43.94696 | B94: ='DF raw data'!G99 -> 6.1468268e-06 | C94: ='DF raw data'!H99 -> 5.6085705e-06 | D94: ='DF raw data'!I99 -> 9.0915142e-07 | F94: 6.153662071e-06 | G94: 5.626340588e-06 | H94: 9.101623964e-07 | J94: -5.569607033e-05 | K94: -0.001531552731 | L94: -4.969299893e-06 | M94: -0.0002466818286 | N94: 7.356573839e-08
A95: 44.44713 | B95: ='DF raw data'!G100 -> 8.9016348e-06 | C95: ='DF raw data'!H100 -> 1.0616892e-05 | D95: ='DF raw data'!I100 -> 1.6534483e-07 | F95: 8.911533418e-06 | G95: 1.065053036e-05 | H95: 1.655286935e-07 | J95: -5.123878866e-05 | K95: -0.001557180836 | L95: 3.577758764e-07 | M95: -0.0002465028799 | N95: 7.487895546e-08
A96: 44.9473 | B96: ='DF raw data'!G101 -> 6.457874e-06 | C96: ='DF raw data'!H101 -> 3.4238333e-06 | D96: ='DF raw data'!I101 -> 7.9720354e-07 | F96: 6.465055156e-06 | G96: 3.434681308e-06 | H96: 7.980900303e-07 | J96: -4.800516202e-05 | K96: -0.001581191578 | L96: 2.075700426e-06 | M96: -0.0002454646768 | N96: 7.603375001e-08
A97: 45.44747 | B97: ='DF raw data'!G102 -> 4.4249568e-06 | C97: ='DF raw data'!H102 -> 1.8795475e-06 | D97: ='DF raw data'!I102 -> 7.4862824e-06 | F97: 4.429877352e-06 | G97: 1.885502623e-06 | H97: 7.494607146e-06 | J97: -4.578947026e-05 | K97: -0.001604094097 | L97: 3.018772273e-06 | M97: -0.0002439547774 | N97: 7.708700229e-08
A98: 45.94764 | B98: ='DF raw data'!G103 -> 5.6140957e-06 | C98: ='DF raw data'!H103 -> -9.5694395e-06 | D98: ='DF raw data'!I103 -> 8.0135278e-06 | F98: 5.620338574e-06 | G98: -9.59975913e-06 | H98: 8.022438843e-06 | J98: -4.297834552e-05 | K98: -0.001625590576 | L98: -1.782739251e-06 | M98: -0.0002448464501 | N98: 7.801247501e-08
A99: 46.44781 | B99: ='DF raw data'!G104 -> 8.3930017e-06 | C99: ='DF raw data'!H104 -> -8.4577241e-06 | D99: ='DF raw data'!I104 -> 4.6135536e-08 | F99: 8.402334718e-06 | G99: -8.484521392e-06 | H99: 4.618683872e-08 | J99: -3.877574976e-05 | K99: -0.001644985043 | L99: -6.026442316e-06 | M99: -0.0002478606958 | N99: 7.878267518e-08
A100: 46.94798 | B100: ='DF raw data'!G105 -> 1.0592596e-05 | C100: ='DF raw data'!H105 -> 4.7961316e-06 | D100: ='DF raw data'!I105 -> -7.300428e-06 | F100: 1.060437497e-05 | G100: 4.811327572e-06 | H100: -7.308546076e-06 | J100: -3.347175954e-05 | K100: -0.001661726613 | L100: -3.619960604e-06 | M100: -0.0002496712915 | N100: 7.934959927e-08
A101: 47.44815 | B101: ='DF raw data'!G106 -> 1.0872954e-05 | C101: ='DF raw data'!H106 -> 3.16245e-06 | D101: ='DF raw data'!I106 -> -6.4454157e-06 | F101: 1.088504472e-05 | G101: 3.172469846e-06 | H101: -6.452583002e-06 | J101: -2.802738672e-05 | K101: -0.001675745071 | L101: -2.033186361e-06 | M101: -0.0002506882303 | N101: 7.974456764e-08
A102: 47.94832 | B102: ='DF raw data'!G107 -> 5.2899518e-06 | C102: ='DF raw data'!H107 -> 4.5757101e-06 | D102: ='DF raw data'!I107 -> -2.6807188e-06 | F102: 5.295834226e-06 | G102: 4.590207693e-06 | H102: -2.683699759e-06 | J102: -2.537856931e-05 | K102: -0.00168843867 | L102: 2.626978209e-07 | M102: -0.0002505568367 | N102: 8.006674754e-08
A103: 48.44849 | B103: ='DF raw data'!G108 -> -1.045763e-06 | C103: ='DF raw data'!H108 -> -6.1075366e-06 | D103: ='DF raw data'!I108 -> 7.4622818e-07 | F103: -1.046925888e-06 | G103: -6.126887603e-06 | H103: 7.470579857e-07 | J103: -2.590221023e-05 | K103: -0.001701394179 | L103: -2.801787551e-06 | M103: -0.0002519582068 | N103: 8.040625018e-08
A104: 48.94866 | B104: ='DF raw data'!G109 -> -4.6800747e-06 | C104: ='DF raw data'!H109 -> -6.4584506e-06 | D104: ='DF raw data'!I109 -> 1.1806173e-06 | F104: -4.685278943e-06 | G104: -6.478913432e-06 | H104: 1.181930146e-06 | J104: -2.82456462e-05 | K104: -0.001715521804 | L104: -6.042345683e-06 | M104: -0.0002549804069 | N104: 8.082355525e-08
A105: 49.44883 | B105: ='DF raw data'!G110 -> -7.9236388e-06 | C105: ='DF raw data'!H110 -> -7.9584388e-06 | D105: ='DF raw data'!I110 -> -5.5197728e-07 | F105: -7.932449886e-06 | G105: -7.983654166e-06 | H105: -5.525910787e-07 | J105: -3.221321966e-05 | K105: -0.00173163389 | L105: -1.003552999e-05 | M105: -0.0002599998779 | N105: 8.139295047e-08
A106: 49.949 | B106: ='DF raw data'!G111 -> -9.2687742e-06 | C106: ='DF raw data'!H111 -> -7.387503e-06 | D106: ='DF raw data'!I111 -> -3.5770921e-07 | F106: -9.279081077e-06 | G106: -7.410909424e-06 | H106: -3.581069826e-07 | J106: -3.685433764e-05 | K106: -0.001750067324 | L106: -1.374224455e-05 | M106: -0.0002668733363 | N106: 8.216675922e-08
A107: 50.44917 | B107: ='DF raw data'!G112 -> -6.5186218e-06 | C107: ='DF raw data'!H112 -> 5.1590546e-06 | D107: ='DF raw data'!I112 -> 1.6437757e-06 | F107: -6.525870507e-06 | G107: 5.17540045e-06 | H107: 1.645603579e-06 | J107: -4.01183823e-05 | K107: -0.001770133335 | L107: -1.115366451e-05 | M107: -0.0002724520647 | N107: 8.30339984e-08
A108: 50.94934 | B108: ='DF raw data'!G113 -> -1.1812705e-06 | C108: ='DF raw data'!H113 -> 1.3044759e-06 | D108: ='DF raw data'!I113 -> 5.0482646e-07 | F108: -1.182584073e-06 | G108: 1.308608977e-06 | H108: 5.05387827e-07 | J108: -4.070987537e-05 | K108: -0.001790495193 | L108: -1.049913756e-05 | M108: -0.0002777034184 | N108: 8.39180618e-08
A109: 51.44951 | B109: ='DF raw data'!G114 -> 2.5099682e-06 | C109: ='DF raw data'!H114 -> -5.4341303e-06 | D109: ='DF raw data'!I114 -> 2.2332447e-06 | F109: 2.512759285e-06 | G109: -5.451347695e-06 | H109: 2.235728068e-06 | J109: -3.945306856e-05 | K109: -0.001810228435 | L109: -1.322573814e-05 | M109: -0.0002843185358 | N109: 8.478408853e-08
A110: 51.94968 | B110: ='DF raw data'!G115 -> 4.7015014e-06 | C110: ='DF raw data'!H115 -> -7.1214129e-07 | D110: ='DF raw data'!I115 -> -1.5811514e-07 | F110: 4.70672947e-06 | G110: -7.143976249e-07 | H110: -1.58290964e-07 | J110: -3.709890368e-05 | K110: -0.001828784193 | L110: -1.35830584e-05 | M110: -0.0002911123741 | N110: 8.556476794e-08
A111: 52.44985 | B111: ='DF raw data'!G116 -> 4.6408927e-06 | C111: ='DF raw data'!H116 -> 3.5527444e-07 | D111: ='DF raw data'!I116 -> -9.2999189e-06 | F111: 4.646053373e-06 | G111: 3.564000848e-07 | H111: -9.31026041e-06 | J111: -3.477508717e-05 | K111: -0.001846177649 | L111: -1.340479776e-05 | M111: -0.0002978170518 | N111: 8.625950171e-08
A112: 52.95002 | B112: ='DF raw data'!G117 -> 1.9563173e-07 | C112: ='DF raw data'!H117 -> 9.5390669e-06 | D112: ='DF raw data'!I117 -> -3.0398455e-06 | F112: 1.958492725e-07 | G112: 9.569290298e-06 | H112: -3.043225808e-06 | J112: -3.467712924e-05 | K112: -0.001863522108 | L112: -8.618525836e-06 | M112: -0.0003021277799 | N112: 8.689810991e-08
A113: 53.45019 | B113: ='DF raw data'!G118 -> -2.7943358e-06 | C113: ='DF raw data'!H118 -> -9.7272607e-07 | D113: ='DF raw data'!I118 -> 7.1831951e-06 | F113: -2.797443101e-06 | G113: -9.758080368e-07 | H113: 7.191182813e-06 | J113: -3.607632635e-05 | K113: -0.001881566404 | L113: -9.106595742e-06 | M113: -0.0003066826259 | N113: 8.759056096e-08
A114: 53.95036 | B114: ='DF raw data'!G119 -> -8.0634038e-07 | C114: ='DF raw data'!H119 -> -8.6866839e-06 | D114: ='DF raw data'!I119 -> 6.2218228e-06 | F114: -8.072370305e-07 | G114: -8.714206624e-06 | H114: 6.228741467e-06 | J114: -3.64800821e-05 | K114: -0.001899812647 | L114: -1.346518047e-05 | M114: -0.0003134175052 | N114: 8.834687176e-08
A115: 54.45053 | B115: ='DF raw data'!G120 -> 3.6702215e-06 | C115: ='DF raw data'!H120 -> -1.6370592e-06 | D115: ='DF raw data'!I120 -> -4.5889551e-06 | F115: 3.674302786e-06 | G115: -1.642246027e-06 | H115: -4.594058018e-06 | J115: -3.464230607e-05 | K115: -0.001917139689 | L115: -1.428658266e-05 | M115: -0.0003205632252 | N115: 8.904920838e-08
A116: 54.9507 | B116: ='DF raw data'!G121 -> 4.8345933e-06 | C116: ='DF raw data'!H121 -> 5.6419271e-06 | D116: ='DF raw data'!I121 -> -3.4918717e-06 | F116: 4.839969368e-06 | G116: 5.659802874e-06 | H116: -3.495754661e-06 | J116: -3.222149859e-05 | K116: -0.001933255916 | L116: -1.145571906e-05 | M116: -0.0003262930322 | N116: 8.963413642e-08
A117: 55.45087 | B117: ='DF raw data'!G122 -> 1.4277917e-07 | C117: ='DF raw data'!H122 -> 6.9096182e-06 | D117: ='DF raw data'!I122 -> -6.6279011e-07 | F117: 1.429379404e-07 | G117: 6.931510503e-06 | H117: -6.635271326e-07 | J117: -3.215000532e-05 | K117: -0.001949336384 | L117: -7.988785453e-06 | M117: -0.0003302887831 | N117: 9.018304476e-08
A118: 55.95104 | B118: ='DF raw data'!G123 -> -2.1204366e-06 | C118: ='DF raw data'!H123 -> 8.7350634e-07 | D118: ='DF raw data'!I123 -> -2.3078842e-06 | F118: -2.122794525e-06 | G118: 8.762739409e-07 | H118: -2.310450567e-06 | J118: -3.321176346e-05 | K118: -0.001965947912 | L118: -7.550499516e-06 | M118: -0.0003340653164 | N118: 9.07632576e-08
A119: 56.45121 | B119: ='DF raw data'!G124 -> 3.9314489e-07 | C119: ='DF raw data'!H124 -> 2.1686833e-06 | D119: ='DF raw data'!I124 -> 1.6611361e-06 | F119: 3.935820671e-07 | G119: 2.175554515e-06 | H119: 1.662983283e-06 | J119: -3.301490552e-05 | K119: -0.001982460977 | L119: -6.462352414e-06 | M119: -0.0003372975912 | N119: 9.132932299e-08
A120: 56.95138 | B120: ='DF raw data'!G125 -> 3.0129988e-06 | C120: ='DF raw data'!H125 -> -3.8302019e-06 | D120: ='DF raw data'!I125 -> 1.097672e-05 | F120: 3.016349255e-06 | G120: -3.842337439e-06 | H120: 1.098892611e-05 | J120: -3.150621811e-05 | K120: -0.001998219443 | L120: -8.384174331e-06 | M120: -0.0003414911037 | N120: 9.186097177e-08
A121: 57.45155 | B121: ='DF raw data'!G126 -> 5.1531929e-06 | C121: ='DF raw data'!H126 -> -4.9149653e-06 | D121: ='DF raw data'!I126 -> 1.647874e-05 | F121: 5.158923251e-06 | G121: -4.930537783e-06 | H121: 1.649706436e-05 | J121: -2.892587947e-05 | K121: -0.0020126873 | L121: -1.085028141e-05 | M121: -0.0003469180889 | N121: 9.233835158e-08
A122: 57.95172 | B122: ='DF raw data'!G127 -> 7.7793766e-06 | C122: ='DF raw data'!H127 -> 5.6177764e-06 | D122: ='DF raw data'!I127 -> 1.6259573e-05 | F122: 7.788027267e-06 | G122: 5.635575656e-06 | H122: 1.627765365e-05 | J122: -2.503054187e-05 | K122: -0.002025206826 | L122: -8.031535538e-06 | M122: -0.0003509352221 | N122: 9.268398585e-08
A123: 58.45189 | B123: ='DF raw data'!G128 -> 1.0423925e-05 | C123: ='DF raw data'!H128 -> -2.4741496e-07 | D123: ='DF raw data'!I128 -> 1.0524475e-05 | F123: 1.04355164e-05 | G123: -2.481988649e-07 | H123: 1.053617822e-05 | J123: -1.981100963e-05 | K123: -0.002035115699 | L123: -8.155677164e-06 | M123: -0.0003550144471 | N123: 9.291355946e-08
A124: 58.95206 | B124: ='DF raw data'!G129 -> 9.6511021e-06 | C124: ='DF raw data'!H129 -> -4.45264e-06 | D124: ='DF raw data'!I129 -> 4.5509864e-06 | F124: 9.661834126e-06 | G124: -4.46674766e-06 | H124: 4.556047097e-06 | J124: -1.497845006e-05 | K124: -0.00204260747 | L124: -1.038981034e-05 | M124: -0.0003602111186 | N124: 9.307976702e-08
A125: 59.45223 | B125: ='DF raw data'!G130 -> 4.2570132e-06 | C125: ='DF raw data'!H130 -> -9.5326122e-06 | D125: ='DF raw data'!I130 -> 1.0083494e-05 | F125: 4.261746999e-06 | G125: -9.562815147e-06 | H125: 1.009470685e-05 | J125: -1.284685206e-05 | K125: -0.00204903308 | L125: -1.517284359e-05 | M125: -0.0003678001197 | N125: 9.32774626e-08
A126: 59.9524 | B126: ='DF raw data'!G131 -> -1.6439777e-06 | C126: ='DF raw data'!H131 -> -4.4709191e-06 | D126: ='DF raw data'!I131 -> 1.0486073e-05 | F126: -1.645805803e-06 | G126: -4.485084675e-06 | H126: 1.049773351e-05 | J126: -1.367003475e-05 | K126: -0.002055870421 | L126: -1.741614839e-05 | M126: -0.0003765111547 | N126: 9.352264197e-08
A127: 60.45257 | B127: ='DF raw data'!G132 -> -3.2152645e-06 | C127: ='DF raw data'!H132 -> -2.9330381e-06 | D127: ='DF raw data'!I132 -> 6.9775474e-06 | F127: -3.218839874e-06 | G127: -2.942331082e-06 | H127: 6.985306433e-06 | J127: -1.528000189e-05 | K127: -0.00206351302 | L127: -1.888781413e-05 | M127: -0.0003859582727 | N127: 9.38178563e-08
A128: 60.95274 | B128: ='DF raw data'!G133 -> -3.0051931e-06 | C128: ='DF raw data'!H133 -> -9.3085891e-06 | D128: ='DF raw data'!I133 -> -5.1064984e-07 | F128: -3.008534875e-06 | G128: -9.338082257e-06 | H128: -5.112176826e-07 | J128: -1.678478078e-05 | K128: -0.002071908264 | L128: -2.355844273e-05 | M128: -0.000397741499 | N128: 9.423636309e-08
A129: 61.45291 | B129: ='DF raw data'!G134 -> -3.0609415e-06 | C129: ='DF raw data'!H134 -> 4.7616084e-07 | D129: ='DF raw data'!I134 -> -8.602693e-06 | F129: -3.064345267e-06 | G129: 4.776694989e-07 | H129: -8.612259195e-06 | J129: -1.831747435e-05 | K129: -0.002081070115 | L129: -2.331952678e-05 | M129: -0.0004094052267 | N129: 9.467617768e-08
A130: 61.95308 | B130: ='DF raw data'!G135 -> -2.197067e-06 | C130: ='DF raw data'!H135 -> 7.7863679e-06 | D130: ='DF raw data'!I135 -> -7.265096e-06 | F130: -2.199510139e-06 | G130: 7.81103808e-06 | H130: -7.273174787e-06 | J130: -1.941760334e-05 | K130: -0.002090782217 | L130: -1.941267986e-05 | M130: -0.0004191148668 | N130: 9.505325357e-08
A131: 62.45325 | B131: ='DF raw data'!G136 -> 6.7749497e-08 | C131: ='DF raw data'!H136 -> 1.0923908e-05 | D131: ='DF raw data'!I136 -> 1.2561563e-06 | F131: 6.782483444e-08 | G131: 1.09585191e-05 | H131: 1.257553146e-06 | J131: -1.938367939e-05 | K131: -0.002100477352 | L131: -1.393155737e-05 | M131: -0.0004260830138 | N131: 9.53382581e-08
A132: 62.95342 | B132: ='DF raw data'!G137 -> 4.0264526e-06 | C132: ='DF raw data'!H137 -> 6.593797e-06 | D132: ='DF raw data'!I137 -> 3.9466745e-06 | F132: 4.030930015e-06 | G132: 6.614688661e-06 | H132: 3.951063202e-06 | J132: -1.736752912e-05 | K132: -0.002109164069 | L132: -1.062308854e-05 | M132: -0.000431396364 | N132: 9.55455691e-08
A133: 63.45359 | B133: ='DF raw data'!G138 -> 5.6803797e-06 | C133: ='DF raw data'!H138 -> -9.6522981e-06 | D133: ='DF raw data'!I138 -> 6.1089436e-06 | F133: 5.686696282e-06 | G133: -9.682880258e-06 | H133: 6.115736745e-06 | J133: -1.452321424e-05 | K133: -0.002116428145 | L133: -1.546617476e-05 | M133: -0.0004391320806 | N133: 9.577070877e-08
A134: 63.95376 | B134: ='DF raw data'!G139 -> 2.5940783e-06 | C134: ='DF raw data'!H139 -> -8.0830596e-06 | D134: ='DF raw data'!I139 -> 3.2880548e-06 | F134: 2.596962915e-06 | G134: -8.108669812e-06 | H134: 3.291711117e-06 | J134: -1.32242913e-05 | K134: -0.002123042539 | L134: -1.952188814e-05 | M134: -0.0004488963434 | N134: 9.604879629e-08
A135: 64.45393 | B135: ='DF raw data'!G140 -> -2.2564097e-06 | C135: ='DF raw data'!H140 -> -1.2784365e-05 | D135: ='DF raw data'!I140 -> -8.2286118e-07 | F135: -2.258918828e-06 | G135: =(1-$G$1*($B$2-$G$2))*C135*$M$2/$M$1 -> -1.282487074e-05 | H135: -8.237762016e-07 | J135: -1.435413473e-05 | K135: -0.002130222047 | L135: -2.593650373e-05 | M135: -0.0004618690045 | N135: 9.648831738e-08
A136: =A135+$B$1 -> 64.9541 | B136: ='DF raw data'!G141 -> -6.1375508e-06 | C136: ='DF raw data'!H141 -> -3.2429884e-06 | D136: ='DF raw data'!I141 -> 2.8583222e-06 | F136: -6.144375756e-06 | G136: -3.253263423e-06 | H136: 2.861500654e-06 | J136: =F136*$B$1+J135 -> -1.742736715e-05 | K136: =J136*$B$1+K135 -> -0.002138938693 | L136: =G136*$B$1+L135 -> -2.75636885e-05 | M136: =L136*$B$1+M135 -> -0.0004756555346 | N136: =(J136^2+L136^2)*$B$1+N135 -> 9.70202332e-08
A137: 65.45427 | B137: ='DF raw data'!G142 -> -4.5396341e-06 | C137: ='DF raw data'!H142 -> -1.3492569e-06 | D137: ='DF raw data'!I142 -> 4.1247754e-06 | F137: -4.544682173e-06 | G137: -1.35353186e-06 | H137: 4.12936215e-06 | J137: -1.970048084e-05 | K137: -0.002148792282 | L137: -2.824068453e-05 | M137: -0.0004897806778 | N137: 9.761325736e-08
A138: 65.95444 | B138: ='DF raw data'!G143 -> -1.2862043e-06 | C138: ='DF raw data'!H143 -> -2.0191942e-06 | D138: ='DF raw data'!I143 -> -7.8950819e-07 | F138: -1.287634559e-06 | G138: -2.025591776e-06 | H138: -7.903861231e-07 | J138: -2.034451701e-05 | K138: -0.002158968 | L138: -2.925382477e-05 | M138: -0.0005044125633 | N138: 9.824831602e-08
A139: 66.45461 | B139: ='DF raw data'!G144 -> 1.9311848e-09 | C139: ='DF raw data'!H144 -> 1.725863e-05 | D139: ='DF raw data'!I144 -> -1.4731572e-06 | F139: 1.933332277e-09 | G139: 1.731331191e-05 | H139: -1.474795351e-06 | J139: -2.034355002e-05 | K139: -0.002169143233 | L139: -2.059422555e-05 | M139: -0.0005147131771 | N139: 9.866744956e-08
A140: 66.95478 | B140: ='DF raw data'!G145 -> 2.0682885e-06 | C140: ='DF raw data'!H145 -> 9.0192352e-06 | D140: ='DF raw data'!I145 -> 7.988775e-06 | F140: 2.070588437e-06 | G140: 9.047811573e-06 | H140: 7.997658518e-06 | J140: -1.93079038e-05 | K140: -0.002178800467 | L140: -1.606878163e-05 | M140: -0.0005227502996 | N140: 9.898305727e-08
A141: 67.45495 | B141: ='DF raw data'!G146 -> 5.8202818e-06 | C141: ='DF raw data'!H146 -> 5.4880843e-06 | D141: ='DF raw data'!I146 -> 1.046052e-05 | F141: 5.826753953e-06 | G141: 5.505472642e-06 | H141: 1.04721521e-05 | J141: -1.639353628e-05 | K141: -0.002187000022 | L141: -1.331510938e-05 | M141: -0.0005294101179 | N141: 9.920615319e-08
A142: 67.95512 | B142: ='DF raw data'!G147 -> 8.1270073e-06 | C142: ='DF raw data'!H147 -> 6.2522217e-06 | D142: ='DF raw data'!I147 -> 6.449633e-06 | F142: 8.136044532e-06 | G142: 6.27203112e-06 | H142: 6.456804992e-06 | J142: -1.232413088e-05 | K142: -0.002193164183 | L142: -1.017802758e-05 | M142: -0.0005345008619 | N142: 9.933393484e-08
A143: 68.45529 | B143: ='DF raw data'!G148 -> 4.2271672e-06 | C143: ='DF raw data'!H148 -> -1.1688641e-06 | D143: ='DF raw data'!I148 -> 3.8813801e-06 | F143: 4.23186781e-06 | G143: -1.172567507e-06 | H143: 3.885696195e-06 | J143: -1.020747756e-05 | K143: -0.002198269657 | L143: -1.076451067e-05 | M143: -0.0005398849472 | N143: 9.94440059e-08
A144: 68.95546 | B144: ='DF raw data'!G149 -> 1.7645174e-06 | C144: ='DF raw data'!H149 -> -6.1363567e-06 | D144: ='DF raw data'!I149 -> -1.1136958e-06 | F144: 1.766479543e-06 | G144: -6.155799016e-06 | H144: -1.11493423e-06 | J144: -9.323937487e-06 | K144: -0.002202933211 | L144: -1.384345666e-05 | M144: -0.0005468090289 | N144: 9.958334181e-08
A145: 69.45563 | B145: ='DF raw data'!G150 -> 3.6303638e-06 | C145: ='DF raw data'!H150 -> 1.6818088e-06 | D145: ='DF raw data'!I150 -> -2.8745212e-06 | F145: 3.634400765e-06 | G145: 1.687137411e-06 | H145: -2.877717668e-06 | J145: -7.506119257e-06 | K145: -0.002206687546 | L145: -1.299960114e-05 | M145: -0.0005533110394 | N145: 9.969604584e-08
A146: 69.9558 | B146: ='DF raw data'!G151 -> 5.2297505e-06 | C146: ='DF raw data'!H151 -> -5.368483e-06 | D146: ='DF raw data'!I151 -> 1.1721045e-06 | F146: 5.235565983e-06 | G146: -5.385492399e-06 | H146: 1.17340788e-06 | J146: -4.887446219e-06 | K146: -0.0022091321 | L146: -1.569326288e-05 | M146: -0.0005611603387 | N146: 9.983117458e-08
A147: 70.45597 | B147: ='DF raw data'!G152 -> 3.9475522e-06 | C147: ='DF raw data'!H152 -> -3.3578704e-06 | D147: ='DF raw data'!I152 -> 8.0679325e-07 | F147: 3.951941878e-06 | G147: -3.368509413e-06 | H147: 8.076904041e-07 | J147: -2.91080345e-06 | K147: -0.002210587997 | L147: -1.737809023e-05 | M147: -0.0005698523381 | N147: 9.998646276e-08
A148: 70.95614 | B148: ='DF raw data'!G153 -> 2.7537419e-06 | C148: ='DF raw data'!H153 -> 2.2140489e-06 | D148: ='DF raw data'!I153 -> -2.0750681e-06 | F148: 2.756804061e-06 | G148: 2.22106385e-06 | H148: -2.077375576e-06 | J148: -1.531932763e-06 | K148: -0.002211354224 | L148: -1.626718072e-05 | M148: -0.0005779886939 | N148: 1.001199921e-07
A149: 71.45631 | B149: ='DF raw data'!G154 -> 2.5990842e-06 | C149: ='DF raw data'!H154 -> -2.1121937e-06 | D149: ='DF raw data'!I154 -> 3.6915794e-06 | F149: 2.601974382e-06 | G149: -2.118885934e-06 | H149: 3.695684436e-06 | J149: -2.305032364e-07 | K149: -0.002211469514 | L149: -1.73269839e-05 | M149: -0.0005866551314 | N149: 1.002701819e-07
A150: 71.95648 | B150: ='DF raw data'!G155 -> 8.0473126e-07 | C150: ='DF raw data'!H155 -> -2.5543718e-06 | D150: ='DF raw data'!I155 -> 1.3315896e-05 | F150: 8.056261212e-07 | G150: -2.562465023e-06 | H150: 1.333070328e-05 | J150: 1.724467806e-07 | K150: -0.002211383262 | L150: -1.860865203e-05 | M150: -0.0005959626209 | N150: 1.004433966e-07
A151: 72.45665 | B151: ='DF raw data'!G156 -> -1.8371544e-06 | C151: ='DF raw data'!H156 -> -3.4771542e-06 | D151: ='DF raw data'!I156 -> 9.0846506e-06 | F151: =(1-$G$1*($B$2-$G$2))*B151 -> -1.839197316e-06 | G151: -3.488171149e-06 | H151: 9.094752731e-06 | J151: -7.474645408e-07 | K151: -0.002211757121 | L151: -2.035333059e-05 | M151: -0.0006061427463 | N151: 1.006508755e-07
A152: 72.95682 | B152: ='DF raw data'!G157 -> -2.0411433e-06 | C152: ='DF raw data'!H157 -> -1.0620044e-05 | D152: ='DF raw data'!I157 -> -1.9194063e-06 | F152: -2.043413051e-06 | G152: -1.065369235e-05 | H152: -1.92154068e-06 | J152: -1.769518447e-06 | K152: -0.002212642181 | L152: -2.568198789e-05 | M152: -0.0006189881062 | N152: 1.009823361e-07
A153: 73.45699 | B153: ='DF raw data'!G158 -> -1.06973e-06 | C153: ='DF raw data'!H158 -> -1.291082e-06 | D153: ='DF raw data'!I158 -> -6.8741195e-07 | F153: -1.07091954e-06 | G153: -1.29517264e-06 | H153: -6.881763521e-07 | J153: -2.305160273e-06 | K153: -0.002213795153 | L153: -2.632979439e-05 | M153: -0.0006321574794 | N153: 1.013317407e-07
A154: 73.95716 | B154: ='DF raw data'!G159 -> -1.1265407e-06 | C154: ='DF raw data'!H159 -> 2.3701428e-05 | D154: ='DF raw data'!I159 -> 4.6685805e-06 | F154: -1.127793413e-06 | G154: 2.377652315e-05 | H154: 4.673771962e-06 | J154: -2.869248704e-06 | K154: -0.002215230265 | L154: -1.443749081e-05 | M154: -0.0006393786792 | N154: 1.014401144e-07
A155: 74.45733 | B155: ='DF raw data'!G160 -> -8.6719083e-08 | C155: ='DF raw data'!H160 -> 1.7054219e-05 | D155: ='DF raw data'!I160 -> 5.2159216e-06 | F155: -8.681551462e-08 | G155: 1.710825326e-05 | H155: 5.221721705e-06 | J155: -2.91267122e-06 | K155: -0.002216687096 | L155: -5.880455774e-06 | M155: -0.0006423199068 | N155: 1.014616535e-07
A156: 74.9575 | B156: ='DF raw data'!G161 -> 3.7560487e-06 | C156: ='DF raw data'!H161 -> -1.02663e-06 | D156: ='DF raw data'!I161 -> 8.8777369e-06 | F156: 3.760225426e-06 | G156: -1.029882755e-06 | H156: 8.887608943e-06 | J156: -1.031919269e-06 | K156: -0.002217203231 | L156: -6.395572231e-06 | M156: -0.0006455187801 | N156: 1.014826447e-07
A157: 75.45767 | B157: ='DF raw data'!G162 -> 6.8702461e-06 | C157: ='DF raw data'!H162 -> 2.9084044e-06 | D157: ='DF raw data'!I162 -> 3.0412689e-06 | F157: 6.877885814e-06 | G157: 2.917619333e-06 | H157: 3.044650791e-06 | J157: 2.408192878e-06 | K157: -0.002215998725 | L157: -4.936266569e-06 | M157: -0.0006479877526 | N157: 1.014977329e-07
A158: 75.95784 | B158: ='DF raw data'!G163 -> 4.1799171e-06 | C158: ='DF raw data'!H163 -> 4.3262012e-06 | D158: ='DF raw data'!I163 -> -2.992319e-06 | F158: 4.184565168e-06 | G158: 4.339908254e-06 | H158: -2.995646459e-06 | J158: 4.501186838e-06 | K158: -0.002213747367 | L158: -2.765574658e-06 | M158: -0.0006493710101 | N158: 1.015116922e-07
A159: 76.45801 | B159: ='DF raw data'!G164 -> -2.3740765e-06 | C159: ='DF raw data'!H164 -> 2.8206091e-06 | D159: ='DF raw data'!I164 -> 5.947752e-06 | F159: -2.376716473e-06 | G159: 2.829545864e-06 | H159: 5.9543659e-06 | J159: 3.31242456e-06 | K159: -0.002212090591 | L159: -1.350320703e-06 | M159: -0.0006500464 | N159: 1.015180921e-07
A160: 76.95818 | B160: ='DF raw data'!G165 -> -6.5425161e-06 | C160: ='DF raw data'!H165 -> -3.4348307e-07 | D160: ='DF raw data'!I165 -> 7.7960349e-06 | F160: -6.549791378e-06 | G160: -3.445713552e-07 | H160: 7.804704091e-06 | J160: 3.641540664e-08 | K160: -0.002212072377 | L160: -1.522664958e-06 | M160: -0.0006508079913 | N160: 1.015192524e-07
A161: 77.45835 | B161: ='DF raw data'!G166 -> -5.0704298e-06 | C161: ='DF raw data'!H166 -> 2.180825e-06 | D161: ='DF raw data'!I166 -> 3.1172735e-06 | F161: -5.076068118e-06 | G161: 2.187734684e-06 | H161: 3.120739908e-06 | J161: -2.502481584e-06 | K161: -0.002213324044 | L161: -4.284257009e-07 | M161: -0.000651022277 | N161: 1.015224765e-07
A162: 77.95852 | B162: ='DF raw data'!G167 -> -1.0205446e-06 | C162: ='DF raw data'!H167 -> 9.83274e-06 | D162: ='DF raw data'!I167 -> 3.3492893e-06 | F162: -1.021679446e-06 | G162: 9.863893866e-06 | H162: 3.35301371e-06 | J162: -3.013494992e-06 | K162: -0.002214831303 | L162: 4.505198094e-06 | M162: -0.0006487689121 | N162: 1.015371705e-07
A163: 78.45869 | B163: ='DF raw data'!G168 -> 5.2857956e-07 | C163: ='DF raw data'!H168 -> 7.3104334e-06 | D163: ='DF raw data'!I168 -> 6.5752888e-06 | F163: 5.291673405e-07 | G163: 7.333595638e-06 | H163: 6.582600521e-06 | J163: -2.748821364e-06 | K163: -0.002216206181 | L163: 8.173242625e-06 | M163: -0.0006446809013 | N163: 1.015743621e-07
A164: 78.95886 | B164: ='DF raw data'!G169 -> 3.4548736e-07 | C164: ='DF raw data'!H169 -> 9.0887506e-06 | D164: ='DF raw data'!I169 -> 3.0241704e-06 | F164: 3.458715419e-07 | G164: 9.117547224e-06 | H164: 3.027533277e-06 | J164: -2.575826794e-06 | K164: -0.002217494533 | L164: 1.273356622e-05 | M164: -0.0006383119535 | N164: 1.016587801e-07
A165: 79.45903 | B165: ='DF raw data'!G170 -> 1.1743208e-06 | C165: ='DF raw data'!H170 -> 7.1176314e-06 | D165: ='DF raw data'!I170 -> 7.6897477e-06 | F165: 1.175626645e-06 | G165: 7.140182768e-06 | H165: 7.698298699e-06 | J165: -1.987813616e-06 | K165: -0.002218488777 | L165: 1.630487143e-05 | M165: -0.0006301567459 | N165: 1.01793726e-07
A166: 79.9592 | B166: ='DF raw data'!G171 -> 4.2815041e-06 | C166: ='DF raw data'!H171 -> 1.9401236e-06 | D166: ='DF raw data'!I171 -> 1.557866e-05 | F166: 4.286265133e-06 | G166: 1.946270651e-06 | H166: 1.559598347e-05 | J166: 1.560476158e-07 | K166: -0.002218410727 | L166: 1.727833763e-05 | M166: -0.0006215146398 | N166: 1.019430594e-07
A167: 80.45937 | B167: ='DF raw data'!G172 -> 8.076483e-06 | C167: ='DF raw data'!H172 -> -7.6964864e-07 | D167: ='DF raw data'!I172 -> 1.2923024e-05 | F167: 8.085464049e-06 | G167: -7.720871801e-07 | H167: 1.29373944e-05 | J167: 4.200154169e-06 | K167: -0.002216309936 | L167: 1.689216278e-05 | M167: -0.0006130656867 | N167: 1.020946042e-07
A168: 80.95954 | B168: ='DF raw data'!G173 -> 7.4096565e-06 | C168: ='DF raw data'!H173 -> -1.0557175e-06 | D168: ='DF raw data'!I173 -> 2.8300915e-06 | F168: 7.417896038e-06 | G168: -1.059062415e-06 | H168: 2.833238562e-06 | J168: 7.910363231e-06 | K168: -0.00221235341 | L168: 1.636245153e-05 | M168: -0.0006048816794 | N168: 1.022598122e-07
A169: 81.45971 | B169: ='DF raw data'!G174 -> 1.9227111e-06 | C169: ='DF raw data'!H174 -> -2.5002005e-06 | D169: ='DF raw data'!I174 -> -2.0850507e-06 | F169: 1.924849155e-06 | G169: -2.508122088e-06 | H169: -2.087369276e-06 | J169: 8.873115032e-06 | K169: -0.002207915344 | L169: 1.510796411e-05 | M169: -0.000597325129 | N169: 1.024133557e-07
A170: 81.95988 | B170: ='DF raw data'!G175 -> -4.1818607e-06 | C170: ='DF raw data'!H175 -> 3.9425981e-06 | D170: ='DF raw data'!I175 -> 4.3999667e-06 | F170: -4.186510929e-06 | G170: 3.955089753e-06 | H170: 4.404859463e-06 | J170: 6.779147861e-06 | K170: -0.002204524617 | L170: 1.708618135e-05 | M170: -0.0005887791336 | N170: 1.025823604e-07
A171: 82.46005 | B171: ='DF raw data'!G176 -> -4.6641985e-06 | C171: ='DF raw data'!H176 -> 7.3987626e-06 | D171: ='DF raw data'!I176 -> 6.7267015e-06 | F171: -4.669385089e-06 | G171: 7.422204699e-06 | H171: 6.734181592e-06 | J171: 4.443661521e-06 | K171: -0.002202302031 | L171: 2.079854547e-05 | M171: -0.0005783763251 | N171: 1.028086001e-07
A172: 82.96022 | B172: ='DF raw data'!G177 -> 3.6249651e-06 | C172: ='DF raw data'!H177 -> -4.6670571e-06 | D172: ='DF raw data'!I177 -> 7.8532676e-06 | F172: 3.628996061e-06 | G172: -4.681844115e-06 | H172: 7.862000434e-06 | J172: 6.258776481e-06 | K172: -0.002199171579 | L172: 1.84568275e-05 | M172: -0.0005691447737 | N172: 1.029985781e-07
A173: 83.46039 | B173: ='DF raw data'!G178 -> 1.1758787e-05 | C173: ='DF raw data'!H178 -> -4.1041271e-06 | D173: ='DF raw data'!I178 -> 1.1661489e-05 | F173: 1.177186277e-05 | G173: -4.117130538e-06 | H173: 1.167445658e-05 | J173: 1.214670908e-05 | K173: -0.002193096159 | L173: 1.639756232e-05 | M173: -0.000560943205 | N173: 1.032068601e-07
A174: 83.96056 | B174: ='DF raw data'!G179 -> 1.1570412e-05 | C174: ='DF raw data'!H179 -> 5.3414483e-06 | D174: ='DF raw data'!I179 -> 6.3056855e-06 | F174: 1.15832783e-05 | G174: 5.358372043e-06 | H174: 6.312697422e-06 | J174: 1.794031739e-05 | K174: -0.002184122951 | L174: 1.907765927e-05 | M174: -0.0005514011321 | N174: 1.035498828e-07
A175: 84.46073 | B175: ='DF raw data'!G180 -> 7.7106333e-06 | C175: ='DF raw data'!H180 -> 8.3557015e-06 | D175: ='DF raw data'!I180 -> 3.2356825e-06 | F175: 7.719207524e-06 | G175: 8.382175546e-06 | H175: 3.239280579e-06 | J175: 2.180123342e-05 | K175: -0.002173218628 | L175: 2.327017201e-05 | M175: -0.0005397620902 | N175: 1.04058453e-07
A176: 84.9609 | B176: ='DF raw data'!G181 -> 5.2757346e-06 | C176: ='DF raw data'!H181 -> 9.1378515e-06 | D176: ='DF raw data'!I181 -> 3.9052161e-06 | F176: 5.281601217e-06 | G176: 9.166803695e-06 | H176: 3.9095587e-06 | J176: 2.44429319e-05 | K176: -0.002160993007 | L176: 2.785513221e-05 | M176: -0.0005258297887 | N176: 1.047453691e-07
A177: 85.46107 | B177: ='DF raw data'!G182 -> 6.9987016e-07 | C177: ='DF raw data'!H182 -> 1.0776071e-05 | D177: ='DF raw data'!I182 -> 3.6860497e-06 | F177: 7.006484156e-07 | G177: 1.08102137e-05 | H177: 3.690148587e-06 | J177: 2.479337522e-05 | K177: -0.002148592104 | L177: 3.32620768e-05 | M177: -0.0005091930958 | N177: 1.056062003e-07
A178: 85.96124 | B178: ='DF raw data'!G183 -> -5.1417196e-06 | C178: ='DF raw data'!H183 -> 1.6923994e-05 | D178: ='DF raw data'!I183 -> 4.1945809e-06 | F178: -5.147437192e-06 | G178: 1.697761566e-05 | H178: 4.199245274e-06 | J178: 2.221878156e-05 | K178: -0.002137478936 | L178: 4.175377082e-05 | M178: -0.0004883091122 | N178: 1.067251064e-07
A179: 86.46141 | B179: ='DF raw data'!G184 -> -7.5214089e-06 | C179: ='DF raw data'!H184 -> 8.7102171e-06 | D179: ='DF raw data'!I184 -> -2.144165e-07 | F179: -7.529772707e-06 | G179: 8.737814386e-06 | H179: -2.146549311e-07 | J179: 1.845261514e-05 | K179: -0.002128249492 | L179: 4.612416345e-05 | M179: -0.0004652391894 | N179: 1.079594947e-07
A180: 86.96158 | B180: ='DF raw data'!G185 -> -7.7489576e-06 | C180: ='DF raw data'!H185 -> -1.5800866e-06 | D180: ='DF raw data'!I185 -> -2.8631416e-06 | F180: -7.757574441e-06 | G180: -1.585092916e-06 | H180: -2.866325413e-06 | J180: 1.457250913e-05 | K180: -0.00212096076 | L180: 4.533134752e-05 | M180: -0.0004425658093 | N180: 1.090935247e-07
A181: 87.46175 | B181: ='DF raw data'!G186 -> -6.4698293e-06 | C181: ='DF raw data'!H186 -> 3.5549915e-06 | D181: ='DF raw data'!I186 -> -2.4756532e-06 | F181: -6.47702375e-06 | G181: 3.566255067e-06 | H181: -2.478406126e-06 | J181: 1.133289616e-05 | K181: -0.002115292385 | L181: 4.711508132e-05 | M181: -0.0004190002591 | N181: 1.102680566e-07
A182: 87.96192 | B182: ='DF raw data'!G187 -> -3.7443867e-06 | C182: ='DF raw data'!H187 -> 2.3225618e-07 | D182: ='DF raw data'!I187 -> -7.3752875e-07 | F182: -3.748550458e-06 | G182: 2.329920561e-07 | H182: -7.38348882e-07 | J182: 9.457983681e-06 | K182: -0.002110561785 | L182: 4.723161696e-05 | M182: -0.0003953764212 | N182: 1.114285906e-07
A183: 88.46209 | B183: ='DF raw data'!G188 -> 4.9050286e-08 | C183: ='DF raw data'!H188 -> 1.7573278e-06 | D183: ='DF raw data'!I188 -> 1.8789056e-06 | F183: 4.910482992e-08 | G183: 1.762895684e-06 | H183: 1.880994943e-06 | J183: 9.482544444e-06 | K183: -0.002105818901 | L183: 4.811336449e-05 | M183: -0.0003713115597 | N183: 1.126314066e-07
A184: 88.96226 | B184: ='DF raw data'!G189 -> 5.0236954e-06 | C184: ='DF raw data'!H189 -> 1.1125916e-05 | D184: ='DF raw data'!I189 -> 1.8717897e-06 | F184: 5.029281749e-06 | G184: 1.116116714e-05 | H184: 1.87387113e-06 | J184: 1.19980403e-05 | K184: -0.002099817841 | L184: 5.369584546e-05 | M184: -0.0003444545087 | N184: 1.141455196e-07
A185: 89.46243 | B185: ='DF raw data'!G190 -> 7.2287617e-06 | C185: ='DF raw data'!H190 -> 4.3910463e-06 | D185: ='DF raw data'!I190 -> 4.0220635e-07 | F185: 7.236800083e-06 | G185: 4.404958808e-06 | H185: 4.026536035e-07 | J185: 1.561767059e-05 | K185: -0.002092006351 | L185: 5.589907371e-05 | M185: -0.000316495469 | N185: 1.158304014e-07
A186: 89.9626 | B186: ='DF raw data'!G191 -> 5.6584208e-06 | C186: ='DF raw data'!H191 -> -4.9995574e-06 | D186: ='DF raw data'!I191 -> 2.2496403e-07 | F186: 5.664712964e-06 | G186: -5.015397903e-06 | H186: 2.2521419e-07 | J186: 1.845099008e-05 | K186: -0.002082777719 | L186: 5.339052214e-05 | M186: -0.0002897911315 | N186: 1.174264373e-07
A187: 90.46277 | B187: ='DF raw data'!G192 -> 4.4658623e-06 | C187: ='DF raw data'!H192 -> -8.3809721e-07 | D187: ='DF raw data'!I192 -> -3.1941831e-06 | F187: 4.470828339e-06 | G187: -8.407526213e-07 | H187: -3.197735032e-06 | J187: 2.068716429e-05 | K187: -0.00207243062 | L187: 5.29700029e-05 | M187: -0.0002632971252 | N187: 1.19043877e-07
A188: 90.96294 | B188: ='DF raw data'!G193 -> 4.7899334e-06 | C188: ='DF raw data'!H193 -> 7.2470552e-06 | D188: ='DF raw data'!I193 -> 1.5758183e-06 | F188: 4.795259806e-06 | G188: 7.270016632e-06 | H188: 1.57757061e-06 | J188: 2.308560938e-05 | K188: -0.002060883891 | L188: 5.660624712e-05 | M188: -0.0002349843786 | N188: 1.209131186e-07
A189: 91.46311 | B189: ='DF raw data'!G194 -> 9.6124522e-06 | C189: ='DF raw data'!H194 -> 4.6784485e-06 | D189: ='DF raw data'!I194 -> 1.0559822e-05 | F189: 9.623141247e-06 | G189: 4.693271607e-06 | H189: 1.057156452e-05 | J189: 2.789881594e-05 | K189: -0.00204692974 | L189: 5.895368078e-05 | M189: -0.0002054975161 | N189: 1.23040782e-07
A190: 91.96328 | B190: ='DF raw data'!G195 -> 1.5383815e-05 | C190: ='DF raw data'!H195 -> 2.1369292e-06 | D190: ='DF raw data'!I195 -> 1.3455857e-05 | F190: 1.54009218e-05 | G190: 2.143699806e-06 | H190: 1.347081991e-05 | J190: 3.5601895e-05 | K190: -0.00202912274 | L190: 6.002589511e-05 | M190: -0.0001754743641 | N190: 1.254769115e-07
A191: 92.46345 | B191: ='DF raw data'!G196 -> 1.4026863e-05 | C191: ='DF raw data'!H196 -> 5.9113158e-06 | D191: ='DF raw data'!I196 -> 1.1244533e-05 | F191: 1.404246087e-05 | G191: 5.930045101e-06 | H191: 1.125703692e-05 | J191: 4.262551265e-05 | K191: -0.002007802738 | L191: 6.299192577e-05 | M191: -0.0001439676926 | N191: 1.283703534e-07
A192: 92.96362 | B192: ='DF raw data'!G197 -> 7.3296937e-06 | C192: ='DF raw data'!H197 -> 1.0342832e-05 | D192: ='DF raw data'!I197 -> 7.9459051e-06 | F192: 7.337844319e-06 | G192: 1.037560203e-05 | H192: 7.954740946e-06 | J192: 4.629568225e-05 | K192: -0.001984647026 | L192: 6.818149063e-05 | M192: -0.0001098653564 | N192: 1.31767511e-07
A193: 93.46379 | B193: ='DF raw data'!G198 -> 2.8986644e-06 | C193: ='DF raw data'!H198 -> 5.9103827e-06 | D193: ='DF raw data'!I198 -> 2.8852679e-07 | F193: 2.901887715e-06 | G193: 5.929109044e-06 | H193: 2.888476318e-07 | J193: 4.774711943e-05 | K193: -0.00196076535 | L193: 7.11470531e-05 | M193: -7.427973487e-05 | N193: 1.354396044e-07
A194: 93.96396 | B194: ='DF raw data'!G199 -> 4.7769822e-06 | C194: ='DF raw data'!H199 -> 5.1080847e-06 | D194: ='DF raw data'!I199 -> -1.6626959e-06 | F194: 4.782294204e-06 | G194: 5.124269058e-06 | H194: -1.664544818e-06 | J194: 5.013907952e-05 | K194: -0.001935687286 | L194: 7.371005876e-05 | M194: -3.741217478e-05 | N194: 1.394145054e-07
A195: 94.46413 | B195: ='DF raw data'!G200 -> 9.837192e-06 | C195: ='DF raw data'!H200 -> 4.11472e-06 | D195: ='DF raw data'!I200 -> -2.0312814e-06 | F195: 9.848130958e-06 | G195: 4.127757001e-06 | H195: -2.033540185e-06 | J195: 5.506481918e-05 | K195: -0.001908145516 | L195: 7.577463898e-05 | M195: 4.880264021e-07 | N195: 1.438029621e-07
A196: 94.9643 | B196: ='DF raw data'!G201 -> 1.299311e-05 | C196: ='DF raw data'!H201 -> 6.2146171e-07 | D196: ='DF raw data'!I201 -> 8.7462979e-08 | F196: 1.300755834e-05 | G196: 6.234307375e-07 | H196: 8.756023783e-08 | J196: 6.157080963e-05 | K196: -0.001877349644 | L196: 7.608646033e-05 | M196: 3.854419127e-05 | N196: 1.485946477e-07
A197: 95.46447 | B197: ='DF raw data'!G202 -> 1.2320011e-05 | C197: ='DF raw data'!H202 -> 4.3056539e-06 | D197: ='DF raw data'!I202 -> 2.9582066e-06 | F197: 1.233371085e-05 | G197: 4.319295852e-06 | H197: 2.961496126e-06 | J197: 6.773976179e-05 | K197: -0.001843468247 | L197: 7.824684254e-05 | M197: 7.76809145e-05 | N197: 1.539520905e-07
A198: 95.96464 | B198: ='DF raw data'!G203 -> 1.0606348e-05 | C198: ='DF raw data'!H203 -> 1.7656006e-06 | D198: ='DF raw data'!I203 -> 2.9362477e-06 | F198: 1.061814226e-05 | G198: 1.771194695e-06 | H198: 2.939512807e-06 | J198: 7.3050638e-05 | K198: -0.00180693051 | L198: 7.913274099e-05 | M198: 0.0001172607376 | N198: 1.597532554e-07
A199: 96.46481 | B199: ='DF raw data'!G204 -> 9.209888e-06 | C199: ='DF raw data'!H204 -> -3.6990207e-07 | D199: ='DF raw data'!I204 -> 2.5048416e-06 | F199: 9.220129395e-06 | G199: =(1-$G$1*($B$2-$G$2))*C199*$M$2/$M$1 -> -3.710740607e-07 | H199: 2.507626984e-06 | J199: 7.766227012e-05 | K199: -0.001768086172 | L199: 7.894714087e-05 | M199: 0.000156747729 | N199: 1.658873799e-07
A200: =A199+$B$1 -> 96.96498 | B200: ='DF raw data'!G205 -> 8.1675926e-06 | C200: ='DF raw data'!H205 -> -5.4099796e-06 | D200: ='DF raw data'!I205 -> -7.7321005e-07 | F200: 8.176674963e-06 | G200: -5.427120476e-06 | H200: -7.740698596e-07 | J200: =F200*$B$1+J199 -> 8.175199764e-05 | K200: =J200*$B$1+K199 -> -0.001727196275 | L200: =G200*$B$1+L199 -> 7.623265803e-05 | M200: =L200*$B$1+M199 -> 0.0001948770176 | N200: =(J200^2+L200^2)*$B$1+N199 -> 1.721369077e-07
A201: 97.46515 | B201: ='DF raw data'!G206 -> 7.9710107e-06 | C201: ='DF raw data'!H206 -> -6.0014622e-06 | D201: ='DF raw data'!I206 -> -7.7460703e-07 | F201: 7.979874464e-06 | G201: -6.020477119e-06 | H201: -7.75468393e-07 | J201: 8.574329145e-05 | K201: -0.001684310053 | L201: 7.322139599e-05 | M201: 0.0002315001632 | N201: 1.784957114e-07
... 1002 more rows

Sheet 20 mm
A1: dz | B1: ='DF raw data'!K7 -> 0.50014 | C1: mm | F1: T_coeff | G1: -0.0008 | H1: /degC | L1: Hallref | M1: ='PI vs gap'!B50 -> 0.505575 | N1: T | P1: IBy total | Q1: =L1203*1000 -> -8.040261598 | R1: muTm | X1: DF ref | Y1: 21
A2: Tref | B2: ='DF raw data'!K8 -> 21.35 | C2: degC | F2: Tcorr | G2: 20 | H2: degC | L2: NMRref | M2: ='PI vs gap'!B51 -> 0.5066135 | N2: T | P2: JBy total | Q2: =M1203 -> -2.756532472 | R2: muTm^2
A3: Encoder | B3: ='DF raw data'!K9 -> 17868737 | P3: PI total | Q3: =N1203 -> 203.2757035 | R3: T^2mm^3
A5: z [mm] | B5: Bx | C5: By | D5: Bz | F5: Bx_corr | G5: By_corr | H5: Bz_corr | J5: Ix | K5: Jx | L5: Iy | M5: Jy | N5: PI
A6: -0.068 | B6: ='DF raw data'!J11 -> -2.0201401e-06 | C6: ='DF raw data'!K11 -> -3.5444932e-06 | D6: ='DF raw data'!L11 -> 3.9730585e-07 | F6: =(1-$G$1*($B$2-$G$2))*B6 -> -2.022321851e-06 | G6: =(1-$G$1*($B$2-$G$2))*C6*$M$2/$M$1 -> -3.555609848e-06 | H6: =(1-$G$1*($B$2-$G$2))*D6 -> 3.977349403e-07 | J6: =F6*$B$1 -> -1.011444051e-06 | K6: =J6*$B$1 -> -5.058636275e-07 | L6: =G6*$B$1 -> -1.778302709e-06 | M6: =L6*$B$1 -> -8.894003171e-07 | N6: =(J6^2+L6)^2*$B$1 -> 1.581621174e-12
A7: =A6+$B$1 -> 0.43214 | B7: ='DF raw data'!J12 -> -1.9887661e-06 | C7: ='DF raw data'!K12 -> -4.3475916e-06 | D7: ='DF raw data'!L12 -> 6.0235686e-07 | F7: =(1-$G$1*($B$2-$G$2))*B7 -> -1.990913967e-06 | G7: =(1-$G$1*($B$2-$G$2))*C7*$M$2/$M$1 -> -4.361227018e-06 | H7: 6.030074054e-07 | J7: =F7*$B$1+J6 -> -2.007179762e-06 | K7: =J7*$B$1+K6 -> -1.509734514e-06 | L7: =G7*$B$1+L6 -> -3.95952679e-06 | M7: =L7*$B$1+M6 -> -2.869718046e-06 | N7: =(J7^2+L7^2)*$B$1+N6 -> 1.14376916e-11
A8: =A7+$B$1 -> 0.93228 | B8: ='DF raw data'!J13 -> -1.9957802e-06 | C8: ='DF raw data'!K13 -> -4.1466496e-06 | D8: ='DF raw data'!L13 -> 5.0078449e-07 | F8: -1.997935643e-06 | G8: -4.1596548e-06 | H8: 5.013253372e-07 | J8: =F8*$B$1+J7 -> -3.006427295e-06 | K8: =J8*$B$1+K7 -> -3.013369061e-06 | L8: =G8*$B$1+L7 -> -6.039936542e-06 | M8: =L8*$B$1+M7 -> -5.890531908e-06 | N8: =(J8^2+L8^2)*$B$1+N7 -> 3.420378358e-11
A9: 1.43242 | B9: ='DF raw data'!J14 -> -2.0995062e-06 | C9: ='DF raw data'!K14 -> -1.8440966e-06 | D9: ='DF raw data'!L14 -> -2.630904e-06 | F9: -2.101773667e-06 | G9: -1.849880268e-06 | H9: -2.633745376e-06 | J9: -4.057608376e-06 | K9: -5.042741314e-06 | L9: -6.965135659e-06 | M9: -9.374074857e-06 | N9: 6.670153064e-11
A10: 1.93256 | B10: ='DF raw data'!J15 -> -2.2428862e-06 | C10: ='DF raw data'!K15 -> 2.3832768e-06 | D10: ='DF raw data'!L15 -> -6.9126475e-07 | F10: -2.245308517e-06 | G10: 2.390751507e-06 | H10: -6.920113159e-07 | J10: -5.180576978e-06 | K10: -7.633755084e-06 | L10: -5.7694252e-06 | M10: -1.225959518e-05 | N10: 9.677227058e-11
A11: 2.4327 | B11: ='DF raw data'!J16 -> -1.822496e-06 | C11: ='DF raw data'!K16 -> -9.038491e-06 | D11: ='DF raw data'!L16 -> -3.2381431e-07 | F11: -1.824464296e-06 | G11: -9.066838557e-06 | H11: -3.241640295e-07 | J11: -6.093064551e-06 | K11: -1.068114039e-05 | L11: -1.030411384e-05 | M11: -1.741309467e-05 | N11: 1.684424314e-10
A12: 2.93284 | B12: ='DF raw data'!J17 -> -2.5497279e-06 | C12: ='DF raw data'!K17 -> 1.0133126e-05 | D12: ='DF raw data'!L17 -> -3.832019e-06 | F12: -2.552481606e-06 | G12: 1.016490668e-05 | H12: -3.836157581e-06 | J12: -7.369662701e-06 | K12: -1.436700349e-05 | L12: -5.220237411e-06 | M12: -2.002394421e-05 | N12: 2.092352537e-10
A13: 3.43298 | B13: ='DF raw data'!J18 -> -1.9589347e-06 | C13: ='DF raw data'!K18 -> -6.4425308e-06 | D13: ='DF raw data'!L18 -> -6.4081155e-06 | F13: -1.961050349e-06 | G13: -6.462736608e-06 | H13: -6.415036265e-06 | J13: -8.350462423e-06 | K13: -1.854340377e-05 | L13: -8.452510498e-06 | M13: -2.425138281e-05 | N13: 2.798425964e-10
A14: 3.93312 | B14: ='DF raw data'!J19 -> -1.4745306e-06 | C14: ='DF raw data'!K19 -> -1.879095e-05 | D14: ='DF raw data'!L19 -> -1.9889899e-06 | F14: -1.476123093e-06 | G14: -1.884988434e-05 | H14: -1.991138009e-06 | J14: -9.088730627e-06 | K14: -2.30890415e-05 | L14: -1.788009165e-05 | M14: -3.319393185e-05 | N14: 4.810502697e-10
A15: 4.43326 | B15: ='DF raw data'!J20 -> -2.3319294e-06 | C15: ='DF raw data'!K20 -> 6.2453259e-06 | D15: ='DF raw data'!L20 -> 7.4333898e-06 | F15: -2.334447884e-06 | G15: 6.264913211e-06 | H15: 7.441417861e-06 | J15: -1.025628139e-05 | K15: -2.821861808e-05 | L15: -1.474675796e-05 | M15: -4.056937537e-05 | N15: 6.42424531e-10
A16: 4.9334 | B16: ='DF raw data'!J21 -> -2.0706789e-06 | C16: ='DF raw data'!K21 -> -1.1534772e-06 | D16: ='DF raw data'!L21 -> 6.255194e-06 | F16: -2.072915233e-06 | G16: -1.157094868e-06 | H16: 6.26194961e-06 | J16: -1.129302922e-05 | K16: -3.386671371e-05 | L16: -1.532546739e-05 | M16: -4.823425463e-05 | N16: 8.236764971e-10
A17: 5.43354 | B17: ='DF raw data'!J22 -> -1.9719441e-06 | C17: ='DF raw data'!K22 -> -4.4001604e-06 | D17: ='DF raw data'!L22 -> 3.232572e-06 | F17: -1.9740738e-06 | G17: -4.41396069e-06 | H17: 3.236063178e-06 | J17: -1.228034249e-05 | K17: -4.00086042e-05 | L17: -1.753306569e-05 | M17: -5.700324211e-05 | N17: 1.052848249e-09
A18: 5.93368 | B18: ='DF raw data'!J23 -> -2.0747389e-06 | C18: ='DF raw data'!K23 -> -1.9364284e-06 | D18: ='DF raw data'!L23 -> 1.0965108e-06 | F18: -2.076979618e-06 | G18: -1.94250165e-06 | H18: 1.097695032e-06 | J18: -1.331912307e-05 | K18: -4.667003042e-05 | L18: -1.850458846e-05 | M18: -6.625812698e-05 | N18: 1.312830441e-09
A19: 6.43382 | B19: ='DF raw data'!J24 -> -2.0756847e-06 | C19: ='DF raw data'!K24 -> -2.613971e-06 | D19: ='DF raw data'!L24 -> -3.2182484e-06 | F19: -2.077926439e-06 | G19: -2.622169237e-06 | H19: -3.221724108e-06 | J19: -1.43583772e-05 | K19: -5.385122919e-05 | L19: -1.981604018e-05 | M19: -7.616892132e-05 | N19: 1.6123335e-09
A20: 6.93396 | B20: ='DF raw data'!J25 -> -1.9991126e-06 | C20: ='DF raw data'!K25 -> -3.9350339e-06 | D20: ='DF raw data'!L25 -> 1.347153e-06 | F20: -2.001271642e-06 | G20: -3.947375407e-06 | H20: 1.348607925e-06 | J20: -1.53592932e-05 | K20: -6.153302609e-05 | L20: -2.179028052e-05 | M20: -8.706711222e-05 | N20: 1.967795108e-09
A21: 7.4341 | B21: ='DF raw data'!J26 -> -2.1055889e-06 | C21: ='DF raw data'!K26 -> 1.9640392e-07 | D21: ='DF raw data'!L26 -> 8.8360921e-06 | F21: -2.107862936e-06 | G21: 1.970199046e-07 | H21: 8.845635079e-06 | J21: -1.641351977e-05 | K21: -6.974208387e-05 | L21: -2.169174298e-05 | M21: -9.791602055e-05 | N21: 2.337866371e-09
A22: 7.93424 | B22: ='DF raw data'!J27 -> -6.8395411e-07 | C22: ='DF raw data'!K27 -> -1.9472368e-06 | D22: ='DF raw data'!L27 -> 3.2720368e-06 | F22: -6.846927804e-07 | G22: -1.953343948e-06 | H22: 3.2755706e-06 | J22: -1.675596202e-05 | K22: -7.812241071e-05 | L22: -2.266868843e-05 | M22: -0.0001092535384 | N22: 2.735293469e-09
A23: 8.43438 | B23: ='DF raw data'!J28 -> 4.2415965e-07 | C23: ='DF raw data'!K28 -> -6.0902835e-06 | D23: ='DF raw data'!L28 -> -2.0693892e-06 | F23: =(1-$G$1*($B$2-$G$2))*B23 -> 4.246177424e-07 | G23: -6.109384549e-06 | H23: -2.07162414e-06 | J23: -1.65435937e-05 | K23: -8.639652366e-05 | L23: -2.572423602e-05 | M23: -0.0001221192578 | N23: 3.203137834e-09
A24: 8.93452 | B24: ='DF raw data'!J29 -> -3.0584338e-06 | C24: ='DF raw data'!K29 -> -9.4836032e-06 | D24: ='DF raw data'!L29 -> -4.8024426e-06 | F24: -3.061736909e-06 | G24: -9.513346769e-06 | H24: -4.807629238e-06 | J24: -1.80748908e-05 | K24: -9.543649955e-05 | L24: -3.048224127e-05 | M24: -0.0001373646459 | N24: 3.831248011e-09
A25: 9.43466 | B25: ='DF raw data'!J30 -> -5.3473336e-06 | C25: ='DF raw data'!K30 -> -5.4024679e-07 | D25: ='DF raw data'!L30 -> -5.555024e-06 | F25: -5.35310872e-06 | G25: -5.419411742e-07 | H25: -5.561023426e-06 | J25: -2.075219459e-05 | K25: -0.0001058155022 | L25: -3.075328773e-05 | M25: -0.0001527455953 | N25: 4.519649853e-09
A26: 9.9348 | B26: ='DF raw data'!J31 -> -3.2048115e-06 | C26: ='DF raw data'!K31 -> -9.4104871e-06 | D26: ='DF raw data'!L31 -> -1.9367485e-06 | F26: -3.208272696e-06 | G26: -9.440001354e-06 | H26: -1.938840188e-06 | J26: -2.23567801e-05 | K26: -0.0001169970221 | L26: -3.547461e-05 | M26: -0.0001704878667 | N26: 5.399032797e-09
A27: 10.43494 | B27: ='DF raw data'!J32 -> -1.0031504e-06 | C27: ='DF raw data'!K32 -> -1.7468279e-06 | D27: ='DF raw data'!L32 -> 2.592642e-08 | F27: -1.004233802e-06 | G27: -1.752306503e-06 | H27: 2.595442053e-08 | J27: -2.285903759e-05 | K27: -0.0001284297412 | L27: -3.635100858e-05 | M27: -0.0001886684601 | N27: 6.321256659e-09
A28: 10.93508 | B28: ='DF raw data'!J33 -> -2.4245087e-06 | C28: ='DF raw data'!K33 -> -5.9601882e-07 | D28: ='DF raw data'!L33 -> 2.5586437e-06 | F28: -2.427127169e-06 | G28: -5.978881229e-07 | H28: 2.561407035e-06 | J28: -2.407294097e-05 | K28: -0.0001404695819 | L28: -3.665003635e-05 | M28: -0.0002069986093 | N28: 7.282891667e-09
A29: 11.43522 | B29: ='DF raw data'!J34 -> -1.5219989e-06 | C29: ='DF raw data'!K34 -> 5.0252679e-06 | D29: ='DF raw data'!L34 -> -1.1279151e-05 | F29: -1.523642659e-06 | G29: 5.041028724e-06 | H29: -1.129133248e-05 | J29: -2.483497561e-05 | K29: -0.0001528905466 | L29: -3.412881624e-05 | M29: -0.0002240677955 | N29: 8.17391714e-09
A30: 11.93536 | B30: ='DF raw data'!J35 -> 3.4765403e-06 | C30: ='DF raw data'!K35 -> -2.38034e-06 | D30: ='DF raw data'!L35 -> -6.1882943e-06 | F30: 3.480294964e-06 | G30: -2.387805497e-06 | H30: -6.194977658e-06 | J30: -2.309434089e-05 | K30: -0.0001644409503 | L30: -3.532305328e-05 | M30: -0.0002417342673 | N30: 9.064699827e-09
A31: 12.4355 | B31: ='DF raw data'!J36 -> 3.2311077e-06 | C31: ='DF raw data'!K36 -> -6.6665557e-06 | D31: ='DF raw data'!L36 -> 5.8679821e-06 | F31: 3.234597296e-06 | G31: -6.68746412e-06 | H31: 5.874319521e-06 | J31: -2.14765894e-05 | K31: -0.0001751822517 | L31: -3.866772159e-05 | M31: -0.0002610735416 | N31: 1.004319202e-08
A32: 12.93564 | B32: ='DF raw data'!J37 -> 2.6193452e-06 | C32: ='DF raw data'!K37 -> 6.9971879e-06 | D32: ='DF raw data'!L37 -> -5.8749504e-07 | F32: 2.622174093e-06 | G32: 7.019133287e-06 | H32: -5.881295346e-07 | J32: -2.016513525e-05 | K32: -0.0001852676424 | L32: -3.515717226e-05 | M32: -0.0002786570497 | N32: 1.086475171e-08
A33: 13.43578 | B33: ='DF raw data'!J38 -> 8.3813648e-06 | C33: ='DF raw data'!K38 -> 6.3348557e-06 | D33: ='DF raw data'!L38 -> -4.0287486e-07 | F33: 8.390416674e-06 | G33: 6.354723805e-06 | H33: -4.033099648e-07 | J33: -1.596875225e-05 | K33: -0.0001932542542 | L33: -3.19789207e-05 | M33: -0.0002946509871 | N33: 1.150375679e-08
A34: 13.93592 | B34: ='DF raw data'!J39 -> 8.2328479e-06 | C34: ='DF raw data'!K39 -> -4.9673595e-06 | D34: ='DF raw data'!L39 -> 7.1750351e-06 | F34: 8.241739376e-06 | G34: -4.982938705e-06 | H34: 7.182784138e-06 | J34: -1.184672872e-05 | K34: -0.0001991792771 | L34: -3.447108766e-05 | M34: -0.0003118913569 | N34: 1.216824323e-08
A35: 14.43606 | B35: ='DF raw data'!J40 -> 3.4466254e-07 | C35: ='DF raw data'!K40 -> -3.5913249e-06 | D35: ='DF raw data'!L40 -> -2.5182285e-06 | F35: 3.450347755e-07 | G35: -3.602588427e-06 | H35: -2.520948187e-06 | J35: -1.167416303e-05 | K35: -0.000205017993 | L35: -3.627288624e-05 | M35: -0.0003300328782 | N35: 1.289445069e-08
A36: 14.9362 | B36: ='DF raw data'!J41 -> -1.7493435e-06 | C36: ='DF raw data'!K41 -> 1.7791175e-06 | D36: ='DF raw data'!L41 -> -2.5250242e-06 | F36: -1.751232791e-06 | G36: 1.784697373e-06 | H36: -2.527751226e-06 | J36: -1.25500246e-05 | K36: -0.0002112947623 | L36: -3.538028769e-05 | M36: -0.0003477279753 | N36: 1.359928193e-08
A37: 15.43634 | B37: ='DF raw data'!J42 -> 5.4437305e-07 | C37: ='DF raw data'!K42 -> -6.1870162e-07 | D37: ='DF raw data'!L42 -> -6.6597352e-07 | F37: 5.449609729e-07 | G37: -6.206420633e-07 | H37: -6.666927714e-07 | J37: -1.227746782e-05 | K37: -0.000217435215 | L37: -3.569069562e-05 | M37: -0.0003655783198 | N37: 1.431176235e-08
A38: 15.93648 | B38: ='DF raw data'!J43 -> 1.6112904e-06 | C38: ='DF raw data'!K43 -> 1.0598127e-06 | D38: ='DF raw data'!L43 -> 8.9124896e-06 | F38: 1.613030594e-06 | G38: 1.063136607e-06 | H38: 8.922115089e-06 | J38: -1.14707267e-05 | K38: -0.0002231721843 | L38: -3.515897847e-05 | M38: -0.0003831627313 | N38: 1.49958195e-08
A39: 16.43662 | B39: ='DF raw data'!J44 -> 1.4191178e-06 | C39: ='DF raw data'!K44 -> 4.6369937e-06 | D39: ='DF raw data'!L44 -> 1.0964761e-05 | F39: 1.420650447e-06 | G39: 4.651536774e-06 | H39: 1.097660294e-05 | J39: -1.076020258e-05 | K39: -0.000228553792 | L39: -3.283255887e-05 | M39: -0.0003995836073 | N39: 1.559286607e-08
A40: 16.93676 | B40: ='DF raw data'!J45 -> -2.6590672e-07 | C40: ='DF raw data'!K45 -> -8.9009302e-07 | D40: ='DF raw data'!L45 -> 3.4219797e-06 | F40: -2.661938993e-07 | G40: -8.928846323e-07 | H40: 3.425675438e-06 | J40: -1.08933368e-05 | K40: -0.0002340019855 | L40: -3.327912619e-05 | M40: -0.0004162278295 | N40: 1.620612024e-08
A41: 17.4369 | B41: ='DF raw data'!J46 -> -6.9805539e-10 | C41: ='DF raw data'!K46 -> -1.39322e-05 | D41: ='DF raw data'!L46 -> 1.1247679e-05 | F41: -6.988092898e-10 | G41: -1.397589577e-05 | H41: 1.125982649e-05 | J41: -1.08936863e-05 | K41: -0.0002394503537 | L41: -4.02690307e-05 | M41: -0.0004363679825 | N41: 1.70764975e-08
A42: 17.93704 | B42: ='DF raw data'!J47 -> 1.8212891e-06 | C42: ='DF raw data'!K47 -> -3.5767821e-06 | D42: ='DF raw data'!L47 -> 1.0487502e-05 | F42: 1.823256092e-06 | G42: -3.588000016e-06 | H42: 1.04988285e-05 | J42: -9.981802998e-06 | K42: -0.0002444426527 | L42: -4.206353303e-05 | M42: -0.0004574056379 | N42: 1.801124776e-08
A43: 18.43718 | B43: ='DF raw data'!J48 -> 3.7225113e-06 | C43: ='DF raw data'!K48 -> 7.8886142e-06 | D43: ='DF raw data'!L48 -> -3.3108277e-06 | F43: 3.726531612e-06 | G43: 7.913355381e-06 | H43: -3.314403394e-06 | J43: -8.118015477e-06 | K43: -0.000248502797 | L43: -3.810574747e-05 | M43: -0.0004764638465 | N43: 1.877043535e-08
A44: 18.93732 | B44: ='DF raw data'!J49 -> -3.2124949e-06 | C44: ='DF raw data'!K49 -> -4.7438693e-06 | D44: ='DF raw data'!L49 -> -3.6991019e-06 | F44: -3.215964394e-06 | G44: -4.75874757e-06 | H44: -3.70309693e-06 | J44: -9.72644791e-06 | K44: -0.0002533673826 | L44: -4.048578748e-05 | M44: -0.0004967124082 | N44: 1.963752946e-08
A45: 19.43746 | B45: ='DF raw data'!J50 -> -7.1982354e-06 | C45: ='DF raw data'!K50 -> 2.0100802e-06 | D45: ='DF raw data'!L50 -> 9.3782382e-06 | F45: -7.206009494e-06 | G45: 2.016384445e-06 | H45: 9.388366697e-06 | J45: -1.33304615e-05 | K45: -0.0002600344796 | L45: -3.947731296e-05 | M45: -0.0005164565915 | N45: 2.050585224e-08
A46: 19.9376 | B46: ='DF raw data'!J51 -> -1.0530052e-06 | C46: ='DF raw data'!K51 -> 1.7002625e-06 | D46: ='DF raw data'!L51 -> 6.0479456e-06 | F46: -1.054142446e-06 | G46: 1.705595059e-06 | H46: 6.054477381e-06 | J46: -1.38576803e-05 | K46: -0.0002669652598 | L46: -3.862427665e-05 | M46: -0.0005357741372 | N46: 2.134802301e-08
A47: 20.43774 | B47: ='DF raw data'!J52 -> -8.5048623e-07 | C47: ='DF raw data'!K52 -> 2.2003483e-06 | D47: ='DF raw data'!L52 -> 5.3949138e-06 | F47: -8.514047551e-07 | G47: 2.207249286e-06 | H47: 5.400740307e-06 | J47: -1.428350187e-05 | K47: -0.0002741090105 | L47: -3.752034299e-05 | M47: -0.0005545395616 | N47: 2.215414594e-08
A48: 20.93788 | B48: ='DF raw data'!J53 -> -5.7625871e-06 | C48: ='DF raw data'!K53 -> 2.3539219e-06 | D48: ='DF raw data'!L53 -> 7.044388e-06 | F48: -5.768810694e-06 | G48: 2.361304541e-06 | H48: 7.051995939e-06 | J48: -1.716871486e-05 | K48: -0.0002826957715 | L48: -3.633936014e-05 | M48: -0.0005727143292 | N48: 2.296202902e-08
A49: 21.43802 | B49: ='DF raw data'!J54 -> 2.0605808e-06 | C49: ='DF raw data'!K54 -> -7.2573707e-06 | D49: ='DF raw data'!L54 -> 5.0292679e-06 | F49: 2.062806227e-06 | G49: -7.280132102e-06 | H49: 5.034699509e-06 | J49: -1.613702295e-05 | K49: -0.0002907665422 | L49: -3.998044541e-05 | M49: -0.0005927101491 | N49: 2.389170902e-08
A50: 21.93816 | B50: ='DF raw data'!J55 -> 1.0297998e-05 | C50: ='DF raw data'!K55 -> -3.0341339e-06 | D50: ='DF raw data'!L55 -> 6.1639389e-06 | F50: 1.030911984e-05 | G50: -3.0436499e-06 | H50: 6.170595954e-06 | J50: -1.098101975e-05 | K50: -0.0002962585894 | L50: -4.150269647e-05 | M50: -0.0006134673078 | N50: 2.481349535e-08
A51: 22.4383 | B51: ='DF raw data'!J56 -> 6.5797217e-06 | C51: ='DF raw data'!K56 -> 1.0431344e-06 | D51: ='DF raw data'!L56 -> -2.7481196e-06 | F51: 6.586827799e-06 | G51: 1.046405998e-06 | H51: -2.751087569e-06 | J51: -7.686683698e-06 | K51: -0.0003001030074 | L51: -4.097934697e-05 | M51: -0.0006339627184 | N51: 2.568293472e-08
A52: 22.93844 | B52: ='DF raw data'!J57 -> 2.8689833e-06 | C52: ='DF raw data'!K57 -> -9.7440534e-06 | D52: ='DF raw data'!L57 -> 1.1468313e-06 | F52: 2.872081802e-06 | G52: -9.774613823e-06 | H52: 1.148069878e-06 | J52: -6.250240705e-06 | K52: -0.0003032290028 | L52: -4.586802233e-05 | M52: -0.000656903151 | N52: 2.675470522e-08
A53: 23.43858 | B53: ='DF raw data'!J58 -> 2.3406615e-06 | C53: ='DF raw data'!K58 -> 3.3730398e-06 | D53: ='DF raw data'!L58 -> 8.4367002e-06 | F53: 2.343189414e-06 | G53: 3.383618716e-06 | H53: 8.445811836e-06 | J53: -5.078317952e-06 | K53: -0.0003057688727 | L53: -4.417573927e-05 | M53: -0.0006789972053 | N53: 2.774362467e-08
A54: 23.93872 | B54: ='DF raw data'!J59 -> 7.2720331e-07 | C54: ='DF raw data'!K59 -> 3.494592e-06 | D54: ='DF raw data'!L59 -> 1.0095822e-05 | F54: 7.279886896e-07 | G54: 3.505552142e-06 | H54: 1.010672549e-05 | J54: -4.714221688e-06 | K54: -0.0003081266435 | L54: -4.242247242e-05 | M54: -0.0007002143806 | N54: 2.865482476e-08
A55: 24.43886 | B55: ='DF raw data'!J60 -> -1.59195e-06 | C55: ='DF raw data'!K60 -> -8.5488136e-06 | D55: ='DF raw data'!L60 -> 9.7649845e-06 | F55: -1.593669306e-06 | G55: -8.575625374e-06 | H55: 9.775530683e-06 | J55: -5.511279455e-06 | K55: -0.0003108830549 | L55: -4.671148569e-05 | M55: -0.0007235766631 | N55: 2.976130304e-08
A56: 24.939 | B56: ='DF raw data'!J61 -> -3.8594876e-06 | C56: ='DF raw data'!K61 -> -4.2265724e-06 | D56: ='DF raw data'!L61 -> -2.5762033e-06 | F56: -3.863655847e-06 | G56: -4.239828263e-06 | H56: -2.5789856e-06 | J56: -7.44364829e-06 | K56: -0.0003146059211 | L56: -4.88319934e-05 | M56: -0.0007479994963 | N56: 3.098163037e-08
A57: 25.43914 | B57: ='DF raw data'!J62 -> -2.5336481e-06 | C57: ='DF raw data'!K62 -> 1.8136747e-06 | D57: ='DF raw data'!L62 -> -1.2710187e-05 | F57: -2.53638444e-06 | G57: 1.819362956e-06 | H57: -1.2723914e-05 | J57: -8.712195604e-06 | K57: -0.0003189632386 | L57: -4.792205721e-05 | M57: -0.000771967234 | N57: 3.216817547e-08
A58: 25.93928 | B58: ='DF raw data'!J63 -> -2.9639773e-06 | C58: ='DF raw data'!K63 -> 2.0147477e-08 | D58: ='DF raw data'!L63 -> -1.3515228e-05 | F58: -2.967178395e-06 | G58: 2.021066584e-08 | H58: -1.352982445e-05 | J58: -1.019620021e-05 | K58: -0.0003240627662 | L58: -4.791194905e-05 | M58: -0.0007959299162 | N58: 3.336827008e-08
A59: 26.43942 | B59: ='DF raw data'!J64 -> -6.8853838e-06 | C59: ='DF raw data'!K64 -> -3.594128e-06 | D59: ='DF raw data'!L64 -> -9.5838823e-06 | F59: -6.892820015e-06 | G59: -3.605400318e-06 | H59: -9.594232893e-06 | J59: -1.364357521e-05 | K59: -0.0003308864639 | L59: -4.971515397e-05 | M59: -0.0008207944533 | N59: 3.469751401e-08
A60: 26.93956 | B60: ='DF raw data'!J65 -> -8.4403728e-06 | C60: ='DF raw data'!K65 -> -1.4356771e-06 | D60: ='DF raw data'!L65 -> -3.300976e-06 | F60: -8.449488403e-06 | G60: -1.440179836e-06 | H60: -3.304541054e-06 | J60: -1.786950234e-05 | K60: -0.0003398237168 | L60: -5.043544551e-05 | M60: -0.000846019237 | N60: 3.612944147e-08
A61: 27.4397 | B61: ='DF raw data'!J66 -> -7.3443512e-06 | C61: ='DF raw data'!K66 -> -1.0723539e-06 | D61: ='DF raw data'!L66 -> 1.2073236e-06 | F61: -7.352283099e-06 | G61: -1.07571714e-06 | H61: 1.208627509e-06 | J61: -2.154667321e-05 | K61: -0.0003506000699 | L61: -5.097345468e-05 | M61: -0.0008715131006 | N61: 3.766114633e-08
A62: 27.93984 | B62: ='DF raw data'!J67 -> -1.8218266e-06 | C62: ='DF raw data'!K67 -> 5.3637666e-07 | D62: ='DF raw data'!L67 -> 5.2512864e-06 | F62: -1.823794173e-06 | G62: 5.380589063e-07 | H62: 5.256957789e-06 | J62: -2.245882563e-05 | K62: -0.000361832627 | L62: -5.07043499e-05 | M62: -0.0008968723742 | N62: 3.919924185e-08
A63: 28.43998 | B63: ='DF raw data'!J68 -> 5.1641696e-06 | C63: ='DF raw data'!K68 -> 2.0227567e-06 | D63: ='DF raw data'!L68 -> 6.9592568e-07 | F63: 5.169746903e-06 | G63: 2.029100703e-06 | H63: 6.966772797e-07 | J63: -1.987322841e-05 | K63: -0.0003717720234 | L63: -4.968951547e-05 | M63: -0.0009217240884 | N63: 4.063163939e-08
A64: 28.94012 | B64: ='DF raw data'!J69 -> 6.2668701e-06 | C64: ='DF raw data'!K69 -> -9.4715942e-06 | D64: ='DF raw data'!L69 -> -3.147497e-06 | F64: 6.27363832e-06 | G64: -9.501300105e-06 | H64: -3.150896297e-06 | J64: -1.673553094e-05 | K64: -0.0003801421319 | L64: -5.444149571e-05 | M64: -0.0009489524581 | N64: 4.225407077e-08
A65: 29.44026 | B65: ='DF raw data'!J70 -> 6.6066864e-06 | C65: ='DF raw data'!K70 -> -6.1256435e-07 | D65: ='DF raw data'!L70 -> 6.8314789e-06 | F65: 6.613821621e-06 | G65: -6.144855449e-07 | H65: 6.838856897e-06 | J65: -1.342769419e-05 | K65: -0.0003868578589 | L65: -5.474882451e-05 | M65: -0.0009763345352 | N65: 4.384338403e-08
A66: 29.9404 | B66: ='DF raw data'!J71 -> -1.7235138e-06 | C66: ='DF raw data'!K71 -> -1.3592231e-06 | D66: ='DF raw data'!L71 -> -1.5233142e-06 | F66: -1.725375195e-06 | G66: -1.363486052e-06 | H66: -1.524959379e-06 | J66: -1.429062334e-05 | K66: -0.0003940051712 | L66: -5.543075842e-05 | M66: -0.001004057675 | N66: 4.548223823e-08
A67: 30.44054 | B67: ='DF raw data'!J72 -> -4.8544603e-06 | C67: ='DF raw data'!K72 -> 4.9795021e-06 | D67: ='DF raw data'!L72 -> -9.8815126e-06 | F67: -4.859703117e-06 | G67: 4.995119388e-06 | H67: -9.892184634e-06 | J67: -1.672115526e-05 | K67: -0.0004023680898 | L67: -5.293249941e-05 | M67: -0.001030531335 | N67: 4.702339289e-08
A68: 30.94068 | B68: ='DF raw data'!J73 -> -1.9656723e-06 | C68: ='DF raw data'!K73 -> 1.2081697e-05 | D68: ='DF raw data'!L73 -> 9.5900975e-07 | F68: -1.967795226e-06 | G68: 1.211958901e-05 | H68: 9.600454805e-07 | J68: -1.770532837e-05 | K68: -0.0004112232327 | L68: -4.687100816e-05 | M68: -0.001053973401 | N68: 4.827892938e-08
A69: 31.44082 | B69: ='DF raw data'!J74 -> -5.6381682e-06 | C69: ='DF raw data'!K74 -> 1.4601603e-05 | D69: ='DF raw data'!L74 -> 7.9909169e-06 | F69: -5.644257422e-06 | G69: 1.464739823e-05 | H69: 7.99954709e-06 | J69: -2.052824727e-05 | K69: -0.0004214902303 | L69: -3.954525841e-05 | M69: -0.001073751567 | N69: 4.927182551e-08
A70: 31.94096 | B70: ='DF raw data'!J75 -> -5.2077662e-06 | C70: ='DF raw data'!K75 -> 5.6159502e-06 | D70: ='DF raw data'!L75 -> 2.6287257e-06 | F70: -5.213390587e-06 | G70: 5.63356359e-06 | H70: 2.631564724e-06 | J70: -2.313567244e-05 | K70: -0.0004330613055 | L70: -3.672768792e-05 | M70: -0.001092120552 | N70: 5.021418049e-08
A71: 32.4411 | B71: ='DF raw data'!J76 -> 1.8588039e-06 | C71: ='DF raw data'!K76 -> 2.6419916e-06 | D71: ='DF raw data'!L76 -> 7.4901714e-06 | F71: 1.860811408e-06 | G71: =(1-$G$1*($B$2-$G$2))*C71*$M$2/$M$1 -> 2.650277719e-06 | H71: 7.498260785e-06 | J71: -2.220500622e-05 | K71: -0.0004441669174 | L71: -3.540217802e-05 | M71: -0.001109826598 | N71: 5.108761324e-08
A72: =A71+$B$1 -> 32.94124 | B72: ='DF raw data'!J77 -> 1.2838868e-06 | C72: ='DF raw data'!K77 -> 1.4555971e-05 | D72: ='DF raw data'!L77 -> 1.0101818e-05 | F72: 1.285273398e-06 | G72: 1.460162311e-05 | H72: 1.011272796e-05 | J72: =F72*$B$1+J71 -> -2.156218959e-05 | K72: =J72*$B$1+K71 -> -0.0004549510309 | L72: =G72*$B$1+L71 -> -2.809932224e-05 | M72: =L72*$B$1+M71 -> -0.001123880193 | N72: =(J72^2+L72^2)*$B$1+N71 -> 5.171503884e-08
A73: 33.44138 | B73: ='DF raw data'!J78 -> -5.3353283e-06 | C73: ='DF raw data'!K78 -> 1.1933059e-05 | D73: ='DF raw data'!L78 -> 6.5707231e-06 | F73: -5.341090455e-06 | G73: 1.197048483e-05 | H73: 6.577819481e-06 | J73: -2.423348257e-05 | K73: -0.0004670711648 | L73: -2.211240395e-05 | M73: -0.00113493949 | N73: 5.225329955e-08
A74: 33.94152 | B74: ='DF raw data'!J79 -> -9.4699208e-06 | C74: ='DF raw data'!K79 -> 1.3718448e-05 | D74: ='DF raw data'!L79 -> 2.9515745e-06 | F74: -9.480148314e-06 | G74: 1.376147338e-05 | H74: 2.9547622e-06 | J74: -2.897488394e-05 | K74: -0.0004815626633 | L74: -1.522974066e-05 | M74: -0.001142556493 | N74: 5.278919401e-08
A75: 34.44166 | B75: ='DF raw data'!J80 -> -7.1513782e-06 | C75: ='DF raw data'!K80 -> 4.9337364e-06 | D75: ='DF raw data'!L80 -> 6.2884596e-06 | F75: -7.159101688e-06 | G75: 4.949210153e-06 | H75: 6.295251136e-06 | J75: -3.255543706e-05 | K75: -0.0004978449396 | L75: -1.275444269e-05 | M75: -0.0011489355 | N75: 5.340063131e-08
A76: 34.9418 | B76: ='DF raw data'!J81 -> -4.1792223e-06 | C76: ='DF raw data'!K81 -> -3.1450122e-06 | D76: ='DF raw data'!L81 -> 5.8584044e-07 | F76: -4.18373586e-06 | G76: -3.15487595e-06 | H76: 5.864731477e-07 | J76: -3.464789072e-05 | K76: -0.0005151737356 | L76: -1.433232235e-05 | M76: -0.001156103668 | N76: 5.410377403e-08
A77: 35.44194 | B77: ='DF raw data'!J82 -> -2.1843836e-07 | C77: ='DF raw data'!K82 -> 2.6728126e-06 | D77: ='DF raw data'!L82 -> -2.1846695e-06 | F77: -2.186742734e-07 | G77: 2.681195383e-06 | H77: -2.187028943e-06 | J77: -3.475725847e-05 | K77: -0.0005325572309 | L77: -1.299134929e-05 | M77: -0.001162601161 | N77: 5.479238787e-08
A78: 35.94208 | B78: ='DF raw data'!J83 -> 5.9428717e-06 | C78: ='DF raw data'!K83 -> -2.8717527e-06 | D78: ='DF raw data'!L83 -> 2.4429123e-06 | F78: 5.949290001e-06 | G78: -2.880759422e-06 | H78: 2.445550645e-06 | J78: -3.178178057e-05 | K78: -0.0005484525706 | L78: -1.443213231e-05 | M78: -0.001169819248 | N78: 5.540174246e-08
A79: 36.44222 | B79: ='DF raw data'!J84 -> 9.9438912e-06 | C79: ='DF raw data'!K84 -> -9.7726079e-06 | D79: ='DF raw data'!L84 -> -2.1501232e-06 | F79: 9.954630602e-06 | G79: -9.803257879e-06 | H79: -2.152445333e-06 | J79: -2.680307162e-05 | K79: -0.0005618578589 | L79: -1.93351337e-05 | M79: -0.001179489521 | N79: 5.594802139e-08
A80: 36.94236 | B80: ='DF raw data'!J85 -> 1.0401927e-05 | C80: ='DF raw data'!K85 -> -4.1906801e-06 | D80: ='DF raw data'!L85 -> 5.1562745e-07 | F80: 1.041316108e-05 | G80: -4.203823394e-06 | H80: 5.161843276e-07 | J80: -2.159503323e-05 | K80: -0.0005726583988 | L80: -2.143763393e-05 | M80: -0.00119021134 | N80: 5.641110983e-08
A81: 37.4425 | B81: ='DF raw data'!J86 -> 9.0035319e-06 | C81: ='DF raw data'!K86 -> -2.567805e-06 | D81: ='DF raw data'!L86 -> -4.6191198e-07 | F81: 9.013255714e-06 | G81: -2.575858446e-06 | H81: -4.624108449e-07 | J81: -1.708714352e-05 | K81: -0.0005812043627 | L81: -2.272592378e-05 | M81: -0.001201577483 | N81: 5.681544205e-08
A82: 37.94264 | B82: ='DF raw data'!J87 -> 3.516529e-06 | C82: ='DF raw data'!K87 -> 2.2581212e-06 | D82: ='DF raw data'!L87 -> -6.7092819e-06 | F82: 3.520326851e-06 | G82: 2.26520338e-06 | H82: -6.716527924e-06 | J82: -1.532648725e-05 | K82: -0.0005888697521 | L82: -2.159300496e-05 | M82: -0.001212377009 | N82: 5.716611975e-08
A83: 38.44278 | B83: ='DF raw data'!J88 -> -3.3496613e-06 | C83: ='DF raw data'!K88 -> 1.0391308e-06 | D83: ='DF raw data'!L88 -> 9.7472582e-07 | F83: -3.353278934e-06 | G83: 1.042389842e-06 | H83: 9.757785239e-07 | J83: -1.700359617e-05 | K83: -0.0005973739307 | L83: -2.10716641e-05 | M83: -0.001222915791 | N83: 5.753279104e-08
A84: 38.94292 | B84: ='DF raw data'!J89 -> -5.7365537e-06 | C84: ='DF raw data'!K89 -> 5.061293e-06 | D84: ='DF raw data'!L89 -> 1.0410098e-06 | F84: -5.742749178e-06 | G84: 5.07716681e-06 | H84: 1.042134091e-06 | J84: -1.987577475e-05 | K84: -0.0006073146006 | L84: -1.853236989e-05 | M84: -0.00123218457 | N84: 5.790214201e-08
A85: 39.44306 | B85: ='DF raw data'!J90 -> -2.1412993e-06 | C85: ='DF raw data'!K90 -> 5.5679118e-07 | D85: ='DF raw data'!L90 -> -3.2790172e-06 | F85: -2.143611903e-06 | G85: 5.585374527e-07 | H85: -3.282558539e-06 | J85: -2.094788081e-05 | K85: -0.0006177914737 | L85: -1.825302297e-05 | M85: -0.001241313637 | N85: 5.828824337e-08
A86: 39.9432 | B86: ='DF raw data'!J91 -> 1.9280856e-06 | C86: ='DF raw data'!K91 -> 2.868677e-07 | D86: ='DF raw data'!L91 -> -4.493098e-06 | F86: 1.930167932e-06 | G86: 2.877674075e-07 | H86: -4.497950546e-06 | J86: -1.998252662e-05 | K86: -0.0006277855346 | L86: -1.810909898e-05 | M86: -0.001250370722 | N86: 5.86519656e-08
A87: 40.44334 | B87: ='DF raw data'!J92 -> 2.5116756e-06 | C87: ='DF raw data'!K92 -> 2.0902703e-06 | D87: ='DF raw data'!L92 -> 6.353024e-07 | F87: =(1-$G$1*($B$2-$G$2))*B87 -> 2.51438821e-06 | G87: 2.096826047e-06 | H87: 6.359885266e-07 | J87: -1.87249805e-05 | K87: -0.0006371506464 | L87: -1.70603924e-05 | M87: -0.001258903307 | N87: 5.897289638e-08
A88: 40.94348 | B88: ='DF raw data'!J93 -> 7.7057921e-06 | C88: ='DF raw data'!K93 -> 5.7266914e-07 | D88: ='DF raw data'!L93 -> 4.403521e-06 | F88: 7.714114355e-06 | G88: 5.74465211e-07 | H88: 4.408276803e-06 | J88: -1.486684334e-05 | K88: -0.0006445861494 | L88: -1.677307937e-05 | M88: -0.001267292194 | N88: 5.922414632e-08
A89: 41.44362 | B89: ='DF raw data'!J94 -> 9.2709233e-06 | C89: ='DF raw data'!K94 -> -6.2083711e-07 | D89: ='DF raw data'!L94 -> -3.8751364e-06 | F89: 9.280935897e-06 | G89: -6.227842509e-07 | H89: -3.879321547e-06 | J89: -1.022507606e-05 | K89: -0.0006497001189 | L89: -1.708455869e-05 | M89: -0.001275836866 | N89: 5.942241898e-08
A90: 41.94376 | B90: ='DF raw data'!J95 -> 3.5506387e-06 | C90: ='DF raw data'!K95 -> 7.9351803e-06 | D90: ='DF raw data'!L95 -> 2.5753471e-07 | F90: 3.55447339e-06 | G90: 7.960067527e-06 | H90: 2.578128475e-07 | J90: -8.447341742e-06 | K90: -0.0006539249724 | L90: -1.310341051e-05 | M90: -0.001282390405 | N90: 5.954398149e-08
A91: 42.4439 | B91: ='DF raw data'!J96 -> -2.534041e-06 | C91: ='DF raw data'!K96 -> 1.275563e-06 | D91: ='DF raw data'!L96 -> 3.4088102e-06 | F91: -2.536777764e-06 | G91: 1.279563568e-06 | H91: 3.412491715e-06 | J91: -9.716085773e-06 | K91: -0.0006587843756 | L91: -1.246344959e-05 | M91: -0.001288623875 | N91: 5.96688864e-08
A92: 42.94404 | B92: ='DF raw data'!J97 -> -2.6515913e-06 | C92: ='DF raw data'!K97 -> -1.6106394e-05 | D92: ='DF raw data'!L97 -> -2.3696243e-06 | F92: -2.654455019e-06 | G92: -1.615690873e-05 | H92: -2.372183494e-06 | J92: -1.104368491e-05 | K92: -0.0006643077641 | L92: -2.054416592e-05 | M92: -0.001298898834 | N92: 5.994097543e-08
A93: 43.44418 | B93: ='DF raw data'!J98 -> -5.4338261e-07 | C93: ='DF raw data'!K98 -> -3.2341409e-06 | D93: ='DF raw data'!L98 -> -7.9716028e-06 | F93: -5.439694632e-07 | G93: -3.244284185e-06 | H93: -7.980212131e-06 | J93: -1.131574579e-05 | K93: -0.0006699672212 | L93: -2.216676222e-05 | M93: -0.001309985319 | N93: 6.025076787e-08
A94: 43.94432 | B94: ='DF raw data'!J99 -> -5.1054371e-06 | C94: ='DF raw data'!K99 -> 2.3046873e-06 | D94: ='DF raw data'!L99 -> -9.052781e-06 | F94: -5.110950972e-06 | G94: 2.311915526e-06 | H94: -9.062558003e-06 | J94: -1.387193681e-05 | K94: -0.0006769051317 | L94: -2.101048078e-05 | M94: -0.001320493501 | N94: 6.056779208e-08
A95: 44.44446 | B95: ='DF raw data'!J100 -> -6.903399e-06 | C95: ='DF raw data'!K100 -> -2.0559796e-06 | D95: ='DF raw data'!L100 -> -8.1194939e-06 | F95: -6.910854671e-06 | G95: -2.0624278e-06 | H95: -8.128262953e-06 | J95: -1.732833167e-05 | K95: -0.0006855717235 | L95: -2.204198342e-05 | M95: -0.001331517578 | N95: 6.096096219e-08
A96: 44.9446 | B96: ='DF raw data'!J101 -> -3.7906134e-06 | C96: ='DF raw data'!K101 -> 7.9183683e-06 | D96: ='DF raw data'!L101 -> -4.2145598e-06 | F96: -3.794707262e-06 | G96: 7.943202799e-06 | H96: -4.219111525e-06 | J96: -1.922621656e-05 | K96: -0.0006951875235 | L96: -1.806926998e-05 | M96: -0.001340554743 | N96: 6.130913261e-08
A97: 45.44474 | B97: ='DF raw data'!J102 -> -5.2560204e-06 | C97: ='DF raw data'!K102 -> -2.8453337e-06 | D97: ='DF raw data'!L102 -> -1.8992192e-06 | F97: -5.261696902e-06 | G97: -2.854257563e-06 | H97: -1.901270357e-06 | J97: -2.185780165e-05 | K97: -0.0007061194844 | L97: -1.949679835e-05 | M97: -0.001350305872 | N97: 6.173819704e-08
A98: 45.94488 | B98: ='DF raw data'!J103 -> -9.3692652e-06 | C98: ='DF raw data'!K103 -> -5.342024e-06 | D98: ='DF raw data'!L103 -> -2.4980741e-06 | F98: -9.379384006e-06 | G98: -5.358778271e-06 | H98: -2.50077202e-06 | J98: -2.654880676e-05 | K98: -0.0007193976046 | L98: -2.217693772e-05 | M98: -0.001361397445 | N98: 6.233669242e-08
A99: 46.44502 | B99: ='DF raw data'!J104 -> -2.6487246e-06 | C99: ='DF raw data'!K104 -> 9.2825246e-07 | D99: ='DF raw data'!L104 -> 5.1113843e-06 | F99: -2.651585223e-06 | G99: 9.311637523e-07 | H99: 5.116904595e-06 | J99: -2.78749706e-05 | K99: -0.0007333389924 | L99: -2.171122548e-05 | M99: -0.001372256097 | N99: 6.296106284e-08
A100: 46.94516 | B100: ='DF raw data'!J105 -> 3.6277347e-06 | C100: ='DF raw data'!K105 -> -1.7988656e-06 | D100: ='DF raw data'!L105 -> 3.3011843e-06 | F100: 3.631652653e-06 | G100: -1.80450741e-06 | H100: 3.304749579e-06 | J100: -2.605863584e-05 | K100: -0.0007463719585 | L100: -2.261373182e-05 | M100: -0.001383566129 | N100: 6.355644619e-08
A101: 47.4453 | B101: ='DF raw data'!J106 -> 4.5460042e-06 | C101: ='DF raw data'!K106 -> -5.2547616e-06 | D101: ='DF raw data'!L106 -> -8.5991542e-06 | F101: 4.550913885e-06 | G101: -5.271242189e-06 | H101: -8.608441287e-06 | J101: -2.378254177e-05 | K101: -0.000758266559 | L101: -2.525009088e-05 | M101: -0.00139619471 | N101: 6.415820282e-08
A102: 47.94544 | B102: ='DF raw data'!J107 -> 3.6279239e-06 | C102: ='DF raw data'!K107 -> 3.5665141e-07 | D102: ='DF raw data'!L107 -> -6.822685e-06 | F102: 3.631842058e-06 | G102: 3.577699813e-07 | H102: -6.8300535e-06 | J102: -2.196611228e-05 | K102: -0.0007692526903 | L102: -2.507115581e-05 | M102: -0.001408733798 | N102: 6.471389485e-08
A103: 48.44558 | B103: ='DF raw data'!J108 -> 5.3213594e-06 | C103: ='DF raw data'!K108 -> -7.7546538e-06 | D103: ='DF raw data'!L108 -> -4.1157377e-06 | F103: 5.327106468e-06 | G103: -7.778974839e-06 | H103: -4.120182697e-06 | J103: -1.930181325e-05 | K103: -0.0007789062992 | L103: -2.896173228e-05 | M103: -0.001423218718 | N103: 6.53197354e-08
A104: 48.94572 | B104: ='DF raw data'!J109 -> 6.7444639e-06 | C104: ='DF raw data'!K109 -> -4.9420082e-06 | D104: ='DF raw data'!L109 -> -6.5158724e-06 | F104: 6.751747921e-06 | G104: -4.957507896e-06 | H104: -6.522909542e-06 | J104: -1.592499405e-05 | K104: -0.0007868710258 | L104: -3.144118028e-05 | M104: -0.00143894371 | N104: 6.594098593e-08
A105: 49.44586 | B105: ='DF raw data'!J110 -> 3.5162525e-06 | C105: ='DF raw data'!K110 -> 4.4107023e-06 | D105: ='DF raw data'!L110 -> -1.0210985e-06 | F105: 3.520050053e-06 | G105: 4.424535653e-06 | H105: -1.022201286e-06 | J105: -1.416447621e-05 | K105: -0.0007939552469 | L105: -2.922829302e-05 | M105: -0.001453561949 | N105: 6.646859637e-08
A106: 49.946 | B106: ='DF raw data'!J111 -> 2.3305915e-06 | C106: ='DF raw data'!K111 -> 9.2942691e-06 | D106: ='DF raw data'!L111 -> 2.4410351e-06 | F106: 2.333108539e-06 | G106: 9.323418858e-06 | H106: 2.443671418e-06 | J106: -1.299759531e-05 | K106: -0.0008004558642 | L106: -2.456527831e-05 | M106: -0.001465848027 | N106: 6.685489969e-08
A107: 50.44614 | B107: ='DF raw data'!J112 -> 4.1696626e-06 | C107: ='DF raw data'!K112 -> -3.1021823e-06 | D107: ='DF raw data'!L112 -> 1.9245149e-06 | F107: 4.174165836e-06 | G107: -3.111911722e-06 | H107: 1.926593376e-06 | J107: -1.090992801e-05 | K107: -0.0008059123556 | L107: -2.612166984e-05 | M107: -0.001478912519 | N107: 6.725569597e-08
A108: 50.94628 | B108: ='DF raw data'!J113 -> 2.7405626e-06 | C108: ='DF raw data'!K113 -> -4.2037568e-06 | D108: ='DF raw data'!L113 -> 3.6432707e-06 | F108: 2.743522408e-06 | G108: -4.216941107e-06 | H108: 3.647205432e-06 | J108: -9.537782711e-06 | K108: -0.0008106825822 | L108: -2.823073077e-05 | M108: -0.001493031837 | N108: 6.769979201e-08
A109: 51.44642 | B109: ='DF raw data'!J114 -> 5.4430029e-07 | C109: ='DF raw data'!K114 -> -2.0507797e-07 | D109: ='DF raw data'!L114 -> -2.5674867e-06 | F109: 5.448881343e-07 | G109: -2.057211592e-07 | H109: -2.570259586e-06 | J109: -9.26526236e-06 | K109: -0.0008153165106 | L109: -2.833362015e-05 | M109: -0.001507202614 | N109: 6.814423598e-08
A110: 51.94656 | B110: ='DF raw data'!J115 -> 1.0432564e-06 | C110: ='DF raw data'!K115 -> 7.9238389e-06 | D110: ='DF raw data'!L115 -> -5.858315e-06 | F110: 1.044383117e-06 | G110: 7.948690557e-06 | H110: -5.86464198e-06 | J110: -8.742924588e-06 | K110: -0.0008196891969 | L110: -2.435816205e-05 | M110: -0.001519385105 | N110: 6.847920914e-08
A111: 52.4467 | B111: ='DF raw data'!J116 -> 1.700741e-06 | C111: ='DF raw data'!K116 -> 6.3860912e-06 | D111: ='DF raw data'!L116 -> -6.0133948e-06 | F111: 1.7025778e-06 | G111: 6.406119995e-06 | H111: -6.019889266e-06 | J111: -7.891397327e-06 | K111: -0.0008236360003 | L111: -2.11542052e-05 | M111: -0.001529965169 | N111: 6.873416778e-08
A112: 52.94684 | B112: ='DF raw data'!J117 -> -2.3202442e-06 | C112: ='DF raw data'!K117 -> 5.6703889e-06 | D112: ='DF raw data'!L117 -> -9.0267622e-06 | F112: -2.322750064e-06 | G112: 5.688173027e-06 | H112: -9.036511103e-06 | J112: -9.053097544e-06 | K112: -0.0008281638165 | L112: -1.830932234e-05 | M112: -0.001539122393 | N112: 6.894282112e-08
A113: 53.44698 | B113: ='DF raw data'!J118 -> -6.7088981e-06 | C113: ='DF raw data'!K118 -> 8.2568731e-06 | D113: ='DF raw data'!L118 -> -6.6816624e-06 | F113: -6.71614371e-06 | G113: 8.282769257e-06 | H113: -6.688878595e-06 | J113: -1.241210966e-05 | K113: -0.0008343716091 | L113: -1.416677812e-05 | M113: -0.001546207766 | N113: 6.912024982e-08
A114: 53.94712 | B114: ='DF raw data'!J119 -> -2.7863566e-06 | C114: ='DF raw data'!K119 -> 5.8861392e-06 | D114: ='DF raw data'!L119 -> -8.1047237e-06 | F114: -2.789365865e-06 | G114: 5.904599988e-06 | H114: -8.113476802e-06 | J114: -1.38071831e-05 | K114: -0.0008412771336 | L114: -1.121365148e-05 | M114: -0.001551816161 | N114: 6.927848625e-08
A115: 54.44726 | B115: ='DF raw data'!J120 -> 3.7897266e-06 | C115: ='DF raw data'!K120 -> 1.0374496e-05 | D115: ='DF raw data'!L120 -> -5.2478185e-06 | F115: 3.793819505e-06 | G115: 1.040703369e-05 | H115: -5.253486144e-06 | J115: -1.190974222e-05 | K115: -0.0008472336721 | L115: -6.008677655e-06 | M115: -0.001554821341 | N115: 6.936748425e-08
A116: 54.9474 | B116: ='DF raw data'!J121 -> 4.8560178e-08 | C116: ='DF raw data'!K121 -> -3.4550972e-06 | D116: ='DF raw data'!L121 -> 4.8911702e-06 | F116: 4.861262299e-08 | G116: -3.465933474e-06 | H116: 4.896452664e-06 | J116: -1.18854291e-05 | K116: -0.0008531780506 | L116: -7.742129622e-06 | M116: -0.00155869349 | N116: 6.946811442e-08
A117: 55.44754 | B117: ='DF raw data'!J122 -> -5.1631064e-06 | C117: ='DF raw data'!K122 -> 5.5812632e-07 | D117: ='DF raw data'!L122 -> 9.486519e-06 | F117: -5.168682555e-06 | G117: 5.598767801e-07 | H117: 9.496764441e-06 | J117: -1.447049399e-05 | K117: -0.0008604153235 | L117: -7.462112849e-06 | M117: -0.001562425591 | N117: 6.960069069e-08
A118: 55.94768 | B118: ='DF raw data'!J123 -> -3.5007829e-06 | C118: ='DF raw data'!K123 -> 7.4340282e-06 | D118: ='DF raw data'!L123 -> 6.6157177e-06 | F118: -3.504563746e-06 | G118: 7.457343656e-06 | H118: 6.622862675e-06 | J118: -1.62232665e-05 | K118: -0.000868529228 | L118: -3.732396993e-06 | M118: -0.001564292312 | N118: 6.973929207e-08
A119: 56.44782 | B119: ='DF raw data'!J124 -> -1.9889699e-06 | C119: ='DF raw data'!K124 -> -6.197291e-06 | D119: ='DF raw data'!L124 -> 4.0091204e-06 | F119: -1.991117987e-06 | G119: -6.216727658e-06 | H119: 4.01345025e-06 | J119: -1.721910425e-05 | K119: -0.0008771411908 | L119: -6.841631164e-06 | M119: -0.001567714086 | N119: 6.991099286e-08
A120: 56.94796 | B120: ='DF raw data'!J125 -> -5.2540267e-06 | C120: ='DF raw data'!K125 -> -1.3142442e-05 | D120: ='DF raw data'!L125 -> 3.3492347e-06 | F120: -5.259701049e-06 | G120: -1.318366084e-05 | H120: 3.352851873e-06 | J120: -1.984969114e-05 | K120: -0.0008870688153 | L120: -1.34353073e-05 | M120: -0.00157443362 | N120: 7.019833216e-08
A121: 57.4481 | B121: ='DF raw data'!J126 -> -7.4970008e-06 | C121: ='DF raw data'!K126 -> -9.5025498e-06 | D121: ='DF raw data'!L126 -> 3.8950603e-07 | F121: -7.505097561e-06 | G121: -9.532352792e-06 | H121: 3.899266965e-07 | J121: -2.360329063e-05 | K121: -0.0008988737651 | L121: -1.820281822e-05 | M121: -0.001583537578 | N121: 7.06426855e-08
A122: 57.94824 | B122: ='DF raw data'!J127 -> -3.3607353e-06 | C122: ='DF raw data'!K127 -> -9.3990093e-06 | D122: ='DF raw data'!L127 -> -4.5017418e-06 | F122: -3.364364894e-06 | G122: -9.428487556e-06 | H122: -4.506603681e-06 | J122: -2.528594409e-05 | K122: -0.0009115202771 | L122: -2.291838199e-05 | M122: -0.001594999977 | N122: 7.122516415e-08
A123: 58.44838 | B123: ='DF raw data'!J128 -> 3.3596593e-06 | C123: ='DF raw data'!K128 -> -1.1867945e-05 | D123: ='DF raw data'!L128 -> -3.0109272e-06 | F123: 3.363287732e-06 | G123: -1.190516662e-05 | H123: -3.014179001e-06 | J123: -2.360382936e-05 | K123: -0.0009233254964 | L123: -2.887263202e-05 | M123: -0.001609440336 | N123: 7.192074368e-08
A124: 58.94852 | B124: ='DF raw data'!J129 -> 5.6522408e-06 | C124: ='DF raw data'!K129 -> -6.6569478e-06 | D124: ='DF raw data'!L129 -> -5.2965966e-06 | F124: 5.65834522e-06 | G124: -6.677826087e-06 | H124: -5.302316924e-06 | J124: -2.077386458e-05 | K124: -0.000933715337 | L124: -3.221247996e-05 | M124: -0.001625551085 | N124: 7.265554802e-08
A125: 59.44866 | B125: ='DF raw data'!J130 -> 4.3277833e-08 | C125: ='DF raw data'!K130 -> 2.9084463e-06 | D125: ='DF raw data'!L130 -> -1.2797178e-05 | F125: 4.332457306e-08 | G125: 2.917568104e-06 | H125: -1.281099895e-05 | J125: -2.075219623e-05 | K125: -0.0009440943404 | L125: -3.075328745e-05 | M125: -0.001640932034 | N125: 7.334394989e-08
A126: 59.9488 | B126: ='DF raw data'!J131 -> -5.701309e-06 | C126: ='DF raw data'!K131 -> 6.1191035e-06 | D126: ='DF raw data'!L131 -> -1.1018907e-06 | F126: -5.707466414e-06 | G126: 6.138294938e-06 | H126: -1.103080742e-06 | J126: -2.360672848e-05 | K126: -0.0009559010096 | L126: -2.768328062e-05 | M126: -0.00165477755 | N126: 7.400595603e-08
A127: 60.44894 | B127: ='DF raw data'!J132 -> -5.8408764e-06 | C127: ='DF raw data'!K132 -> -2.77155e-06 | D127: ='DF raw data'!L132 -> 1.0088837e-05 | F127: -5.847184547e-06 | G127: -2.780242455e-06 | H127: 1.009973294e-05 | J127: -2.653113936e-05 | K127: -0.0009691702936 | L127: -2.907379108e-05 | M127: -0.001669318516 | N127: 7.478076626e-08
A128: 60.94908 | B128: ='DF raw data'!J133 -> -4.5998745e-06 | C128: ='DF raw data'!K133 -> 3.3939873e-06 | D128: ='DF raw data'!L133 -> 7.7534587e-06 | F128: -4.604842364e-06 | G128: 3.404631914e-06 | H128: 7.761832435e-06 | J128: -2.883420522e-05 | K128: -0.000983591433 | L128: -2.737099847e-05 | M128: -0.001683007847 | N128: 7.557127901e-08
A129: 61.44922 | B129: ='DF raw data'!J134 -> -1.0069882e-07 | C129: ='DF raw data'!K134 -> 6.7586202e-06 | D129: ='DF raw data'!L134 -> -7.6228027e-08 | F129: -1.008075747e-07 | G129: 6.779817364e-06 | H129: -7.631035327e-08 | J129: -2.888462312e-05 | K129: -0.0009980377884 | L129: -2.398014062e-05 | M129: -0.001695001275 | N129: 7.627616062e-08
A130: 61.94936 | B130: ='DF raw data'!J135 -> 3.1519453e-06 | C130: ='DF raw data'!K135 -> -2.9830312e-06 | D130: ='DF raw data'!L135 -> -4.9961723e-06 | F130: 3.155349401e-06 | G130: -2.992386926e-06 | H130: -5.001568166e-06 | J130: -2.730650667e-05 | K130: -0.001011694865 | L130: -2.547675301e-05 | M130: -0.001707743218 | N130: 7.697371101e-08
A131: 62.4495 | B131: ='DF raw data'!J136 -> -3.4342083e-08 | C131: ='DF raw data'!K136 -> 1.1995111e-06 | D131: ='DF raw data'!L136 -> -1.0988171e-05 | F131: -3.437917245e-08 | G131: 1.203273145e-06 | H131: -1.100003822e-05 | J131: -2.732370107e-05 | K131: -0.001025360541 | L131: -2.487494798e-05 | M131: -0.001720184175 | N131: 7.765657599e-08
A132: 62.94964 | B132: ='DF raw data'!J137 -> -3.5193366e-06 | C132: ='DF raw data'!K137 -> 1.9648492e-06 | D132: ='DF raw data'!L137 -> -6.4831888e-06 | F132: -3.523137484e-06 | G132: 1.971011587e-06 | H132: -6.490190644e-06 | J132: -2.908576305e-05 | K132: -0.001039907494 | L132: -2.388916625e-05 | M132: -0.001732132102 | N132: 7.836511127e-08
A133: 63.44978 | B133: ='DF raw data'!J138 -> -6.3588914e-07 | C133: ='DF raw data'!K138 -> -3.6937977e-06 | D133: ='DF raw data'!L138 -> -1.5118763e-06 | F133: -6.365759003e-07 | G133: -3.705382614e-06 | H133: -1.513509126e-06 | J133: -2.940414012e-05 | K133: -0.001054613681 | L133: -2.574237631e-05 | M133: -0.001745006894 | N133: 7.912896178e-08
A134: 63.94992 | B134: ='DF raw data'!J139 -> 3.4342961e-06 | C134: ='DF raw data'!K139 -> 1.0144471e-06 | D134: ='DF raw data'!L139 -> -1.7692415e-06 | F134: 3.43800514e-06 | G134: 1.017628726e-06 | H134: -1.771152281e-06 | J134: -2.768465623e-05 | K134: -0.001068459885 | L134: -2.523341948e-05 | M134: -0.001757627137 | N134: 7.983074105e-08
A135: 64.45006 | B135: ='DF raw data'!J140 -> 5.395254e-06 | C135: ='DF raw data'!K140 -> -2.4363874e-07 | D135: ='DF raw data'!L140 -> -4.9096611e-06 | F135: 5.401080874e-06 | G135: =(1-$G$1*($B$2-$G$2))*C135*$M$2/$M$1 -> -2.444028679e-07 | H135: -4.914963534e-06 | J135: -2.498335965e-05 | K135: -0.001080955062 | L135: -2.535565513e-05 | M135: -0.001770308514 | N135: 8.046445719e-08
A136: =A135+$B$1 -> 64.9502 | B136: ='DF raw data'!J141 -> 3.3754773e-06 | C136: ='DF raw data'!K141 -> -8.1028993e-06 | D136: ='DF raw data'!L141 -> -4.6692635e-06 | F136: 3.379122815e-06 | G136: -8.128312547e-06 | H136: -4.674306305e-06 | J136: =F136*$B$1+J135 -> -2.329332516e-05 | K136: =J136*$B$1+K135 -> -0.001092604986 | L136: =G136*$B$1+L135 -> -2.942094937e-05 | M136: =L136*$B$1+M135 -> -0.001785023108 | N136: =(J136^2+L136^2)*$B$1+N135 -> 8.116873997e-08
A137: 65.45034 | B137: ='DF raw data'!J142 -> -1.1731604e-06 | C137: ='DF raw data'!K142 -> -2.5931563e-06 | D137: ='DF raw data'!L142 -> -3.0232527e-06 | F137: -1.174427413e-06 | G137: -2.601289256e-06 | H137: -3.026517813e-06 | J137: -2.388070329e-05 | K137: -0.001104548681 | L137: -3.072195817e-05 | M137: -0.001800388388 | N137: 8.19260153e-08
A138: 65.95048 | B138: ='DF raw data'!J143 -> -4.4086332e-06 | C138: ='DF raw data'!K143 -> 4.3203713e-06 | D138: ='DF raw data'!L143 -> 8.6883153e-07 | F138: -4.413394524e-06 | G138: 4.333921346e-06 | H138: 8.697698681e-07 | J138: -2.608801842e-05 | K138: -0.001117596342 | L138: -2.855439075e-05 | M138: -0.001814669581 | N138: 8.26741937e-08
A139: 66.45062 | B139: ='DF raw data'!J144 -> -4.2979659e-06 | C139: ='DF raw data'!K144 -> 1.2716409e-05 | D139: ='DF raw data'!L144 -> 9.354344e-06 | F139: -4.302607703e-06 | G139: 1.275629167e-05 | H139: 9.364446692e-06 | J139: -2.823992464e-05 | K139: -0.001131720258 | L139: -2.217445904e-05 | M139: -0.001825759915 | N139: 8.331897417e-08
A140: 66.95076 | B140: ='DF raw data'!J145 -> -5.2964019e-06 | C140: ='DF raw data'!K145 -> 8.528531e-06 | D140: ='DF raw data'!L145 -> 1.1899503e-05 | F140: -5.302122014e-06 | G140: 8.555279162e-06 | H140: 1.191235446e-05 | J140: -3.089172795e-05 | K140: -0.001147170447 | L140: -1.789562172e-05 | M140: -0.001834710231 | N140: 8.395642868e-08
A141: 67.4509 | B141: ='DF raw data'!J146 -> -6.2323666e-06 | C141: ='DF raw data'!K146 -> -1.8561055e-06 | D141: ='DF raw data'!L146 -> 5.4794314e-06 | F141: -6.239097556e-06 | G141: -1.861926832e-06 | H141: 5.485349186e-06 | J141: -3.40121502e-05 | K141: -0.001164181284 | L141: -1.88268458e-05 | M141: -0.00184412629 | N141: 8.47122785e-08
A142: 67.95104 | B142: ='DF raw data'!J147 -> -8.4103376e-06 | C142: ='DF raw data'!K147 -> -8.6739674e-06 | D142: ='DF raw data'!L147 -> -1.496364e-06 | F142: -8.419420765e-06 | G142: -8.701171696e-06 | H142: -1.497980073e-06 | J142: -3.82230393e-05 | K142: -0.001183298155 | L142: -2.317864982e-05 | M142: -0.00185571886 | N142: 8.571168352e-08
A143: 68.45118 | B143: ='DF raw data'!J148 -> -1.1951066e-05 | C143: ='DF raw data'!K148 -> 2.328838e-06 | D143: ='DF raw data'!L148 -> -7.9194945e-07 | F143: -1.196397315e-05 | G143: 2.33614197e-06 | H143: -7.928047554e-07 | J143: -4.420670083e-05 | K143: -0.001205407694 | L143: -2.201025177e-05 | M143: -0.001866727067 | N143: 8.693136673e-08
A144: 68.95132 | B144: ='DF raw data'!J149 -> -8.2367187e-06 | C144: ='DF raw data'!K149 -> 9.6074227e-06 | D144: ='DF raw data'!L149 -> -2.7153633e-06 | F144: -8.245614356e-06 | G144: 9.637554606e-06 | H144: -2.718295892e-06 | J144: -4.833066239e-05 | K144: -0.001229579792 | L144: -1.719012521e-05 | M144: -0.001875324536 | N144: 8.824741178e-08
A145: 69.45146 | B145: ='DF raw data'!J150 -> -5.0234662e-06 | C145: ='DF raw data'!K150 -> 3.4039936e-06 | D145: ='DF raw data'!L150 -> -2.6948014e-06 | F145: -5.028891543e-06 | G145: 3.414669597e-06 | H145: -2.697711786e-06 | J145: -5.084581221e-05 | K145: -0.001255009816 | L145: -1.548231236e-05 | M145: -0.00188306786 | N145: 8.966030659e-08
A146: 69.9516 | B146: ='DF raw data'!J151 -> 7.3941237e-07 | C146: ='DF raw data'!K151 -> -2.9005728e-06 | D146: ='DF raw data'!L151 -> -1.8739862e-06 | F146: 7.402109354e-07 | G146: -2.909669911e-06 | H146: -1.876010105e-06 | J146: -5.047560311e-05 | K146: -0.001280254684 | L146: -1.693755467e-05 | M146: -0.001891539009 | N146: 9.107803708e-08
A147: 70.45174 | B147: ='DF raw data'!J152 -> 1.0903619e-05 | C147: ='DF raw data'!K152 -> -5.2216724e-06 | D147: ='DF raw data'!L152 -> -3.9385682e-06 | F147: 1.091539491e-05 | G147: -5.238049211e-06 | H147: -3.942821854e-06 | J147: -4.50163775e-05 | K147: -0.001302769175 | L147: -1.95573126e-05 | M147: -0.001901320403 | N147: 9.228285569e-08
A148: 70.95188 | B148: ='DF raw data'!J153 -> 1.5006852e-05 | C148: ='DF raw data'!K153 -> 1.2432741e-06 | D148: ='DF raw data'!L153 -> -8.3308771e-07 | F148: 1.50230594e-05 | G148: 1.2471734e-06 | H148: -8.339874447e-07 | J148: -3.750274458e-05 | K148: -0.001321525798 | L148: -1.89335513e-05 | M148: -0.001910789829 | N148: 9.316557039e-08
A149: 71.45202 | B149: ='DF raw data'!J154 -> 1.4627236e-05 | C149: ='DF raw data'!K154 -> 3.6876595e-06 | D149: ='DF raw data'!L154 -> 2.1227825e-07 | F149: 1.464303341e-05 | G149: 3.699225163e-06 | H149: 2.125075105e-07 | J149: -3.017917784e-05 | K149: -0.001336619612 | L149: -1.708342082e-05 | M149: -0.001919333931 | N149: 9.376705178e-08
A150: 71.95216 | B150: ='DF raw data'!J155 -> 1.5490848e-05 | C150: ='DF raw data'!K155 -> 1.5061254e-06 | D150: ='DF raw data'!L155 -> 5.0859039e-06 | F150: 1.550757812e-05 | G150: 1.510849084e-06 | H150: 5.091396676e-06 | J150: -2.242321772e-05 | K150: -0.00134783436 | L150: -1.632778476e-05 | M150: -0.00192750011 | N150: 9.415185812e-08
A151: 72.4523 | B151: ='DF raw data'!J156 -> 1.7510421e-05 | C151: ='DF raw data'!K156 -> 4.5273177e-06 | D151: ='DF raw data'!L156 -> 1.0529018e-05 | F151: =(1-$G$1*($B$2-$G$2))*B151 -> 1.752933225e-05 | G151: 4.541516796e-06 | H151: 1.054038934e-05 | J151: -1.365609749e-05 | K151: -0.001354664321 | L151: -1.405639055e-05 | M151: -0.001934530273 | N151: 9.434394745e-08
A152: 72.95244 | B152: ='DF raw data'!J157 -> 1.41411e-05 | C152: ='DF raw data'!K157 -> 9.6709346e-06 | D152: ='DF raw data'!L157 -> 3.4249047e-06 | F152: 1.415637239e-05 | G152: 9.7012657e-06 | H152: 3.428603597e-06 | J152: -6.575929405e-06 | K152: -0.001357953206 | L152: -9.204399524e-06 | M152: -0.001939133761 | N152: 9.440794727e-08
A153: 73.45258 | B153: ='DF raw data'!J158 -> 5.0820677e-06 | C153: ='DF raw data'!K158 -> 1.3684297e-06 | D153: ='DF raw data'!L158 -> -1.0492564e-06 | F153: 5.087556333e-06 | G153: 1.372721527e-06 | H153: -1.050389597e-06 | J153: -4.03143898e-06 | K153: -0.00135996949 | L153: -8.51784658e-06 | M153: -0.001943393877 | N153: 9.445236281e-08
A154: 73.95272 | B154: ='DF raw data'!J159 -> -6.6439634e-07 | C154: ='DF raw data'!K159 -> -9.4639984e-07 | D154: ='DF raw data'!L159 -> 1.8817904e-06 | F154: -6.65113888e-07 | G154: -9.493680482e-07 | H154: 1.883822734e-06 | J154: -4.36408904e-06 | K154: -0.001362152145 | L154: -8.992663515e-06 | M154: -0.001947891468 | N154: 9.450233343e-08
A155: 74.45286 | B155: ='DF raw data'!J160 -> -2.8733334e-06 | C155: ='DF raw data'!K160 -> 4.6624796e-06 | D155: ='DF raw data'!L160 -> 1.8412633e-06 | F155: -2.8764366e-06 | G155: 4.677102606e-06 | H155: 1.843251864e-06 | J155: -5.802710041e-06 | K155: -0.001365054313 | L155: -6.653457418e-06 | M155: -0.001951219128 | N155: 9.454131431e-08
A156: 74.953 | B156: ='DF raw data'!J161 -> -5.5570704e-06 | C156: ='DF raw data'!K161 -> 7.8660651e-06 | D156: ='DF raw data'!L161 -> 8.013543e-07 | F156: -5.563072036e-06 | G156: 7.89073556e-06 | H156: 8.022197626e-07 | J156: -8.585024889e-06 | K156: -0.001369348027 | L156: -2.706984935e-06 | M156: -0.001952572999 | N156: 9.458184087e-08
A157: 75.45314 | B157: ='DF raw data'!J162 -> -5.2755781e-06 | C157: ='DF raw data'!K162 -> 1.1225628e-05 | D157: ='DF raw data'!L162 -> 1.2448676e-06 | F157: -5.281275724e-06 | G157: 1.126083511e-05 | H157: 1.246212057e-06 | J157: -1.122640213e-05 | K157: -0.0013749628 | L157: 2.925009136e-06 | M157: -0.001951110085 | N157: 9.46491536e-08
A158: 75.95328 | B158: ='DF raw data'!J163 -> 7.6456196e-08 | C158: ='DF raw data'!K163 -> -1.6963928e-06 | D158: ='DF raw data'!L163 -> 8.4407873e-07 | F158: 7.653876869e-08 | G158: -1.701713223e-06 | H158: 8.44990335e-07 | J158: -1.118812203e-05 | K158: -0.001380558427 | L158: 2.073914285e-06 | M158: -0.001950072838 | N158: 9.471390933e-08
A159: 76.45342 | B159: ='DF raw data'!J164 -> 1.6917334e-06 | C159: ='DF raw data'!K164 -> -3.7048717e-06 | D159: ='DF raw data'!L164 -> 4.813623e-06 | F159: 1.693560472e-06 | G159: -3.716491346e-06 | H159: 4.818821713e-06 | J159: -1.03411047e-05 | K159: -0.001385730427 | L159: 2.151483031e-07 | M159: -0.001949965233 | N159: 9.476741667e-08
A160: 76.95356 | B160: ='DF raw data'!J165 -> 3.223628e-06 | C160: ='DF raw data'!K165 -> 1.1706499e-05 | D160: ='DF raw data'!L165 -> 2.6448929e-06 | F160: 3.227109518e-06 | G160: 1.174321427e-05 | H160: 2.647749384e-06 | J160: -8.727098141e-06 | K160: -0.001390095198 | L160: 6.088399489e-06 | M160: -0.001946920181 | N160: 9.482404795e-08
A161: 77.4537 | B161: ='DF raw data'!J166 -> 4.0724849e-06 | C161: ='DF raw data'!K166 -> 1.0989328e-05 | D161: ='DF raw data'!L166 -> -3.5870958e-06 | F161: 4.076883184e-06 | G161: 1.1023794e-05 | H161: -3.590969863e-06 | J161: -6.688085786e-06 | K161: -0.001393440177 | L161: 1.160183982e-05 | M161: -0.001941117637 | N161: 9.491373965e-08
A162: 77.95384 | B162: ='DF raw data'!J167 -> 2.9257212e-06 | C162: ='DF raw data'!K167 -> 1.3187274e-05 | D162: ='DF raw data'!L167 -> -7.1302979e-06 | F162: 2.928880979e-06 | G162: 1.322863345e-05 | H162: -7.137998622e-06 | J162: -5.223235253e-06 | K162: -0.001396052526 | L162: 1.821800855e-05 | M162: -0.001932006082 | N162: 9.509337894e-08
A163: 78.45398 | B163: ='DF raw data'!J168 -> 3.2365065e-06 | C163: ='DF raw data'!K168 -> 1.5357067e-05 | D163: ='DF raw data'!L168 -> -1.1106638e-05 | F163: 3.240001927e-06 | G163: 1.54052316e-05 | H163: -1.111863317e-05 | J163: -3.602780689e-06 | K163: -0.001397854421 | L163: 2.592278109e-05 | M163: -0.001919041063 | N163: 9.543596014e-08
A164: 78.95412 | B164: ='DF raw data'!J169 -> -1.9722206e-06 | C164: ='DF raw data'!K169 -> 9.6884132e-06 | D164: ='DF raw data'!L169 -> -9.5229243e-06 | F164: -1.974350598e-06 | G164: 9.718799118e-06 | H164: -9.533209058e-06 | J164: -4.590232398e-06 | K164: -0.00140015018 | L164: 3.078354128e-05 | M164: -0.001903644982 | N164: 9.592044408e-08
A165: 79.45426 | B165: ='DF raw data'!J170 -> -8.0448226e-06 | C165: ='DF raw data'!K170 -> 8.5147876e-06 | D165: ='DF raw data'!L170 -> -7.7099885e-06 | F165: -8.053511008e-06 | G165: 8.541492658e-06 | H165: -7.718315288e-06 | J165: -8.618115393e-06 | K165: -0.001404460444 | L165: 3.505548341e-05 | M165: -0.001886112333 | N165: 9.657220594e-08
A166: 79.9544 | B166: ='DF raw data'!J171 -> -4.4863405e-06 | C166: ='DF raw data'!K171 -> 5.4723828e-06 | D166: ='DF raw data'!L171 -> -5.1271541e-06 | F166: -4.491185748e-06 | G166: 5.489545918e-06 | H166: -5.132691426e-06 | J166: -1.086433703e-05 | K166: -0.001409894134 | L166: 3.780102491e-05 | M166: -0.001867206528 | N166: 9.734589816e-08
A167: 80.45454 | B167: ='DF raw data'!J172 -> 2.0679295e-06 | C167: ='DF raw data'!K172 -> 3.9312986e-06 | D167: ='DF raw data'!L172 -> -1.6301564e-07 | F167: 2.070162864e-06 | G167: 3.943628392e-06 | H167: -1.631916969e-07 | J167: -9.828965778e-06 | K167: -0.001414809993 | L167: 3.977339121e-05 | M167: -0.001847314264 | N167: 9.818539877e-08
A168: 80.95468 | B168: ='DF raw data'!J173 -> 5.8317969e-06 | C168: ='DF raw data'!K173 -> -1.7078142e-08 | D168: ='DF raw data'!L173 -> 5.3754725e-06 | F168: 5.838095241e-06 | G168: -1.713170444e-08 | H168: 5.38127801e-06 | J168: -6.909100825e-06 | K168: -0.00141826551 | L168: 3.976482296e-05 | M168: -0.001827426286 | N168: 9.900011523e-08
A169: 81.45482 | B169: ='DF raw data'!J174 -> 5.7854782e-06 | C169: ='DF raw data'!K174 -> 6.8641607e-06 | D169: ='DF raw data'!L174 -> 9.7118118e-06 | F169: 5.791726516e-06 | G169: 6.885688872e-06 | H169: 9.722300557e-06 | J169: -4.012426725e-06 | K169: -0.001420272285 | L169: 4.32086314e-05 | M169: -0.001805815921 | N169: 9.994192156e-08
A170: 81.95496 | B170: ='DF raw data'!J175 -> 3.1534732e-06 | C170: ='DF raw data'!K175 -> 1.7513918e-05 | D170: ='DF raw data'!L175 -> 1.1874023e-05 | F170: 3.156878951e-06 | G170: 1.756884717e-05 | H170: 1.188684694e-05 | J170: -2.433545286e-06 | K170: -0.001421489399 | L170: 5.199551462e-05 | M170: -0.001779810884 | N170: 1.012970287e-07
A171: 82.4551 | B171: ='DF raw data'!J176 -> -2.2858104e-07 | C171: ='DF raw data'!K176 -> 6.7299329e-06 | D171: ='DF raw data'!L176 -> 6.4362198e-06 | F171: -2.288279075e-07 | G171: 6.751040091e-06 | H171: 6.443170917e-06 | J171: -2.547991276e-06 | K171: -0.001422763751 | L171: 5.537197981e-05 | M171: -0.001752117142 | N171: 1.028337331e-07
A172: 82.95524 | B172: ='DF raw data'!J177 -> -1.5414839e-06 | C172: ='DF raw data'!K177 -> -4.9420082e-06 | D172: ='DF raw data'!L177 -> -4.1171929e-06 | F172: -1.543148703e-06 | G172: -4.957507896e-06 | H172: -4.121639468e-06 | J172: -3.319781668e-06 | K172: -0.001424424107 | L172: 5.289253181e-05 | M172: -0.001725663471 | N172: 1.042384467e-07
A173: 83.45538 | B173: ='DF raw data'!J178 -> -3.1349148e-07 | C173: ='DF raw data'!K178 -> 7.7255663e-06 | D173: ='DF raw data'!L178 -> -1.08492e-05 | F173: -3.138300508e-07 | G173: 7.749796111e-06 | H173: -1.086091714e-05 | J173: -3.47674063e-06 | K173: -0.001426162964 | L173: 5.676851484e-05 | M173: -0.001697271266 | N173: 1.058562756e-07
A174: 83.95552 | B174: ='DF raw data'!J179 -> 2.9446824e-06 | C174: ='DF raw data'!K179 -> 1.2511732e-05 | D174: ='DF raw data'!L179 -> -1.8495681e-06 | F174: 2.947862657e-06 | G174: 1.255097274e-05 | H174: -1.851565634e-06 | J174: -2.0023966e-06 | K174: -0.001427164442 | L174: 6.304575834e-05 | M174: -0.001665739561 | N174: 1.078462212e-07
A175: 84.45566 | B175: ='DF raw data'!J180 -> -2.2952692e-07 | C175: ='DF raw data'!K180 -> 5.6689209e-06 | D175: ='DF raw data'!L180 -> 2.7289593e-06 | F175: -2.297748091e-07 | G175: 5.686700423e-06 | H175: 2.731906576e-06 | J175: -2.117316173e-06 | K175: -0.001428223397 | L175: 6.588990469e-05 | M175: -0.001632785384 | N175: 1.10019811e-07
A176: 84.9558 | B176: ='DF raw data'!J181 -> -4.1415765e-06 | C176: ='DF raw data'!K181 -> 6.1888863e-06 | D176: ='DF raw data'!L181 -> -7.513057e-06 | F176: -4.146049403e-06 | G176: 6.208296598e-06 | H176: -7.521171102e-06 | J176: -4.190921322e-06 | K176: -0.001430319444 | L176: 6.899492215e-05 | M176: -0.001598278264 | N176: 1.124094114e-07
A177: 85.45594 | B177: ='DF raw data'!J182 -> -7.0256213e-08 | C177: ='DF raw data'!K182 -> -4.5945649e-06 | D177: ='DF raw data'!L182 -> -5.4674506e-06 | F177: -7.033208971e-08 | G177: -4.608974904e-06 | H177: -5.473355447e-06 | J177: -4.226097213e-06 | K177: -0.001432433085 | L177: 6.668978944e-05 | M177: -0.001564924032 | N177: 1.146427305e-07
A178: 85.95608 | B178: ='DF raw data'!J183 -> 4.3143561e-07 | C178: ='DF raw data'!K183 -> -2.0481058e-07 | D178: ='DF raw data'!L183 -> 3.6728256e-06 | F178: 4.319015605e-07 | G178: -2.054529305e-07 | H178: 3.676792252e-06 | J178: -4.010085966e-06 | K178: -0.001434438689 | L178: 6.658703421e-05 | M178: -0.001531621193 | N178: 1.168683105e-07
A179: 86.45622 | B179: ='DF raw data'!J184 -> -6.7520453e-08 | C179: ='DF raw data'!K184 -> 1.6322141e-06 | D179: ='DF raw data'!L184 -> 2.2860427e-06 | F179: -6.759337509e-08 | G179: 1.637333238e-06 | H179: 2.288511626e-06 | J179: -4.043892117e-06 | K179: -0.001436461201 | L179: 6.740593006e-05 | M179: -0.001497908791 | N179: 1.191489051e-07
A180: 86.95636 | B180: ='DF raw data'!J185 -> -8.3079749e-07 | C180: ='DF raw data'!K185 -> 4.6552702e-07 | D180: ='DF raw data'!L185 -> -8.5525028e-07 | F180: -8.316947513e-07 | G180: 4.669870595e-07 | H180: -8.561739503e-07 | J180: -4.45985593e-06 | K180: -0.001438691753 | L180: 6.763948897e-05 | M180: -0.001464079577 | N180: 1.214470438e-07
A181: 87.4565 | B181: ='DF raw data'!J186 -> -1.5627734e-06 | C181: ='DF raw data'!K186 -> 7.4289578e-06 | D181: ='DF raw data'!L186 -> -3.1990835e-06 | F181: -1.564461195e-06 | G181: 7.452257354e-06 | H181: -3.20253851e-06 | J181: -5.242305552e-06 | K181: -0.00144131364 | L181: 7.136666096e-05 | M181: -0.001428386255 | N181: 1.240081017e-07
A182: 87.95664 | B182: ='DF raw data'!J187 -> 1.1124071e-06 | C182: ='DF raw data'!K187 -> 8.4192504e-07 | D182: ='DF raw data'!L187 -> -7.3087335e-06 | F182: 1.1136085e-06 | G182: 8.445655823e-07 | H182: -7.316626932e-06 | J182: -4.685345397e-06 | K182: -0.001443656969 | L182: 7.178906199e-05 | M182: -0.001392481674 | N182: 1.265966372e-07
A183: 88.45678 | B183: ='DF raw data'!J188 -> 2.4792394e-06 | C183: ='DF raw data'!K188 -> 9.8309138e-06 | D183: ='DF raw data'!L188 -> -7.2207527e-06 | F183: 2.481916979e-06 | G183: 9.861746645e-06 | H183: -7.228551113e-06 | J183: -3.44403944e-06 | K183: -0.001445379471 | L183: 7.672131596e-05 | M183: -0.001354110275 | N183: 1.295464738e-07
A184: 88.95692 | B184: ='DF raw data'!J189 -> 1.5455633e-07 | C184: ='DF raw data'!K189 -> 8.2265851e-06 | D184: ='DF raw data'!L189 -> 1.5571371e-06 | F184: 1.547232508e-07 | G184: 8.252386264e-06 | H184: 1.558818808e-06 | J184: -3.366656153e-06 | K184: -0.00144706327 | L184: 8.084866442e-05 | M184: -0.001313674624 | N184: 1.32821311e-07
A185: 89.45706 | B185: ='DF raw data'!J190 -> -5.1801862e-07 | C185: ='DF raw data'!K190 -> 1.6371486e-07 | D185: ='DF raw data'!L190 -> 8.9859041e-06 | F185: -5.185780801e-07 | G185: 1.642283214e-07 | H185: 8.995608876e-06 | J185: -3.626017794e-06 | K185: -0.001448876787 | L185: 8.093080158e-05 | M185: -0.001273197893 | N185: 1.361037011e-07
A186: 89.9572 | B186: ='DF raw data'!J191 -> 3.8787116e-06 | C186: ='DF raw data'!K191 -> 4.4808844e-06 | D186: ='DF raw data'!L191 -> 1.0774946e-05 | F186: 3.882900609e-06 | G186: 4.494937866e-06 | H186: 1.078658294e-05 | J186: -1.684023884e-06 | K186: -0.001449719034 | L186: 8.31788998e-05 | M186: -0.001231596798 | N186: 1.395654528e-07
A187: 90.45734 | B187: ='DF raw data'!J192 -> 9.048822e-07 | C187: ='DF raw data'!K192 -> 6.9811763e-06 | D187: ='DF raw data'!L192 -> 1.0761703e-05 | F187: 9.058594728e-07 | G187: 7.00307147e-06 | H187: 1.077332564e-05 | J187: -1.230967327e-06 | K187: -0.00145033469 | L187: 8.668141597e-05 | M187: -0.001188243954 | N187: 1.433240965e-07
A188: 90.95748 | B188: ='DF raw data'!J193 -> -3.193592e-06 | C188: ='DF raw data'!K193 -> -2.7308538e-06 | D188: ='DF raw data'!L193 -> 9.9237168e-06 | F188: -3.197041079e-06 | G188: -2.739418618e-06 | H188: 9.934434414e-06 | J188: -2.829935452e-06 | K188: -0.001451750054 | L188: 8.531132314e-05 | M188: -0.001145576349 | N188: 1.469681317e-07
A189: 91.45762 | B189: ='DF raw data'!J194 -> 6.0731008e-07 | C189: ='DF raw data'!K194 -> 3.9880056e-06 | D189: ='DF raw data'!L194 -> 1.1245686e-05 | F189: 6.079659749e-07 | G189: 4.000513243e-06 | H189: 1.125783134e-05 | J189: -2.52586735e-06 | K189: -0.001453013342 | L189: 8.731213983e-05 | M189: -0.001101908056 | N189: 1.507840948e-07
A190: 91.95776 | B190: ='DF raw data'!J195 -> 2.5507329e-06 | C190: ='DF raw data'!K195 -> 3.5861217e-06 | D190: ='DF raw data'!L195 -> 3.2074117e-06 | F190: 2.553487692e-06 | G190: 3.597368908e-06 | H190: 3.210875705e-06 | J190: -1.248766015e-06 | K190: -0.001453637899 | L190: 8.911132792e-05 | M190: -0.001057339916 | N190: 1.547564008e-07
A191: 92.4579 | B191: ='DF raw data'!J196 -> -1.7737761e-06 | C191: ='DF raw data'!K196 -> 1.6790476e-06 | D191: ='DF raw data'!L196 -> 9.8184171e-07 | F191: -1.775691778e-06 | G191: 1.684313623e-06 | H191: 9.82902099e-07 | J191: -2.136860501e-06 | K191: -0.001454706629 | L191: 8.995372053e-05 | M191: -0.001012350462 | N191: 1.588056533e-07
A192: 92.95804 | B192: ='DF raw data'!J197 -> -7.7804289e-06 | C192: ='DF raw data'!K197 -> 1.1479673e-05 | D192: ='DF raw data'!L197 -> 3.4488717e-06 | F192: -7.788831763e-06 | G192: 1.151567687e-05 | H192: 3.452596481e-06 | J192: -6.032366819e-06 | K192: -0.001457723657 | L192: 9.571317116e-05 | M192: -0.0009644804768 | N192: 1.634056412e-07
A193: 93.45818 | B193: ='DF raw data'!J198 -> -1.1351716e-05 | C193: ='DF raw data'!K198 -> 8.6716982e-06 | D193: ='DF raw data'!L198 -> 2.3085981e-06 | F193: -1.136397585e-05 | G193: 8.698895379e-06 | H193: 2.311091386e-06 | J193: -1.17159457e-05 | K193: -0.00146358327 | L193: 0.0001000638367 | M193: -0.0009144345496 | N193: 1.684820796e-07
A194: 93.95832 | B194: ='DF raw data'!J199 -> -8.8625675e-06 | C194: ='DF raw data'!K199 -> -1.44435e-06 | D194: ='DF raw data'!L199 -> 3.9751853e-06 | F194: -8.872139073e-06 | G194: -1.448879937e-06 | H194: 3.9794785e-06 | J194: -1.615325734e-05 | K194: -0.00147166216 | L194: 9.933919389e-05 | M194: -0.0008647510451 | N194: 1.735480993e-07
A195: 94.45846 | B195: ='DF raw data'!J200 -> -1.811291e-06 | C195: ='DF raw data'!K200 -> 1.4056019e-05 | D195: ='DF raw data'!L200 -> 3.1159675e-06 | F195: -1.813247194e-06 | G195: 1.410010311e-05 | H195: 3.119332745e-06 | J195: -1.706013479e-05 | K195: -0.001480194616 | L195: 0.0001063912195 | M195: -0.0008115405406 | N195: 1.793547946e-07
A196: 94.9586 | B196: ='DF raw data'!J201 -> 1.0709632e-06 | C196: ='DF raw data'!K201 -> 2.0763669e-05 | D196: ='DF raw data'!L201 -> 6.6400776e-06 | F196: 1.07211984e-06 | G196: 2.082879041e-05 | H196: 6.647248884e-06 | J196: -1.652392477e-05 | K196: -0.001488458891 | L196: 0.0001168085307 | M196: -0.0007531199221 | N196: 1.863153795e-07
A197: 95.45874 | B197: ='DF raw data'!J202 -> 6.9069256e-07 | C197: ='DF raw data'!K202 -> 9.3252247e-06 | D197: ='DF raw data'!L202 -> 8.4552685e-06 | F197: 6.91438508e-07 | G197: 9.354471544e-06 | H197: 8.46440019e-06 | J197: -1.617810872e-05 | K197: -0.001496550211 | L197: 0.0001214870761 | M197: -0.0006923593759 | N197: 1.938279028e-07
A198: 95.95888 | B198: ='DF raw data'!J203 -> 1.4336115e-06 | C198: ='DF raw data'!K203 -> 2.6570692e-06 | D198: ='DF raw data'!L203 -> 1.9251675e-07 | F198: 1.4351598e-06 | G198: 2.665402607e-06 | H198: 1.927246681e-07 | J198: -1.54603279e-05 | K198: -0.001504282539 | L198: 0.0001228201505 | M198: -0.0006309321058 | N198: 2.014919537e-07
A199: 96.45902 | B199: ='DF raw data'!J204 -> -1.2939704e-06 | C199: ='DF raw data'!K204 -> -1.2317993e-06 | D199: ='DF raw data'!L204 -> -1.1390488e-05 | F199: -1.295367888e-06 | G199: =(1-$G$1*($B$2-$G$2))*C199*$M$2/$M$1 -> -1.235662611e-06 | H199: -1.140278973e-05 | J199: -1.610819319e-05 | K199: -0.001512338891 | L199: 0.0001222021463 | M199: -0.0005698139243 | N199: 2.090904999e-07
A200: =A199+$B$1 -> 96.95916 | B200: ='DF raw data'!J205 -> -5.4231637e-06 | C200: ='DF raw data'!K205 -> 4.3705409e-06 | D200: ='DF raw data'!L205 -> -2.2394429e-06 | F200: -5.429020717e-06 | G200: 4.384248294e-06 | H200: -2.241861498e-06 | J200: =F200*$B$1+J199 -> -1.882346361e-05 | K200: =J200*$B$1+K199 -> -0.001521753258 | L200: =G200*$B$1+L199 -> 0.0001243948842 | M200: =L200*$B$1+M199 -> -0.000507599067 | N200: =(J200^2+L200^2)*$B$1+N199 -> 2.170069209e-07
A201: 97.4593 | B201: ='DF raw data'!J206 -> -2.4457981e-06 | C201: ='DF raw data'!K206 -> 3.6656443e-06 | D201: ='DF raw data'!L206 -> 8.2134738e-06 | F201: -2.448439562e-06 | G201: 3.677140916e-06 | H201: 8.222344352e-06 | J201: -2.004802617e-05 | K201: -0.001531780078 | L201: 0.0001262339695 | M201: -0.0004444644095 | N201: 2.251776773e-07
... 1002 more rows

Sheet 30 mm
A1: dz | B1: ='DF raw data'!N7 -> 0.50014 | C1: mm | F1: T_coeff | G1: -0.0008 | H1: /degC | L1: Hallref | M1: ='PI vs gap'!B50 -> 0.505575 | N1: T | P1: IBy total | Q1: =L1203*1000 -> -5.911183019 | R1: muTm | X1: DF ref | Y1: 22
A2: Tref | B2: ='DF raw data'!N8 -> 21.37 | C2: degC | F2: Tcorr | G2: 20 | H2: degC | L2: NMRref | M2: ='PI vs gap'!B51 -> 0.5066135 | N2: T | P2: JBy total | Q2: =M1203 -> -2.061600356 | R2: muTm^2
A3: Encoder | B3: ='DF raw data'!N9 -> 17828736 | P3: PI total | Q3: =N1203 -> 68.28720253 | R3: T^2mm^3
A5: z [mm] | B5: Bx | C5: By | D5: Bz | F5: Bx_corr | G5: By_corr | H5: Bz_corr | J5: Ix | K5: Jx | L5: Iy | M5: Jy | N5: PI
A6: -0.068 | B6: ='DF raw data'!M11 -> 1.3659119e-06 | C6: ='DF raw data'!N11 -> -4.6421496e-06 | D6: ='DF raw data'!O11 -> 2.1404557e-07 | F6: =(1-$G$1*($B$2-$G$2))*B6 -> 1.367408939e-06 | G6: =(1-$G$1*($B$2-$G$2))*C6*$M$2/$M$1 -> -4.656783272e-06 | H6: =(1-$G$1*($B$2-$G$2))*D6 -> 2.142801639e-07 | J6: =F6*$B$1 -> 6.83895907e-07 | K6: =J6*$B$1 -> 3.420436989e-07 | L6: =G6*$B$1 -> -2.329043585e-06 | M6: =L6*$B$1 -> -1.164847859e-06 | N6: =(J6^2+L6)^2*$B$1 -> 2.712980344e-12
A7: =A6+$B$1 -> 0.43214 | B7: ='DF raw data'!M12 -> 1.3452191e-06 | C7: ='DF raw data'!N12 -> -4.1281869e-06 | D7: ='DF raw data'!O12 -> -2.4058536e-07 | F7: =(1-$G$1*($B$2-$G$2))*B7 -> 1.34669346e-06 | G7: =(1-$G$1*($B$2-$G$2))*C7*$M$2/$M$1 -> -4.141200382e-06 | H7: -2.408490416e-07 | J7: =F7*$B$1+J6 -> 1.357431174e-06 | K7: =J7*$B$1+K6 -> 1.020949326e-06 | L7: =G7*$B$1+L6 -> -4.400223545e-06 | M7: =L7*$B$1+M6 -> -3.365575662e-06 | N7: =(J7^2+L7^2)*$B$1+N6 -> 1.33182423e-11
A8: =A7+$B$1 -> 0.93228 | B8: ='DF raw data'!M13 -> 1.3170611e-06 | C8: ='DF raw data'!N13 -> -3.2494368e-06 | D8: ='DF raw data'!O13 -> 1.1435041e-07 | F8: 1.318504599e-06 | G8: -3.259680156e-06 | H8: 1.14475738e-07 | J8: =F8*$B$1+J7 -> 2.016868064e-06 | K8: =J8*$B$1+K7 -> 2.02966572e-06 | L8: =G8*$B$1+L7 -> -6.030519978e-06 | M8: =L8*$B$1+M7 -> -6.381679924e-06 | N8: =(J8^2+L8^2)*$B$1+N7 -> 3.354136719e-11
A9: 1.43242 | B9: ='DF raw data'!M14 -> 1.1529883e-06 | C9: ='DF raw data'!N14 -> 1.0124954e-06 | D9: ='DF raw data'!O14 -> -1.1078504e-06 | F9: 1.154251975e-06 | G9: 1.015687138e-06 | H9: -1.109064604e-06 | J9: 2.594155647e-06 | K9: 3.327106725e-06 | L9: -5.522534213e-06 | M9: -9.143720185e-06 | N9: 5.216059294e-11
A10: 1.93256 | B10: ='DF raw data'!M15 -> 7.4467607e-07 | C10: ='DF raw data'!N15 -> 1.1511879e-05 | D10: ='DF raw data'!O15 -> -4.1231528e-06 | F10: 7.45492235e-07 | G10: 1.154816845e-05 | H10: -4.127671775e-06 | J10: 2.967006134e-06 | K10: 4.811025173e-06 | L10: 2.53166756e-07 | M10: -9.017101364e-06 | N10: 5.659544375e-11
A11: 2.4327 | B11: ='DF raw data'!M16 -> 1.2091878e-06 | C11: ='DF raw data'!N16 -> -1.1151346e-06 | D11: ='DF raw data'!O16 -> -3.0062351e-06 | F11: 1.21051307e-06 | G11: -1.118649892e-06 | H11: -3.009529934e-06 | J11: 3.57243214e-06 | K11: 6.597741384e-06 | L11: -3.063148012e-07 | M11: -9.170301648e-06 | N11: 6.302529368e-11
A12: 2.93284 | B12: ='DF raw data'!M17 -> 1.3919453e-06 | C12: ='DF raw data'!N17 -> -5.5776068e-06 | D12: ='DF raw data'!O17 -> 5.5982674e-08 | F12: 1.393470872e-06 | G12: -5.595189358e-06 | H12: 5.604403101e-08 | J12: 4.269362662e-06 | K12: 8.733020425e-06 | L12: -3.104692807e-06 | M12: -1.072308271e-05 | N12: 7.696248248e-11
A13: 3.43298 | B13: ='DF raw data'!M18 -> 1.7870443e-06 | C13: ='DF raw data'!N18 -> -1.6117954e-05 | D13: ='DF raw data'!O18 -> 6.9510281e-07 | F13: 1.789002901e-06 | G13: -1.61687634e-05 | H13: 6.958646427e-07 | J13: 5.164114573e-06 | K13: 1.131580069e-05 | L13: -1.119133813e-05 | M13: -1.632031856e-05 | N13: 1.529408147e-10
A14: 3.93312 | B14: ='DF raw data'!M19 -> 1.3473582e-06 | C14: ='DF raw data'!N19 -> -4.2496063e-06 | D14: ='DF raw data'!O19 -> -5.2184475e-07 | F14: 1.348834905e-06 | G14: -4.263002538e-06 | H14: -5.224166918e-07 | J14: 5.838720862e-06 | K14: 1.423597854e-05 | L14: -1.332343622e-05 | M14: -2.298390196e-05 | N14: 2.587727465e-10
A15: 4.43326 | B15: ='DF raw data'!M20 -> 1.4050274e-06 | C15: ='DF raw data'!N20 -> -6.3210623e-06 | D15: ='DF raw data'!O20 -> -3.4024984e-06 | F15: 1.40656731e-06 | G15: -6.340988489e-06 | H15: -3.406227538e-06 | J15: 6.542201437e-06 | K15: 1.750799517e-05 | L15: -1.649481821e-05 | M15: -3.123362033e-05 | N15: 4.162565432e-10
A16: 4.9334 | B16: ='DF raw data'!M21 -> 1.4454818e-06 | C16: ='DF raw data'!N21 -> -7.2511843e-06 | D16: ='DF raw data'!O21 -> -2.3385642e-06 | F16: 1.447066048e-06 | G16: -7.274042557e-06 | H16: -2.341127266e-06 | J16: 7.26593705e-06 | K16: 2.114198092e-05 | L16: -2.013285785e-05 | M16: -4.130286786e-05 | N16: 6.453835841e-10
A17: 5.43354 | B17: ='DF raw data'!M22 -> 1.4734505e-06 | C17: ='DF raw data'!N22 -> -7.3763381e-06 | D17: ='DF raw data'!O22 -> 1.126829e-06 | F17: 1.475065402e-06 | G17: -7.399590885e-06 | H17: 1.128064005e-06 | J17: 8.00367626e-06 | K17: 2.514493957e-05 | L17: -2.383368924e-05 | M17: -5.32230492e-05 | N17: 9.615238667e-10
A18: 5.93368 | B18: ='DF raw data'!M23 -> 1.356846e-06 | C18: ='DF raw data'!N23 -> -3.5593871e-06 | D18: ='DF raw data'!O23 -> 4.6149958e-06 | F18: 1.358333103e-06 | G18: -3.570607527e-06 | H18: 4.620053835e-06 | J18: 8.683032978e-06 | K18: 2.948767168e-05 | L18: -2.561949289e-05 | M18: -6.603638237e-05 | N18: 1.327503051e-09
A19: 6.43382 | B19: ='DF raw data'!M24 -> 1.071614e-06 | C19: ='DF raw data'!N24 -> 4.0147393e-06 | D19: ='DF raw data'!O24 -> 3.5191201e-06 | F19: 1.072788489e-06 | G19: 4.027395156e-06 | H19: 3.522977056e-06 | J19: 9.219577413e-06 | K19: 3.409875113e-05 | L19: -2.360523147e-05 | M19: -7.784230284e-05 | N19: 1.64869674e-09
A20: 6.93396 | B20: ='DF raw data'!M25 -> 1.0279e-06 | C20: ='DF raw data'!N25 -> 4.5204292e-06 | D20: ='DF raw data'!O25 -> -2.4417969e-07 | F20: 1.029026578e-06 | G20: 4.534679166e-06 | H20: -2.444473109e-07 | J20: 9.734234766e-06 | K20: 3.89672313e-05 | L20: -2.133725703e-05 | M20: -8.851391857e-05 | N20: 1.923790677e-09
A21: 7.4341 | B21: ='DF raw data'!M26 -> 1.071221e-06 | C21: ='DF raw data'!N26 -> 3.0193719e-06 | D21: ='DF raw data'!O26 -> -1.983512e-06 | F21: 1.072395058e-06 | G21: 3.028890011e-06 | H21: -1.985685929e-06 | J21: 1.027058243e-05 | K21: 4.41039604e-05 | L21: -1.982238798e-05 | M21: -9.84278877e-05 | N21: 2.173066419e-09
A22: 7.93424 | B22: ='DF raw data'!M27 -> -1.272685e-06 | C22: ='DF raw data'!N27 -> 4.0578366e-06 | D22: ='DF raw data'!O27 -> 2.750488e-06 | F22: -1.274079863e-06 | G22: 4.070628314e-06 | H22: 2.753502535e-06 | J22: 9.633364128e-06 | K22: 4.892199114e-05 | L22: -1.778650394e-05 | M22: -0.0001073236298 | N22: 2.377704415e-09
A23: 8.43438 | B23: ='DF raw data'!M28 -> -4.6680398e-06 | C23: ='DF raw data'!N28 -> 1.019402e-05 | D23: ='DF raw data'!O28 -> 5.5861615e-06 | F23: =(1-$G$1*($B$2-$G$2))*B23 -> -4.673155972e-06 | G23: 1.02261551e-05 | H23: 5.592283933e-06 | J23: 7.2961319e-06 | K23: 5.257107854e-05 | L23: -1.267199473e-05 | M23: -0.0001136614012 | N23: 2.484640845e-09
A24: 8.93452 | B24: ='DF raw data'!M29 -> 2.0441803e-08 | C24: ='DF raw data'!N29 -> -7.1030804e-06 | D24: ='DF raw data'!O29 -> 6.6592779e-06 | F24: 2.046420722e-08 | G24: -7.125471782e-06 | H24: 6.666576469e-06 | J24: 7.306366869e-06 | K24: 5.622528487e-05 | L24: -1.623572818e-05 | M24: -0.0001217815383 | N24: 2.643176155e-09
A25: 9.43466 | B25: ='DF raw data'!M30 -> 3.9755505e-06 | C25: ='DF raw data'!N30 -> -5.546251e-06 | D25: ='DF raw data'!O30 -> 3.1980612e-06 | F25: 3.979907703e-06 | G25: -5.563734714e-06 | H25: 3.201566275e-06 | J25: 9.296877907e-06 | K25: 6.087502539e-05 | L25: -1.901837446e-05 | M25: -0.0001312933881 | N25: 2.867304147e-09
A26: 9.9348 | B26: ='DF raw data'!M31 -> -4.9902155e-08 | C26: ='DF raw data'!N31 -> 4.1481658e-06 | D26: ='DF raw data'!O31 -> 6.3603088e-06 | F26: -4.995684776e-08 | G26: 4.161242263e-06 | H26: 6.367279698e-06 | J26: 9.27189249e-06 | K26: 6.55122697e-05 | L26: -1.693717076e-05 | M26: -0.0001397643447 | N26: 3.053774215e-09
A27: 10.43494 | B27: ='DF raw data'!M32 -> -6.1447972e-06 | C27: ='DF raw data'!N32 -> 1.1383167e-06 | D27: ='DF raw data'!O32 -> 3.1809627e-06 | F27: -6.151531898e-06 | G27: 1.14190507e-06 | H27: 3.184449035e-06 | J27: 6.195265326e-06 | K27: 6.86107697e-05 | L27: -1.636605836e-05 | M27: -0.0001479496651 | N27: 3.206931677e-09
A28: 10.93508 | B28: ='DF raw data'!M33 -> -6.7737747e-06 | C28: ='DF raw data'!N33 -> 5.4809702e-06 | D28: ='DF raw data'!O33 -> 5.977214e-07 | F28: -6.781198757e-06 | G28: 5.498248126e-06 | H28: 5.983765027e-07 | J28: 2.80371658e-06 | K28: 7.001302051e-05 | L28: -1.361616454e-05 | M28: -0.0001547596537 | N28: 3.303589115e-09
A29: 11.43522 | B29: ='DF raw data'!M34 -> -2.9706607e-06 | C29: ='DF raw data'!N34 -> -1.3714484e-06 | D29: ='DF raw data'!O34 -> 1.6544087e-06 | F29: -2.973916544e-06 | G29: -1.375771683e-06 | H29: 1.656221932e-06 | J29: 1.316341959e-06 | K29: 7.067137577e-05 | L29: -1.430424299e-05 | M29: -0.0001619137777 | N29: 3.406790065e-09
A30: 11.93536 | B30: ='DF raw data'!M35 -> 3.8336657e-07 | C30: ='DF raw data'!N35 -> -1.8871447e-06 | D30: ='DF raw data'!O35 -> 7.9327003e-07 | F30: 3.837867398e-07 | G30: -1.893093637e-06 | H30: 7.94139454e-07 | J30: 1.50828906e-06 | K30: 7.142573146e-05 | L30: -1.525105484e-05 | M30: -0.0001695414403 | N30: 3.524257752e-09
A31: 12.4355 | B31: ='DF raw data'!M36 -> 5.5189412e-06 | C31: ='DF raw data'!N36 -> 2.4100104e-06 | D31: ='DF raw data'!O36 -> -3.5843245e-06 | F31: 5.52498996e-06 | G31: 2.417607592e-06 | H31: -3.58825292e-06 | J31: 4.271557538e-06 | K31: 7.356210825e-05 | L31: -1.404191258e-05 | M31: -0.0001765643625 | N31: 3.631998667e-09
A32: 12.93564 | B32: ='DF raw data'!M37 -> 1.225009e-05 | C32: ='DF raw data'!N37 -> -1.028407e-06 | D32: ='DF raw data'!O37 -> -3.9860447e-06 | F32: 1.22635161e-05 | G32: -1.031648897e-06 | H32: -3.990413405e-06 | J32: 1.040503248e-05 | K32: 7.87660812e-05 | L32: -1.455788146e-05 | M32: -0.0001838453413 | N32: 3.792141801e-09
A33: 13.43578 | B33: ='DF raw data'!M38 -> 1.3083449e-05 | C33: ='DF raw data'!N38 -> 2.7070205e-06 | D33: ='DF raw data'!O38 -> -3.3004749e-06 | F33: 1.309778846e-05 | G33: 2.715553971e-06 | H33: -3.30409222e-06 | J33: 1.69557604e-05 | K33: 8.72463352e-05 | L33: -1.31997243e-05 | M33: -0.0001904470514 | N33: 4.02307171e-09
A34: 13.93592 | B34: ='DF raw data'!M39 -> 7.366627e-06 | C34: ='DF raw data'!N39 -> 2.8144282e-06 | D34: ='DF raw data'!O39 -> 1.154709e-07 | F34: 7.374700823e-06 | G34: 2.823300257e-06 | H34: 1.155974561e-07 | J34: 2.064414327e-05 | K34: 9.757129702e-05 | L34: -1.178767891e-05 | M34: -0.0001963425411 | N34: 4.30571584e-09
A35: 14.43606 | B35: ='DF raw data'!M40 -> 1.6483355e-06 | C35: ='DF raw data'!N40 -> 4.848393e-06 | D35: ='DF raw data'!O40 -> -2.2268928e-06 | F35: 1.650142076e-06 | G35: 4.863676823e-06 | H35: -2.229333475e-06 | J35: 2.146944533e-05 | K35: 0.0001083090254 | L35: -9.355159579e-06 | M35: -0.0002010214307 | N35: 4.580020671e-09
A36: 14.9362 | B36: ='DF raw data'!M41 -> 3.6914935e-07 | C36: ='DF raw data'!N41 -> 3.1772165e-06 | D36: ='DF raw data'!O41 -> -1.960942e-06 | F36: 3.695539377e-07 | G36: 3.187232192e-06 | H36: -1.963091192e-06 | J36: 2.165427403e-05 | K36: 0.000119139194 | L36: -7.76109727e-06 | M36: -0.0002049030658 | N36: 4.844665858e-09
A37: 15.43634 | B37: ='DF raw data'!M42 -> 8.1717371e-07 | C37: ='DF raw data'!N42 -> 1.2449241e-06 | D37: ='DF raw data'!O42 -> 1.8429579e-06 | F37: 8.180693324e-07 | G37: 1.248848534e-06 | H37: 1.844977782e-06 | J37: 2.206342323e-05 | K37: 0.0001301739945 | L37: -7.136498164e-06 | M37: -0.000208472314 | N37: 5.113603265e-09
A38: 15.93648 | B38: ='DF raw data'!M43 -> -7.5016942e-07 | C38: ='DF raw data'!N43 -> -4.8384635e-08 | D38: ='DF raw data'!O43 -> -3.5002727e-06 | F38: -7.509916057e-07 | G38: -4.853716021e-08 | H38: -3.504108999e-06 | J38: 2.168782229e-05 | K38: 0.000141020942 | L38: -7.16077354e-06 | M38: -0.0002120537033 | N38: 5.374495451e-09
A39: 16.43662 | B39: ='DF raw data'!M44 -> 1.4839316e-08 | C39: ='DF raw data'!N44 -> -1.5436673e-05 | D39: ='DF raw data'!O44 -> -6.5539048e-06 | F39: 1.485557989e-08 | G39: -1.548533477e-05 | H39: -6.56108788e-06 | J39: 2.169525216e-05 | K39: 0.0001518716054 | L39: -1.490560887e-05 | M39: -0.0002195085945 | N39: 5.721023023e-09
A40: 16.93676 | B40: ='DF raw data'!M45 -> 3.2423814e-06 | C40: ='DF raw data'!N45 -> 5.9602412e-06 | D40: ='DF raw data'!O45 -> -3.7172417e-06 | F40: 3.24593505e-06 | G40: 5.979029955e-06 | H40: -3.721315797e-06 | J40: 2.331867411e-05 | K40: 0.000163534207 | L40: -1.191525683e-05 | M40: -0.0002254678911 | N40: 6.063985979e-09
A41: 17.4369 | B41: ='DF raw data'!M46 -> 4.5525339e-06 | C41: ='DF raw data'!N46 -> 1.2846418e-05 | D41: ='DF raw data'!O46 -> -2.9474018e-06 | F41: 4.557523477e-06 | G41: 1.288691438e-05 | H41: -2.950632152e-06 | J41: 2.559807391e-05 | K41: 0.0001763368277 | L41: -5.46999547e-06 | M41: -0.0002282036546 | N41: 6.406673024e-09
A42: 17.93704 | B42: ='DF raw data'!M47 -> 2.0870175e-06 | C42: ='DF raw data'!N47 -> 5.5849109e-06 | D42: ='DF raw data'!O47 -> -4.0034924e-06 | F42: 2.089304871e-06 | G42: 5.602516483e-06 | H42: -4.007880228e-06 | J42: 2.664301884e-05 | K42: 0.0001896620672 | L42: -2.667952876e-06 | M42: -0.0002295380046 | N42: 6.765257612e-09
A43: 18.43718 | B43: ='DF raw data'!M48 -> -1.8013416e-06 | C43: ='DF raw data'!N48 -> -1.8964852e-06 | D43: ='DF raw data'!O48 -> -1.9398417e-06 | F43: -1.80331587e-06 | G43: -1.902463582e-06 | H43: -1.941967767e-06 | J43: 2.574110844e-05 | K43: 0.0002025362251 | L43: -3.619451011e-06 | M43: -0.0002313482368 | N43: 7.103204756e-09
A44: 18.93732 | B44: ='DF raw data'!M49 -> -2.6855014e-06 | C44: ='DF raw data'!N49 -> -3.708426e-06 | D44: ='DF raw data'!O49 -> 1.4841659e-06 | F44: -2.68844471e-06 | G44: -3.72011625e-06 | H44: 1.485792546e-06 | J44: 2.439650971e-05 | K44: 0.0002147378955 | L44: -5.480029952e-06 | M44: -0.000234089019 | N44: 7.415902494e-09
A45: 19.43746 | B45: ='DF raw data'!M50 -> 7.9700476e-07 | C45: ='DF raw data'!N50 -> -2.1354531e-06 | D45: ='DF raw data'!O50 -> -6.2446486e-07 | F45: 7.978782772e-07 | G45: -2.142184792e-06 | H45: -6.251492735e-07 | J45: 2.479556055e-05 | K45: 0.0002271391472 | L45: -6.551422254e-06 | M45: -0.0002373656473 | N45: 7.744865056e-09
A46: 19.9376 | B46: ='DF raw data'!M51 -> 8.243187e-07 | C46: ='DF raw data'!N51 -> -4.0277168e-06 | D46: ='DF raw data'!O51 -> -5.1345692e-06 | F46: 8.252221533e-07 | G46: -4.040413565e-06 | H46: -5.140196688e-06 | J46: 2.520828716e-05 | K46: 0.0002397468199 | L46: -8.572194695e-06 | M46: -0.0002416529448 | N46: 8.099434439e-09
A47: 20.43774 | B47: ='DF raw data'!M52 -> -1.7737075e-06 | C47: ='DF raw data'!N52 -> 2.313142e-06 | D47: ='DF raw data'!O52 -> -5.7517304e-06 | F47: -1.775651483e-06 | G47: 2.320433829e-06 | H47: -5.758034297e-06 | J47: 2.432021282e-05 | K47: 0.0002519103311 | L47: -7.41165292e-06 | M47: -0.0002453598089 | N47: 8.422727611e-09
A48: 20.93788 | B48: ='DF raw data'!M53 -> -7.7480581e-07 | C48: ='DF raw data'!N53 -> 3.2191133e-06 | D48: ='DF raw data'!O53 -> -4.3111054e-06 | F48: -7.756549972e-07 | G48: 3.229261066e-06 | H48: -4.315830372e-06 | J48: 2.393227673e-05 | K48: 0.00026387982 | L48: -5.79657029e-06 | M48: -0.0002482589055 | N48: 8.725989549e-09
A49: 21.43802 | B49: ='DF raw data'!M54 -> -1.9957261e-06 | C49: ='DF raw data'!N54 -> 3.6870782e-07 | D49: ='DF raw data'!O54 -> -1.1897777e-06 | F49: -1.997913416e-06 | G49: 3.698701154e-07 | H49: -1.191081696e-06 | J49: 2.293304032e-05 | K49: 0.0002753495508 | L49: -5.611583451e-06 | M49: -0.0002510654829 | N49: 9.00477469e-09
A50: 21.93816 | B50: ='DF raw data'!M55 -> -7.0258284e-06 | C50: ='DF raw data'!N55 -> -6.1331971e-06 | D50: ='DF raw data'!O55 -> -1.6981925e-06 | F50: -7.033528708e-06 | G50: -6.152531072e-06 | H50: -1.700053719e-06 | J50: 1.941529127e-05 | K50: 0.0002850599146 | L50: -8.688710341e-06 | M50: -0.0002554110545 | N50: 9.231061644e-09
A51: 22.4383 | B51: ='DF raw data'!M56 -> -1.0060587e-05 | C51: ='DF raw data'!N56 -> -5.3385061e-06 | D51: ='DF raw data'!O56 -> -2.9555945e-06 | F51: -1.00716134e-05 | G51: -5.35533493e-06 | H51: -2.958833832e-06 | J51: 1.437807454e-05 | K51: 0.0002922509648 | L51: -1.136712755e-05 | M51: -0.0002610962096 | N51: 9.399078984e-09
A52: 22.93844 | B52: ='DF raw data'!M57 -> -6.8032859e-06 | C52: ='DF raw data'!N57 -> -7.5383191e-06 | D52: ='DF raw data'!O57 -> -2.5808245e-06 | F52: -6.810742301e-06 | G52: -7.562082506e-06 | H52: -2.583653084e-06 | J52: 1.097174989e-05 | K52: 0.0002977383758 | L52: -1.51492275e-05 | M52: -0.0002686729443 | N52: 9.574067162e-09
A53: 23.43858 | B53: ='DF raw data'!M58 -> -1.6288577e-06 | C53: ='DF raw data'!N58 -> -4.0721475e-06 | D53: ='DF raw data'!O58 -> -1.6705729e-06 | F53: -1.630642928e-06 | G53: -4.084984326e-06 | H53: -1.672403848e-06 | J53: 1.015620013e-05 | K53: 0.0003028178977 | L53: -1.719229156e-05 | M53: -0.000277271497 | N53: 9.773484628e-09
A54: 23.93872 | B54: ='DF raw data'!M59 -> 5.6718636e-07 | C54: ='DF raw data'!N59 -> -6.0341949e-06 | D54: ='DF raw data'!O59 -> -1.3923128e-07 | F54: 5.678079963e-07 | G54: -6.053216783e-06 | H54: -1.393838775e-07 | J54: 1.044018362e-05 | K54: 0.0003080394511 | L54: -2.02197474e-05 | M54: -0.0002873842014 | N54: 1.003247493e-08
A55: 24.43886 | B55: ='DF raw data'!M60 -> -1.8008177e-06 | C55: ='DF raw data'!N60 -> -3.4646061e-07 | D55: ='DF raw data'!O60 -> -1.1656942e-06 | F55: -1.802791396e-06 | G55: -3.475527744e-07 | H55: -1.166971801e-06 | J55: 9.538535536e-06 | K55: 0.0003128100543 | L55: -2.039357244e-05 | M55: -0.0002975838428 | N55: 1.028598663e-08
A56: 24.939 | B56: ='DF raw data'!M61 -> -6.283899e-06 | C56: ='DF raw data'!N61 -> 3.1036984e-06 | D56: ='DF raw data'!O61 -> -2.1984729e-06 | F56: -6.290786153e-06 | G56: 3.113482338e-06 | H56: -2.200882426e-06 | J56: 6.392261749e-06 | K56: 0.0003160070801 | L56: -1.883639539e-05 | M56: -0.0003070046775 | N56: 1.048387742e-08
A57: 25.43914 | B57: ='DF raw data'!M62 -> -8.6133259e-06 | C57: ='DF raw data'!N62 -> 4.638378e-06 | D57: ='DF raw data'!O62 -> -7.5230623e-06 | F57: -8.622766105e-06 | G57: 4.652999782e-06 | H57: -7.531307576e-06 | J57: 2.079671509e-06 | K57: 0.000317047207 | L57: -1.650924408e-05 | M57: -0.0003152616109 | N57: 1.062235627e-08
A58: 25.93928 | B58: ='DF raw data'!M63 -> -7.1299619e-06 | C58: ='DF raw data'!N63 -> 2.4033402e-06 | D58: ='DF raw data'!O63 -> -7.324807e-06 | F58: -7.137776338e-06 | G58: 2.410916365e-06 | H58: -7.332834988e-06 | J58: -1.490215949e-06 | K58: 0.0003163018904 | L58: -1.530344837e-05 | M58: -0.0003229154775 | N58: 1.074059751e-08
A59: 26.43942 | B59: ='DF raw data'!M64 -> -4.6669047e-06 | C59: ='DF raw data'!N64 -> 7.6751812e-06 | D59: ='DF raw data'!O64 -> 3.8384474e-06 | F59: -4.672019628e-06 | G59: 7.699376043e-06 | H59: 3.842654338e-06 | J59: -3.826879845e-06 | K59: 0.0003143879147 | L59: -1.145268243e-05 | M59: -0.0003286434221 | N59: 1.081352239e-08
A60: 26.93956 | B60: ='DF raw data'!M65 -> 4.0846862e-07 | C60: ='DF raw data'!N65 -> -1.3622425e-06 | D60: ='DF raw data'!O65 -> 8.3857467e-06 | F60: 4.089163016e-07 | G60: -1.366536763e-06 | H60: 8.394937478e-06 | J60: -3.622364446e-06 | K60: 0.0003125762254 | L60: -1.213614213e-05 | M60: -0.0003347131923 | N60: 1.089374858e-08
A61: 27.4397 | B61: ='DF raw data'!M66 -> 5.2279029e-06 | C61: ='DF raw data'!N66 -> -1.1556477e-05 | D61: ='DF raw data'!O66 -> 4.1849285e-06 | F61: 5.233632682e-06 | G61: -1.159290704e-05 | H61: 4.189515182e-06 | J61: -1.004815397e-06 | K61: 0.000312073677 | L61: -1.793421866e-05 | M61: -0.0003436828124 | N61: 1.105511668e-08
A62: 27.93984 | B62: ='DF raw data'!M67 -> 4.2354768e-06 | C62: ='DF raw data'!N67 -> 2.0027915e-06 | D62: ='DF raw data'!O67 -> 2.2525214e-06 | F62: 4.240118883e-06 | G62: 2.009104996e-06 | H62: 2.254990163e-06 | J62: 1.115837661e-06 | K62: 0.000312631752 | L62: -1.692938488e-05 | M62: -0.0003521498749 | N62: 1.119908156e-08
A63: 28.43998 | B63: ='DF raw data'!M68 -> 2.0641528e-07 | C63: ='DF raw data'!N68 -> 5.292572e-06 | D63: ='DF raw data'!O68 -> 4.7604858e-06 | F63: 2.066415111e-07 | G63: 5.309256029e-06 | H63: 4.765703292e-06 | J63: 1.219187347e-06 | K63: 0.0003132415164 | L63: -1.427401357e-05 | M63: -0.0003592888801 | N63: 1.130172724e-08
A64: 28.94012 | B64: ='DF raw data'!M69 -> -4.0584746e-06 | C64: ='DF raw data'!N69 -> 2.577061e-06 | D64: ='DF raw data'!O69 -> 5.8273449e-06 | F64: -4.062922688e-06 | G64: 2.585184793e-06 | H64: 5.83373167e-06 | J64: -8.128428066e-07 | K64: 0.0003128349812 | L64: -1.298105925e-05 | M64: -0.0003657812271 | N64: 1.138633523e-08
A65: 29.44026 | B65: ='DF raw data'!M70 -> -6.4696687e-06 | C65: ='DF raw data'!N70 -> 2.1332821e-06 | D65: ='DF raw data'!O70 -> 1.5265556e-06 | F65: -6.476759457e-06 | G65: 2.140006948e-06 | H65: 1.528228705e-06 | J65: -4.052129281e-06 | K65: 0.0003108083493 | L65: -1.191075617e-05 | M65: -0.0003717382726 | N65: 1.146550032e-08
A66: 29.9404 | B66: ='DF raw data'!M71 -> -5.6043973e-06 | C66: ='DF raw data'!N71 -> 4.9596715e-06 | D66: ='DF raw data'!O71 -> 5.2858682e-06 | F66: -5.610539719e-06 | G66: 4.975306111e-06 | H66: 5.291661512e-06 | J66: -6.858184617e-06 | K66: 0.0003073782968 | L66: -9.422406576e-06 | M66: -0.0003764507951 | N66: 1.153342755e-08
A67: 30.44054 | B67: ='DF raw data'!M72 -> -3.1315321e-06 | C67: ='DF raw data'!N72 -> 8.2261022e-06 | D67: ='DF raw data'!O72 -> 7.1963018e-06 | F67: -3.134964259e-06 | G67: 8.252033738e-06 | H67: 7.204188947e-06 | J67: -8.426105641e-06 | K67: 0.0003031640643 | L67: -5.295234422e-06 | M67: -0.0003790991536 | N67: 1.15829608e-08
A68: 30.94068 | B68: ='DF raw data'!M73 -> 1.5669139e-07 | C68: ='DF raw data'!N73 -> 6.1838641e-06 | D68: ='DF raw data'!O73 -> 1.9602171e-06 | F68: 1.568631238e-07 | G68: 6.203357792e-06 | H68: 1.962365498e-06 | J68: -8.347652118e-06 | K68: 0.0002989890696 | L68: -2.192687056e-06 | M68: -0.0003801958041 | N68: 1.162021682e-08
A69: 31.44082 | B69: ='DF raw data'!M74 -> 3.2528587e-06 | C69: ='DF raw data'!N74 -> -7.1060144e-06 | D69: ='DF raw data'!O74 -> 2.4608466e-06 | F69: 3.256423833e-06 | G69: -7.128415031e-06 | H69: 2.463543688e-06 | J69: -6.718984303e-06 | K69: 0.0002956286368 | L69: -5.75789255e-06 | M69: -0.0003830755565 | N69: 1.165937682e-08
A70: 31.94096 | B70: ='DF raw data'!M75 -> 3.8879771e-06 | C70: ='DF raw data'!N75 -> 1.4134869e-07 | D70: ='DF raw data'!O75 -> 3.9021993e-06 | F70: 3.892238323e-06 | G70: 1.417942703e-07 | H70: 3.90647611e-06 | J70: -4.772320228e-06 | K70: 0.0002932418086 | L70: -5.686975564e-06 | M70: -0.0003859198405 | N70: 1.16869429e-08
A71: 32.4411 | B71: ='DF raw data'!M76 -> 2.7820752e-06 | C71: ='DF raw data'!N76 -> 1.0671997e-06 | D71: ='DF raw data'!O76 -> 5.3967392e-06 | F71: 2.785124354e-06 | G71: =(1-$G$1*($B$2-$G$2))*C71*$M$2/$M$1 -> 1.070563885e-06 | H71: 5.402654026e-06 | J71: -3.379368133e-06 | K71: 0.0002915516514 | L71: -5.151543742e-06 | M71: -0.0003884963335 | N71: 1.170592748e-08
A72: =A71+$B$1 -> 32.94124 | B72: ='DF raw data'!M77 -> 1.2471683e-06 | C72: ='DF raw data'!N77 -> -7.3738042e-06 | D72: ='DF raw data'!O77 -> 5.829746e-06 | F72: 1.248535196e-06 | G72: -7.397048998e-06 | H72: 5.836135402e-06 | J72: =F72*$B$1+J71 -> -2.75492574e-06 | K72: =J72*$B$1+K71 -> 0.0002901738028 | L72: =G72*$B$1+L71 -> -8.851103828e-06 | M72: =L72*$B$1+M71 -> -0.0003929231246 | N72: =(J72^2+L72^2)*$B$1+N71 -> 1.174890534e-08
A73: 33.44138 | B73: ='DF raw data'!M78 -> 2.9533512e-06 | C73: ='DF raw data'!N78 -> 8.2366423e-06 | D73: ='DF raw data'!O78 -> 2.4225751e-06 | F73: 2.956588073e-06 | G73: 8.262607064e-06 | H73: 2.425230242e-06 | J73: -1.276217781e-06 | K73: 0.0002895355153 | L73: -4.718643531e-06 | M73: -0.000395283107 | N73: 1.176085585e-08
A74: 33.94152 | B74: ='DF raw data'!M79 -> 7.0743954e-06 | C74: ='DF raw data'!N79 -> 4.3716577e-06 | D74: ='DF raw data'!O79 -> -1.3632219e-06 | F74: 7.082148937e-06 | G74: 4.385438687e-06 | H74: -1.364715991e-06 | J74: 2.265848188e-06 | K74: 0.0002906687566 | L74: -2.525310226e-06 | M74: -0.0003965461156 | N74: 1.176661309e-08
A75: 34.44166 | B75: ='DF raw data'!M80 -> 5.3180811e-06 | C75: ='DF raw data'!N80 -> -6.4789069e-06 | D75: ='DF raw data'!O80 -> -3.2391094e-06 | F75: 5.323909717e-06 | G75: -6.49933067e-06 | H75: -3.242659464e-06 | J75: 4.928548394e-06 | K75: 0.0002931337208 | L75: -5.775885467e-06 | M75: -0.000399434867 | N75: 1.179544688e-08
A76: 34.9418 | B76: ='DF raw data'!M81 -> -8.3828127e-07 | C76: ='DF raw data'!N81 -> -6.9616467e-06 | D76: ='DF raw data'!O81 -> 1.4100821e-06 | F76: -8.392000263e-07 | G76: -6.983592234e-06 | H76: 1.41162755e-06 | J76: 4.508830893e-06 | K76: 0.0002953887674 | L76: -9.268659287e-06 | M76: -0.0004040704943 | N76: 1.184858055e-08
A77: 35.44194 | B77: ='DF raw data'!M82 -> -2.6414527e-06 | C77: ='DF raw data'!N82 -> 2.7077343e-07 | D77: ='DF raw data'!O82 -> 2.1469036e-06 | F77: -2.644347732e-06 | G77: 2.716270021e-07 | H77: 2.149256606e-06 | J77: 3.186286818e-06 | K77: 0.0002969823569 | L77: -9.132807758e-06 | M77: -0.0004086381767 | N77: 1.189537395e-08
A78: 35.94208 | B78: ='DF raw data'!M83 -> -2.5969712e-07 | C78: ='DF raw data'!N83 -> -7.4789436e-06 | D78: ='DF raw data'!O83 -> -1.07831e-06 | F78: -2.59981748e-07 | G78: -7.502519834e-06 | H78: -1.079491828e-06 | J78: 3.056259547e-06 | K78: 0.0002985109146 | L78: -1.288511803e-05 | M78: -0.0004150825397 | N78: 1.1983082e-08
A79: 36.44222 | B79: ='DF raw data'!M84 -> 1.6405211e-06 | C79: ='DF raw data'!N84 -> -8.5877227e-06 | D79: ='DF raw data'!O84 -> -1.0578063e-06 | F79: 1.642319111e-06 | G79: -8.614794191e-06 | H79: -1.058965656e-06 | J79: 3.877649027e-06 | K79: 0.000300450282 | L79: -1.719372119e-05 | M79: -0.0004236818074 | N79: 1.21384556e-08
A80: 36.94236 | B80: ='DF raw data'!M85 -> -1.072367e-07 | C80: ='DF raw data'!N85 -> -1.2835776e-05 | D80: ='DF raw data'!O85 -> 3.2618263e-07 | F80: -1.073542314e-07 | G80: -1.287623883e-05 | H80: 3.265401262e-07 | J80: 3.823956882e-06 | K80: 0.0003023627958 | L80: -2.363364329e-05 | M80: -0.0004355019377 | N80: 1.242512171e-08
A81: 37.4425 | B81: ='DF raw data'!M86 -> -5.2265277e-06 | C81: ='DF raw data'!N86 -> 6.831965e-07 | D81: ='DF raw data'!O86 -> -2.2657609e-06 | F81: -5.232255974e-06 | G81: 6.853501732e-07 | H81: -2.268244174e-06 | J81: 1.207096379e-06 | K81: 0.0003029665129 | L81: -2.329087225e-05 | M81: -0.0004471506346 | N81: 1.269715877e-08
A82: 37.94264 | B82: ='DF raw data'!M87 -> -8.2120278e-06 | C82: ='DF raw data'!N87 -> 1.1324948e-05 | D82: ='DF raw data'!O87 -> -6.8514041e-06 | F82: -8.221028182e-06 | G82: 1.136064818e-05 | H82: -6.858913239e-06 | J82: -2.904568656e-06 | K82: 0.000301513822 | L82: -1.760895767e-05 | M82: -0.0004559575787 | N82: 1.285645931e-08
A83: 38.44278 | B83: ='DF raw data'!M88 -> -5.8781334e-06 | C83: ='DF raw data'!N88 -> -6.2715621e-06 | D83: ='DF raw data'!O88 -> -7.8912399e-06 | F83: -5.884575834e-06 | G83: -6.291332247e-06 | H83: -7.899888699e-06 | J83: -5.847680414e-06 | K83: 0.0002985891631 | L83: -2.075550458e-05 | M83: -0.0004663382367 | N83: 1.308901758e-08
